Workbook

Sheet CALCULADORA
B1: Exclusión de responsabilidad | H1: Valor nominal negociado
H2: Columna1
H3: TIPS N13 A
H4: TIPS N14 A
H5: TIPS N16 A
H6: TIPS N17 A
B7: Calculadora Emisiones TIPS en Pesos | H7: TIPS N18 A 2034
H8: TIPS N19 A 2034
B9: Emisión | C9: TIPS N25 A | E9: Seleccionar la Emisión a Calcular | H9: TIPS N20 A 2034
H10: TIPS N21 A
B11: Características | H11: TIPS N22 A
B12: Identificación titulo (Nemotécnico) | C12: =+HLOOKUP(C9,Características!B1:N7,2,FALSE) -> INST15130340 | H12: TIPS N23 A
B13: Fecha de Emisión | C13: =+HLOOKUP(C9,Características!B1:N7,4,FALSE) -> 2025-03-13 | H13: TIPS N24 A1 2029
B14: Fecha de Vencimiento Contractual | C14: =+HLOOKUP(C9,Características!B1:N7,5,FALSE) -> 2040-03-13 | H14: TIPS N24 A2 2039
B15: Fecha estimada para el pago del 100% del título | C15: =+VLOOKUP(0,Flujos!D2:J182,6,FALSE) -> 2032-08-13 | H15: TIPS N25 A
B16: Tasa Facial Efectiva Anual | C16: =+HLOOKUP(C9,Características!B1:N7,6,FALSE) -> 0.10482
B17: Tasa Facial Nominal Anual | C17: =+ROUND(((1+C16)^(1/12)-1)*12,6) -> 0.100098
B18: Duración Macaulay | C18: =+SUMPRODUCT(Flujos!B2:B182,Flujos!H2:H182)/Flujos!H183/365 -> 1.639250785
B19: Nominal Inicial (Nominal del título al momento de la emisión) | C19: =Flujos!L2 -> 4.963012422e+10
B22: Datos de Compra | D22: Fecha de Compra y Valor de Compra son datos opcionales deben incluirse solo para calcular la TIR de Tenencia
B23: Fecha de Compra | C23: 2024-03-07
B24: Valor de Compra (COP) | C24: 15000000000
B26: Datos de Venta
B27: Fecha de Venta | C27: 2025-04-01 | E27: Incluir los datos de las celdas grises
B28: Valor nominal a negociar (COP) | C28: 49630124223
B29: Tasa de negociación / tasa de valoración | C29: 0.1054
B30: Precio Limpio (sin incluir intereses causados)
B31: Precio sucio (incluyendo intereses causados) | C31: 100.028
A32: =+Flujos!C183*100 -> 100 | B32: Porcentaje del nominal inicial que falta por pagar del capital | C32: =+Flujos!C183*100/100 -> 1
B33: Valor de Giro (COP) | C33: =+Características!B32 -> 50079276847
B35: TIR de Tenencia en COP* | C35: =+'TIR de Tenencia'!K2 -> -0.03734796941
B37: Oficina de Atención a Inversionistas al 601 618 3030 ext 257 - 239, o al correo asalcedo@titularizadora.com - josorio@titularizadora.com
C43: 1

Sheet Flujos
A1: Fecha | B1: Días 365 / Days 365 | C1: Amortización / Amortization | D1: Factor Saldo | E1: Factor Capital | F1: Factor Intereses | G1: Factor Total | H1: VPN | I1: Control | J1: Mes inicial | K1: Días iniciales | L1: Saldo / Balance | M1: Pago de Capital | N1: Pago de Intereses | O1: Pago Total
A2: =+CALCULADORA!C13 -> 2025-03-13 | B2: =IF(DIAS365(CALCULADORA!$C$27,A2)<0,0,DIAS365(CALCULADORA!$C$27,A2)) -> 0 | C2: 0 | D2: =+CALCULADORA!A32/Flujos!C183 -> 100 | E2: 0 | F2: 0 | G2: =F2+E2 -> 0 | H2: =IF($B2<0,0,G2/POWER(1+CALCULADORA!$C$29,Flujos!$B2/365)) -> 0 | I2: =+A2 -> 2025-03-13 | J2: 0 | K2: 0 | L2: =+Características!B18/Flujos!C183 -> 4.963012422e+10 | M2: 0 | N2: 0 | O2: =+N2+M2 -> 0
A3: =EDATE(A2,1) -> 2025-04-13 | B3: =IF(DIAS365(CALCULADORA!$C$27,A3)<0,0,DIAS365(CALCULADORA!$C$27,A3)) -> 12 | C3: =+HLOOKUP(CALCULADORA!$C$9,Tablas!B:B,Flujos!J3+1,FALSE) -> 0.03800132 | D3: =+ROUND(D2-E3,6) -> 96.199868 | E3: =ROUND(C3*$D$2,6) -> 3.800132 | F3: =ROUND(D2*ROUND(((1+CALCULADORA!$C$16)^(1/12)-1),6),6) -> 0.8341 | G3: =F3+E3 -> 4.634232 | H3: =IF($B3=0,0,G3/POWER(1+CALCULADORA!$C$29,Flujos!$B3/365)) -> 4.618989712 | I3: =+A3 -> 2025-04-13 | J3: 1 | K3: =+DIAS365($A$2,A3) -> 31 | L3: =+L2-M3 -> 4.774411399e+10 | M3: =+$L$2*C3 -> 1886010232 | N3: =+L2*$F$3% -> 413964866.1 | O3: =+N3+M3 -> 2299975098
A4: =EDATE(A3,1) -> 2025-05-13 | B4: =IF(DIAS365(CALCULADORA!$C$27,A4)<0,0,DIAS365(CALCULADORA!$C$27,A4)) -> 42 | C4: =+HLOOKUP(CALCULADORA!$C$9,Tablas!B:B,Flujos!J4+1,FALSE) -> 0.03657926 | D4: =+ROUND(D3-E4,6) -> 92.541942 | E4: =ROUND(C4*$D$2,6) -> 3.657926 | F4: =ROUND(D3*ROUND(((1+CALCULADORA!$C$16)^(1/12)-1),6),6) -> 0.802403 | G4: =F4+E4 -> 4.460329 | H4: =IF($B4=0,0,G4/POWER(1+CALCULADORA!$C$29,Flujos!$B4/365)) -> 4.409193671 | I4: 2025-05-13 | J4: 2 | K4: =+DIAS365($A$2,A4) -> 61 | L4: =+L3-M4 -> 4.592868077e+10 | M4: =+$L$2*C4 -> 1815433218 | N4: =+L3*$F$3% -> 398233654.8 | O4: =+N4+M4 -> 2213666873
A5: 2025-06-13 | B5: =IF(DIAS365(CALCULADORA!$C$27,A5)<0,0,DIAS365(CALCULADORA!$C$27,A5)) -> 73 | C5: =+HLOOKUP(CALCULADORA!$C$9,Tablas!B:B,Flujos!J5+1,FALSE) -> 0.03520919 | D5: =+ROUND(D4-E5,6) -> 89.021023 | E5: 3.520919 | F5: =ROUND(D4*ROUND(((1+CALCULADORA!$C$16)^(1/12)-1),6),6) -> 0.771892 | G5: 4.292811 | H5: =IF($B5=0,0,G5/POWER(1+CALCULADORA!$C$29,Flujos!$B5/365)) -> 4.207633228 | I5: 2025-06-13 | J5: 3 | K5: =+DIAS365($A$2,A5) -> 92 | L5: 4.41812443e+10 | M5: 1747436473 | N5: 383091126.3 | O5: 2130527600
A6: 2025-07-13 | B6: =IF(DIAS365(CALCULADORA!$C$27,A6)<0,0,DIAS365(CALCULADORA!$C$27,A6)) -> 103 | C6: =+HLOOKUP(CALCULADORA!$C$9,Tablas!B:B,Flujos!J6+1,FALSE) -> 0.03880766 | D6: 85.140257 | E6: 3.880766 | F6: =ROUND(D5*ROUND(((1+CALCULADORA!$C$16)^(1/12)-1),6),6) -> 0.742524 | G6: 4.62329 | H6: =IF($B6=0,0,G6/POWER(1+CALCULADORA!$C$29,Flujos!$B6/365)) -> 4.494385304 | I6: 2025-07-13 | J6: 4 | K6: =+DIAS365($A$2,A6) -> 122 | L6: 4.225521531e+10 | M6: 1926028987 | N6: 368515758.7 | O6: 2294544745
A7: 2025-08-13 | B7: =IF(DIAS365(CALCULADORA!$C$27,A7)<0,0,DIAS365(CALCULADORA!$C$27,A7)) -> 134 | C7: =+HLOOKUP(CALCULADORA!$C$9,Tablas!B:B,Flujos!J7+1,FALSE) -> 0.03393076 | D7: 81.747181 | E7: 3.393076 | F7: =ROUND(D6*ROUND(((1+CALCULADORA!$C$16)^(1/12)-1),6),6) -> 0.710155 | G7: 4.103231 | H7: =IF($B7=0,0,G7/POWER(1+CALCULADORA!$C$29,Flujos!$B7/365)) -> 3.955022512 | I7: 2025-08-13 | J7: 5 | K7: =+DIAS365($A$2,A7) -> 153 | L7: 4.057122748e+10 | M7: 1683987834 | N7: 352450750.9 | O7: 2036438585
A8: 2025-09-13 | B8: =IF(DIAS365(CALCULADORA!$C$27,A8)<0,0,DIAS365(CALCULADORA!$C$27,A8)) -> 165 | C8: =+HLOOKUP(CALCULADORA!$C$9,Tablas!B:B,Flujos!J8+1,FALSE) -> 0.03252335 | D8: 78.494846 | E8: 3.252335 | F8: =ROUND(D7*ROUND(((1+CALCULADORA!$C$16)^(1/12)-1),6),6) -> 0.681853 | G8: 3.934188 | H8: =IF($B8=0,0,G8/POWER(1+CALCULADORA!$C$29,Flujos!$B8/365)) -> 3.759948779 | I8: 2025-09-13 | J8: 6 | K8: =+DIAS365($A$2,A8) -> 184 | L8: 3.895708958e+10 | M8: 1614137901 | N8: 338404608.4 | O8: 1952542509
A9: 2025-10-13 | B9: =IF(DIAS365(CALCULADORA!$C$27,A9)<0,0,DIAS365(CALCULADORA!$C$27,A9)) -> 195 | C9: =+HLOOKUP(CALCULADORA!$C$9,Tablas!B:B,Flujos!J9+1,FALSE) -> 0.03130191 | D9: 75.364655 | E9: 3.130191 | F9: =ROUND(D8*ROUND(((1+CALCULADORA!$C$16)^(1/12)-1),6),6) -> 0.654726 | G9: 3.784917 | H9: =IF($B9=0,0,G9/POWER(1+CALCULADORA!$C$29,Flujos!$B9/365)) -> 3.587618358 | I9: 2025-10-13 | J9: 7 | K9: =+DIAS365($A$2,A9) -> 214 | L9: 3.74035719e+10 | M9: 1553517682 | N9: 324941084.2 | O9: 1878458766
A10: 2025-11-13 | B10: =IF(DIAS365(CALCULADORA!$C$27,A10)<0,0,DIAS365(CALCULADORA!$C$27,A10)) -> 226 | C10: =+HLOOKUP(CALCULADORA!$C$9,Tablas!B:B,Flujos!J10+1,FALSE) -> 0.03013207 | D10: 72.351448 | E10: 3.013207 | F10: =ROUND(D9*ROUND(((1+CALCULADORA!$C$16)^(1/12)-1),6),6) -> 0.628617 | G10: 3.641824 | H10: =IF($B10=0,0,G10/POWER(1+CALCULADORA!$C$29,Flujos!$B10/365)) -> 3.422730128 | I10: 2025-11-13 | J10: 8 | K10: =+DIAS365($A$2,A10) -> 245 | L10: 3.590811352e+10 | M10: 1495458377 | N10: 311983193.2 | O10: 1807441570
A11: 2025-12-13 | B11: =IF(DIAS365(CALCULADORA!$C$27,A11)<0,0,DIAS365(CALCULADORA!$C$27,A11)) -> 256 | C11: =+HLOOKUP(CALCULADORA!$C$9,Tablas!B:B,Flujos!J11+1,FALSE) -> 0.02900918 | D11: 69.45053 | E11: 2.900918 | F11: =ROUND(D10*ROUND(((1+CALCULADORA!$C$16)^(1/12)-1),6),6) -> 0.603483 | G11: 3.504401 | H11: =IF($B11=0,0,G11/POWER(1+CALCULADORA!$C$29,Flujos!$B11/365)) -> 3.266559383 | I11: 2025-12-13 | J11: 9 | K11: =+DIAS365($A$2,A11) -> 275 | L11: 3.446838431e+10 | M11: 1439729207 | N11: 299509574.9 | O11: 1739238782
A12: 2026-01-13 | B12: =IF(DIAS365(CALCULADORA!$C$27,A12)<0,0,DIAS365(CALCULADORA!$C$27,A12)) -> 287 | C12: =+HLOOKUP(CALCULADORA!$C$9,Tablas!B:B,Flujos!J12+1,FALSE) -> 0.02792213 | D12: 66.658317 | E12: 2.792213 | F12: =ROUND(D11*ROUND(((1+CALCULADORA!$C$16)^(1/12)-1),6),6) -> 0.579287 | G12: 3.3715 | H12: =IF($B12=0,0,G12/POWER(1+CALCULADORA!$C$29,Flujos!$B12/365)) -> 3.116045229 | I12: 2026-01-13 | J12: 10 | K12: =+DIAS365($A$2,A12) -> 306 | L12: 3.308260553e+10 | M12: 1385778780 | N12: 287500793.6 | O12: 1673279574
A13: 2026-02-13 | B13: =IF(DIAS365(CALCULADORA!$C$27,A13)<0,0,DIAS365(CALCULADORA!$C$27,A13)) -> 318 | C13: =+HLOOKUP(CALCULADORA!$C$9,Tablas!B:B,Flujos!J13+1,FALSE) -> 0.02687402 | D13: 63.970915 | E13: 2.687402 | F13: =ROUND(D12*ROUND(((1+CALCULADORA!$C$16)^(1/12)-1),6),6) -> 0.555997 | G13: 3.243399 | H13: =IF($B13=0,0,G13/POWER(1+CALCULADORA!$C$29,Flujos!$B13/365)) -> 2.972246292 | I13: 2026-02-13 | J13: 11 | K13: =+DIAS365($A$2,A13) -> 337 | L13: 3.174884458e+10 | M13: 1333760951 | N13: 275942012.7 | O13: 1609702964
A14: 2026-03-13 | B14: =IF(DIAS365(CALCULADORA!$C$27,A14)<0,0,DIAS365(CALCULADORA!$C$27,A14)) -> 346 | C14: =+HLOOKUP(CALCULADORA!$C$9,Tablas!B:B,Flujos!J14+1,FALSE) -> 0.02582833 | D14: 61.388082 | E14: 2.582833 | F14: =ROUND(D13*ROUND(((1+CALCULADORA!$C$16)^(1/12)-1),6),6) -> 0.533581 | G14: 3.116414 | H14: =IF($B14=0,0,G14/POWER(1+CALCULADORA!$C$29,Flujos!$B14/365)) -> 2.834008073 | I14: 2026-03-13 | J14: 12 | K14: =+DIAS365($A$2,A14) -> 365 | L14: 3.046698135e+10 | M14: 1281863226 | N14: 264817112.7 | O14: 1546680339
A15: 2026-04-13 | B15: =IF(DIAS365(CALCULADORA!$C$27,A15)<0,0,DIAS365(CALCULADORA!$C$27,A15)) -> 377 | C15: =+HLOOKUP(CALCULADORA!$C$9,Tablas!B:B,Flujos!J15+1,FALSE) -> 0.02481811 | D15: 58.906271 | E15: 2.481811 | F15: =ROUND(D14*ROUND(((1+CALCULADORA!$C$16)^(1/12)-1),6),6) -> 0.512038 | G15: 2.993849 | H15: =IF($B15=0,0,G15/POWER(1+CALCULADORA!$C$29,Flujos!$B15/365)) -> 2.699477147 | I15: 2026-04-13 | J15: 13 | K15: =+DIAS365($A$2,A15) -> 396 | L15: 2.923525547e+10 | M15: 1231725882 | N15: 254125091.5 | O15: 1485850974
A16: 2026-05-13 | B16: =IF(DIAS365(CALCULADORA!$C$27,A16)<0,0,DIAS365(CALCULADORA!$C$27,A16)) -> 407 | C16: =+HLOOKUP(CALCULADORA!$C$9,Tablas!B:B,Flujos!J16+1,FALSE) -> 0.02381137 | D16: 56.525134 | E16: 2.381137 | F16: =ROUND(D15*ROUND(((1+CALCULADORA!$C$16)^(1/12)-1),6),6) -> 0.491337 | G16: 2.872474 | H16: =IF($B16=0,0,G16/POWER(1+CALCULADORA!$C$29,Flujos!$B16/365)) -> 2.568791925 | I16: 2026-05-13 | J16: 14 | K16: =+DIAS365($A$2,A16) -> 426 | L16: 2.805349422e+10 | M16: 1181761251 | N16: 243851265.9 | O16: 1425612517
A17: 2026-06-13 | B17: =IF(DIAS365(CALCULADORA!$C$27,A17)<0,0,DIAS365(CALCULADORA!$C$27,A17)) -> 438 | C17: =+HLOOKUP(CALCULADORA!$C$9,Tablas!B:B,Flujos!J17+1,FALSE) -> 0.02289094 | D17: 54.23604 | E17: 2.289094 | F17: =ROUND(D16*ROUND(((1+CALCULADORA!$C$16)^(1/12)-1),6),6) -> 0.471476 | G17: 2.76057 | H17: =IF($B17=0,0,G17/POWER(1+CALCULADORA!$C$29,Flujos!$B17/365)) -> 2.447797077 | I17: 2026-06-13 | J17: 15 | K17: =+DIAS365($A$2,A17) -> 457 | L17: 2.691741403e+10 | M17: 1136080196 | N17: 233994195.3 | O17: 1370074391
A18: 2026-07-13 | B18: =IF(DIAS365(CALCULADORA!$C$27,A18)<0,0,DIAS365(CALCULADORA!$C$27,A18)) -> 468 | C18: =+HLOOKUP(CALCULADORA!$C$9,Tablas!B:B,Flujos!J18+1,FALSE) -> 0.02201585 | D18: 52.034455 | E18: 2.201585 | F18: =ROUND(D17*ROUND(((1+CALCULADORA!$C$16)^(1/12)-1),6),6) -> 0.452383 | G18: 2.653968 | H18: =IF($B18=0,0,G18/POWER(1+CALCULADORA!$C$29,Flujos!$B18/365)) -> 2.333970636 | I18: 2026-07-13 | J18: 16 | K18: =+DIAS365($A$2,A18) -> 487 | L18: 2.582476466e+10 | M18: 1092649370 | N18: 224518150.4 | O18: 1317167521
A19: 2026-08-13 | B19: =IF(DIAS365(CALCULADORA!$C$27,A19)<0,0,DIAS365(CALCULADORA!$C$27,A19)) -> 499 | C19: =+HLOOKUP(CALCULADORA!$C$9,Tablas!B:B,Flujos!J19+1,FALSE) -> 0.02114658 | D19: 49.919797 | E19: 2.114658 | F19: =ROUND(D18*ROUND(((1+CALCULADORA!$C$16)^(1/12)-1),6),6) -> 0.434019 | G19: 2.548677 | H19: =IF($B19=0,0,G19/POWER(1+CALCULADORA!$C$29,Flujos!$B19/365)) -> 2.222380062 | I19: 2026-08-13 | J19: 17 | K19: =+DIAS365($A$2,A19) -> 518 | L19: 2.477525726e+10 | M19: 1049507392 | N19: 215404362 | O19: 1264911754
A20: 2026-09-13 | B20: =IF(DIAS365(CALCULADORA!$C$27,A20)<0,0,DIAS365(CALCULADORA!$C$27,A20)) -> 530 | C20: =+HLOOKUP(CALCULADORA!$C$9,Tablas!B:B,Flujos!J20+1,FALSE) -> 0.02027545 | D20: 47.892252 | E20: 2.027545 | F20: =ROUND(D19*ROUND(((1+CALCULADORA!$C$16)^(1/12)-1),6),6) -> 0.416381 | G20: 2.443926 | H20: =IF($B20=0,0,G20/POWER(1+CALCULADORA!$C$29,Flujos!$B20/365)) -> 2.112980119 | I20: 2026-09-13 | J20: 18 | K20: =+DIAS365($A$2,A20) -> 549 | L20: 2.376898416e+10 | M20: 1006273102 | N20: 206650420.8 | O20: 1212923523
A21: 2026-10-13 | B21: =IF(DIAS365(CALCULADORA!$C$27,A21)<0,0,DIAS365(CALCULADORA!$C$27,A21)) -> 560 | C21: =+HLOOKUP(CALCULADORA!$C$9,Tablas!B:B,Flujos!J21+1,FALSE) -> 0.0194739 | D21: 45.944862 | E21: 1.94739 | F21: =ROUND(D20*ROUND(((1+CALCULADORA!$C$16)^(1/12)-1),6),6) -> 0.399469 | G21: 2.346859 | H21: =IF($B21=0,0,G21/POWER(1+CALCULADORA!$C$29,Flujos!$B21/365)) -> 2.012414394 | I21: 2026-10-13 | J21: 19 | K21: =+DIAS365($A$2,A21) -> 579 | L21: 2.280249208e+10 | M21: 966492076.1 | N21: 198257096.9 | O21: 1164749173
A22: 2026-11-13 | B22: =IF(DIAS365(CALCULADORA!$C$27,A22)<0,0,DIAS365(CALCULADORA!$C$27,A22)) -> 591 | C22: =+HLOOKUP(CALCULADORA!$C$9,Tablas!B:B,Flujos!J22+1,FALSE) -> 0.01867066 | D22: =+ROUND(D21-E22,6) -> 44.077796 | E22: 1.867066 | F22: =ROUND(D21*ROUND(((1+CALCULADORA!$C$16)^(1/12)-1),6),6) -> 0.383226 | G22: 2.250292 | H22: =IF($B22=0,0,G22/POWER(1+CALCULADORA!$C$29,Flujos!$B22/365)) -> 1.913256159 | I22: 2026-11-13 | J22: 20 | K22: =+DIAS365($A$2,A22) -> 610 | L22: 2.187586491e+10 | M22: 926627175.1 | N22: 190195586.5 | O22: 1116822762
A23: 2026-12-13 | B23: =IF(DIAS365(CALCULADORA!$C$27,A23)<0,0,DIAS365(CALCULADORA!$C$27,A23)) -> 621 | C23: =+HLOOKUP(CALCULADORA!$C$9,Tablas!B:B,Flujos!J23+1,FALSE) -> 0.01787302 | D23: 42.290494 | E23: 1.787302 | F23: =ROUND(D22*ROUND(((1+CALCULADORA!$C$16)^(1/12)-1),6),6) -> 0.367653 | G23: 2.154955 | H23: =IF($B23=0,0,G23/POWER(1+CALCULADORA!$C$29,Flujos!$B23/365)) -> 1.817169787 | I23: 2026-12-13 | J23: 21 | K23: =+DIAS365($A$2,A23) -> 640 | L23: 2.098882471e+10 | M23: 887040202.8 | N23: 182466589.2 | O23: 1069506792
A24: 2027-01-13 | B24: =IF(DIAS365(CALCULADORA!$C$27,A24)<0,0,DIAS365(CALCULADORA!$C$27,A24)) -> 652 | C24: =+HLOOKUP(CALCULADORA!$C$9,Tablas!B:B,Flujos!J24+1,FALSE) -> 0.0171376 | D24: 40.576734 | E24: 1.71376 | F24: =ROUND(D23*ROUND(((1+CALCULADORA!$C$16)^(1/12)-1),6),6) -> 0.352745 | G24: 2.066505 | H24: =IF($B24=0,0,G24/POWER(1+CALCULADORA!$C$29,Flujos!$B24/365)) -> 1.727816388 | I24: 2027-01-13 | J24: 22 | K24: =+DIAS365($A$2,A24) -> 671 | L24: 2.013828349e+10 | M24: 850541216.9 | N24: 175067786.9 | O24: 1025609004
A25: 2027-02-13 | B25: =IF(DIAS365(CALCULADORA!$C$27,A25)<0,0,DIAS365(CALCULADORA!$C$27,A25)) -> 683 | C25: =+HLOOKUP(CALCULADORA!$C$9,Tablas!B:B,Flujos!J25+1,FALSE) -> 0.01641444 | D25: 38.93529 | E25: 1.641444 | F25: =ROUND(D24*ROUND(((1+CALCULADORA!$C$16)^(1/12)-1),6),6) -> 0.338451 | G25: 1.979895 | H25: =IF($B25=0,0,G25/POWER(1+CALCULADORA!$C$29,Flujos!$B25/365)) -> 1.641372353 | I25: 2027-02-13 | J25: 23 | K25: =+DIAS365($A$2,A25) -> 702 | L25: 1.932363279e+10 | M25: 814650696.3 | N25: 167973422.6 | O25: 982624118.8
A26: 2027-03-13 | B26: =IF(DIAS365(CALCULADORA!$C$27,A26)<0,0,DIAS365(CALCULADORA!$C$27,A26)) -> 711 | C26: =+HLOOKUP(CALCULADORA!$C$9,Tablas!B:B,Flujos!J26+1,FALSE) -> 0.01573095 | D26: 37.362195 | E26: 1.573095 | F26: =ROUND(D25*ROUND(((1+CALCULADORA!$C$16)^(1/12)-1),6),6) -> 0.324759 | G26: 1.897854 | H26: =IF($B26=0,0,G26/POWER(1+CALCULADORA!$C$29,Flujos!$B26/365)) -> 1.561310483 | I26: 2027-03-13 | J26: 24 | K26: =+DIAS365($A$2,A26) -> 730 | L26: 1.854290379e+10 | M26: 780729002.6 | N26: 161178421.1 | O26: 941907423.8
A27: 2027-04-13 | B27: =IF(DIAS365(CALCULADORA!$C$27,A27)<0,0,DIAS365(CALCULADORA!$C$27,A27)) -> 742 | C27: =+HLOOKUP(CALCULADORA!$C$9,Tablas!B:B,Flujos!J27+1,FALSE) -> 0.01508352 | D27: 35.853843 | E27: 1.508352 | F27: =ROUND(D26*ROUND(((1+CALCULADORA!$C$16)^(1/12)-1),6),6) -> 0.311638 | G27: 1.81999 | H27: =IF($B27=0,0,G27/POWER(1+CALCULADORA!$C$29,Flujos!$B27/365)) -> 1.484565298 | I27: 2027-04-13 | J27: 25 | K27: =+DIAS365($A$2,A27) -> 761 | L27: 1.779430682e+10 | M27: 748596971.3 | N27: 154666360.5 | O27: 903263331.8
A28: 2027-05-13 | B28: =IF(DIAS365(CALCULADORA!$C$27,A28)<0,0,DIAS365(CALCULADORA!$C$27,A28)) -> 772 | C28: =+HLOOKUP(CALCULADORA!$C$9,Tablas!B:B,Flujos!J28+1,FALSE) -> 0.01443894 | D28: 34.409949 | E28: 1.443894 | F28: =ROUND(D27*ROUND(((1+CALCULADORA!$C$16)^(1/12)-1),6),6) -> 0.299057 | G28: 1.742951 | H28: =IF($B28=0,0,G28/POWER(1+CALCULADORA!$C$29,Flujos!$B28/365)) -> 1.410063071 | I28: 2027-05-13 | J28: 26 | K28: =+DIAS365($A$2,A28) -> 791 | L28: 1.707770043e+10 | M28: 716606385.8 | N28: 148422313.2 | O28: 865028699
A29: 2027-06-13 | B29: =IF(DIAS365(CALCULADORA!$C$27,A29)<0,0,DIAS365(CALCULADORA!$C$27,A29)) -> 803 | C29: =+HLOOKUP(CALCULADORA!$C$9,Tablas!B:B,Flujos!J29+1,FALSE) -> 0.01386063 | D29: 33.023886 | E29: 1.386063 | F29: =ROUND(D28*ROUND(((1+CALCULADORA!$C$16)^(1/12)-1),6),6) -> 0.287013 | G29: 1.673076 | H29: =IF($B29=0,0,G29/POWER(1+CALCULADORA!$C$29,Flujos!$B29/365)) -> 1.342062857 | I29: 2027-06-13 | J29: 27 | K29: =+DIAS365($A$2,A29) -> 822 | L29: 1.638979565e+10 | M29: 687904788.7 | N29: 142445099.3 | O29: 830349888
A30: 2027-07-13 | B30: =IF(DIAS365(CALCULADORA!$C$27,A30)<0,0,DIAS365(CALCULADORA!$C$27,A30)) -> 833 | C30: =+HLOOKUP(CALCULADORA!$C$9,Tablas!B:B,Flujos!J30+1,FALSE) -> 0.01329704 | D30: 31.694182 | E30: 1.329704 | F30: =ROUND(D29*ROUND(((1+CALCULADORA!$C$16)^(1/12)-1),6),6) -> 0.275452 | G30: 1.605156 | H30: =IF($B30=0,0,G30/POWER(1+CALCULADORA!$C$29,Flujos!$B30/365)) -> 1.277019391 | I30: 2027-07-13 | J30: 28 | K30: =+DIAS365($A$2,A30) -> 852 | L30: 1.57298619e+10 | M30: 659933747 | N30: 136707285.5 | O30: 796641032.5
A31: 2027-08-13 | B31: =IF(DIAS365(CALCULADORA!$C$27,A31)<0,0,DIAS365(CALCULADORA!$C$27,A31)) -> 864 | C31: =+HLOOKUP(CALCULADORA!$C$9,Tablas!B:B,Flujos!J31+1,FALSE) -> 0.01278019 | D31: 30.416163 | E31: 1.278019 | F31: =ROUND(D30*ROUND(((1+CALCULADORA!$C$16)^(1/12)-1),6),6) -> 0.264361 | G31: 1.54238 | H31: =IF($B31=0,0,G31/POWER(1+CALCULADORA!$C$29,Flujos!$B31/365)) -> 1.216677446 | I31: 2027-08-13 | J31: 29 | K31: =+DIAS365($A$2,A31) -> 883 | L31: 1.509557948e+10 | M31: 634282417.3 | N31: 131202778.1 | O31: 765485195.4
A32: 2027-09-13 | B32: =IF(DIAS365(CALCULADORA!$C$27,A32)<0,0,DIAS365(CALCULADORA!$C$27,A32)) -> 895 | C32: =+HLOOKUP(CALCULADORA!$C$9,Tablas!B:B,Flujos!J32+1,FALSE) -> 0.0122522 | D32: 29.190943 | E32: 1.22522 | F32: =ROUND(D31*ROUND(((1+CALCULADORA!$C$16)^(1/12)-1),6),6) -> 0.253701 | G32: 1.478921 | H32: =IF($B32=0,0,G32/POWER(1+CALCULADORA!$C$29,Flujos!$B32/365)) -> 1.156732332 | I32: 2027-09-13 | J32: 30 | K32: =+DIAS365($A$2,A32) -> 914 | L32: 1.448750127e+10 | M32: 608078208 | N32: 125912228.4 | O32: 733990436.5
A33: 2027-10-13 | B33: =IF(DIAS365(CALCULADORA!$C$27,A33)<0,0,DIAS365(CALCULADORA!$C$27,A33)) -> 925 | C33: =+HLOOKUP(CALCULADORA!$C$9,Tablas!B:B,Flujos!J33+1,FALSE) -> 0.011749 | D33: 28.016043 | E33: 1.1749 | F33: =ROUND(D32*ROUND(((1+CALCULADORA!$C$16)^(1/12)-1),6),6) -> 0.243482 | G33: 1.418382 | H33: =IF($B33=0,0,G33/POWER(1+CALCULADORA!$C$29,Flujos!$B33/365)) -> 1.100282405 | I33: 2027-10-13 | J33: 31 | K33: =+DIAS365($A$2,A33) -> 944 | L33: 1.390439694e+10 | M33: 583104329.5 | N33: 120840248.1 | O33: 703944577.6
A34: 2027-11-13 | B34: =IF(DIAS365(CALCULADORA!$C$27,A34)<0,0,DIAS365(CALCULADORA!$C$27,A34)) -> 956 | C34: =+HLOOKUP(CALCULADORA!$C$9,Tablas!B:B,Flujos!J34+1,FALSE) -> 0.01129534 | D34: 26.886509 | E34: 1.129534 | F34: =ROUND(D33*ROUND(((1+CALCULADORA!$C$16)^(1/12)-1),6),6) -> 0.233682 | G34: 1.363216 | H34: =IF($B34=0,0,G34/POWER(1+CALCULADORA!$C$29,Flujos!$B34/365)) -> 1.048526614 | I34: 2027-11-13 | J34: 32 | K34: =+DIAS365($A$2,A34) -> 975 | L34: 1.334380782e+10 | M34: 560589127.3 | N34: 115976574.9 | O34: 676565702.2
A35: =EDATE(A34,1) -> 2027-12-13 | B35: =IF(DIAS365(CALCULADORA!$C$27,A35)<0,0,DIAS365(CALCULADORA!$C$27,A35)) -> 986 | C35: =+HLOOKUP(CALCULADORA!$C$9,Tablas!B:B,Flujos!J35+1,FALSE) -> 0.01081684 | D35: 25.804825 | E35: 1.081684 | F35: =ROUND(D34*ROUND(((1+CALCULADORA!$C$16)^(1/12)-1),6),6) -> 0.22426 | G35: 1.305944 | H35: =IF($B35=0,0,G35/POWER(1+CALCULADORA!$C$29,Flujos!$B35/365)) -> 0.9962363778 | I35: 2027-12-13 | J35: 33 | K35: =+DIAS365($A$2,A35) -> 1005 | L35: 1.28069667e+10 | M35: 536841112.9 | N35: 111300701 | O35: 648141813.9
A36: 2028-01-13 | B36: =IF(DIAS365(CALCULADORA!$C$27,A36)<0,0,DIAS365(CALCULADORA!$C$27,A36)) -> 1017 | C36: =+HLOOKUP(CALCULADORA!$C$9,Tablas!B:B,Flujos!J36+1,FALSE) -> 0.01037957 | D36: 24.766868 | E36: 1.037957 | F36: =ROUND(D35*ROUND(((1+CALCULADORA!$C$16)^(1/12)-1),6),6) -> 0.215238 | G36: 1.253195 | H36: =IF($B36=0,0,G36/POWER(1+CALCULADORA!$C$29,Flujos!$B36/365)) -> 0.947895195 | I36: 2028-01-13 | J36: 34 | K36: =+DIAS365($A$2,A36) -> 1036 | L36: 1.229182735e+10 | M36: 515139348.5 | N36: 106822909.3 | O36: 621962257.8
A37: 2028-02-13 | B37: =IF(DIAS365(CALCULADORA!$C$27,A37)<0,0,DIAS365(CALCULADORA!$C$27,A37)) -> 1048 | C37: =+HLOOKUP(CALCULADORA!$C$9,Tablas!B:B,Flujos!J37+1,FALSE) -> 0.00994437 | D37: 23.772431 | E37: 0.994437 | F37: =ROUND(D36*ROUND(((1+CALCULADORA!$C$16)^(1/12)-1),6),6) -> 0.20658 | G37: 1.201017 | H37: =IF($B37=0,0,G37/POWER(1+CALCULADORA!$C$29,Flujos!$B37/365)) -> 0.9007300456 | I37: 2028-02-13 | J37: 35 | K37: =+DIAS365($A$2,A37) -> 1067 | L37: 1.179828704e+10 | M37: 493540318.4 | N37: 102526132 | O37: 596066450.4
A38: 2028-03-13 | B38: =IF(DIAS365(CALCULADORA!$C$27,A38)<0,0,DIAS365(CALCULADORA!$C$27,A38)) -> 1076 | C38: =+HLOOKUP(CALCULADORA!$C$9,Tablas!B:B,Flujos!J38+1,FALSE) -> 0.00953004 | D38: 22.819427 | E38: 0.953004 | F38: =ROUND(D37*ROUND(((1+CALCULADORA!$C$16)^(1/12)-1),6),6) -> 0.198286 | G38: 1.15129 | H38: =IF($B38=0,0,G38/POWER(1+CALCULADORA!$C$29,Flujos!$B38/365)) -> 0.8568242476 | I38: 2028-03-13 | J38: 36 | K38: =+DIAS365($A$2,A38) -> 1095 | L38: 1.132530997e+10 | M38: 472977069.1 | N38: 98409512.17 | O38: 571386581.2
A39: 2028-04-13 | B39: =IF(DIAS365(CALCULADORA!$C$27,A39)<0,0,DIAS365(CALCULADORA!$C$27,A39)) -> 1107 | C39: =+HLOOKUP(CALCULADORA!$C$9,Tablas!B:B,Flujos!J39+1,FALSE) -> 0.0091211 | D39: 21.907317 | E39: 0.91211 | F39: =ROUND(D38*ROUND(((1+CALCULADORA!$C$16)^(1/12)-1),6),6) -> 0.190337 | G39: 1.102447 | H39: =IF($B39=0,0,G39/POWER(1+CALCULADORA!$C$29,Flujos!$B39/365)) -> 0.8135206147 | I39: 2028-04-13 | J39: 37 | K39: =+DIAS365($A$2,A39) -> 1126 | L39: 1.087262864e+10 | M39: 452681326.1 | N39: 94464410.44 | O39: 547145736.5
A40: 2028-05-13 | B40: =IF(DIAS365(CALCULADORA!$C$27,A40)<0,0,DIAS365(CALCULADORA!$C$27,A40)) -> 1137 | C40: =+HLOOKUP(CALCULADORA!$C$9,Tablas!B:B,Flujos!J40+1,FALSE) -> 0.00876489 | D40: =+ROUND(D39-E40,6) -> 21.030828 | E40: =ROUND(C40*$D$2,6) -> 0.876489 | F40: =ROUND(D39*ROUND(((1+CALCULADORA!$C$16)^(1/12)-1),6),6) -> 0.182729 | G40: =F40+E40 -> 1.059218 | H40: =IF($B40=0,0,G40/POWER(1+CALCULADORA!$C$29,Flujos!$B40/365)) -> 0.7752097976 | I40: =+A40 -> 2028-05-13 | J40: 38 | K40: =+DIAS365($A$2,A40) -> 1156 | L40: 1.043762606e+10 | M40: 435002579.5 | N40: 90688595.49 | O40: 525691175
A41: 2028-06-13 | B41: =IF(DIAS365(CALCULADORA!$C$27,A41)<0,0,DIAS365(CALCULADORA!$C$27,A41)) -> 1168 | C41: =+HLOOKUP(CALCULADORA!$C$9,Tablas!B:B,Flujos!J41+1,FALSE) -> 0.00841889 | D41: 20.188939 | E41: 0.841889 | F41: =ROUND(D40*ROUND(((1+CALCULADORA!$C$16)^(1/12)-1),6),6) -> 0.175418 | G41: 1.017307 | H41: =IF($B41=0,0,G41/POWER(1+CALCULADORA!$C$29,Flujos!$B41/365)) -> 0.7382267195 | I41: 2028-06-13 | J41: 39 | K41: =+DIAS365($A$2,A41) -> 1187 | L41: 1.001979551e+10 | M41: 417830556.5 | N41: 87060238.98 | O41: 504890795.5
A42: 2028-07-13 | B42: =IF(DIAS365(CALCULADORA!$C$27,A42)<0,0,DIAS365(CALCULADORA!$C$27,A42)) -> 1198 | C42: =+HLOOKUP(CALCULADORA!$C$9,Tablas!B:B,Flujos!J42+1,FALSE) -> 0.00808976 | D42: 19.379963 | E42: 0.808976 | F42: =ROUND(D41*ROUND(((1+CALCULADORA!$C$16)^(1/12)-1),6),6) -> 0.168396 | G42: 0.977372 | H42: =IF($B42=0,0,G42/POWER(1+CALCULADORA!$C$29,Flujos!$B42/365)) -> 0.7034296633 | I42: 2028-07-13 | J42: 40 | K42: =+DIAS365($A$2,A42) -> 1217 | L42: 9618299711 | M42: 401495793.7 | N42: 83575114.31 | O42: 485070908
A43: 2028-08-13 | B43: =IF(DIAS365(CALCULADORA!$C$27,A43)<0,0,DIAS365(CALCULADORA!$C$27,A43)) -> 1229 | C43: =+HLOOKUP(CALCULADORA!$C$9,Tablas!B:B,Flujos!J43+1,FALSE) -> 0.00777939 | D43: 18.602024 | E43: 0.777939 | F43: =ROUND(D42*ROUND(((1+CALCULADORA!$C$16)^(1/12)-1),6),6) -> 0.161648 | G43: 0.939587 | H43: =IF($B43=0,0,G43/POWER(1+CALCULADORA!$C$29,Flujos!$B43/365)) -> 0.6705043678 | I43: 2028-08-13 | J43: 41 | K43: =+DIAS365($A$2,A43) -> 1248 | L43: 9232207619 | M43: 386092092.1 | N43: 80226237.89 | O43: 466318330
A44: 2028-09-13 | B44: =IF(DIAS365(CALCULADORA!$C$27,A44)<0,0,DIAS365(CALCULADORA!$C$27,A44)) -> 1260 | C44: =+HLOOKUP(CALCULADORA!$C$9,Tablas!B:B,Flujos!J44+1,FALSE) -> 0.00748026 | D44: 17.853998 | E44: 0.748026 | F44: =ROUND(D43*ROUND(((1+CALCULADORA!$C$16)^(1/12)-1),6),6) -> 0.155159 | G44: 0.903185 | H44: =IF($B44=0,0,G44/POWER(1+CALCULADORA!$C$29,Flujos!$B44/365)) -> 0.6390651794 | I44: 2028-09-13 | J44: 42 | K44: =+DIAS365($A$2,A44) -> 1279 | L44: 8860961386 | M44: 371246233 | N44: 77005843.75 | O44: 448252076.8
A45: 2028-10-13 | B45: =IF(DIAS365(CALCULADORA!$C$27,A45)<0,0,DIAS365(CALCULADORA!$C$27,A45)) -> 1290 | C45: =+HLOOKUP(CALCULADORA!$C$9,Tablas!B:B,Flujos!J45+1,FALSE) -> 0.00715857 | D45: 17.138141 | E45: 0.715857 | F45: =ROUND(D44*ROUND(((1+CALCULADORA!$C$16)^(1/12)-1),6),6) -> 0.14892 | G45: 0.864777 | H45: =IF($B45=0,0,G45/POWER(1+CALCULADORA!$C$29,Flujos!$B45/365)) -> 0.6068699412 | I45: 2028-10-13 | J45: 43 | K45: =+DIAS365($A$2,A45) -> 1309 | L45: 8505680668 | M45: 355280718.4 | N45: 73909278.92 | O45: 429189997.3
A46: 2028-11-13 | B46: =IF(DIAS365(CALCULADORA!$C$27,A46)<0,0,DIAS365(CALCULADORA!$C$27,A46)) -> 1321 | C46: =+HLOOKUP(CALCULADORA!$C$9,Tablas!B:B,Flujos!J46+1,FALSE) -> 0.00688337 | D46: 16.449804 | E46: 0.688337 | F46: =ROUND(D45*ROUND(((1+CALCULADORA!$C$16)^(1/12)-1),6),6) -> 0.142949 | G46: 0.831286 | H46: =IF($B46=0,0,G46/POWER(1+CALCULADORA!$C$29,Flujos!$B46/365)) -> 0.5784233145 | I46: 2028-11-13 | J46: 44 | K46: =+DIAS365($A$2,A46) -> 1340 | L46: 8164058160 | M46: 341622508.2 | N46: 70945882.45 | O46: 412568390.6
A47: 2028-12-13 | B47: =IF(DIAS365(CALCULADORA!$C$27,A47)<0,0,DIAS365(CALCULADORA!$C$27,A47)) -> 1351 | C47: =+HLOOKUP(CALCULADORA!$C$9,Tablas!B:B,Flujos!J47+1,FALSE) -> 0.00660936 | D47: 15.788868 | E47: 0.660936 | F47: =ROUND(D46*ROUND(((1+CALCULADORA!$C$16)^(1/12)-1),6),6) -> 0.137208 | G47: 0.798144 | H47: =IF($B47=0,0,G47/POWER(1+CALCULADORA!$C$29,Flujos!$B47/365)) -> 0.550807233 | I47: 2028-12-13 | J47: 45 | K47: =+DIAS365($A$2,A47) -> 1370 | L47: 7836034802 | M47: 328023357.8 | N47: 68096409.11 | O47: 396119766.9
A48: 2029-01-13 | B48: =IF(DIAS365(CALCULADORA!$C$27,A48)<0,0,DIAS365(CALCULADORA!$C$27,A48)) -> 1382 | C48: =+HLOOKUP(CALCULADORA!$C$9,Tablas!B:B,Flujos!J48+1,FALSE) -> 0.00635071 | D48: 15.153797 | E48: 0.635071 | F48: =ROUND(D47*ROUND(((1+CALCULADORA!$C$16)^(1/12)-1),6),6) -> 0.131695 | G48: 0.766766 | H48: =IF($B48=0,0,G48/POWER(1+CALCULADORA!$C$29,Flujos!$B48/365)) -> 0.5246685777 | I48: 2029-01-13 | J48: 46 | K48: =+DIAS365($A$2,A48) -> 1401 | L48: 7520848276 | M48: 315186526.2 | N48: 65360366.28 | O48: 380546892.5
A49: 2029-02-13 | B49: =IF(DIAS365(CALCULADORA!$C$27,A49)<0,0,DIAS365(CALCULADORA!$C$27,A49)) -> 1413 | C49: =+HLOOKUP(CALCULADORA!$C$9,Tablas!B:B,Flujos!J49+1,FALSE) -> 0.00610947 | D49: 14.54285 | E49: 0.610947 | F49: =ROUND(D48*ROUND(((1+CALCULADORA!$C$16)^(1/12)-1),6),6) -> 0.126398 | G49: 0.737345 | H49: =IF($B49=0,0,G49/POWER(1+CALCULADORA!$C$29,Flujos!$B49/365)) -> 0.5002611468 | I49: 2029-02-13 | J49: 47 | K49: =+DIAS365($A$2,A49) -> 1432 | L49: 7217634521 | M49: 303213755 | N49: 62731395.47 | O49: 365945150.5
A50: 2029-03-13 | B50: =IF(DIAS365(CALCULADORA!$C$27,A50)<0,0,DIAS365(CALCULADORA!$C$27,A50)) -> 1441 | C50: =+HLOOKUP(CALCULADORA!$C$9,Tablas!B:B,Flujos!J50+1,FALSE) -> 0.00587647 | D50: 13.955203 | E50: 0.587647 | F50: =ROUND(D49*ROUND(((1+CALCULADORA!$C$16)^(1/12)-1),6),6) -> 0.121302 | G50: 0.708949 | H50: =IF($B50=0,0,G50/POWER(1+CALCULADORA!$C$29,Flujos!$B50/365)) -> 0.4773122163 | I50: 2029-03-13 | J50: 48 | K50: =+DIAS365($A$2,A50) -> 1460 | L50: 6925984584 | M50: 291649936.1 | N50: 60202289.54 | O50: 351852225.6
A51: 2029-04-13 | B51: =IF(DIAS365(CALCULADORA!$C$27,A51)<0,0,DIAS365(CALCULADORA!$C$27,A51)) -> 1472 | C51: =+HLOOKUP(CALCULADORA!$C$9,Tablas!B:B,Flujos!J51+1,FALSE) -> 0.00564968 | D51: 13.390235 | E51: 0.564968 | F51: =ROUND(D50*ROUND(((1+CALCULADORA!$C$16)^(1/12)-1),6),6) -> 0.1164 | G51: 0.681368 | H51: =IF($B51=0,0,G51/POWER(1+CALCULADORA!$C$29,Flujos!$B51/365)) -> 0.4548551493 | I51: 2029-04-13 | J51: 49 | K51: =+DIAS365($A$2,A51) -> 1491 | L51: 6645590264 | M51: 280394320.2 | N51: 57769637.42 | O51: 338163957.6
A52: 2029-05-13 | B52: =IF(DIAS365(CALCULADORA!$C$27,A52)<0,0,DIAS365(CALCULADORA!$C$27,A52)) -> 1502 | C52: =+HLOOKUP(CALCULADORA!$C$9,Tablas!B:B,Flujos!J52+1,FALSE) -> 0.00543259 | D52: 12.846976 | E52: 0.543259 | F52: =ROUND(D51*ROUND(((1+CALCULADORA!$C$16)^(1/12)-1),6),6) -> 0.111688 | G52: 0.654947 | H52: =IF($B52=0,0,G52/POWER(1+CALCULADORA!$C$29,Flujos!$B52/365)) -> 0.433631275 | I52: 2029-05-13 | J52: 50 | K52: =+DIAS365($A$2,A52) -> 1521 | L52: 6375970148 | M52: 269620116.6 | N52: 55430868.39 | O52: 325050984.9
A53: 2029-06-13 | B53: =IF(DIAS365(CALCULADORA!$C$27,A53)<0,0,DIAS365(CALCULADORA!$C$27,A53)) -> 1533 | C53: =+HLOOKUP(CALCULADORA!$C$9,Tablas!B:B,Flujos!J53+1,FALSE) -> 0.00522182 | D53: 12.324794 | E53: 0.522182 | F53: =ROUND(D52*ROUND(((1+CALCULADORA!$C$16)^(1/12)-1),6),6) -> 0.107157 | G53: 0.629339 | H53: =IF($B53=0,0,G53/POWER(1+CALCULADORA!$C$29,Flujos!$B53/365)) -> 0.4131453915 | I53: 2029-06-13 | J53: 51 | K53: =+DIAS365($A$2,A53) -> 1552 | L53: 6116810572 | M53: 259159575.3 | N53: 53181967 | O53: 312341542.3
A54: 2029-07-13 | B54: =IF(DIAS365(CALCULADORA!$C$27,A54)<0,0,DIAS365(CALCULADORA!$C$27,A54)) -> 1563 | C54: =+HLOOKUP(CALCULADORA!$C$9,Tablas!B:B,Flujos!J54+1,FALSE) -> 0.00501711 | D54: 11.823083 | E54: 0.501711 | F54: =ROUND(D53*ROUND(((1+CALCULADORA!$C$16)^(1/12)-1),6),6) -> 0.102801 | G54: 0.604512 | H54: =IF($B54=0,0,G54/POWER(1+CALCULADORA!$C$29,Flujos!$B54/365)) -> 0.3935919899 | I54: 2029-07-13 | J54: 52 | K54: =+DIAS365($A$2,A54) -> 1582 | L54: 5867810780 | M54: 248999792.5 | N54: 51020316.98 | O54: 300020109.5
A55: 2029-08-13 | B55: =IF(DIAS365(CALCULADORA!$C$27,A55)<0,0,DIAS365(CALCULADORA!$C$27,A55)) -> 1594 | C55: =+HLOOKUP(CALCULADORA!$C$9,Tablas!B:B,Flujos!J55+1,FALSE) -> 0.00481631 | D55: 11.341452 | E55: 0.481631 | F55: =ROUND(D54*ROUND(((1+CALCULADORA!$C$16)^(1/12)-1),6),6) -> 0.098616 | G55: 0.580247 | H55: =IF($B55=0,0,G55/POWER(1+CALCULADORA!$C$29,Flujos!$B55/365)) -> 0.3745916182 | I55: 2029-08-13 | J55: 53 | K55: =+DIAS365($A$2,A55) -> 1613 | L55: 5628776716 | M55: 239034063.6 | N55: 48943409.72 | O55: 287977473.3
A56: 2029-09-13 | B56: =IF(DIAS365(CALCULADORA!$C$27,A56)<0,0,DIAS365(CALCULADORA!$C$27,A56)) -> 1625 | C56: =+HLOOKUP(CALCULADORA!$C$9,Tablas!B:B,Flujos!J56+1,FALSE) -> 0.00538623 | D56: 10.802829 | E56: 0.538623 | F56: =ROUND(D55*ROUND(((1+CALCULADORA!$C$16)^(1/12)-1),6),6) -> 0.094599 | G56: 0.633222 | H56: =IF($B56=0,0,G56/POWER(1+CALCULADORA!$C$29,Flujos!$B56/365)) -> 0.4053264766 | I56: 2029-09-13 | J56: 54 | K56: =+DIAS365($A$2,A56) -> 1644 | L56: 5361457452 | M56: 267319264 | N56: 46949626.59 | O56: 314268890.6
A57: 2029-10-13 | B57: =IF(DIAS365(CALCULADORA!$C$27,A57)<0,0,DIAS365(CALCULADORA!$C$27,A57)) -> 1655 | C57: =+HLOOKUP(CALCULADORA!$C$9,Tablas!B:B,Flujos!J57+1,FALSE) -> 0.00555109 | D57: 10.24772 | E57: 0.555109 | F57: =ROUND(D56*ROUND(((1+CALCULADORA!$C$16)^(1/12)-1),6),6) -> 0.090106 | G57: 0.645215 | H57: =IF($B57=0,0,G57/POWER(1+CALCULADORA!$C$29,Flujos!$B57/365)) -> 0.4096156034 | I57: 2029-10-13 | J57: 55 | K57: =+DIAS365($A$2,A57) -> 1674 | L57: 5085956166 | M57: 275501286.3 | N57: 44719916.61 | O57: 320221202.9
A58: 2029-11-13 | B58: =IF(DIAS365(CALCULADORA!$C$27,A58)<0,0,DIAS365(CALCULADORA!$C$27,A58)) -> 1686 | C58: =+HLOOKUP(CALCULADORA!$C$9,Tablas!B:B,Flujos!J58+1,FALSE) -> 0.00535438 | D58: 9.712282 | E58: 0.535438 | F58: =ROUND(D57*ROUND(((1+CALCULADORA!$C$16)^(1/12)-1),6),6) -> 0.085476 | G58: 0.620914 | H58: =IF($B58=0,0,G58/POWER(1+CALCULADORA!$C$29,Flujos!$B58/365)) -> 0.3908474792 | I58: 2029-11-13 | J58: 56 | K58: =+DIAS365($A$2,A58) -> 1705 | L58: 4820217621 | M58: 265738544.5 | N58: 42421960.38 | O58: 308160504.9
A59: 2029-12-13 | B59: =IF(DIAS365(CALCULADORA!$C$27,A59)<0,0,DIAS365(CALCULADORA!$C$27,A59)) -> 1716 | C59: =+HLOOKUP(CALCULADORA!$C$9,Tablas!B:B,Flujos!J59+1,FALSE) -> 0.00515999 | D59: 9.196283 | E59: 0.515999 | F59: =ROUND(D58*ROUND(((1+CALCULADORA!$C$16)^(1/12)-1),6),6) -> 0.08101 | G59: 0.597009 | H59: =IF($B59=0,0,G59/POWER(1+CALCULADORA!$C$29,Flujos!$B59/365)) -> 0.3727175128 | I59: 2029-12-13 | J59: 57 | K59: =+DIAS365($A$2,A59) -> 1735 | L59: 4564126677 | M59: 256090944.7 | N59: 40205435.18 | O59: 296296379.9
A60: 2030-01-13 | B60: =IF(DIAS365(CALCULADORA!$C$27,A60)<0,0,DIAS365(CALCULADORA!$C$27,A60)) -> 1747 | C60: =+HLOOKUP(CALCULADORA!$C$9,Tablas!B:B,Flujos!J60+1,FALSE) -> 0.00497464 | D60: 8.698819 | E60: 0.497464 | F60: =ROUND(D59*ROUND(((1+CALCULADORA!$C$16)^(1/12)-1),6),6) -> 0.076706 | G60: 0.57417 | H60: =IF($B60=0,0,G60/POWER(1+CALCULADORA!$C$29,Flujos!$B60/365)) -> 0.3554211314 | I60: 2030-01-13 | J60: 58 | K60: =+DIAS365($A$2,A60) -> 1766 | L60: 4317234676 | M60: 246892001.2 | N60: 38069380.61 | O60: 284961381.8
A61: 2030-02-13 | B61: =IF(DIAS365(CALCULADORA!$C$27,A61)<0,0,DIAS365(CALCULADORA!$C$27,A61)) -> 1778 | C61: =+HLOOKUP(CALCULADORA!$C$9,Tablas!B:B,Flujos!J61+1,FALSE) -> 0.00479772 | D61: 8.219047 | E61: 0.479772 | F61: =ROUND(D60*ROUND(((1+CALCULADORA!$C$16)^(1/12)-1),6),6) -> 0.072557 | G61: 0.552329 | H61: =IF($B61=0,0,G61/POWER(1+CALCULADORA!$C$29,Flujos!$B61/365)) -> 0.3390036864 | I61: 2030-02-13 | J61: 59 | K61: =+DIAS365($A$2,A61) -> 1797 | L61: 4079123236 | M61: 238111439.6 | N61: 36010054.43 | O61: 274121494
A62: 2030-03-13 | B62: =IF(DIAS365(CALCULADORA!$C$27,A62)<0,0,DIAS365(CALCULADORA!$C$27,A62)) -> 1806 | C62: =+HLOOKUP(CALCULADORA!$C$9,Tablas!B:B,Flujos!J62+1,FALSE) -> 0.00387721 | D62: 7.831326 | E62: 0.387721 | F62: =ROUND(D61*ROUND(((1+CALCULADORA!$C$16)^(1/12)-1),6),6) -> 0.068555 | G62: 0.456276 | H62: =IF($B62=0,0,G62/POWER(1+CALCULADORA!$C$29,Flujos!$B62/365)) -> 0.2779045907 | I62: 2030-03-13 | J62: 60 | K62: =+DIAS365($A$2,A62) -> 1825 | L62: 3886696822 | M62: 192426413.9 | N62: 34023966.91 | O62: 226450380.9
A63: 2030-04-13 | B63: =IF(DIAS365(CALCULADORA!$C$27,A63)<0,0,DIAS365(CALCULADORA!$C$27,A63)) -> 1837 | C63: =+HLOOKUP(CALCULADORA!$C$9,Tablas!B:B,Flujos!J63+1,FALSE) -> 0.00444655 | D63: 7.386671 | E63: 0.444655 | F63: =ROUND(D62*ROUND(((1+CALCULADORA!$C$16)^(1/12)-1),6),6) -> 0.065321 | G63: 0.509976 | H63: =IF($B63=0,0,G63/POWER(1+CALCULADORA!$C$29,Flujos!$B63/365)) -> 0.3079793941 | I63: 2030-04-13 | J63: 61 | K63: =+DIAS365($A$2,A63) -> 1856 | L63: 3666013993 | M63: 220682828.9 | N63: 32418938.19 | O63: 253101767.1
A64: 2030-05-13 | B64: =IF(DIAS365(CALCULADORA!$C$27,A64)<0,0,DIAS365(CALCULADORA!$C$27,A64)) -> 1867 | C64: =+HLOOKUP(CALCULADORA!$C$9,Tablas!B:B,Flujos!J64+1,FALSE) -> 0.00428222 | D64: 6.958449 | E64: 0.428222 | F64: =ROUND(D63*ROUND(((1+CALCULADORA!$C$16)^(1/12)-1),6),6) -> 0.061612 | G64: 0.489834 | H64: =IF($B64=0,0,G64/POWER(1+CALCULADORA!$C$29,Flujos!$B64/365)) -> 0.293389054 | I64: 2030-05-13 | J64: 62 | K64: =+DIAS365($A$2,A64) -> 1886 | L64: 3453486883 | M64: 212527110.6 | N64: 30578222.72 | O64: 243105333.3
A65: 2030-06-13 | B65: =IF(DIAS365(CALCULADORA!$C$27,A65)<0,0,DIAS365(CALCULADORA!$C$27,A65)) -> 1898 | C65: =+HLOOKUP(CALCULADORA!$C$9,Tablas!B:B,Flujos!J65+1,FALSE) -> 0.00411891 | D65: 6.546558 | E65: 0.411891 | F65: =ROUND(D64*ROUND(((1+CALCULADORA!$C$16)^(1/12)-1),6),6) -> 0.05804 | G65: 0.469931 | H65: =IF($B65=0,0,G65/POWER(1+CALCULADORA!$C$29,Flujos!$B65/365)) -> 0.279082691 | I65: 2030-06-13 | J65: 63 | K65: =+DIAS365($A$2,A65) -> 1917 | L65: 3249064868 | M65: 204422015 | N65: 28805534.09 | O65: 233227549.1
A66: 2030-07-13 | B66: =IF(DIAS365(CALCULADORA!$C$27,A66)<0,0,DIAS365(CALCULADORA!$C$27,A66)) -> 1928 | C66: =+HLOOKUP(CALCULADORA!$C$9,Tablas!B:B,Flujos!J66+1,FALSE) -> 0.00396708 | D66: 6.14985 | E66: 0.396708 | F66: =ROUND(D65*ROUND(((1+CALCULADORA!$C$16)^(1/12)-1),6),6) -> 0.054605 | G66: 0.451313 | H66: =IF($B66=0,0,G66/POWER(1+CALCULADORA!$C$29,Flujos!$B66/365)) -> 0.2658273784 | I66: 2030-07-13 | J66: 64 | K66: =+DIAS365($A$2,A66) -> 1947 | L66: 3052178195 | M66: 196886673.2 | N66: 27100450.06 | O66: 223987123.3
A67: =EDATE(A66,1) -> 2030-08-13 | B67: =IF(DIAS365(CALCULADORA!$C$27,A67)<0,0,DIAS365(CALCULADORA!$C$27,A67)) -> 1959 | C67: =+HLOOKUP(CALCULADORA!$C$9,Tablas!B:B,Flujos!J67+1,FALSE) -> 0.00382215 | D67: 5.767635 | E67: 0.382215 | F67: =ROUND(D66*ROUND(((1+CALCULADORA!$C$16)^(1/12)-1),6),6) -> 0.051296 | G67: 0.433511 | H67: =IF($B67=0,0,G67/POWER(1+CALCULADORA!$C$29,Flujos!$B67/365)) -> 0.2531779117 | I67: =+A67 -> 2030-08-13 | J67: 65 | K67: =+DIAS365($A$2,A67) -> 1978 | L67: 2862484415 | M67: 189693779.3 | N67: 25458218.32 | O67: 215151997.6
A68: 2030-09-13 | B68: =IF(DIAS365(CALCULADORA!$C$27,A68)<0,0,DIAS365(CALCULADORA!$C$27,A68)) -> 1990 | C68: =+HLOOKUP(CALCULADORA!$C$9,Tablas!B:B,Flujos!J68+1,FALSE) -> 0.00368299 | D68: =+ROUND(D67-E68,6) -> 5.399336 | E68: =ROUND(C68*$D$2,6) -> 0.368299 | F68: =ROUND(D67*ROUND(((1+CALCULADORA!$C$16)^(1/12)-1),6),6) -> 0.048108 | G68: =F68+E68 -> 0.416407 | H68: =IF($B68=0,0,G68/POWER(1+CALCULADORA!$C$29,Flujos!$B68/365)) -> 0.2411279421 | I68: 2030-09-13 | J68: 66 | K68: =+DIAS365($A$2,A68) -> 2009 | L68: =+L67-M68 -> 2679697164 | M68: =+$L$2*C68 -> 182787251.2 | N68: =+L67*$F$3% -> 23875982.51 | O68: =+N68+M68 -> 206663233.7
A69: 2030-10-13 | B69: =IF(DIAS365(CALCULADORA!$C$27,A69)<0,0,DIAS365(CALCULADORA!$C$27,A69)) -> 2020 | C69: =+HLOOKUP(CALCULADORA!$C$9,Tablas!B:B,Flujos!J69+1,FALSE) -> 0.00354306 | D69: 5.04503 | E69: 0.354306 | F69: =ROUND(D68*ROUND(((1+CALCULADORA!$C$16)^(1/12)-1),6),6) -> 0.045036 | G69: 0.399342 | H69: =IF($B69=0,0,G69/POWER(1+CALCULADORA!$C$29,Flujos!$B69/365)) -> 0.229349377 | I69: 2030-10-13 | J69: 67 | K69: =+DIAS365($A$2,A69) -> 2039 | L69: 2503854656 | M69: 175842507.9 | N69: 22351354.05 | O69: 198193862
A70: 2030-11-13 | B70: =IF(DIAS365(CALCULADORA!$C$27,A70)<0,0,DIAS365(CALCULADORA!$C$27,A70)) -> 2051 | C70: =+HLOOKUP(CALCULADORA!$C$9,Tablas!B:B,Flujos!J70+1,FALSE) -> 0.00341357 | D70: 4.703673 | E70: 0.341357 | F70: =ROUND(D69*ROUND(((1+CALCULADORA!$C$16)^(1/12)-1),6),6) -> 0.042081 | G70: 0.383438 | H70: =IF($B70=0,0,G70/POWER(1+CALCULADORA!$C$29,Flujos!$B70/365)) -> 0.2183491741 | I70: 2030-11-13 | J70: 68 | K70: =+DIAS365($A$2,A70) -> 2070 | L70: 2334438753 | M70: 169415903.1 | N70: 20884651.69 | O70: 190300554.8
A71: 2030-12-13 | B71: =IF(DIAS365(CALCULADORA!$C$27,A71)<0,0,DIAS365(CALCULADORA!$C$27,A71)) -> 2081 | C71: =+HLOOKUP(CALCULADORA!$C$9,Tablas!B:B,Flujos!J71+1,FALSE) -> 0.00328382 | D71: 4.375291 | E71: 0.328382 | F71: =ROUND(D70*ROUND(((1+CALCULADORA!$C$16)^(1/12)-1),6),6) -> 0.039233 | G71: 0.367615 | H71: =IF($B71=0,0,G71/POWER(1+CALCULADORA!$C$29,Flujos!$B71/365)) -> 0.2076216723 | I71: 2030-12-13 | J71: 69 | K71: =+DIAS365($A$2,A71) -> 2100 | L71: 2171462358 | M71: 162976394.5 | N71: 19471553.64 | O71: 182447948.2
A72: 2031-01-13 | B72: =IF(DIAS365(CALCULADORA!$C$27,A72)<0,0,DIAS365(CALCULADORA!$C$27,A72)) -> 2112 | C72: =+HLOOKUP(CALCULADORA!$C$9,Tablas!B:B,Flujos!J72+1,FALSE) -> 0.00316144 | D72: 4.059147 | E72: 0.316144 | F72: =ROUND(D71*ROUND(((1+CALCULADORA!$C$16)^(1/12)-1),6),6) -> 0.036494 | G72: 0.352638 | H72: =IF($B72=0,0,G72/POWER(1+CALCULADORA!$C$29,Flujos!$B72/365)) -> 0.1974751249 | I72: 2031-01-13 | J72: 70 | K72: =+DIAS365($A$2,A72) -> 2131 | L72: 2014559698 | M72: 156902659.9 | N72: 18112167.53 | O72: 175014827.5
A73: 2031-02-13 | B73: =IF(DIAS365(CALCULADORA!$C$27,A73)<0,0,DIAS365(CALCULADORA!$C$27,A73)) -> 2143 | C73: =+HLOOKUP(CALCULADORA!$C$9,Tablas!B:B,Flujos!J73+1,FALSE) -> 0.00304727 | D73: 3.75442 | E73: 0.304727 | F73: =ROUND(D72*ROUND(((1+CALCULADORA!$C$16)^(1/12)-1),6),6) -> 0.033857 | G73: 0.338584 | H73: =IF($B73=0,0,G73/POWER(1+CALCULADORA!$C$29,Flujos!$B73/365)) -> 0.187998137 | I73: 2031-02-13 | J73: 71 | K73: =+DIAS365($A$2,A73) -> 2162 | L73: 1863323310 | M73: 151236388.6 | N73: 16803442.45 | O73: 168039831.1
A74: 2031-03-13 | B74: =IF(DIAS365(CALCULADORA!$C$27,A74)<0,0,DIAS365(CALCULADORA!$C$27,A74)) -> 2171 | C74: =+HLOOKUP(CALCULADORA!$C$9,Tablas!B:B,Flujos!J74+1,FALSE) -> 0.00216939 | D74: 3.537481 | E74: 0.216939 | F74: =ROUND(D73*ROUND(((1+CALCULADORA!$C$16)^(1/12)-1),6),6) -> 0.031316 | G74: 0.248255 | H74: =IF($B74=0,0,G74/POWER(1+CALCULADORA!$C$29,Flujos!$B74/365)) -> 0.1367875715 | I74: 2031-03-13 | J74: 72 | K74: =+DIAS365($A$2,A74) -> 2190 | L74: 1755656215 | M74: 107667095.2 | N74: 15541979.73 | O74: 123209074.9
A75: 2031-04-13 | B75: =IF(DIAS365(CALCULADORA!$C$27,A75)<0,0,DIAS365(CALCULADORA!$C$27,A75)) -> 2202 | C75: =+HLOOKUP(CALCULADORA!$C$9,Tablas!B:B,Flujos!J75+1,FALSE) -> 0.00281926 | D75: 3.255555 | E75: 0.281926 | F75: =ROUND(D74*ROUND(((1+CALCULADORA!$C$16)^(1/12)-1),6),6) -> 0.029506 | G75: 0.311432 | H75: =IF($B75=0,0,G75/POWER(1+CALCULADORA!$C$29,Flujos!$B75/365)) -> 0.1701436309 | I75: 2031-04-13 | J75: 73 | K75: =+DIAS365($A$2,A75) -> 2221 | L75: 1615735991 | M75: 139920224 | N75: 14643928.49 | O75: 154564152.5
A76: 2031-05-13 | B76: =IF(DIAS365(CALCULADORA!$C$27,A76)<0,0,DIAS365(CALCULADORA!$C$27,A76)) -> 2232 | C76: =+HLOOKUP(CALCULADORA!$C$9,Tablas!B:B,Flujos!J76+1,FALSE) -> 0.00271398 | D76: 2.984157 | E76: 0.271398 | F76: =ROUND(D75*ROUND(((1+CALCULADORA!$C$16)^(1/12)-1),6),6) -> 0.027155 | G76: 0.298553 | H76: =IF($B76=0,0,G76/POWER(1+CALCULADORA!$C$29,Flujos!$B76/365)) -> 0.1617696178 | I76: 2031-05-13 | J76: 74 | K76: =+DIAS365($A$2,A76) -> 2251 | L76: 1481040826 | M76: 134695164.5 | N76: 13476853.9 | O76: 148172018.4
A77: 2031-06-13 | B77: =IF(DIAS365(CALCULADORA!$C$27,A77)<0,0,DIAS365(CALCULADORA!$C$27,A77)) -> 2263 | C77: =+HLOOKUP(CALCULADORA!$C$9,Tablas!B:B,Flujos!J77+1,FALSE) -> 0.0026139 | D77: 2.722767 | E77: 0.26139 | F77: =ROUND(D76*ROUND(((1+CALCULADORA!$C$16)^(1/12)-1),6),6) -> 0.024891 | G77: 0.286281 | H77: =IF($B77=0,0,G77/POWER(1+CALCULADORA!$C$29,Flujos!$B77/365)) -> 0.1538055022 | I77: 2031-06-13 | J77: 75 | K77: =+DIAS365($A$2,A77) -> 2282 | L77: 1351312644 | M77: 129728181.7 | N77: 12353361.53 | O77: 142081543.2
A78: 2031-07-13 | B78: =IF(DIAS365(CALCULADORA!$C$27,A78)<0,0,DIAS365(CALCULADORA!$C$27,A78)) -> 2293 | C78: =+HLOOKUP(CALCULADORA!$C$9,Tablas!B:B,Flujos!J78+1,FALSE) -> 0.00251785 | D78: 2.470982 | E78: 0.251785 | F78: =ROUND(D77*ROUND(((1+CALCULADORA!$C$16)^(1/12)-1),6),6) -> 0.022711 | G78: 0.274496 | H78: =IF($B78=0,0,G78/POWER(1+CALCULADORA!$C$29,Flujos!$B78/365)) -> 0.1462643295 | I78: 2031-07-13 | J78: 76 | K78: =+DIAS365($A$2,A78) -> 2312 | L78: 1226351436 | M78: 124961208.3 | N78: 11271298.77 | O78: 136232507
A79: 2031-08-13 | B79: =IF(DIAS365(CALCULADORA!$C$27,A79)<0,0,DIAS365(CALCULADORA!$C$27,A79)) -> 2324 | C79: =+HLOOKUP(CALCULADORA!$C$9,Tablas!B:B,Flujos!J79+1,FALSE) -> 0.00242054 | D79: 2.228928 | E79: 0.242054 | F79: =ROUND(D78*ROUND(((1+CALCULADORA!$C$16)^(1/12)-1),6),6) -> 0.02061 | G79: 0.262664 | H79: =IF($B79=0,0,G79/POWER(1+CALCULADORA!$C$29,Flujos!$B79/365)) -> 0.1387735777 | I79: 2031-08-13 | J79: 77 | K79: =+DIAS365($A$2,A79) -> 2343 | L79: 1106219735 | M79: 120131700.9 | N79: 10228997.33 | O79: 130360698.2
A80: 2031-09-13 | B80: =IF(DIAS365(CALCULADORA!$C$27,A80)<0,0,DIAS365(CALCULADORA!$C$27,A80)) -> 2355 | C80: =+HLOOKUP(CALCULADORA!$C$9,Tablas!B:B,Flujos!J80+1,FALSE) -> 0.00233183 | D80: 1.995745 | E80: 0.233183 | F80: =ROUND(D79*ROUND(((1+CALCULADORA!$C$16)^(1/12)-1),6),6) -> 0.018591 | G80: 0.251774 | H80: =IF($B80=0,0,G80/POWER(1+CALCULADORA!$C$29,Flujos!$B80/365)) -> 0.1318927543 | I80: 2031-09-13 | J80: 78 | K80: =+DIAS365($A$2,A80) -> 2374 | L80: 990490722.7 | M80: 115729012.6 | N80: 9226978.812 | O80: 124955991.4
A81: 2031-10-13 | B81: =IF(DIAS365(CALCULADORA!$C$27,A81)<0,0,DIAS365(CALCULADORA!$C$27,A81)) -> 2385 | C81: =+HLOOKUP(CALCULADORA!$C$9,Tablas!B:B,Flujos!J81+1,FALSE) -> 0.00224799 | D81: 1.770946 | E81: 0.224799 | F81: =ROUND(D80*ROUND(((1+CALCULADORA!$C$16)^(1/12)-1),6),6) -> 0.016647 | G81: 0.241446 | H81: =IF($B81=0,0,G81/POWER(1+CALCULADORA!$C$29,Flujos!$B81/365)) -> 0.125444935 | I81: 2031-10-13 | J81: 79 | K81: =+DIAS365($A$2,A81) -> 2404 | L81: 878922699.7 | M81: 111568023 | N81: 8261683.118 | O81: 119829706.1
A82: 2031-11-13 | B82: =IF(DIAS365(CALCULADORA!$C$27,A82)<0,0,DIAS365(CALCULADORA!$C$27,A82)) -> 2416 | C82: =+HLOOKUP(CALCULADORA!$C$9,Tablas!B:B,Flujos!J82+1,FALSE) -> 0.00216507 | D82: 1.554439 | E82: 0.216507 | F82: =ROUND(D81*ROUND(((1+CALCULADORA!$C$16)^(1/12)-1),6),6) -> 0.014771 | G82: 0.231278 | H82: =IF($B82=0,0,G82/POWER(1+CALCULADORA!$C$29,Flujos!$B82/365)) -> 0.1191437501 | I82: 2031-11-13 | J82: 80 | K82: =+DIAS365($A$2,A82) -> 2435 | L82: 771470006.7 | M82: 107452693.1 | N82: 7331094.238 | O82: 114783787.3
A83: 2031-12-13 | B83: =IF(DIAS365(CALCULADORA!$C$27,A83)<0,0,DIAS365(CALCULADORA!$C$27,A83)) -> 2446 | C83: =+HLOOKUP(CALCULADORA!$C$9,Tablas!B:B,Flujos!J83+1,FALSE) -> 0.00208503 | D83: 1.345936 | E83: 0.208503 | F83: =ROUND(D82*ROUND(((1+CALCULADORA!$C$16)^(1/12)-1),6),6) -> 0.012966 | G83: 0.221469 | H83: =IF($B83=0,0,G83/POWER(1+CALCULADORA!$C$29,Flujos!$B83/365)) -> 0.1131547906 | I83: 2031-12-13 | J83: 81 | K83: =+DIAS365($A$2,A83) -> 2465 | L83: 667989708.8 | M83: 103480297.9 | N83: 6434831.326 | O83: 109915129.2
A84: 2032-01-13 | B84: =IF(DIAS365(CALCULADORA!$C$27,A84)<0,0,DIAS365(CALCULADORA!$C$27,A84)) -> 2477 | C84: =+HLOOKUP(CALCULADORA!$C$9,Tablas!B:B,Flujos!J84+1,FALSE) -> 0.00200527 | D84: 1.145409 | E84: 0.200527 | F84: =ROUND(D83*ROUND(((1+CALCULADORA!$C$16)^(1/12)-1),6),6) -> 0.011226 | G84: 0.211753 | H84: =IF($B84=0,0,G84/POWER(1+CALCULADORA!$C$29,Flujos!$B84/365)) -> 0.1072737343 | I84: 2032-01-13 | J84: 82 | K84: =+DIAS365($A$2,A84) -> 2496 | L84: 568467909.6 | M84: 99521799.2 | N84: 5571702.161 | O84: 105093501.4
A85: 2032-02-13 | B85: =IF(DIAS365(CALCULADORA!$C$27,A85)<0,0,DIAS365(CALCULADORA!$C$27,A85)) -> 2508 | C85: =+HLOOKUP(CALCULADORA!$C$9,Tablas!B:B,Flujos!J85+1,FALSE) -> 0.001934 | D85: 0.952009 | E85: 0.1934 | F85: =ROUND(D84*ROUND(((1+CALCULADORA!$C$16)^(1/12)-1),6),6) -> 0.009554 | G85: 0.202954 | H85: =IF($B85=0,0,G85/POWER(1+CALCULADORA!$C$29,Flujos!$B85/365)) -> 0.1019448448 | I85: 2032-02-13 | J85: 83 | K85: =+DIAS365($A$2,A85) -> 2527 | L85: 472483249.3 | M85: 95984660.25 | N85: 4741590.834 | O85: 100726251.1
A86: 2032-03-13 | B86: =IF(DIAS365(CALCULADORA!$C$27,A86)<0,0,DIAS365(CALCULADORA!$C$27,A86)) -> 2536 | C86: =+HLOOKUP(CALCULADORA!$C$9,Tablas!B:B,Flujos!J86+1,FALSE) -> 0.00107118 | D86: 0.844891 | E86: 0.107118 | F86: =ROUND(D85*ROUND(((1+CALCULADORA!$C$16)^(1/12)-1),6),6) -> 0.007941 | G86: 0.115059 | H86: =IF($B86=0,0,G86/POWER(1+CALCULADORA!$C$29,Flujos!$B86/365)) -> 0.05735215882 | I86: 2032-03-13 | J86: 84 | K86: =+DIAS365($A$2,A86) -> 2555 | L86: 419320452.8 | M86: 53162796.47 | N86: 3940982.783 | O86: 57103779.25
A87: 2032-04-13 | B87: =IF(DIAS365(CALCULADORA!$C$27,A87)<0,0,DIAS365(CALCULADORA!$C$27,A87)) -> 2567 | C87: =+HLOOKUP(CALCULADORA!$C$9,Tablas!B:B,Flujos!J87+1,FALSE) -> 0.00178558 | D87: 0.666333 | E87: 0.178558 | F87: =ROUND(D86*ROUND(((1+CALCULADORA!$C$16)^(1/12)-1),6),6) -> 0.007047 | G87: 0.185605 | H87: =IF($B87=0,0,G87/POWER(1+CALCULADORA!$C$29,Flujos!$B87/365)) -> 0.09173238244 | I87: 2032-04-13 | J87: 85 | K87: =+DIAS365($A$2,A87) -> 2586 | L87: 330701895.6 | M87: 88618557.21 | N87: 3497551.897 | O87: 92116109.11
A88: 2032-05-13 | B88: =IF(DIAS365(CALCULADORA!$C$27,A88)<0,0,DIAS365(CALCULADORA!$C$27,A88)) -> 2597 | C88: =+HLOOKUP(CALCULADORA!$C$9,Tablas!B:B,Flujos!J88+1,FALSE) -> 0.00172115 | D88: 0.494218 | E88: 0.172115 | F88: =ROUND(D87*ROUND(((1+CALCULADORA!$C$16)^(1/12)-1),6),6) -> 0.005558 | G88: 0.177673 | H88: =IF($B88=0,0,G88/POWER(1+CALCULADORA!$C$29,Flujos!$B88/365)) -> 0.08709184581 | I88: 2032-05-13 | J88: 86 | K88: =+DIAS365($A$2,A88) -> 2616 | L88: 245281007.3 | M88: 85420888.31 | N88: 2758384.512 | O88: 88179272.82
A89: 2032-06-13 | B89: =IF(DIAS365(CALCULADORA!$C$27,A89)<0,0,DIAS365(CALCULADORA!$C$27,A89)) -> 2628 | C89: =+HLOOKUP(CALCULADORA!$C$9,Tablas!B:B,Flujos!J89+1,FALSE) -> 0.00166051 | D89: 0.328167 | E89: 0.166051 | F89: =ROUND(D88*ROUND(((1+CALCULADORA!$C$16)^(1/12)-1),6),6) -> 0.004122 | G89: 0.170173 | H89: =IF($B89=0,0,G89/POWER(1+CALCULADORA!$C$29,Flujos!$B89/365)) -> 0.08270857558 | I89: 2032-06-13 | J89: 87 | K89: =+DIAS365($A$2,A89) -> 2647 | L89: 162869689.8 | M89: 82411317.57 | N89: 2045888.882 | O89: 84457206.46
A90: 2032-07-13 | B90: =IF(DIAS365(CALCULADORA!$C$27,A90)<0,0,DIAS365(CALCULADORA!$C$27,A90)) -> 2658 | C90: =+HLOOKUP(CALCULADORA!$C$9,Tablas!B:B,Flujos!J90+1,FALSE) -> 0.00160123 | D90: 0.168044 | E90: 0.160123 | F90: =ROUND(D89*ROUND(((1+CALCULADORA!$C$16)^(1/12)-1),6),6) -> 0.002737 | G90: 0.16286 | H90: =IF($B90=0,0,G90/POWER(1+CALCULADORA!$C$29,Flujos!$B90/365)) -> 0.07850501027 | I90: 2032-07-13 | J90: 88 | K90: =+DIAS365($A$2,A90) -> 2677 | L90: 83400445.95 | M90: 79469243.81 | N90: 1358496.082 | O90: 80827739.89
A91: 2032-08-13 | B91: =IF(DIAS365(CALCULADORA!$C$27,A91)<0,0,DIAS365(CALCULADORA!$C$27,A91)) -> 2689 | C91: =+HLOOKUP(CALCULADORA!$C$9,Tablas!B:B,Flujos!J91+1,FALSE) -> 0.00168044 | D91: 0 | E91: 0.168044 | F91: =ROUND(D90*ROUND(((1+CALCULADORA!$C$16)^(1/12)-1),6),6) -> 0.001402 | G91: 0.169446 | H91: =IF($B91=0,0,G91/POWER(1+CALCULADORA!$C$29,Flujos!$B91/365)) -> 0.0809875185 | I91: 2032-08-13 | J91: 89 | K91: =+DIAS365($A$2,A91) -> 2708 | L91: -1.379847527e-05 | M91: 83400445.95 | N91: 695643.1197 | O91: 84096089.07
A92: 2032-09-13 | B92: =IF(DIAS365(CALCULADORA!$C$27,A92)<0,0,DIAS365(CALCULADORA!$C$27,A92)) -> 2720 | C92: =+HLOOKUP(CALCULADORA!$C$9,Tablas!B:B,Flujos!J92+1,FALSE) -> 0 | D92: 0 | E92: 0 | F92: =ROUND(D91*ROUND(((1+CALCULADORA!$C$16)^(1/12)-1),6),6) -> 0 | G92: 0 | H92: =IF($B92=0,0,G92/POWER(1+CALCULADORA!$C$29,Flujos!$B92/365)) -> 0 | I92: 2032-09-13 | J92: 90 | K92: =+DIAS365($A$2,A92) -> 2739 | L92: -1.379847527e-05 | M92: 0 | N92: -1.150930822e-07 | O92: -1.150930822e-07
A93: 2032-10-13 | B93: =IF(DIAS365(CALCULADORA!$C$27,A93)<0,0,DIAS365(CALCULADORA!$C$27,A93)) -> 2750 | C93: =+HLOOKUP(CALCULADORA!$C$9,Tablas!B:B,Flujos!J93+1,FALSE) -> 0 | D93: 0 | E93: 0 | F93: =ROUND(D92*ROUND(((1+CALCULADORA!$C$16)^(1/12)-1),6),6) -> 0 | G93: 0 | H93: =IF($B93=0,0,G93/POWER(1+CALCULADORA!$C$29,Flujos!$B93/365)) -> 0 | I93: 2032-10-13 | J93: 91 | K93: =+DIAS365($A$2,A93) -> 2769 | L93: -1.379847527e-05 | M93: 0 | N93: -1.150930822e-07 | O93: -1.150930822e-07
A94: 2032-11-13 | B94: =IF(DIAS365(CALCULADORA!$C$27,A94)<0,0,DIAS365(CALCULADORA!$C$27,A94)) -> 2781 | C94: =+HLOOKUP(CALCULADORA!$C$9,Tablas!B:B,Flujos!J94+1,FALSE) -> 0 | D94: 0 | E94: 0 | F94: =ROUND(D93*ROUND(((1+CALCULADORA!$C$16)^(1/12)-1),6),6) -> 0 | G94: 0 | H94: =IF($B94=0,0,G94/POWER(1+CALCULADORA!$C$29,Flujos!$B94/365)) -> 0 | I94: 2032-11-13 | J94: 92 | K94: =+DIAS365($A$2,A94) -> 2800 | L94: -1.379847527e-05 | M94: 0 | N94: -1.150930822e-07 | O94: -1.150930822e-07
A95: 2032-12-13 | B95: =IF(DIAS365(CALCULADORA!$C$27,A95)<0,0,DIAS365(CALCULADORA!$C$27,A95)) -> 2811 | C95: =+HLOOKUP(CALCULADORA!$C$9,Tablas!B:B,Flujos!J95+1,FALSE) -> 0 | D95: 0 | E95: 0 | F95: =ROUND(D94*ROUND(((1+CALCULADORA!$C$16)^(1/12)-1),6),6) -> 0 | G95: 0 | H95: =IF($B95=0,0,G95/POWER(1+CALCULADORA!$C$29,Flujos!$B95/365)) -> 0 | I95: 2032-12-13 | J95: 93 | K95: =+DIAS365($A$2,A95) -> 2830 | L95: -1.379847527e-05 | M95: 0 | N95: -1.150930822e-07 | O95: -1.150930822e-07
A96: 2033-01-13 | B96: =IF(DIAS365(CALCULADORA!$C$27,A96)<0,0,DIAS365(CALCULADORA!$C$27,A96)) -> 2842 | C96: =+HLOOKUP(CALCULADORA!$C$9,Tablas!B:B,Flujos!J96+1,FALSE) -> 0 | D96: 0 | E96: 0 | F96: =ROUND(D95*ROUND(((1+CALCULADORA!$C$16)^(1/12)-1),6),6) -> 0 | G96: 0 | H96: =IF($B96=0,0,G96/POWER(1+CALCULADORA!$C$29,Flujos!$B96/365)) -> 0 | I96: 2033-01-13 | J96: 94 | K96: =+DIAS365($A$2,A96) -> 2861 | L96: -1.379847527e-05 | M96: 0 | N96: -1.150930822e-07 | O96: -1.150930822e-07
A97: 2033-02-13 | B97: =IF(DIAS365(CALCULADORA!$C$27,A97)<0,0,DIAS365(CALCULADORA!$C$27,A97)) -> 2873 | C97: =+HLOOKUP(CALCULADORA!$C$9,Tablas!B:B,Flujos!J97+1,FALSE) -> 0 | D97: 0 | E97: 0 | F97: =ROUND(D96*ROUND(((1+CALCULADORA!$C$16)^(1/12)-1),6),6) -> 0 | G97: 0 | H97: =IF($B97=0,0,G97/POWER(1+CALCULADORA!$C$29,Flujos!$B97/365)) -> 0 | I97: 2033-02-13 | J97: 95 | K97: =+DIAS365($A$2,A97) -> 2892 | L97: -1.379847527e-05 | M97: 0 | N97: -1.150930822e-07 | O97: -1.150930822e-07
A98: 2033-03-13 | B98: =IF(DIAS365(CALCULADORA!$C$27,A98)<0,0,DIAS365(CALCULADORA!$C$27,A98)) -> 2901 | C98: =+HLOOKUP(CALCULADORA!$C$9,Tablas!B:B,Flujos!J98+1,FALSE) -> 0 | D98: 0 | E98: 0 | F98: =ROUND(D97*ROUND(((1+CALCULADORA!$C$16)^(1/12)-1),6),6) -> 0 | G98: 0 | H98: =IF($B98=0,0,G98/POWER(1+CALCULADORA!$C$29,Flujos!$B98/365)) -> 0 | I98: 2033-03-13 | J98: 96 | K98: =+DIAS365($A$2,A98) -> 2920 | L98: -1.379847527e-05 | M98: 0 | N98: -1.150930822e-07 | O98: -1.150930822e-07
A99: =EDATE(A98,1) -> 2033-04-13 | B99: =IF(DIAS365(CALCULADORA!$C$27,A99)<0,0,DIAS365(CALCULADORA!$C$27,A99)) -> 2932 | C99: =+HLOOKUP(CALCULADORA!$C$9,Tablas!B:B,Flujos!J99+1,FALSE) -> 0 | D99: 0 | E99: 0 | F99: =ROUND(D98*ROUND(((1+CALCULADORA!$C$16)^(1/12)-1),6),6) -> 0 | G99: 0 | H99: =IF($B99=0,0,G99/POWER(1+CALCULADORA!$C$29,Flujos!$B99/365)) -> 0 | I99: 2033-04-13 | J99: 97 | K99: =+DIAS365($A$2,A99) -> 2951 | L99: -1.379847527e-05 | M99: 0 | N99: -1.150930822e-07 | O99: -1.150930822e-07
A100: 2033-05-13 | B100: =IF(DIAS365(CALCULADORA!$C$27,A100)<0,0,DIAS365(CALCULADORA!$C$27,A100)) -> 2962 | C100: =+HLOOKUP(CALCULADORA!$C$9,Tablas!B:B,Flujos!J100+1,FALSE) -> 0 | D100: 0 | E100: 0 | F100: =ROUND(D99*ROUND(((1+CALCULADORA!$C$16)^(1/12)-1),6),6) -> 0 | G100: 0 | H100: =IF($B100=0,0,G100/POWER(1+CALCULADORA!$C$29,Flujos!$B100/365)) -> 0 | I100: 2033-05-13 | J100: 98 | K100: =+DIAS365($A$2,A100) -> 2981 | L100: -1.379847527e-05 | M100: 0 | N100: -1.150930822e-07 | O100: -1.150930822e-07
A101: 2033-06-13 | B101: =IF(DIAS365(CALCULADORA!$C$27,A101)<0,0,DIAS365(CALCULADORA!$C$27,A101)) -> 2993 | C101: =+HLOOKUP(CALCULADORA!$C$9,Tablas!B:B,Flujos!J101+1,FALSE) -> 0 | D101: 0 | E101: 0 | F101: =ROUND(D100*ROUND(((1+CALCULADORA!$C$16)^(1/12)-1),6),6) -> 0 | G101: 0 | H101: =IF($B101=0,0,G101/POWER(1+CALCULADORA!$C$29,Flujos!$B101/365)) -> 0 | I101: 2033-06-13 | J101: 99 | K101: =+DIAS365($A$2,A101) -> 3012 | L101: -1.379847527e-05 | M101: 0 | N101: -1.150930822e-07 | O101: -1.150930822e-07
A102: 2033-07-13 | B102: =IF(DIAS365(CALCULADORA!$C$27,A102)<0,0,DIAS365(CALCULADORA!$C$27,A102)) -> 3023 | C102: =+HLOOKUP(CALCULADORA!$C$9,Tablas!B:B,Flujos!J102+1,FALSE) -> 0 | D102: 0 | E102: 0 | F102: =ROUND(D101*ROUND(((1+CALCULADORA!$C$16)^(1/12)-1),6),6) -> 0 | G102: 0 | H102: =IF($B102=0,0,G102/POWER(1+CALCULADORA!$C$29,Flujos!$B102/365)) -> 0 | I102: 2033-07-13 | J102: 100 | K102: =+DIAS365($A$2,A102) -> 3042 | L102: -1.379847527e-05 | M102: 0 | N102: -1.150930822e-07 | O102: -1.150930822e-07
A103: 2033-08-13 | B103: =IF(DIAS365(CALCULADORA!$C$27,A103)<0,0,DIAS365(CALCULADORA!$C$27,A103)) -> 3054 | C103: =+HLOOKUP(CALCULADORA!$C$9,Tablas!B:B,Flujos!J103+1,FALSE) -> 0 | D103: 0 | E103: 0 | F103: =ROUND(D102*ROUND(((1+CALCULADORA!$C$16)^(1/12)-1),6),6) -> 0 | G103: 0 | H103: =IF($B103=0,0,G103/POWER(1+CALCULADORA!$C$29,Flujos!$B103/365)) -> 0 | I103: 2033-08-13 | J103: 101 | K103: =+DIAS365($A$2,A103) -> 3073 | L103: -1.379847527e-05 | M103: 0 | N103: -1.150930822e-07 | O103: -1.150930822e-07
A104: 2033-09-13 | B104: =IF(DIAS365(CALCULADORA!$C$27,A104)<0,0,DIAS365(CALCULADORA!$C$27,A104)) -> 3085 | C104: =+HLOOKUP(CALCULADORA!$C$9,Tablas!B:B,Flujos!J104+1,FALSE) -> 0 | D104: 0 | E104: 0 | F104: =ROUND(D103*ROUND(((1+CALCULADORA!$C$16)^(1/12)-1),6),6) -> 0 | G104: 0 | H104: =IF($B104=0,0,G104/POWER(1+CALCULADORA!$C$29,Flujos!$B104/365)) -> 0 | I104: 2033-09-13 | J104: 102 | K104: =+DIAS365($A$2,A104) -> 3104 | L104: -1.379847527e-05 | M104: 0 | N104: -1.150930822e-07 | O104: -1.150930822e-07
A105: 2033-10-13 | B105: =IF(DIAS365(CALCULADORA!$C$27,A105)<0,0,DIAS365(CALCULADORA!$C$27,A105)) -> 3115 | C105: =+HLOOKUP(CALCULADORA!$C$9,Tablas!B:B,Flujos!J105+1,FALSE) -> 0 | D105: 0 | E105: 0 | F105: =ROUND(D104*ROUND(((1+CALCULADORA!$C$16)^(1/12)-1),6),6) -> 0 | G105: 0 | H105: =IF($B105=0,0,G105/POWER(1+CALCULADORA!$C$29,Flujos!$B105/365)) -> 0 | I105: 2033-10-13 | J105: 103 | K105: =+DIAS365($A$2,A105) -> 3134 | L105: -1.379847527e-05 | M105: 0 | N105: -1.150930822e-07 | O105: -1.150930822e-07
A106: 2033-11-13 | B106: =IF(DIAS365(CALCULADORA!$C$27,A106)<0,0,DIAS365(CALCULADORA!$C$27,A106)) -> 3146 | C106: =+HLOOKUP(CALCULADORA!$C$9,Tablas!B:B,Flujos!J106+1,FALSE) -> 0 | D106: 0 | E106: 0 | F106: =ROUND(D105*ROUND(((1+CALCULADORA!$C$16)^(1/12)-1),6),6) -> 0 | G106: 0 | H106: =IF($B106=0,0,G106/POWER(1+CALCULADORA!$C$29,Flujos!$B106/365)) -> 0 | I106: 2033-11-13 | J106: 104 | K106: =+DIAS365($A$2,A106) -> 3165 | L106: -1.379847527e-05 | M106: 0 | N106: -1.150930822e-07 | O106: -1.150930822e-07
A107: 2033-12-13 | B107: =IF(DIAS365(CALCULADORA!$C$27,A107)<0,0,DIAS365(CALCULADORA!$C$27,A107)) -> 3176 | C107: =+HLOOKUP(CALCULADORA!$C$9,Tablas!B:B,Flujos!J107+1,FALSE) -> 0 | D107: 0 | E107: 0 | F107: =ROUND(D106*ROUND(((1+CALCULADORA!$C$16)^(1/12)-1),6),6) -> 0 | G107: 0 | H107: =IF($B107=0,0,G107/POWER(1+CALCULADORA!$C$29,Flujos!$B107/365)) -> 0 | I107: 2033-12-13 | J107: 105 | K107: =+DIAS365($A$2,A107) -> 3195 | L107: -1.379847527e-05 | M107: 0 | N107: -1.150930822e-07 | O107: -1.150930822e-07
A108: 2034-01-13 | B108: =IF(DIAS365(CALCULADORA!$C$27,A108)<0,0,DIAS365(CALCULADORA!$C$27,A108)) -> 3207 | C108: =+HLOOKUP(CALCULADORA!$C$9,Tablas!B:B,Flujos!J108+1,FALSE) -> 0 | D108: 0 | E108: 0 | F108: =ROUND(D107*ROUND(((1+CALCULADORA!$C$16)^(1/12)-1),6),6) -> 0 | G108: 0 | H108: =IF($B108=0,0,G108/POWER(1+CALCULADORA!$C$29,Flujos!$B108/365)) -> 0 | I108: 2034-01-13 | J108: 106 | K108: =+DIAS365($A$2,A108) -> 3226 | L108: -1.379847527e-05 | M108: 0 | N108: -1.150930822e-07 | O108: -1.150930822e-07
A109: 2034-02-13 | B109: =IF(DIAS365(CALCULADORA!$C$27,A109)<0,0,DIAS365(CALCULADORA!$C$27,A109)) -> 3238 | C109: =+HLOOKUP(CALCULADORA!$C$9,Tablas!B:B,Flujos!J109+1,FALSE) -> 0 | D109: 0 | E109: 0 | F109: =ROUND(D108*ROUND(((1+CALCULADORA!$C$16)^(1/12)-1),6),6) -> 0 | G109: 0 | H109: =IF($B109=0,0,G109/POWER(1+CALCULADORA!$C$29,Flujos!$B109/365)) -> 0 | I109: 2034-02-13 | J109: 107 | K109: =+DIAS365($A$2,A109) -> 3257 | L109: -1.379847527e-05 | M109: 0 | N109: -1.150930822e-07 | O109: -1.150930822e-07
A110: 2034-03-13 | B110: =IF(DIAS365(CALCULADORA!$C$27,A110)<0,0,DIAS365(CALCULADORA!$C$27,A110)) -> 3266 | C110: =+HLOOKUP(CALCULADORA!$C$9,Tablas!B:B,Flujos!J110+1,FALSE) -> 0 | D110: 0 | E110: 0 | F110: =ROUND(D109*ROUND(((1+CALCULADORA!$C$16)^(1/12)-1),6),6) -> 0 | G110: 0 | H110: =IF($B110=0,0,G110/POWER(1+CALCULADORA!$C$29,Flujos!$B110/365)) -> 0 | I110: 2034-03-13 | J110: 108 | K110: =+DIAS365($A$2,A110) -> 3285 | L110: -1.379847527e-05 | M110: 0 | N110: -1.150930822e-07 | O110: -1.150930822e-07
A111: 2034-04-13 | B111: =IF(DIAS365(CALCULADORA!$C$27,A111)<0,0,DIAS365(CALCULADORA!$C$27,A111)) -> 3297 | C111: =+HLOOKUP(CALCULADORA!$C$9,Tablas!B:B,Flujos!J111+1,FALSE) -> 0 | D111: 0 | E111: 0 | F111: =ROUND(D110*ROUND(((1+CALCULADORA!$C$16)^(1/12)-1),6),6) -> 0 | G111: 0 | H111: =IF($B111=0,0,G111/POWER(1+CALCULADORA!$C$29,Flujos!$B111/365)) -> 0 | I111: 2034-04-13 | J111: 109 | K111: =+DIAS365($A$2,A111) -> 3316 | L111: -1.379847527e-05 | M111: 0 | N111: -1.150930822e-07 | O111: -1.150930822e-07
A112: 2034-05-13 | B112: =IF(DIAS365(CALCULADORA!$C$27,A112)<0,0,DIAS365(CALCULADORA!$C$27,A112)) -> 3327 | C112: =+HLOOKUP(CALCULADORA!$C$9,Tablas!B:B,Flujos!J112+1,FALSE) -> 0 | D112: 0 | E112: 0 | F112: =ROUND(D111*ROUND(((1+CALCULADORA!$C$16)^(1/12)-1),6),6) -> 0 | G112: 0 | H112: =IF($B112=0,0,G112/POWER(1+CALCULADORA!$C$29,Flujos!$B112/365)) -> 0 | I112: 2034-05-13 | J112: 110 | K112: =+DIAS365($A$2,A112) -> 3346 | L112: -1.379847527e-05 | M112: 0 | N112: -1.150930822e-07 | O112: -1.150930822e-07
A113: 2034-06-13 | B113: =IF(DIAS365(CALCULADORA!$C$27,A113)<0,0,DIAS365(CALCULADORA!$C$27,A113)) -> 3358 | C113: =+HLOOKUP(CALCULADORA!$C$9,Tablas!B:B,Flujos!J113+1,FALSE) -> 0 | D113: 0 | E113: 0 | F113: =ROUND(D112*ROUND(((1+CALCULADORA!$C$16)^(1/12)-1),6),6) -> 0 | G113: 0 | H113: =IF($B113=0,0,G113/POWER(1+CALCULADORA!$C$29,Flujos!$B113/365)) -> 0 | I113: 2034-06-13 | J113: 111 | K113: =+DIAS365($A$2,A113) -> 3377 | L113: -1.379847527e-05 | M113: 0 | N113: -1.150930822e-07 | O113: -1.150930822e-07
A114: 2034-07-13 | B114: =IF(DIAS365(CALCULADORA!$C$27,A114)<0,0,DIAS365(CALCULADORA!$C$27,A114)) -> 3388 | C114: =+HLOOKUP(CALCULADORA!$C$9,Tablas!B:B,Flujos!J114+1,FALSE) -> 0 | D114: 0 | E114: 0 | F114: =ROUND(D113*ROUND(((1+CALCULADORA!$C$16)^(1/12)-1),6),6) -> 0 | G114: 0 | H114: =IF($B114=0,0,G114/POWER(1+CALCULADORA!$C$29,Flujos!$B114/365)) -> 0 | I114: 2034-07-13 | J114: 112 | K114: =+DIAS365($A$2,A114) -> 3407 | L114: -1.379847527e-05 | M114: 0 | N114: -1.150930822e-07 | O114: -1.150930822e-07
A115: 2034-08-13 | B115: =IF(DIAS365(CALCULADORA!$C$27,A115)<0,0,DIAS365(CALCULADORA!$C$27,A115)) -> 3419 | C115: =+HLOOKUP(CALCULADORA!$C$9,Tablas!B:B,Flujos!J115+1,FALSE) -> 0 | D115: 0 | E115: 0 | F115: =ROUND(D114*ROUND(((1+CALCULADORA!$C$16)^(1/12)-1),6),6) -> 0 | G115: 0 | H115: =IF($B115=0,0,G115/POWER(1+CALCULADORA!$C$29,Flujos!$B115/365)) -> 0 | I115: 2034-08-13 | J115: 113 | K115: =+DIAS365($A$2,A115) -> 3438 | L115: -1.379847527e-05 | M115: 0 | N115: -1.150930822e-07 | O115: -1.150930822e-07
A116: 2034-09-13 | B116: =IF(DIAS365(CALCULADORA!$C$27,A116)<0,0,DIAS365(CALCULADORA!$C$27,A116)) -> 3450 | C116: =+HLOOKUP(CALCULADORA!$C$9,Tablas!B:B,Flujos!J116+1,FALSE) -> 0 | D116: 0 | E116: 0 | F116: =ROUND(D115*ROUND(((1+CALCULADORA!$C$16)^(1/12)-1),6),6) -> 0 | G116: 0 | H116: =IF($B116=0,0,G116/POWER(1+CALCULADORA!$C$29,Flujos!$B116/365)) -> 0 | I116: 2034-09-13 | J116: 114 | K116: =+DIAS365($A$2,A116) -> 3469 | L116: -1.379847527e-05 | M116: 0 | N116: -1.150930822e-07 | O116: -1.150930822e-07
A117: 2034-10-13 | B117: =IF(DIAS365(CALCULADORA!$C$27,A117)<0,0,DIAS365(CALCULADORA!$C$27,A117)) -> 3480 | C117: =+HLOOKUP(CALCULADORA!$C$9,Tablas!B:B,Flujos!J117+1,FALSE) -> 0 | D117: 0 | E117: 0 | F117: =ROUND(D116*ROUND(((1+CALCULADORA!$C$16)^(1/12)-1),6),6) -> 0 | G117: 0 | H117: =IF($B117=0,0,G117/POWER(1+CALCULADORA!$C$29,Flujos!$B117/365)) -> 0 | I117: 2034-10-13 | J117: 115 | K117: =+DIAS365($A$2,A117) -> 3499 | L117: -1.379847527e-05 | M117: 0 | N117: -1.150930822e-07 | O117: -1.150930822e-07
A118: 2034-11-13 | B118: =IF(DIAS365(CALCULADORA!$C$27,A118)<0,0,DIAS365(CALCULADORA!$C$27,A118)) -> 3511 | C118: =+HLOOKUP(CALCULADORA!$C$9,Tablas!B:B,Flujos!J118+1,FALSE) -> 0 | D118: 0 | E118: 0 | F118: =ROUND(D117*ROUND(((1+CALCULADORA!$C$16)^(1/12)-1),6),6) -> 0 | G118: 0 | H118: =IF($B118=0,0,G118/POWER(1+CALCULADORA!$C$29,Flujos!$B118/365)) -> 0 | I118: 2034-11-13 | J118: 116 | K118: =+DIAS365($A$2,A118) -> 3530 | L118: -1.379847527e-05 | M118: 0 | N118: -1.150930822e-07 | O118: -1.150930822e-07
A119: 2034-12-13 | B119: =IF(DIAS365(CALCULADORA!$C$27,A119)<0,0,DIAS365(CALCULADORA!$C$27,A119)) -> 3541 | C119: =+HLOOKUP(CALCULADORA!$C$9,Tablas!B:B,Flujos!J119+1,FALSE) -> 0 | D119: 0 | E119: 0 | F119: =ROUND(D118*ROUND(((1+CALCULADORA!$C$16)^(1/12)-1),6),6) -> 0 | G119: 0 | H119: =IF($B119=0,0,G119/POWER(1+CALCULADORA!$C$29,Flujos!$B119/365)) -> 0 | I119: =+A119 -> 2034-12-13 | J119: 117 | K119: =+DIAS365($A$2,A119) -> 3560 | L119: -1.379847527e-05 | M119: 0 | N119: -1.150930822e-07 | O119: -1.150930822e-07
A120: 2035-01-13 | B120: =IF(DIAS365(CALCULADORA!$C$27,A120)<0,0,DIAS365(CALCULADORA!$C$27,A120)) -> 3572 | C120: =+HLOOKUP(CALCULADORA!$C$9,Tablas!B:B,Flujos!J120+1,FALSE) -> 0 | D120: 0 | E120: 0 | F120: =ROUND(D119*ROUND(((1+CALCULADORA!$C$16)^(1/12)-1),6),6) -> 0 | G120: 0 | H120: =IF($B120=0,0,G120/POWER(1+CALCULADORA!$C$29,Flujos!$B120/365)) -> 0 | I120: =+A120 -> 2035-01-13 | J120: 118 | K120: =+DIAS365($A$2,A120) -> 3591 | L120: -1.379847527e-05 | M120: 0 | N120: -1.150930822e-07 | O120: -1.150930822e-07
A121: 2035-02-13 | B121: =IF(DIAS365(CALCULADORA!$C$27,A121)<0,0,DIAS365(CALCULADORA!$C$27,A121)) -> 3603 | C121: =+HLOOKUP(CALCULADORA!$C$9,Tablas!B:B,Flujos!J121+1,FALSE) -> 0 | D121: 0 | E121: 0 | F121: =ROUND(D120*ROUND(((1+CALCULADORA!$C$16)^(1/12)-1),6),6) -> 0 | G121: 0 | H121: =IF($B121=0,0,G121/POWER(1+CALCULADORA!$C$29,Flujos!$B121/365)) -> 0 | I121: 2035-02-13 | J121: 119 | K121: =+DIAS365($A$2,A121) -> 3622 | L121: -1.379847527e-05 | M121: 0 | N121: -1.150930822e-07 | O121: -1.150930822e-07
A122: 2035-03-13 | B122: =IF(DIAS365(CALCULADORA!$C$27,A122)<0,0,DIAS365(CALCULADORA!$C$27,A122)) -> 3631 | C122: =+HLOOKUP(CALCULADORA!$C$9,Tablas!B:B,Flujos!J122+1,FALSE) -> 0 | D122: 0 | E122: 0 | F122: =ROUND(D121*ROUND(((1+CALCULADORA!$C$16)^(1/12)-1),6),6) -> 0 | G122: 0 | H122: =IF($B122=0,0,G122/POWER(1+CALCULADORA!$C$29,Flujos!$B122/365)) -> 0 | I122: 2035-03-13 | J122: 120 | K122: =+DIAS365($A$2,A122) -> 3650 | L122: -1.379847527e-05 | M122: 0 | N122: -1.150930822e-07 | O122: -1.150930822e-07
A123: 2035-04-13 | B123: =IF(DIAS365(CALCULADORA!$C$27,A123)<0,0,DIAS365(CALCULADORA!$C$27,A123)) -> 3662 | C123: =+HLOOKUP(CALCULADORA!$C$9,Tablas!B:B,Flujos!J123+1,FALSE) -> 0 | D123: 0 | E123: 0 | F123: =ROUND(D122*ROUND(((1+CALCULADORA!$C$16)^(1/12)-1),6),6) -> 0 | G123: 0 | H123: =IF($B123=0,0,G123/POWER(1+CALCULADORA!$C$29,Flujos!$B123/365)) -> 0 | I123: 2035-04-13 | J123: 121 | K123: =+DIAS365($A$2,A123) -> 3681 | L123: -1.379847527e-05 | M123: 0 | N123: -1.150930822e-07 | O123: -1.150930822e-07
A124: 2035-05-13 | B124: =IF(DIAS365(CALCULADORA!$C$27,A124)<0,0,DIAS365(CALCULADORA!$C$27,A124)) -> 3692 | C124: =+HLOOKUP(CALCULADORA!$C$9,Tablas!B:B,Flujos!J124+1,FALSE) -> 0 | D124: 0 | E124: 0 | F124: =ROUND(D123*ROUND(((1+CALCULADORA!$C$16)^(1/12)-1),6),6) -> 0 | G124: 0 | H124: =IF($B124=0,0,G124/POWER(1+CALCULADORA!$C$29,Flujos!$B124/365)) -> 0 | I124: 2035-05-13 | J124: 122 | K124: =+DIAS365($A$2,A124) -> 3711 | L124: -1.379847527e-05 | M124: 0 | N124: -1.150930822e-07 | O124: -1.150930822e-07
A125: 2035-06-13 | B125: =IF(DIAS365(CALCULADORA!$C$27,A125)<0,0,DIAS365(CALCULADORA!$C$27,A125)) -> 3723 | C125: =+HLOOKUP(CALCULADORA!$C$9,Tablas!B:B,Flujos!J125+1,FALSE) -> 0 | D125: 0 | E125: 0 | F125: =ROUND(D124*ROUND(((1+CALCULADORA!$C$16)^(1/12)-1),6),6) -> 0 | G125: 0 | H125: =IF($B125=0,0,G125/POWER(1+CALCULADORA!$C$29,Flujos!$B125/365)) -> 0 | I125: 2035-06-13 | J125: 123 | K125: =+DIAS365($A$2,A125) -> 3742 | L125: -1.379847527e-05 | M125: 0 | N125: -1.150930822e-07 | O125: -1.150930822e-07
A126: 2035-07-13 | B126: =IF(DIAS365(CALCULADORA!$C$27,A126)<0,0,DIAS365(CALCULADORA!$C$27,A126)) -> 3753 | C126: =+HLOOKUP(CALCULADORA!$C$9,Tablas!B:B,Flujos!J126+1,FALSE) -> 0 | D126: 0 | E126: 0 | F126: =ROUND(D125*ROUND(((1+CALCULADORA!$C$16)^(1/12)-1),6),6) -> 0 | G126: 0 | H126: =IF($B126=0,0,G126/POWER(1+CALCULADORA!$C$29,Flujos!$B126/365)) -> 0 | I126: 2035-07-13 | J126: 124 | K126: =+DIAS365($A$2,A126) -> 3772 | L126: -1.379847527e-05 | M126: 0 | N126: -1.150930822e-07 | O126: -1.150930822e-07
A127: 2035-08-13 | B127: =IF(DIAS365(CALCULADORA!$C$27,A127)<0,0,DIAS365(CALCULADORA!$C$27,A127)) -> 3784 | C127: =+HLOOKUP(CALCULADORA!$C$9,Tablas!B:B,Flujos!J127+1,FALSE) -> 0 | D127: 0 | E127: 0 | F127: =ROUND(D126*ROUND(((1+CALCULADORA!$C$16)^(1/12)-1),6),6) -> 0 | G127: 0 | H127: =IF($B127=0,0,G127/POWER(1+CALCULADORA!$C$29,Flujos!$B127/365)) -> 0 | I127: 2035-08-13 | J127: 125 | K127: =+DIAS365($A$2,A127) -> 3803 | L127: -1.379847527e-05 | M127: 0 | N127: -1.150930822e-07 | O127: -1.150930822e-07
A128: 2035-09-13 | B128: =IF(DIAS365(CALCULADORA!$C$27,A128)<0,0,DIAS365(CALCULADORA!$C$27,A128)) -> 3815 | C128: =+HLOOKUP(CALCULADORA!$C$9,Tablas!B:B,Flujos!J128+1,FALSE) -> 0 | D128: 0 | E128: 0 | F128: =ROUND(D127*ROUND(((1+CALCULADORA!$C$16)^(1/12)-1),6),6) -> 0 | G128: 0 | H128: =IF($B128=0,0,G128/POWER(1+CALCULADORA!$C$29,Flujos!$B128/365)) -> 0 | I128: 2035-09-13 | J128: 126 | K128: =+DIAS365($A$2,A128) -> 3834 | L128: -1.379847527e-05 | M128: 0 | N128: -1.150930822e-07 | O128: -1.150930822e-07
A129: 2035-10-13 | B129: =IF(DIAS365(CALCULADORA!$C$27,A129)<0,0,DIAS365(CALCULADORA!$C$27,A129)) -> 3845 | C129: =+HLOOKUP(CALCULADORA!$C$9,Tablas!B:B,Flujos!J129+1,FALSE) -> 0 | D129: 0 | E129: 0 | F129: =ROUND(D128*ROUND(((1+CALCULADORA!$C$16)^(1/12)-1),6),6) -> 0 | G129: 0 | H129: =IF($B129=0,0,G129/POWER(1+CALCULADORA!$C$29,Flujos!$B129/365)) -> 0 | I129: 2035-10-13 | J129: 127 | K129: =+DIAS365($A$2,A129) -> 3864 | L129: -1.379847527e-05 | M129: 0 | N129: -1.150930822e-07 | O129: -1.150930822e-07
A130: 2035-11-13 | B130: =IF(DIAS365(CALCULADORA!$C$27,A130)<0,0,DIAS365(CALCULADORA!$C$27,A130)) -> 3876 | C130: =+HLOOKUP(CALCULADORA!$C$9,Tablas!B:B,Flujos!J130+1,FALSE) -> 0 | D130: 0 | E130: 0 | F130: =ROUND(D129*ROUND(((1+CALCULADORA!$C$16)^(1/12)-1),6),6) -> 0 | G130: 0 | H130: =IF($B130=0,0,G130/POWER(1+CALCULADORA!$C$29,Flujos!$B130/365)) -> 0 | I130: 2035-11-13 | J130: 128 | K130: =+DIAS365($A$2,A130) -> 3895 | L130: -1.379847527e-05 | M130: 0 | N130: -1.150930822e-07 | O130: -1.150930822e-07
A131: =EDATE(A130,1) -> 2035-12-13 | B131: =IF(DIAS365(CALCULADORA!$C$27,A131)<0,0,DIAS365(CALCULADORA!$C$27,A131)) -> 3906 | C131: =+HLOOKUP(CALCULADORA!$C$9,Tablas!B:B,Flujos!J131+1,FALSE) -> 0 | D131: 0 | E131: 0 | F131: =ROUND(D130*ROUND(((1+CALCULADORA!$C$16)^(1/12)-1),6),6) -> 0 | G131: 0 | H131: =IF($B131=0,0,G131/POWER(1+CALCULADORA!$C$29,Flujos!$B131/365)) -> 0 | I131: =+A131 -> 2035-12-13 | J131: 129 | K131: =+DIAS365($A$2,A131) -> 3925 | L131: -1.379847527e-05 | M131: 0 | N131: -1.150930822e-07 | O131: -1.150930822e-07
A132: 2036-01-13 | B132: =IF(DIAS365(CALCULADORA!$C$27,A132)<0,0,DIAS365(CALCULADORA!$C$27,A132)) -> 3937 | C132: =+HLOOKUP(CALCULADORA!$C$9,Tablas!B:B,Flujos!J132+1,FALSE) -> 0 | D132: =+ROUND(D131-E132,6) -> 0 | E132: =ROUND(C132*$D$2,6) -> 0 | F132: =ROUND(D131*ROUND(((1+CALCULADORA!$C$16)^(1/12)-1),6),6) -> 0 | G132: =F132+E132 -> 0 | H132: =IF($B132=0,0,G132/POWER(1+CALCULADORA!$C$29,Flujos!$B132/365)) -> 0 | I132: 2036-01-13 | J132: 130 | K132: =+DIAS365($A$2,A132) -> 3956 | L132: =+L131-M132 -> -1.379847527e-05 | M132: =+$L$2*C132 -> 0 | N132: =+L131*$F$3% -> -1.150930822e-07 | O132: =+N132+M132 -> -1.150930822e-07
A133: 2036-02-13 | B133: =IF(DIAS365(CALCULADORA!$C$27,A133)<0,0,DIAS365(CALCULADORA!$C$27,A133)) -> 3968 | C133: =+HLOOKUP(CALCULADORA!$C$9,Tablas!B:B,Flujos!J133+1,FALSE) -> 0 | D133: 0 | E133: 0 | F133: =ROUND(D132*ROUND(((1+CALCULADORA!$C$16)^(1/12)-1),6),6) -> 0 | G133: 0 | H133: =IF($B133=0,0,G133/POWER(1+CALCULADORA!$C$29,Flujos!$B133/365)) -> 0 | I133: 2036-02-13 | J133: 131 | K133: =+DIAS365($A$2,A133) -> 3987 | L133: -1.379847527e-05 | M133: 0 | N133: -1.150930822e-07 | O133: -1.150930822e-07
A134: 2036-03-13 | B134: =IF(DIAS365(CALCULADORA!$C$27,A134)<0,0,DIAS365(CALCULADORA!$C$27,A134)) -> 3996 | C134: =+HLOOKUP(CALCULADORA!$C$9,Tablas!B:B,Flujos!J134+1,FALSE) -> 0 | D134: 0 | E134: 0 | F134: =ROUND(D133*ROUND(((1+CALCULADORA!$C$16)^(1/12)-1),6),6) -> 0 | G134: 0 | H134: =IF($B134=0,0,G134/POWER(1+CALCULADORA!$C$29,Flujos!$B134/365)) -> 0 | I134: 2036-03-13 | J134: 132 | K134: =+DIAS365($A$2,A134) -> 4015 | L134: -1.379847527e-05 | M134: 0 | N134: -1.150930822e-07 | O134: -1.150930822e-07
A135: 2036-04-13 | B135: =IF(DIAS365(CALCULADORA!$C$27,A135)<0,0,DIAS365(CALCULADORA!$C$27,A135)) -> 4027 | C135: =+HLOOKUP(CALCULADORA!$C$9,Tablas!B:B,Flujos!J135+1,FALSE) -> 0 | D135: 0 | E135: 0 | F135: =ROUND(D134*ROUND(((1+CALCULADORA!$C$16)^(1/12)-1),6),6) -> 0 | G135: 0 | H135: =IF($B135=0,0,G135/POWER(1+CALCULADORA!$C$29,Flujos!$B135/365)) -> 0 | I135: 2036-04-13 | J135: 133 | K135: =+DIAS365($A$2,A135) -> 4046 | L135: -1.379847527e-05 | M135: 0 | N135: -1.150930822e-07 | O135: -1.150930822e-07
A136: 2036-05-13 | B136: =IF(DIAS365(CALCULADORA!$C$27,A136)<0,0,DIAS365(CALCULADORA!$C$27,A136)) -> 4057 | C136: =+HLOOKUP(CALCULADORA!$C$9,Tablas!B:B,Flujos!J136+1,FALSE) -> 0 | D136: 0 | E136: 0 | F136: =ROUND(D135*ROUND(((1+CALCULADORA!$C$16)^(1/12)-1),6),6) -> 0 | G136: 0 | H136: =IF($B136=0,0,G136/POWER(1+CALCULADORA!$C$29,Flujos!$B136/365)) -> 0 | I136: 2036-05-13 | J136: 134 | K136: =+DIAS365($A$2,A136) -> 4076 | L136: -1.379847527e-05 | M136: 0 | N136: -1.150930822e-07 | O136: -1.150930822e-07
A137: 2036-06-13 | B137: =IF(DIAS365(CALCULADORA!$C$27,A137)<0,0,DIAS365(CALCULADORA!$C$27,A137)) -> 4088 | C137: =+HLOOKUP(CALCULADORA!$C$9,Tablas!B:B,Flujos!J137+1,FALSE) -> 0 | D137: 0 | E137: 0 | F137: =ROUND(D136*ROUND(((1+CALCULADORA!$C$16)^(1/12)-1),6),6) -> 0 | G137: 0 | H137: =IF($B137=0,0,G137/POWER(1+CALCULADORA!$C$29,Flujos!$B137/365)) -> 0 | I137: 2036-06-13 | J137: 135 | K137: =+DIAS365($A$2,A137) -> 4107 | L137: -1.379847527e-05 | M137: 0 | N137: -1.150930822e-07 | O137: -1.150930822e-07
A138: 2036-07-13 | B138: =IF(DIAS365(CALCULADORA!$C$27,A138)<0,0,DIAS365(CALCULADORA!$C$27,A138)) -> 4118 | C138: =+HLOOKUP(CALCULADORA!$C$9,Tablas!B:B,Flujos!J138+1,FALSE) -> 0 | D138: 0 | E138: 0 | F138: =ROUND(D137*ROUND(((1+CALCULADORA!$C$16)^(1/12)-1),6),6) -> 0 | G138: 0 | H138: =IF($B138=0,0,G138/POWER(1+CALCULADORA!$C$29,Flujos!$B138/365)) -> 0 | I138: 2036-07-13 | J138: 136 | K138: =+DIAS365($A$2,A138) -> 4137 | L138: -1.379847527e-05 | M138: 0 | N138: -1.150930822e-07 | O138: -1.150930822e-07
A139: 2036-08-13 | B139: =IF(DIAS365(CALCULADORA!$C$27,A139)<0,0,DIAS365(CALCULADORA!$C$27,A139)) -> 4149 | C139: =+HLOOKUP(CALCULADORA!$C$9,Tablas!B:B,Flujos!J139+1,FALSE) -> 0 | D139: 0 | E139: 0 | F139: =ROUND(D138*ROUND(((1+CALCULADORA!$C$16)^(1/12)-1),6),6) -> 0 | G139: 0 | H139: =IF($B139=0,0,G139/POWER(1+CALCULADORA!$C$29,Flujos!$B139/365)) -> 0 | I139: 2036-08-13 | J139: 137 | K139: =+DIAS365($A$2,A139) -> 4168 | L139: -1.379847527e-05 | M139: 0 | N139: -1.150930822e-07 | O139: -1.150930822e-07
A140: 2036-09-13 | B140: =IF(DIAS365(CALCULADORA!$C$27,A140)<0,0,DIAS365(CALCULADORA!$C$27,A140)) -> 4180 | C140: =+HLOOKUP(CALCULADORA!$C$9,Tablas!B:B,Flujos!J140+1,FALSE) -> 0 | D140: 0 | E140: 0 | F140: =ROUND(D139*ROUND(((1+CALCULADORA!$C$16)^(1/12)-1),6),6) -> 0 | G140: 0 | H140: =IF($B140=0,0,G140/POWER(1+CALCULADORA!$C$29,Flujos!$B140/365)) -> 0 | I140: 2036-09-13 | J140: 138 | K140: =+DIAS365($A$2,A140) -> 4199 | L140: -1.379847527e-05 | M140: 0 | N140: -1.150930822e-07 | O140: -1.150930822e-07
A141: 2036-10-13 | B141: =IF(DIAS365(CALCULADORA!$C$27,A141)<0,0,DIAS365(CALCULADORA!$C$27,A141)) -> 4210 | C141: =+HLOOKUP(CALCULADORA!$C$9,Tablas!B:B,Flujos!J141+1,FALSE) -> 0 | D141: 0 | E141: 0 | F141: =ROUND(D140*ROUND(((1+CALCULADORA!$C$16)^(1/12)-1),6),6) -> 0 | G141: 0 | H141: =IF($B141=0,0,G141/POWER(1+CALCULADORA!$C$29,Flujos!$B141/365)) -> 0 | I141: 2036-10-13 | J141: 139 | K141: =+DIAS365($A$2,A141) -> 4229 | L141: -1.379847527e-05 | M141: 0 | N141: -1.150930822e-07 | O141: -1.150930822e-07
A142: 2036-11-13 | B142: =IF(DIAS365(CALCULADORA!$C$27,A142)<0,0,DIAS365(CALCULADORA!$C$27,A142)) -> 4241 | C142: =+HLOOKUP(CALCULADORA!$C$9,Tablas!B:B,Flujos!J142+1,FALSE) -> 0 | D142: 0 | E142: 0 | F142: =ROUND(D141*ROUND(((1+CALCULADORA!$C$16)^(1/12)-1),6),6) -> 0 | G142: 0 | H142: =IF($B142=0,0,G142/POWER(1+CALCULADORA!$C$29,Flujos!$B142/365)) -> 0 | I142: 2036-11-13 | J142: 140 | K142: =+DIAS365($A$2,A142) -> 4260 | L142: -1.379847527e-05 | M142: 0 | N142: -1.150930822e-07 | O142: -1.150930822e-07
A143: 2036-12-13 | B143: =IF(DIAS365(CALCULADORA!$C$27,A143)<0,0,DIAS365(CALCULADORA!$C$27,A143)) -> 4271 | C143: =+HLOOKUP(CALCULADORA!$C$9,Tablas!B:B,Flujos!J143+1,FALSE) -> 0 | D143: 0 | E143: 0 | F143: =ROUND(D142*ROUND(((1+CALCULADORA!$C$16)^(1/12)-1),6),6) -> 0 | G143: 0 | H143: =IF($B143=0,0,G143/POWER(1+CALCULADORA!$C$29,Flujos!$B143/365)) -> 0 | I143: 2036-12-13 | J143: 141 | K143: =+DIAS365($A$2,A143) -> 4290 | L143: -1.379847527e-05 | M143: 0 | N143: -1.150930822e-07 | O143: -1.150930822e-07
A144: 2037-01-13 | B144: =IF(DIAS365(CALCULADORA!$C$27,A144)<0,0,DIAS365(CALCULADORA!$C$27,A144)) -> 4302 | C144: =+HLOOKUP(CALCULADORA!$C$9,Tablas!B:B,Flujos!J144+1,FALSE) -> 0 | D144: 0 | E144: 0 | F144: =ROUND(D143*ROUND(((1+CALCULADORA!$C$16)^(1/12)-1),6),6) -> 0 | G144: 0 | H144: =IF($B144=0,0,G144/POWER(1+CALCULADORA!$C$29,Flujos!$B144/365)) -> 0 | I144: 2037-01-13 | J144: 142 | K144: =+DIAS365($A$2,A144) -> 4321 | L144: -1.379847527e-05 | M144: 0 | N144: -1.150930822e-07 | O144: -1.150930822e-07
A145: 2037-02-13 | B145: =IF(DIAS365(CALCULADORA!$C$27,A145)<0,0,DIAS365(CALCULADORA!$C$27,A145)) -> 4333 | C145: =+HLOOKUP(CALCULADORA!$C$9,Tablas!B:B,Flujos!J145+1,FALSE) -> 0 | D145: 0 | E145: 0 | F145: =ROUND(D144*ROUND(((1+CALCULADORA!$C$16)^(1/12)-1),6),6) -> 0 | G145: 0 | H145: =IF($B145=0,0,G145/POWER(1+CALCULADORA!$C$29,Flujos!$B145/365)) -> 0 | I145: 2037-02-13 | J145: 143 | K145: =+DIAS365($A$2,A145) -> 4352 | L145: -1.379847527e-05 | M145: 0 | N145: -1.150930822e-07 | O145: -1.150930822e-07
A146: 2037-03-13 | B146: =IF(DIAS365(CALCULADORA!$C$27,A146)<0,0,DIAS365(CALCULADORA!$C$27,A146)) -> 4361 | C146: =+HLOOKUP(CALCULADORA!$C$9,Tablas!B:B,Flujos!J146+1,FALSE) -> 0 | D146: 0 | E146: 0 | F146: =ROUND(D145*ROUND(((1+CALCULADORA!$C$16)^(1/12)-1),6),6) -> 0 | G146: 0 | H146: =IF($B146=0,0,G146/POWER(1+CALCULADORA!$C$29,Flujos!$B146/365)) -> 0 | I146: 2037-03-13 | J146: 144 | K146: =+DIAS365($A$2,A146) -> 4380 | L146: -1.379847527e-05 | M146: 0 | N146: -1.150930822e-07 | O146: -1.150930822e-07
A147: 2037-04-13 | B147: =IF(DIAS365(CALCULADORA!$C$27,A147)<0,0,DIAS365(CALCULADORA!$C$27,A147)) -> 4392 | C147: =+HLOOKUP(CALCULADORA!$C$9,Tablas!B:B,Flujos!J147+1,FALSE) -> 0 | D147: 0 | E147: 0 | F147: =ROUND(D146*ROUND(((1+CALCULADORA!$C$16)^(1/12)-1),6),6) -> 0 | G147: 0 | H147: =IF($B147=0,0,G147/POWER(1+CALCULADORA!$C$29,Flujos!$B147/365)) -> 0 | I147: 2037-04-13 | J147: 145 | K147: =+DIAS365($A$2,A147) -> 4411 | L147: -1.379847527e-05 | M147: 0 | N147: -1.150930822e-07 | O147: -1.150930822e-07
A148: 2037-05-13 | B148: =IF(DIAS365(CALCULADORA!$C$27,A148)<0,0,DIAS365(CALCULADORA!$C$27,A148)) -> 4422 | C148: =+HLOOKUP(CALCULADORA!$C$9,Tablas!B:B,Flujos!J148+1,FALSE) -> 0 | D148: 0 | E148: 0 | F148: =ROUND(D147*ROUND(((1+CALCULADORA!$C$16)^(1/12)-1),6),6) -> 0 | G148: 0 | H148: =IF($B148=0,0,G148/POWER(1+CALCULADORA!$C$29,Flujos!$B148/365)) -> 0 | I148: 2037-05-13 | J148: 146 | K148: =+DIAS365($A$2,A148) -> 4441 | L148: -1.379847527e-05 | M148: 0 | N148: -1.150930822e-07 | O148: -1.150930822e-07
A149: 2037-06-13 | B149: =IF(DIAS365(CALCULADORA!$C$27,A149)<0,0,DIAS365(CALCULADORA!$C$27,A149)) -> 4453 | C149: =+HLOOKUP(CALCULADORA!$C$9,Tablas!B:B,Flujos!J149+1,FALSE) -> 0 | D149: 0 | E149: 0 | F149: =ROUND(D148*ROUND(((1+CALCULADORA!$C$16)^(1/12)-1),6),6) -> 0 | G149: 0 | H149: =IF($B149=0,0,G149/POWER(1+CALCULADORA!$C$29,Flujos!$B149/365)) -> 0 | I149: 2037-06-13 | J149: 147 | K149: =+DIAS365($A$2,A149) -> 4472 | L149: -1.379847527e-05 | M149: 0 | N149: -1.150930822e-07 | O149: -1.150930822e-07
A150: 2037-07-13 | B150: =IF(DIAS365(CALCULADORA!$C$27,A150)<0,0,DIAS365(CALCULADORA!$C$27,A150)) -> 4483 | C150: =+HLOOKUP(CALCULADORA!$C$9,Tablas!B:B,Flujos!J150+1,FALSE) -> 0 | D150: 0 | E150: 0 | F150: =ROUND(D149*ROUND(((1+CALCULADORA!$C$16)^(1/12)-1),6),6) -> 0 | G150: 0 | H150: =IF($B150=0,0,G150/POWER(1+CALCULADORA!$C$29,Flujos!$B150/365)) -> 0 | I150: 2037-07-13 | J150: 148 | K150: =+DIAS365($A$2,A150) -> 4502 | L150: -1.379847527e-05 | M150: 0 | N150: -1.150930822e-07 | O150: -1.150930822e-07
A151: 2037-08-13 | B151: =IF(DIAS365(CALCULADORA!$C$27,A151)<0,0,DIAS365(CALCULADORA!$C$27,A151)) -> 4514 | C151: =+HLOOKUP(CALCULADORA!$C$9,Tablas!B:B,Flujos!J151+1,FALSE) -> 0 | D151: 0 | E151: 0 | F151: =ROUND(D150*ROUND(((1+CALCULADORA!$C$16)^(1/12)-1),6),6) -> 0 | G151: 0 | H151: =IF($B151=0,0,G151/POWER(1+CALCULADORA!$C$29,Flujos!$B151/365)) -> 0 | I151: 2037-08-13 | J151: 149 | K151: =+DIAS365($A$2,A151) -> 4533 | L151: -1.379847527e-05 | M151: 0 | N151: -1.150930822e-07 | O151: -1.150930822e-07
A152: 2037-09-13 | B152: =IF(DIAS365(CALCULADORA!$C$27,A152)<0,0,DIAS365(CALCULADORA!$C$27,A152)) -> 4545 | C152: =+HLOOKUP(CALCULADORA!$C$9,Tablas!B:B,Flujos!J152+1,FALSE) -> 0 | D152: 0 | E152: 0 | F152: =ROUND(D151*ROUND(((1+CALCULADORA!$C$16)^(1/12)-1),6),6) -> 0 | G152: 0 | H152: =IF($B152=0,0,G152/POWER(1+CALCULADORA!$C$29,Flujos!$B152/365)) -> 0 | I152: 2037-09-13 | J152: 150 | K152: =+DIAS365($A$2,A152) -> 4564 | L152: -1.379847527e-05 | M152: 0 | N152: -1.150930822e-07 | O152: -1.150930822e-07
A153: 2037-10-13 | B153: =IF(DIAS365(CALCULADORA!$C$27,A153)<0,0,DIAS365(CALCULADORA!$C$27,A153)) -> 4575 | C153: =+HLOOKUP(CALCULADORA!$C$9,Tablas!B:B,Flujos!J153+1,FALSE) -> 0 | D153: 0 | E153: 0 | F153: =ROUND(D152*ROUND(((1+CALCULADORA!$C$16)^(1/12)-1),6),6) -> 0 | G153: 0 | H153: =IF($B153=0,0,G153/POWER(1+CALCULADORA!$C$29,Flujos!$B153/365)) -> 0 | I153: 2037-10-13 | J153: 151 | K153: =+DIAS365($A$2,A153) -> 4594 | L153: -1.379847527e-05 | M153: 0 | N153: -1.150930822e-07 | O153: -1.150930822e-07
A154: 2037-11-13 | B154: =IF(DIAS365(CALCULADORA!$C$27,A154)<0,0,DIAS365(CALCULADORA!$C$27,A154)) -> 4606 | C154: =+HLOOKUP(CALCULADORA!$C$9,Tablas!B:B,Flujos!J154+1,FALSE) -> 0 | D154: 0 | E154: 0 | F154: =ROUND(D153*ROUND(((1+CALCULADORA!$C$16)^(1/12)-1),6),6) -> 0 | G154: 0 | H154: =IF($B154=0,0,G154/POWER(1+CALCULADORA!$C$29,Flujos!$B154/365)) -> 0 | I154: 2037-11-13 | J154: 152 | K154: =+DIAS365($A$2,A154) -> 4625 | L154: -1.379847527e-05 | M154: 0 | N154: -1.150930822e-07 | O154: -1.150930822e-07
A155: 2037-12-13 | B155: =IF(DIAS365(CALCULADORA!$C$27,A155)<0,0,DIAS365(CALCULADORA!$C$27,A155)) -> 4636 | C155: =+HLOOKUP(CALCULADORA!$C$9,Tablas!B:B,Flujos!J155+1,FALSE) -> 0 | D155: 0 | E155: 0 | F155: =ROUND(D154*ROUND(((1+CALCULADORA!$C$16)^(1/12)-1),6),6) -> 0 | G155: 0 | H155: =IF($B155=0,0,G155/POWER(1+CALCULADORA!$C$29,Flujos!$B155/365)) -> 0 | I155: 2037-12-13 | J155: 153 | K155: =+DIAS365($A$2,A155) -> 4655 | L155: -1.379847527e-05 | M155: 0 | N155: -1.150930822e-07 | O155: -1.150930822e-07
A156: 2038-01-13 | B156: =IF(DIAS365(CALCULADORA!$C$27,A156)<0,0,DIAS365(CALCULADORA!$C$27,A156)) -> 4667 | C156: =+HLOOKUP(CALCULADORA!$C$9,Tablas!B:B,Flujos!J156+1,FALSE) -> 0 | D156: 0 | E156: 0 | F156: =ROUND(D155*ROUND(((1+CALCULADORA!$C$16)^(1/12)-1),6),6) -> 0 | G156: 0 | H156: =IF($B156=0,0,G156/POWER(1+CALCULADORA!$C$29,Flujos!$B156/365)) -> 0 | I156: 2038-01-13 | J156: 154 | K156: =+DIAS365($A$2,A156) -> 4686 | L156: -1.379847527e-05 | M156: 0 | N156: -1.150930822e-07 | O156: -1.150930822e-07
A157: 2038-02-13 | B157: =IF(DIAS365(CALCULADORA!$C$27,A157)<0,0,DIAS365(CALCULADORA!$C$27,A157)) -> 4698 | C157: =+HLOOKUP(CALCULADORA!$C$9,Tablas!B:B,Flujos!J157+1,FALSE) -> 0 | D157: 0 | E157: 0 | F157: =ROUND(D156*ROUND(((1+CALCULADORA!$C$16)^(1/12)-1),6),6) -> 0 | G157: 0 | H157: =IF($B157=0,0,G157/POWER(1+CALCULADORA!$C$29,Flujos!$B157/365)) -> 0 | I157: 2038-02-13 | J157: 155 | K157: =+DIAS365($A$2,A157) -> 4717 | L157: -1.379847527e-05 | M157: 0 | N157: -1.150930822e-07 | O157: -1.150930822e-07
A158: 2038-03-13 | B158: =IF(DIAS365(CALCULADORA!$C$27,A158)<0,0,DIAS365(CALCULADORA!$C$27,A158)) -> 4726 | C158: =+HLOOKUP(CALCULADORA!$C$9,Tablas!B:B,Flujos!J158+1,FALSE) -> 0 | D158: 0 | E158: 0 | F158: =ROUND(D157*ROUND(((1+CALCULADORA!$C$16)^(1/12)-1),6),6) -> 0 | G158: 0 | H158: =IF($B158=0,0,G158/POWER(1+CALCULADORA!$C$29,Flujos!$B158/365)) -> 0 | I158: 2038-03-13 | J158: 156 | K158: =+DIAS365($A$2,A158) -> 4745 | L158: -1.379847527e-05 | M158: 0 | N158: -1.150930822e-07 | O158: -1.150930822e-07
A159: 2038-04-13 | B159: =IF(DIAS365(CALCULADORA!$C$27,A159)<0,0,DIAS365(CALCULADORA!$C$27,A159)) -> 4757 | C159: =+HLOOKUP(CALCULADORA!$C$9,Tablas!B:B,Flujos!J159+1,FALSE) -> 0 | D159: 0 | E159: 0 | F159: =ROUND(D158*ROUND(((1+CALCULADORA!$C$16)^(1/12)-1),6),6) -> 0 | G159: 0 | H159: =IF($B159=0,0,G159/POWER(1+CALCULADORA!$C$29,Flujos!$B159/365)) -> 0 | I159: 2038-04-13 | J159: 157 | K159: =+DIAS365($A$2,A159) -> 4776 | L159: -1.379847527e-05 | M159: 0 | N159: -1.150930822e-07 | O159: -1.150930822e-07
A160: 2038-05-13 | B160: =IF(DIAS365(CALCULADORA!$C$27,A160)<0,0,DIAS365(CALCULADORA!$C$27,A160)) -> 4787 | C160: =+HLOOKUP(CALCULADORA!$C$9,Tablas!B:B,Flujos!J160+1,FALSE) -> 0 | D160: 0 | E160: 0 | F160: =ROUND(D159*ROUND(((1+CALCULADORA!$C$16)^(1/12)-1),6),6) -> 0 | G160: 0 | H160: =IF($B160=0,0,G160/POWER(1+CALCULADORA!$C$29,Flujos!$B160/365)) -> 0 | I160: 2038-05-13 | J160: 158 | K160: =+DIAS365($A$2,A160) -> 4806 | L160: -1.379847527e-05 | M160: 0 | N160: -1.150930822e-07 | O160: -1.150930822e-07
A161: 2038-06-13 | B161: =IF(DIAS365(CALCULADORA!$C$27,A161)<0,0,DIAS365(CALCULADORA!$C$27,A161)) -> 4818 | C161: =+HLOOKUP(CALCULADORA!$C$9,Tablas!B:B,Flujos!J161+1,FALSE) -> 0 | D161: 0 | E161: 0 | F161: =ROUND(D160*ROUND(((1+CALCULADORA!$C$16)^(1/12)-1),6),6) -> 0 | G161: 0 | H161: =IF($B161=0,0,G161/POWER(1+CALCULADORA!$C$29,Flujos!$B161/365)) -> 0 | I161: 2038-06-13 | J161: 159 | K161: =+DIAS365($A$2,A161) -> 4837 | L161: -1.379847527e-05 | M161: 0 | N161: -1.150930822e-07 | O161: -1.150930822e-07
A162: 2038-07-13 | B162: =IF(DIAS365(CALCULADORA!$C$27,A162)<0,0,DIAS365(CALCULADORA!$C$27,A162)) -> 4848 | C162: =+HLOOKUP(CALCULADORA!$C$9,Tablas!B:B,Flujos!J162+1,FALSE) -> 0 | D162: 0 | E162: 0 | F162: =ROUND(D161*ROUND(((1+CALCULADORA!$C$16)^(1/12)-1),6),6) -> 0 | G162: 0 | H162: =IF($B162=0,0,G162/POWER(1+CALCULADORA!$C$29,Flujos!$B162/365)) -> 0 | I162: 2038-07-13 | J162: 160 | K162: =+DIAS365($A$2,A162) -> 4867 | L162: -1.379847527e-05 | M162: 0 | N162: -1.150930822e-07 | O162: -1.150930822e-07
A163: =EDATE(A162,1) -> 2038-08-13 | B163: =IF(DIAS365(CALCULADORA!$C$27,A163)<0,0,DIAS365(CALCULADORA!$C$27,A163)) -> 4879 | C163: =+HLOOKUP(CALCULADORA!$C$9,Tablas!B:B,Flujos!J163+1,FALSE) -> 0 | D163: 0 | E163: 0 | F163: =ROUND(D162*ROUND(((1+CALCULADORA!$C$16)^(1/12)-1),6),6) -> 0 | G163: 0 | H163: =IF($B163=0,0,G163/POWER(1+CALCULADORA!$C$29,Flujos!$B163/365)) -> 0 | I163: 2038-08-13 | J163: 161 | K163: =+DIAS365($A$2,A163) -> 4898 | L163: -1.379847527e-05 | M163: 0 | N163: -1.150930822e-07 | O163: -1.150930822e-07
A164: 2038-09-13 | B164: =IF(DIAS365(CALCULADORA!$C$27,A164)<0,0,DIAS365(CALCULADORA!$C$27,A164)) -> 4910 | C164: =+HLOOKUP(CALCULADORA!$C$9,Tablas!B:B,Flujos!J164+1,FALSE) -> 0 | D164: 0 | E164: 0 | F164: =ROUND(D163*ROUND(((1+CALCULADORA!$C$16)^(1/12)-1),6),6) -> 0 | G164: 0 | H164: =IF($B164=0,0,G164/POWER(1+CALCULADORA!$C$29,Flujos!$B164/365)) -> 0 | I164: 2038-09-13 | J164: 162 | K164: =+DIAS365($A$2,A164) -> 4929 | L164: -1.379847527e-05 | M164: 0 | N164: -1.150930822e-07 | O164: -1.150930822e-07
A165: 2038-10-13 | B165: =IF(DIAS365(CALCULADORA!$C$27,A165)<0,0,DIAS365(CALCULADORA!$C$27,A165)) -> 4940 | C165: =+HLOOKUP(CALCULADORA!$C$9,Tablas!B:B,Flujos!J165+1,FALSE) -> 0 | D165: 0 | E165: 0 | F165: =ROUND(D164*ROUND(((1+CALCULADORA!$C$16)^(1/12)-1),6),6) -> 0 | G165: 0 | H165: =IF($B165=0,0,G165/POWER(1+CALCULADORA!$C$29,Flujos!$B165/365)) -> 0 | I165: 2038-10-13 | J165: 163 | K165: =+DIAS365($A$2,A165) -> 4959 | L165: -1.379847527e-05 | M165: 0 | N165: -1.150930822e-07 | O165: -1.150930822e-07
A166: 2038-11-13 | B166: =IF(DIAS365(CALCULADORA!$C$27,A166)<0,0,DIAS365(CALCULADORA!$C$27,A166)) -> 4971 | C166: =+HLOOKUP(CALCULADORA!$C$9,Tablas!B:B,Flujos!J166+1,FALSE) -> 0 | D166: 0 | E166: 0 | F166: =ROUND(D165*ROUND(((1+CALCULADORA!$C$16)^(1/12)-1),6),6) -> 0 | G166: 0 | H166: =IF($B166=0,0,G166/POWER(1+CALCULADORA!$C$29,Flujos!$B166/365)) -> 0 | I166: 2038-11-13 | J166: 164 | K166: =+DIAS365($A$2,A166) -> 4990 | L166: -1.379847527e-05 | M166: 0 | N166: -1.150930822e-07 | O166: -1.150930822e-07
A167: 2038-12-13 | B167: =IF(DIAS365(CALCULADORA!$C$27,A167)<0,0,DIAS365(CALCULADORA!$C$27,A167)) -> 5001 | C167: =+HLOOKUP(CALCULADORA!$C$9,Tablas!B:B,Flujos!J167+1,FALSE) -> 0 | D167: 0 | E167: 0 | F167: =ROUND(D166*ROUND(((1+CALCULADORA!$C$16)^(1/12)-1),6),6) -> 0 | G167: 0 | H167: =IF($B167=0,0,G167/POWER(1+CALCULADORA!$C$29,Flujos!$B167/365)) -> 0 | I167: 2038-12-13 | J167: 165 | K167: =+DIAS365($A$2,A167) -> 5020 | L167: -1.379847527e-05 | M167: 0 | N167: -1.150930822e-07 | O167: -1.150930822e-07
A168: 2039-01-13 | B168: =IF(DIAS365(CALCULADORA!$C$27,A168)<0,0,DIAS365(CALCULADORA!$C$27,A168)) -> 5032 | C168: =+HLOOKUP(CALCULADORA!$C$9,Tablas!B:B,Flujos!J168+1,FALSE) -> 0 | D168: 0 | E168: 0 | F168: =ROUND(D167*ROUND(((1+CALCULADORA!$C$16)^(1/12)-1),6),6) -> 0 | G168: 0 | H168: =IF($B168=0,0,G168/POWER(1+CALCULADORA!$C$29,Flujos!$B168/365)) -> 0 | I168: 2039-01-13 | J168: 166 | K168: =+DIAS365($A$2,A168) -> 5051 | L168: -1.379847527e-05 | M168: 0 | N168: -1.150930822e-07 | O168: -1.150930822e-07
A169: 2039-02-13 | B169: =IF(DIAS365(CALCULADORA!$C$27,A169)<0,0,DIAS365(CALCULADORA!$C$27,A169)) -> 5063 | C169: =+HLOOKUP(CALCULADORA!$C$9,Tablas!B:B,Flujos!J169+1,FALSE) -> 0 | D169: 0 | E169: 0 | F169: =ROUND(D168*ROUND(((1+CALCULADORA!$C$16)^(1/12)-1),6),6) -> 0 | G169: 0 | H169: =IF($B169=0,0,G169/POWER(1+CALCULADORA!$C$29,Flujos!$B169/365)) -> 0 | I169: 2039-02-13 | J169: 167 | K169: =+DIAS365($A$2,A169) -> 5082 | L169: -1.379847527e-05 | M169: 0 | N169: -1.150930822e-07 | O169: -1.150930822e-07
A170: 2039-03-13 | B170: =IF(DIAS365(CALCULADORA!$C$27,A170)<0,0,DIAS365(CALCULADORA!$C$27,A170)) -> 5091 | C170: =+HLOOKUP(CALCULADORA!$C$9,Tablas!B:B,Flujos!J170+1,FALSE) -> 0 | D170: 0 | E170: 0 | F170: =ROUND(D169*ROUND(((1+CALCULADORA!$C$16)^(1/12)-1),6),6) -> 0 | G170: 0 | H170: =IF($B170=0,0,G170/POWER(1+CALCULADORA!$C$29,Flujos!$B170/365)) -> 0 | I170: 2039-03-13 | J170: 168 | K170: =+DIAS365($A$2,A170) -> 5110 | L170: -1.379847527e-05 | M170: 0 | N170: -1.150930822e-07 | O170: -1.150930822e-07
A171: 2039-04-13 | B171: =IF(DIAS365(CALCULADORA!$C$27,A171)<0,0,DIAS365(CALCULADORA!$C$27,A171)) -> 5122 | C171: =+HLOOKUP(CALCULADORA!$C$9,Tablas!B:B,Flujos!J171+1,FALSE) -> 0 | D171: 0 | E171: 0 | F171: =ROUND(D170*ROUND(((1+CALCULADORA!$C$16)^(1/12)-1),6),6) -> 0 | G171: 0 | H171: =IF($B171=0,0,G171/POWER(1+CALCULADORA!$C$29,Flujos!$B171/365)) -> 0 | I171: 2039-04-13 | J171: 169 | K171: =+DIAS365($A$2,A171) -> 5141 | L171: -1.379847527e-05 | M171: 0 | N171: -1.150930822e-07 | O171: -1.150930822e-07
A172: 2039-05-13 | B172: =IF(DIAS365(CALCULADORA!$C$27,A172)<0,0,DIAS365(CALCULADORA!$C$27,A172)) -> 5152 | C172: =+HLOOKUP(CALCULADORA!$C$9,Tablas!B:B,Flujos!J172+1,FALSE) -> 0 | D172: 0 | E172: 0 | F172: =ROUND(D171*ROUND(((1+CALCULADORA!$C$16)^(1/12)-1),6),6) -> 0 | G172: 0 | H172: =IF($B172=0,0,G172/POWER(1+CALCULADORA!$C$29,Flujos!$B172/365)) -> 0 | I172: 2039-05-13 | J172: 170 | K172: =+DIAS365($A$2,A172) -> 5171 | L172: -1.379847527e-05 | M172: 0 | N172: -1.150930822e-07 | O172: -1.150930822e-07
A173: 2039-06-13 | B173: =IF(DIAS365(CALCULADORA!$C$27,A173)<0,0,DIAS365(CALCULADORA!$C$27,A173)) -> 5183 | C173: =+HLOOKUP(CALCULADORA!$C$9,Tablas!B:B,Flujos!J173+1,FALSE) -> 0 | D173: 0 | E173: 0 | F173: =ROUND(D172*ROUND(((1+CALCULADORA!$C$16)^(1/12)-1),6),6) -> 0 | G173: 0 | H173: =IF($B173=0,0,G173/POWER(1+CALCULADORA!$C$29,Flujos!$B173/365)) -> 0 | I173: 2039-06-13 | J173: 171 | K173: =+DIAS365($A$2,A173) -> 5202 | L173: -1.379847527e-05 | M173: 0 | N173: -1.150930822e-07 | O173: -1.150930822e-07
A174: 2039-07-13 | B174: =IF(DIAS365(CALCULADORA!$C$27,A174)<0,0,DIAS365(CALCULADORA!$C$27,A174)) -> 5213 | C174: =+HLOOKUP(CALCULADORA!$C$9,Tablas!B:B,Flujos!J174+1,FALSE) -> 0 | D174: 0 | E174: 0 | F174: =ROUND(D173*ROUND(((1+CALCULADORA!$C$16)^(1/12)-1),6),6) -> 0 | G174: 0 | H174: =IF($B174=0,0,G174/POWER(1+CALCULADORA!$C$29,Flujos!$B174/365)) -> 0 | I174: 2039-07-13 | J174: 172 | K174: =+DIAS365($A$2,A174) -> 5232 | L174: -1.379847527e-05 | M174: 0 | N174: -1.150930822e-07 | O174: -1.150930822e-07
A175: 2039-08-13 | B175: =IF(DIAS365(CALCULADORA!$C$27,A175)<0,0,DIAS365(CALCULADORA!$C$27,A175)) -> 5244 | C175: =+HLOOKUP(CALCULADORA!$C$9,Tablas!B:B,Flujos!J175+1,FALSE) -> 0 | D175: 0 | E175: 0 | F175: =ROUND(D174*ROUND(((1+CALCULADORA!$C$16)^(1/12)-1),6),6) -> 0 | G175: 0 | H175: =IF($B175=0,0,G175/POWER(1+CALCULADORA!$C$29,Flujos!$B175/365)) -> 0 | I175: 2039-08-13 | J175: 173 | K175: =+DIAS365($A$2,A175) -> 5263 | L175: -1.379847527e-05 | M175: 0 | N175: -1.150930822e-07 | O175: -1.150930822e-07
A176: 2039-09-13 | B176: =IF(DIAS365(CALCULADORA!$C$27,A176)<0,0,DIAS365(CALCULADORA!$C$27,A176)) -> 5275 | C176: =+HLOOKUP(CALCULADORA!$C$9,Tablas!B:B,Flujos!J176+1,FALSE) -> 0 | D176: 0 | E176: 0 | F176: =ROUND(D175*ROUND(((1+CALCULADORA!$C$16)^(1/12)-1),6),6) -> 0 | G176: 0 | H176: =IF($B176=0,0,G176/POWER(1+CALCULADORA!$C$29,Flujos!$B176/365)) -> 0 | I176: 2039-09-13 | J176: 174 | K176: =+DIAS365($A$2,A176) -> 5294 | L176: -1.379847527e-05 | M176: 0 | N176: -1.150930822e-07 | O176: -1.150930822e-07
A177: 2039-10-13 | B177: =IF(DIAS365(CALCULADORA!$C$27,A177)<0,0,DIAS365(CALCULADORA!$C$27,A177)) -> 5305 | C177: =+HLOOKUP(CALCULADORA!$C$9,Tablas!B:B,Flujos!J177+1,FALSE) -> 0 | D177: 0 | E177: 0 | F177: =ROUND(D176*ROUND(((1+CALCULADORA!$C$16)^(1/12)-1),6),6) -> 0 | G177: 0 | H177: =IF($B177=0,0,G177/POWER(1+CALCULADORA!$C$29,Flujos!$B177/365)) -> 0 | I177: 2039-10-13 | J177: 175 | K177: =+DIAS365($A$2,A177) -> 5324 | L177: -1.379847527e-05 | M177: 0 | N177: -1.150930822e-07 | O177: -1.150930822e-07
A178: 2039-11-13 | B178: =IF(DIAS365(CALCULADORA!$C$27,A178)<0,0,DIAS365(CALCULADORA!$C$27,A178)) -> 5336 | C178: =+HLOOKUP(CALCULADORA!$C$9,Tablas!B:B,Flujos!J178+1,FALSE) -> 0 | D178: 0 | E178: 0 | F178: =ROUND(D177*ROUND(((1+CALCULADORA!$C$16)^(1/12)-1),6),6) -> 0 | G178: 0 | H178: =IF($B178=0,0,G178/POWER(1+CALCULADORA!$C$29,Flujos!$B178/365)) -> 0 | I178: 2039-11-13 | J178: 176 | K178: =+DIAS365($A$2,A178) -> 5355 | L178: -1.379847527e-05 | M178: 0 | N178: -1.150930822e-07 | O178: -1.150930822e-07
A179: 2039-12-13 | B179: =IF(DIAS365(CALCULADORA!$C$27,A179)<0,0,DIAS365(CALCULADORA!$C$27,A179)) -> 5366 | C179: =+HLOOKUP(CALCULADORA!$C$9,Tablas!B:B,Flujos!J179+1,FALSE) -> 0 | D179: 0 | E179: 0 | F179: =ROUND(D178*ROUND(((1+CALCULADORA!$C$16)^(1/12)-1),6),6) -> 0 | G179: 0 | H179: =IF($B179=0,0,G179/POWER(1+CALCULADORA!$C$29,Flujos!$B179/365)) -> 0 | I179: 2039-12-13 | J179: 177 | K179: =+DIAS365($A$2,A179) -> 5385 | L179: -1.379847527e-05 | M179: 0 | N179: -1.150930822e-07 | O179: -1.150930822e-07
A180: 2040-01-13 | B180: =IF(DIAS365(CALCULADORA!$C$27,A180)<0,0,DIAS365(CALCULADORA!$C$27,A180)) -> 5397 | C180: =+HLOOKUP(CALCULADORA!$C$9,Tablas!B:B,Flujos!J180+1,FALSE) -> 0 | D180: 0 | E180: 0 | F180: =ROUND(D179*ROUND(((1+CALCULADORA!$C$16)^(1/12)-1),6),6) -> 0 | G180: 0 | H180: =IF($B180=0,0,G180/POWER(1+CALCULADORA!$C$29,Flujos!$B180/365)) -> 0 | I180: 2040-01-13 | J180: 178 | K180: =+DIAS365($A$2,A180) -> 5416 | L180: -1.379847527e-05 | M180: 0 | N180: -1.150930822e-07 | O180: -1.150930822e-07
A181: 2040-02-13 | B181: =IF(DIAS365(CALCULADORA!$C$27,A181)<0,0,DIAS365(CALCULADORA!$C$27,A181)) -> 5428 | C181: =+HLOOKUP(CALCULADORA!$C$9,Tablas!B:B,Flujos!J181+1,FALSE) -> 0 | D181: 0 | E181: 0 | F181: =ROUND(D180*ROUND(((1+CALCULADORA!$C$16)^(1/12)-1),6),6) -> 0 | G181: 0 | H181: =IF($B181=0,0,G181/POWER(1+CALCULADORA!$C$29,Flujos!$B181/365)) -> 0 | I181: 2040-02-13 | J181: 179 | K181: =+DIAS365($A$2,A181) -> 5447 | L181: -1.379847527e-05 | M181: 0 | N181: -1.150930822e-07 | O181: -1.150930822e-07
A182: 2040-03-13 | B182: =IF(DIAS365(CALCULADORA!$C$27,A182)<0,0,DIAS365(CALCULADORA!$C$27,A182)) -> 5456 | C182: =+HLOOKUP(CALCULADORA!$C$9,Tablas!B:B,Flujos!J182+1,FALSE) -> 0 | D182: 0 | E182: 0 | F182: =ROUND(D181*ROUND(((1+CALCULADORA!$C$16)^(1/12)-1),6),6) -> 0 | G182: 0 | H182: =IF($B182=0,0,G182/POWER(1+CALCULADORA!$C$29,Flujos!$B182/365)) -> 0 | I182: 2040-03-13 | J182: 180 | K182: =+DIAS365($A$2,A182) -> 5475 | L182: -1.379847527e-05 | M182: 0 | N182: -1.150930822e-07 | O182: -1.150930822e-07
C183: =+SUMIF(B2:B182,">0",C2:C182) -> 1 | E183: =SUM(E2:E182) -> 100 | F183: =SUM(F2:F182) -> 19.807569 | G183: =SUM(G2:G182) -> 119.807569 | H183: =SUM(H2:H182) -> 100.4058375 | L183: Totales | M183: =SUM(M2:M182) -> 49630124223 | N183: =SUM(N2:N182) -> 9830523434 | O183: 5.946064766e+10

Sheet Características (hidden)
A1: Serie | B1: TIPS N13 A | C1: TIPS N14 A | D1: TIPS N16 A | E1: TIPS N17 A | F1: TIPS N18 A 2034 | G1: TIPS N19 A 2034 | H1: TIPS N20 A 2034 | I1: TIPS N21 A | J1: TIPS N22 A | K1: TIPS N23 A | L1: TIPS N24 A1 2029 | M1: TIPS N24 A2 2039 | N1: TIPS N25 A
A2: Nemo MEC | B2: INST10011226 | C2: INST10080327 | D2: INST10061227 | E2: INST10150328 | F2: INST15040434 | G2: INST15230534 | H2: INST15041034 | I2: INST13240634 | J2: INST070339A | K2: INST15180739 | L2: INST15041029 | M2: INST15041039 | N2: INST15130340
A3: ISIN
A4: Emisión | B4: 2016-12-01 | C4: 2017-03-08 | D4: 2017-12-06 | E4: 2018-03-15 | F4: 2021-02-04 | G4: 2021-07-23 | H4: 2021-04-04 | I4: 2021-06-24 | J4: 2024-03-07 | K4: 2024-07-18 | L4: 2024-10-04 | M4: 2024-10-04 | N4: 2025-03-13
A5: Vencimiento contractual | B5: 2026-12-01 | C5: 2027-03-08 | D5: 2027-12-06 | E5: 2033-03-15 | F5: 2034-04-04 | G5: 2034-05-23 | H5: 2034-10-04 | I5: 2034-06-24 | J5: 2039-03-07 | K5: 2039-07-18 | L5: 2029-10-04 | M5: 2039-01-04 | N5: 2040-03-13
A6: Cupón EA | B6: 0.0837 | C6: 0.0775 | D6: 0.0638 | E6: 0.0657 | F6: 0.0683 | G6: 0.0689 | H6: 0.0604 | I6: 0.0606 | J6: 0.109 | K6: 0.1165 | L6: 0.104 | M6: 0.1078 | N6: 0.10482
A7: Moneda | B7: COP | C7: COP | D7: COP | E7: COP | F7: COP | G7: COP | H7: COP | I7: COP | J7: COP | K7: COP | L7: COP | M7: COP | N7: COP
A9: Cálculo de tasa y precio sucio a partir del limpio
A10: Fecha de liquidación | B10: =+CALCULADORA!C27 -> 2025-04-01
A11: Fecha último pago cupón | B11: =+VLOOKUP(B10,Flujos!$A$2:$A$182,1) -> 2025-03-13
A12: Valor Par | B12: =+VLOOKUP(B11,Flujos!$A$2:$D$182,4) -> 100
A13: Próximo pago de interés | B13: =+VLOOKUP(EDATE(B10,1),Flujos!$A$2:$Q$182,6) -> 0.8341
A14: Días corridos | B14: =+DAYS360(B11,B10,TRUE) -> 18
A15: Días entre flujos | B15: 30
A16: Cupón corrido | B16: =ROUND(B13/B12*B14/B15*100,4) -> 0.5005
A17: Precio limpio | B17: =+TRUNC(Flujos!H183/VLOOKUP(CALCULADORA!C27,Flujos!A:D,4)*100,3) -> 100.405
A18: Nominal | B18: =+CALCULADORA!C28 -> 49630124223
A19: Moneda | B19: 1
A20: Contravalor | B20: =ROUND(B18*B19*(B17+B16)/100,0) -> 50079524998
A21: Precio unitario | B21: =TRUNC(B20/B18,5) -> 1.00905
A22: Precio sucio MEC | B22: =TRUNC(B21/B19*100,3) -> 100.905
A23: Precio sucio modelo | B23: =+B22 -> 100.905
A24: Diferencia | B24: =+B22-B23 -> 0
A25: Tasa de descuento equivalente | B25: =TRUNC(CALCULADORA!C29,5) -> 0.1054
A27: Cálculo de precio limpio y sucio a partir de tasa
A28: Tasa de descuento | B28: =TRUNC(CALCULADORA!C29,5) -> 0.1054
A29: Precio sucio modelo | B29: =+B23 -> 100.905
A30: Moneda | B30: =+CALCULADORA!$C$43 -> 1
A31: Nominal | B31: =+CALCULADORA!C28 -> 49630124223
A32: Contravalor | B32: =+ROUND(B29/100*B31*B30,0) -> 50079276847
A33: Valor Par | B33: =+VLOOKUP(B11,Flujos!$A$2:$D$182,4) -> 100
A34: Próximo pago de interés | B34: =+VLOOKUP(EDATE(B10,1),Flujos!$A$2:$F$182,6) -> 0.8341
A35: Días corridos | B35: =+DAYS360(B11,B10,TRUE) -> 18
A36: Días entre flujos | B36: 30
A37: Precio unitario | B37: =TRUNC(B32/(B30*B31),5) -> 1.00904
A38: Cupón corrido | B38: =ROUND(B34/B33*B35/B36,6)*100 -> 0.5005
A39: Precio limpio | B39: =ROUND((B37-(B38/100))*100,3) -> 100.404

Sheet TIR de Tenencia (hidden)
A1: =+Flujos!A1 -> Fecha | B1: =+Flujos!L1 -> Saldo / Balance | C1: =+Flujos!M1 -> Pago de Capital | D1: =+Flujos!N1 -> Pago de Intereses | E1: =+Flujos!O1 -> Pago Total | F1: =+CALCULADORA!C27 -> 2025-04-01 | G1: Fecha | H1: Flujo | I1: Fecha | J1: Flujo 1 | K1: TIR | L1: =+DAY(A2) -> 13 | M1: =+MONTH(G2) -> 3 | N1: =+YEAR(G2) -> 2024 | P1: =MATCH(MAX('TIR de Tenencia'!I:I),'TIR de Tenencia'!I:I,0) -> 15
A2: =+Flujos!A2 -> 2025-03-13 | B2: =+Flujos!L2 -> 4.963012422e+10 | C2: =+Flujos!M2 -> 0 | D2: =+Flujos!N2 -> 0 | E2: =+Flujos!O2 -> 0 | G2: =+CALCULADORA!C23 -> 2024-03-07 | H2: =-CALCULADORA!C24 -> -15000000000 | I2: =+G2 -> 2024-03-07 | J2: =+H2 -> -15000000000 | K2: =+XIRR(J2:J9,I2:I9) -> -0.03734796941 | L2: =+L1 -> 13 | M2: =+IF(M1=12,1,M1+1) -> 4 | N2: =+IF(M2=1,N1+1,N1) -> 2024 | P2: 1 | Q2: Enero
A3: =+Flujos!A3 -> 2025-04-13 | B3: =+Flujos!L3 -> 4.774411399e+10 | C3: =+Flujos!M3 -> 1886010232 | D3: =+Flujos!N3 -> 413964866.1 | E3: =+Flujos!O3 -> 2299975098 | G3: =+DATE(N2,M2,L2) -> 2024-04-13 | H3: =IF(G3<CALCULADORA!$C$23,0,IF(CALCULADORA!$C$27>'TIR de Tenencia'!G3,E3,CALCULADORA!$C$33)) -> 2299975098 | I3: =+IF(H3=H2," ",G3) -> 2024-04-13 | J3: =+IF(H3=H2," ",H3) -> 2299975098 | L3: =+L2 -> 13 | M3: =+IF(M2=12,1,M2+1) -> 5 | N3: =+IF(M3=1,N2+1,N2) -> 2024 | P3: 2 | Q3: Febrero
A4: =+Flujos!A4 -> 2025-05-13 | B4: =+Flujos!L4 -> 4.592868077e+10 | C4: =+Flujos!M4 -> 1815433218 | D4: =+Flujos!N4 -> 398233654.8 | E4: =+Flujos!O4 -> 2213666873 | G4: =+DATE(N3,M3,L3) -> 2024-05-13 | H4: =IF(G4<CALCULADORA!$C$23,0,IF(CALCULADORA!$C$27>'TIR de Tenencia'!G4,E4,CALCULADORA!$C$33)) -> 2213666873 | I4: =+IF(H4=H3," ",G4) -> 2024-05-13 | J4: =+IF(H4=H3," ",H4) -> 2213666873 | L4: 13 | M4: 6 | N4: 2024 | P4: 3 | Q4: Marzo
A5: =+Flujos!A5 -> 2025-06-13 | B5: =+Flujos!L5 -> 4.41812443e+10 | C5: =+Flujos!M5 -> 1747436473 | D5: =+Flujos!N5 -> 383091126.3 | E5: =+Flujos!O5 -> 2130527600 | G5: 2024-06-13 | H5: =IF(G5<CALCULADORA!$C$23,0,IF(CALCULADORA!$C$27>'TIR de Tenencia'!G5,E5,CALCULADORA!$C$33)) -> 2130527600 | I5: =+IF(H5=H4," ",G5) -> 2024-06-13 | J5: =+IF(H5=H4," ",H5) -> 2130527600 | L5: 13 | M5: 7 | N5: 2024 | P5: 4 | Q5: Abril
A6: =+Flujos!A6 -> 2025-07-13 | B6: =+Flujos!L6 -> 4.225521531e+10 | C6: =+Flujos!M6 -> 1926028987 | D6: =+Flujos!N6 -> 368515758.7 | E6: =+Flujos!O6 -> 2294544745 | G6: 2024-07-13 | H6: =IF(G6<CALCULADORA!$C$23,0,IF(CALCULADORA!$C$27>'TIR de Tenencia'!G6,E6,CALCULADORA!$C$33)) -> 2294544745 | I6: 2024-07-13 | J6: 2294544745 | L6: 13 | M6: 8 | N6: 2024 | P6: 5 | Q6: Mayo
A7: =+Flujos!A7 -> 2025-08-13 | B7: =+Flujos!L7 -> 4.057122748e+10 | C7: =+Flujos!M7 -> 1683987834 | D7: =+Flujos!N7 -> 352450750.9 | E7: =+Flujos!O7 -> 2036438585 | G7: 2024-08-13 | H7: =IF(G7<CALCULADORA!$C$23,0,IF(CALCULADORA!$C$27>'TIR de Tenencia'!G7,E7,CALCULADORA!$C$33)) -> 2036438585 | I7: 2024-08-13 | J7: 2036438585 | L7: 13 | M7: 9 | N7: 2024 | P7: 6 | Q7: Junio
A8: =+Flujos!A8 -> 2025-09-13 | B8: =+Flujos!L8 -> 3.895708958e+10 | C8: =+Flujos!M8 -> 1614137901 | D8: =+Flujos!N8 -> 338404608.4 | E8: =+Flujos!O8 -> 1952542509 | G8: 2024-09-13 | H8: =IF(G8<CALCULADORA!$C$23,0,IF(CALCULADORA!$C$27>'TIR de Tenencia'!G8,E8,CALCULADORA!$C$33)) -> 1952542509 | I8: 2024-09-13 | J8: 1952542509 | L8: 13 | M8: 10 | N8: 2024 | P8: 7 | Q8: Julio
A9: =+Flujos!A9 -> 2025-10-13 | B9: =+Flujos!L9 -> 3.74035719e+10 | C9: =+Flujos!M9 -> 1553517682 | D9: =+Flujos!N9 -> 324941084.2 | E9: =+Flujos!O9 -> 1878458766 | G9: 2024-10-13 | H9: =IF(G9<CALCULADORA!$C$23,0,IF(CALCULADORA!$C$27>'TIR de Tenencia'!G9,E9,CALCULADORA!$C$33)) -> 1878458766 | I9: 2024-10-13 | J9: 1878458766 | L9: 13 | M9: 11 | N9: 2024 | P9: 8 | Q9: Agosto
A10: =+Flujos!A10 -> 2025-11-13 | B10: =+Flujos!L10 -> 3.590811352e+10 | C10: =+Flujos!M10 -> 1495458377 | D10: =+Flujos!N10 -> 311983193.2 | E10: =+Flujos!O10 -> 1807441570 | G10: 2024-11-13 | H10: =IF(G10<CALCULADORA!$C$23,0,IF(CALCULADORA!$C$27>'TIR de Tenencia'!G10,E10,CALCULADORA!$C$33)) -> 1807441570 | I10: 2024-11-13 | J10: 1807441570 | L10: 13 | M10: 12 | N10: 2024 | P10: 9 | Q10: Septiembre
A11: =+Flujos!A11 -> 2025-12-13 | B11: =+Flujos!L11 -> 3.446838431e+10 | C11: =+Flujos!M11 -> 1439729207 | D11: =+Flujos!N11 -> 299509574.9 | E11: =+Flujos!O11 -> 1739238782 | G11: 2024-12-13 | H11: =IF(G11<CALCULADORA!$C$23,0,IF(CALCULADORA!$C$27>'TIR de Tenencia'!G11,E11,CALCULADORA!$C$33)) -> 1739238782 | I11: 2024-12-13 | J11: 1739238782 | L11: 13 | M11: =+IF(M10=12,1,M10+1) -> 1 | N11: 2025 | P11: 10 | Q11: Octubre
A12: =+Flujos!A12 -> 2026-01-13 | B12: =+Flujos!L12 -> 3.308260553e+10 | C12: =+Flujos!M12 -> 1385778780 | D12: =+Flujos!N12 -> 287500793.6 | E12: =+Flujos!O12 -> 1673279574 | G12: 2025-01-13 | H12: =IF(G12<CALCULADORA!$C$23,0,IF(CALCULADORA!$C$27>'TIR de Tenencia'!G12,E12,CALCULADORA!$C$33)) -> 1673279574 | I12: 2025-01-13 | J12: 1673279574 | L12: 13 | M12: 2 | N12: 2025 | P12: 11 | Q12: Noviembre
A13: =+Flujos!A13 -> 2026-02-13 | B13: =+Flujos!L13 -> 3.174884458e+10 | C13: =+Flujos!M13 -> 1333760951 | D13: =+Flujos!N13 -> 275942012.7 | E13: =+Flujos!O13 -> 1609702964 | G13: 2025-02-13 | H13: =IF(G13<CALCULADORA!$C$23,0,IF(CALCULADORA!$C$27>'TIR de Tenencia'!G13,E13,CALCULADORA!$C$33)) -> 1609702964 | I13: 2025-02-13 | J13: 1609702964 | L13: 13 | M13: 3 | N13: 2025 | P13: 12 | Q13: Diciembre
A14: =+Flujos!A14 -> 2026-03-13 | B14: =+Flujos!L14 -> 3.046698135e+10 | C14: =+Flujos!M14 -> 1281863226 | D14: =+Flujos!N14 -> 264817112.7 | E14: =+Flujos!O14 -> 1546680339 | G14: 2025-03-13 | H14: =IF(G14<CALCULADORA!$C$23,0,IF(CALCULADORA!$C$27>'TIR de Tenencia'!G14,E14,CALCULADORA!$C$33)) -> 1546680339 | I14: 2025-03-13 | J14: 1546680339 | L14: 13 | M14: 4 | N14: 2025
A15: =+Flujos!A15 -> 2026-04-13 | B15: =+Flujos!L15 -> 2.923525547e+10 | C15: =+Flujos!M15 -> 1231725882 | D15: =+Flujos!N15 -> 254125091.5 | E15: =+Flujos!O15 -> 1485850974 | G15: 2025-04-13 | H15: =IF(G15<CALCULADORA!$C$23,0,IF(CALCULADORA!$C$27>'TIR de Tenencia'!G15,E15,CALCULADORA!$C$33)) -> 50079276847 | I15: 2025-04-13 | J15: 50079276847 | L15: 13 | M15: =+IF(M14=12,1,M14+1) -> 5 | N15: 2025
A16: =+Flujos!A16 -> 2026-05-13 | B16: =+Flujos!L16 -> 2.805349422e+10 | C16: =+Flujos!M16 -> 1181761251 | D16: =+Flujos!N16 -> 243851265.9 | E16: =+Flujos!O16 -> 1425612517 | G16: 2025-05-13 | H16: =IF(G16<CALCULADORA!$C$23,0,IF(CALCULADORA!$C$27>'TIR de Tenencia'!G16,E16,CALCULADORA!$C$33)) -> 50079276847 | L16: 13 | M16: 6 | N16: 2025
A17: =+Flujos!A17 -> 2026-06-13 | B17: =+Flujos!L17 -> 2.691741403e+10 | C17: =+Flujos!M17 -> 1136080196 | D17: =+Flujos!N17 -> 233994195.3 | E17: =+Flujos!O17 -> 1370074391 | G17: 2025-06-13 | H17: =IF(G17<CALCULADORA!$C$23,0,IF(CALCULADORA!$C$27>'TIR de Tenencia'!G17,E17,CALCULADORA!$C$33)) -> 50079276847 | I17: =+IF(H17=H16," ",G17) ->  | L17: 13 | M17: 7 | N17: 2025
A18: =+Flujos!A18 -> 2026-07-13 | B18: =+Flujos!L18 -> 2.582476466e+10 | C18: =+Flujos!M18 -> 1092649370 | D18: =+Flujos!N18 -> 224518150.4 | E18: =+Flujos!O18 -> 1317167521 | G18: 2025-07-13 | H18: =IF(G18<CALCULADORA!$C$23,0,IF(CALCULADORA!$C$27>'TIR de Tenencia'!G18,E18,CALCULADORA!$C$33)) -> 50079276847 | L18: 13 | M18: 8 | N18: 2025
A19: =+Flujos!A19 -> 2026-08-13 | B19: =+Flujos!L19 -> 2.477525726e+10 | C19: =+Flujos!M19 -> 1049507392 | D19: =+Flujos!N19 -> 215404362 | E19: =+Flujos!O19 -> 1264911754 | G19: 2025-08-13 | H19: =IF(G19<CALCULADORA!$C$23,0,IF(CALCULADORA!$C$27>'TIR de Tenencia'!G19,E19,CALCULADORA!$C$33)) -> 50079276847 | L19: 13 | M19: 9 | N19: 2025
A20: =+Flujos!A20 -> 2026-09-13 | B20: =+Flujos!L20 -> 2.376898416e+10 | C20: =+Flujos!M20 -> 1006273102 | D20: =+Flujos!N20 -> 206650420.8 | E20: =+Flujos!O20 -> 1212923523 | G20: 2025-09-13 | H20: =IF(G20<CALCULADORA!$C$23,0,IF(CALCULADORA!$C$27>'TIR de Tenencia'!G20,E20,CALCULADORA!$C$33)) -> 50079276847 | L20: 13 | M20: =+IF(M19=12,1,M19+1) -> 10 | N20: 2025
A21: =+Flujos!A21 -> 2026-10-13 | B21: =+Flujos!L21 -> 2.280249208e+10 | C21: =+Flujos!M21 -> 966492076.1 | D21: =+Flujos!N21 -> 198257096.9 | E21: =+Flujos!O21 -> 1164749173 | G21: 2025-10-13 | H21: =IF(G21<CALCULADORA!$C$23,0,IF(CALCULADORA!$C$27>'TIR de Tenencia'!G21,E21,CALCULADORA!$C$33)) -> 50079276847 | L21: 13 | M21: 11 | N21: 2025
A22: =+Flujos!A22 -> 2026-11-13 | B22: =+Flujos!L22 -> 2.187586491e+10 | C22: =+Flujos!M22 -> 926627175.1 | D22: =+Flujos!N22 -> 190195586.5 | E22: =+Flujos!O22 -> 1116822762 | G22: 2025-11-13 | H22: =IF(G22<CALCULADORA!$C$23,0,IF(CALCULADORA!$C$27>'TIR de Tenencia'!G22,E22,CALCULADORA!$C$33)) -> 50079276847 | L22: 13 | M22: 12 | N22: 2025
A23: =+Flujos!A23 -> 2026-12-13 | B23: =+Flujos!L23 -> 2.098882471e+10 | C23: =+Flujos!M23 -> 887040202.8 | D23: =+Flujos!N23 -> 182466589.2 | E23: =+Flujos!O23 -> 1069506792 | G23: 2025-12-13 | H23: =IF(G23<CALCULADORA!$C$23,0,IF(CALCULADORA!$C$27>'TIR de Tenencia'!G23,E23,CALCULADORA!$C$33)) -> 50079276847 | L23: 13 | M23: 1 | N23: 2026
A24: =+Flujos!A24 -> 2027-01-13 | B24: =+Flujos!L24 -> 2.013828349e+10 | C24: =+Flujos!M24 -> 850541216.9 | D24: =+Flujos!N24 -> 175067786.9 | E24: =+Flujos!O24 -> 1025609004 | G24: 2026-01-13 | H24: =IF(G24<CALCULADORA!$C$23,0,IF(CALCULADORA!$C$27>'TIR de Tenencia'!G24,E24,CALCULADORA!$C$33)) -> 50079276847 | L24: 13 | M24: 2 | N24: 2026
A25: =+Flujos!A25 -> 2027-02-13 | B25: =+Flujos!L25 -> 1.932363279e+10 | C25: =+Flujos!M25 -> 814650696.3 | D25: =+Flujos!N25 -> 167973422.6 | E25: =+Flujos!O25 -> 982624118.8 | G25: 2026-02-13 | H25: =IF(G25<CALCULADORA!$C$23,0,IF(CALCULADORA!$C$27>'TIR de Tenencia'!G25,E25,CALCULADORA!$C$33)) -> 50079276847 | L25: 13 | M25: 3 | N25: 2026
A26: =+Flujos!A26 -> 2027-03-13 | B26: =+Flujos!L26 -> 1.854290379e+10 | C26: =+Flujos!M26 -> 780729002.6 | D26: =+Flujos!N26 -> 161178421.1 | E26: =+Flujos!O26 -> 941907423.8 | G26: 2026-03-13 | H26: =IF(G26<CALCULADORA!$C$23,0,IF(CALCULADORA!$C$27>'TIR de Tenencia'!G26,E26,CALCULADORA!$C$33)) -> 50079276847 | J26: =+IF(H26=H25," ",H26) ->  | L26: 13 | M26: 4 | N26: 2026
A27: =+Flujos!A27 -> 2027-04-13 | B27: =+Flujos!L27 -> 1.779430682e+10 | C27: =+Flujos!M27 -> 748596971.3 | D27: =+Flujos!N27 -> 154666360.5 | E27: =+Flujos!O27 -> 903263331.8 | G27: 2026-04-13 | H27: =IF(G27<CALCULADORA!$C$23,0,IF(CALCULADORA!$C$27>'TIR de Tenencia'!G27,E27,CALCULADORA!$C$33)) -> 50079276847 | L27: 13 | M27: 5 | N27: 2026
A28: =+Flujos!A28 -> 2027-05-13 | B28: =+Flujos!L28 -> 1.707770043e+10 | C28: =+Flujos!M28 -> 716606385.8 | D28: =+Flujos!N28 -> 148422313.2 | E28: =+Flujos!O28 -> 865028699 | G28: 2026-05-13 | H28: =IF(G28<CALCULADORA!$C$23,0,IF(CALCULADORA!$C$27>'TIR de Tenencia'!G28,E28,CALCULADORA!$C$33)) -> 50079276847 | L28: 13 | M28: 6 | N28: 2026
A29: =+Flujos!A29 -> 2027-06-13 | B29: =+Flujos!L29 -> 1.638979565e+10 | C29: =+Flujos!M29 -> 687904788.7 | D29: =+Flujos!N29 -> 142445099.3 | E29: =+Flujos!O29 -> 830349888 | G29: 2026-06-13 | H29: =IF(G29<CALCULADORA!$C$23,0,IF(CALCULADORA!$C$27>'TIR de Tenencia'!G29,E29,CALCULADORA!$C$33)) -> 50079276847 | L29: 13 | M29: 7 | N29: 2026
A30: =+Flujos!A30 -> 2027-07-13 | B30: =+Flujos!L30 -> 1.57298619e+10 | C30: =+Flujos!M30 -> 659933747 | D30: =+Flujos!N30 -> 136707285.5 | E30: =+Flujos!O30 -> 796641032.5 | G30: 2026-07-13 | H30: =IF(G30<CALCULADORA!$C$23,0,IF(CALCULADORA!$C$27>'TIR de Tenencia'!G30,E30,CALCULADORA!$C$33)) -> 50079276847 | L30: 13 | M30: 8 | N30: 2026
A31: =+Flujos!A31 -> 2027-08-13 | B31: =+Flujos!L31 -> 1.509557948e+10 | C31: =+Flujos!M31 -> 634282417.3 | D31: =+Flujos!N31 -> 131202778.1 | E31: =+Flujos!O31 -> 765485195.4 | G31: 2026-08-13 | H31: =IF(G31<CALCULADORA!$C$23,0,IF(CALCULADORA!$C$27>'TIR de Tenencia'!G31,E31,CALCULADORA!$C$33)) -> 50079276847 | L31: 13 | M31: 9 | N31: 2026
A32: =+Flujos!A32 -> 2027-09-13 | B32: =+Flujos!L32 -> 1.448750127e+10 | C32: =+Flujos!M32 -> 608078208 | D32: =+Flujos!N32 -> 125912228.4 | E32: =+Flujos!O32 -> 733990436.5 | G32: 2026-09-13 | H32: =IF(G32<CALCULADORA!$C$23,0,IF(CALCULADORA!$C$27>'TIR de Tenencia'!G32,E32,CALCULADORA!$C$33)) -> 50079276847 | L32: 13 | M32: 10 | N32: 2026
A33: =+Flujos!A33 -> 2027-10-13 | B33: =+Flujos!L33 -> 1.390439694e+10 | C33: =+Flujos!M33 -> 583104329.5 | D33: =+Flujos!N33 -> 120840248.1 | E33: =+Flujos!O33 -> 703944577.6 | G33: 2026-10-13 | H33: =IF(G33<CALCULADORA!$C$23,0,IF(CALCULADORA!$C$27>'TIR de Tenencia'!G33,E33,CALCULADORA!$C$33)) -> 50079276847 | L33: 13 | M33: 11 | N33: 2026
A34: =+Flujos!A34 -> 2027-11-13 | B34: =+Flujos!L34 -> 1.334380782e+10 | C34: =+Flujos!M34 -> 560589127.3 | D34: =+Flujos!N34 -> 115976574.9 | E34: =+Flujos!O34 -> 676565702.2 | G34: 2026-11-13 | H34: =IF(G34<CALCULADORA!$C$23,0,IF(CALCULADORA!$C$27>'TIR de Tenencia'!G34,E34,CALCULADORA!$C$33)) -> 50079276847 | L34: 13 | M34: 12 | N34: 2026
A35: =+Flujos!A35 -> 2027-12-13 | B35: =+Flujos!L35 -> 1.28069667e+10 | C35: =+Flujos!M35 -> 536841112.9 | D35: =+Flujos!N35 -> 111300701 | E35: =+Flujos!O35 -> 648141813.9 | G35: =+DATE(N34,M34,L34) -> 2026-12-13 | H35: =IF(G35<CALCULADORA!$C$23,0,IF(CALCULADORA!$C$27>'TIR de Tenencia'!G35,E35,CALCULADORA!$C$33)) -> 50079276847 | L35: 13 | M35: 1 | N35: 2027
A36: =+Flujos!A36 -> 2028-01-13 | B36: =+Flujos!L36 -> 1.229182735e+10 | C36: =+Flujos!M36 -> 515139348.5 | D36: =+Flujos!N36 -> 106822909.3 | E36: =+Flujos!O36 -> 621962257.8 | G36: 2027-01-13 | H36: =IF(G36<CALCULADORA!$C$23,0,IF(CALCULADORA!$C$27>'TIR de Tenencia'!G36,E36,CALCULADORA!$C$33)) -> 50079276847 | I36: =+IF(IF(H36=H35," ",G36)=CALCULADORA!C27,'TIR de Tenencia'!G36,CALCULADORA!C27) -> 2025-04-01 | L36: 13 | M36: 2 | N36: 2027
A37: =+Flujos!A37 -> 2028-02-13 | B37: =+Flujos!L37 -> 1.179828704e+10 | C37: =+Flujos!M37 -> 493540318.4 | D37: =+Flujos!N37 -> 102526132 | E37: =+Flujos!O37 -> 596066450.4 | G37: 2027-02-13 | H37: =IF(G37<CALCULADORA!$C$23,0,IF(CALCULADORA!$C$27>'TIR de Tenencia'!G37,E37,CALCULADORA!$C$33)) -> 50079276847 | L37: 13 | M37: 3 | N37: 2027
A38: =+Flujos!A38 -> 2028-03-13 | B38: =+Flujos!L38 -> 1.132530997e+10 | C38: =+Flujos!M38 -> 472977069.1 | D38: =+Flujos!N38 -> 98409512.17 | E38: =+Flujos!O38 -> 571386581.2 | G38: 2027-03-13 | H38: =IF(G38<CALCULADORA!$C$23,0,IF(CALCULADORA!$C$27>'TIR de Tenencia'!G38,E38,CALCULADORA!$C$33)) -> 50079276847 | L38: 13 | M38: 4 | N38: 2027
A39: =+Flujos!A39 -> 2028-04-13 | B39: =+Flujos!L39 -> 1.087262864e+10 | C39: =+Flujos!M39 -> 452681326.1 | D39: =+Flujos!N39 -> 94464410.44 | E39: =+Flujos!O39 -> 547145736.5 | G39: 2027-04-13 | H39: =IF(G39<CALCULADORA!$C$23,0,IF(CALCULADORA!$C$27>'TIR de Tenencia'!G39,E39,CALCULADORA!$C$33)) -> 50079276847 | L39: 13 | M39: 5 | N39: 2027
A40: =+Flujos!A40 -> 2028-05-13 | B40: =+Flujos!L40 -> 1.043762606e+10 | C40: =+Flujos!M40 -> 435002579.5 | D40: =+Flujos!N40 -> 90688595.49 | E40: =+Flujos!O40 -> 525691175 | G40: 2027-05-13 | H40: =IF(G40<CALCULADORA!$C$23,0,IF(CALCULADORA!$C$27>'TIR de Tenencia'!G40,E40,CALCULADORA!$C$33)) -> 50079276847 | L40: 13 | M40: 6 | N40: 2027
A41: =+Flujos!A41 -> 2028-06-13 | B41: =+Flujos!L41 -> 1.001979551e+10 | C41: =+Flujos!M41 -> 417830556.5 | D41: =+Flujos!N41 -> 87060238.98 | E41: =+Flujos!O41 -> 504890795.5 | G41: 2027-06-13 | H41: =IF(G41<CALCULADORA!$C$23,0,IF(CALCULADORA!$C$27>'TIR de Tenencia'!G41,E41,CALCULADORA!$C$33)) -> 50079276847 | L41: 13 | M41: 7 | N41: 2027
A42: =+Flujos!A42 -> 2028-07-13 | B42: =+Flujos!L42 -> 9618299711 | C42: =+Flujos!M42 -> 401495793.7 | D42: =+Flujos!N42 -> 83575114.31 | E42: =+Flujos!O42 -> 485070908 | G42: 2027-07-13 | H42: =IF(G42<CALCULADORA!$C$23,0,IF(CALCULADORA!$C$27>'TIR de Tenencia'!G42,E42,CALCULADORA!$C$33)) -> 50079276847 | L42: 13 | M42: 8 | N42: 2027
A43: =+Flujos!A43 -> 2028-08-13 | B43: =+Flujos!L43 -> 9232207619 | C43: =+Flujos!M43 -> 386092092.1 | D43: =+Flujos!N43 -> 80226237.89 | E43: =+Flujos!O43 -> 466318330 | G43: 2027-08-13 | H43: =IF(G43<CALCULADORA!$C$23,0,IF(CALCULADORA!$C$27>'TIR de Tenencia'!G43,E43,CALCULADORA!$C$33)) -> 50079276847 | L43: 13 | M43: 9 | N43: 2027
A44: =+Flujos!A44 -> 2028-09-13 | B44: =+Flujos!L44 -> 8860961386 | C44: =+Flujos!M44 -> 371246233 | D44: =+Flujos!N44 -> 77005843.75 | E44: =+Flujos!O44 -> 448252076.8 | G44: 2027-09-13 | H44: =IF(G44<CALCULADORA!$C$23,0,IF(CALCULADORA!$C$27>'TIR de Tenencia'!G44,E44,CALCULADORA!$C$33)) -> 50079276847 | L44: 13 | M44: 10 | N44: 2027
A45: =+Flujos!A45 -> 2028-10-13 | B45: =+Flujos!L45 -> 8505680668 | C45: =+Flujos!M45 -> 355280718.4 | D45: =+Flujos!N45 -> 73909278.92 | E45: =+Flujos!O45 -> 429189997.3 | G45: 2027-10-13 | H45: =IF(G45<CALCULADORA!$C$23,0,IF(CALCULADORA!$C$27>'TIR de Tenencia'!G45,E45,CALCULADORA!$C$33)) -> 50079276847 | L45: 13 | M45: 11 | N45: 2027
A46: =+Flujos!A46 -> 2028-11-13 | B46: =+Flujos!L46 -> 8164058160 | C46: =+Flujos!M46 -> 341622508.2 | D46: =+Flujos!N46 -> 70945882.45 | E46: =+Flujos!O46 -> 412568390.6 | G46: 2027-11-13 | H46: =IF(G46<CALCULADORA!$C$23,0,IF(CALCULADORA!$C$27>'TIR de Tenencia'!G46,E46,CALCULADORA!$C$33)) -> 50079276847 | L46: 13 | M46: 12 | N46: 2027
A47: =+Flujos!A47 -> 2028-12-13 | B47: =+Flujos!L47 -> 7836034802 | C47: =+Flujos!M47 -> 328023357.8 | D47: =+Flujos!N47 -> 68096409.11 | E47: =+Flujos!O47 -> 396119766.9 | G47: 2027-12-13 | H47: =IF(G47<CALCULADORA!$C$23,0,IF(CALCULADORA!$C$27>'TIR de Tenencia'!G47,E47,CALCULADORA!$C$33)) -> 50079276847 | L47: 13 | M47: 1 | N47: 2028
A48: =+Flujos!A48 -> 2029-01-13 | B48: =+Flujos!L48 -> 7520848276 | C48: =+Flujos!M48 -> 315186526.2 | D48: =+Flujos!N48 -> 65360366.28 | E48: =+Flujos!O48 -> 380546892.5 | G48: 2028-01-13 | H48: =IF(G48<CALCULADORA!$C$23,0,IF(CALCULADORA!$C$27>'TIR de Tenencia'!G48,E48,CALCULADORA!$C$33)) -> 50079276847 | L48: 13 | M48: 2 | N48: 2028
A49: =+Flujos!A49 -> 2029-02-13 | B49: =+Flujos!L49 -> 7217634521 | C49: =+Flujos!M49 -> 303213755 | D49: =+Flujos!N49 -> 62731395.47 | E49: =+Flujos!O49 -> 365945150.5 | G49: 2028-02-13 | H49: =IF(G49<CALCULADORA!$C$23,0,IF(CALCULADORA!$C$27>'TIR de Tenencia'!G49,E49,CALCULADORA!$C$33)) -> 50079276847 | L49: 13 | M49: 3 | N49: 2028
A50: =+Flujos!A50 -> 2029-03-13 | B50: =+Flujos!L50 -> 6925984584 | C50: =+Flujos!M50 -> 291649936.1 | D50: =+Flujos!N50 -> 60202289.54 | E50: =+Flujos!O50 -> 351852225.6 | G50: 2028-03-13 | H50: =IF(G50<CALCULADORA!$C$23,0,IF(CALCULADORA!$C$27>'TIR de Tenencia'!G50,E50,CALCULADORA!$C$33)) -> 50079276847 | L50: 13 | M50: 4 | N50: 2028
A51: =+Flujos!A51 -> 2029-04-13 | B51: =+Flujos!L51 -> 6645590264 | C51: =+Flujos!M51 -> 280394320.2 | D51: =+Flujos!N51 -> 57769637.42 | E51: =+Flujos!O51 -> 338163957.6 | G51: 2028-04-13 | H51: =IF(G51<CALCULADORA!$C$23,0,IF(CALCULADORA!$C$27>'TIR de Tenencia'!G51,E51,CALCULADORA!$C$33)) -> 50079276847 | L51: 13 | M51: 5 | N51: 2028
A52: =+Flujos!A52 -> 2029-05-13 | B52: =+Flujos!L52 -> 6375970148 | C52: =+Flujos!M52 -> 269620116.6 | D52: =+Flujos!N52 -> 55430868.39 | E52: =+Flujos!O52 -> 325050984.9 | G52: 2028-05-13 | H52: =IF(G52<CALCULADORA!$C$23,0,IF(CALCULADORA!$C$27>'TIR de Tenencia'!G52,E52,CALCULADORA!$C$33)) -> 50079276847 | L52: 13 | M52: 6 | N52: 2028
A53: =+Flujos!A53 -> 2029-06-13 | B53: =+Flujos!L53 -> 6116810572 | C53: =+Flujos!M53 -> 259159575.3 | D53: =+Flujos!N53 -> 53181967 | E53: =+Flujos!O53 -> 312341542.3 | G53: 2028-06-13 | H53: =IF(G53<CALCULADORA!$C$23,0,IF(CALCULADORA!$C$27>'TIR de Tenencia'!G53,E53,CALCULADORA!$C$33)) -> 50079276847 | L53: 13 | M53: 7 | N53: 2028
A54: =+Flujos!A54 -> 2029-07-13 | B54: =+Flujos!L54 -> 5867810780 | C54: =+Flujos!M54 -> 248999792.5 | D54: =+Flujos!N54 -> 51020316.98 | E54: =+Flujos!O54 -> 300020109.5 | G54: 2028-07-13 | H54: =IF(G54<CALCULADORA!$C$23,0,IF(CALCULADORA!$C$27>'TIR de Tenencia'!G54,E54,CALCULADORA!$C$33)) -> 50079276847 | L54: 13 | M54: 8 | N54: 2028
A55: =+Flujos!A55 -> 2029-08-13 | B55: =+Flujos!L55 -> 5628776716 | C55: =+Flujos!M55 -> 239034063.6 | D55: =+Flujos!N55 -> 48943409.72 | E55: =+Flujos!O55 -> 287977473.3 | G55: 2028-08-13 | H55: =IF(G55<CALCULADORA!$C$23,0,IF(CALCULADORA!$C$27>'TIR de Tenencia'!G55,E55,CALCULADORA!$C$33)) -> 50079276847 | L55: 13 | M55: 9 | N55: 2028
A56: =+Flujos!A56 -> 2029-09-13 | B56: =+Flujos!L56 -> 5361457452 | C56: =+Flujos!M56 -> 267319264 | D56: =+Flujos!N56 -> 46949626.59 | E56: =+Flujos!O56 -> 314268890.6 | G56: 2028-09-13 | H56: =IF(G56<CALCULADORA!$C$23,0,IF(CALCULADORA!$C$27>'TIR de Tenencia'!G56,E56,CALCULADORA!$C$33)) -> 50079276847 | L56: 13 | M56: 10 | N56: 2028
A57: =+Flujos!A57 -> 2029-10-13 | B57: =+Flujos!L57 -> 5085956166 | C57: =+Flujos!M57 -> 275501286.3 | D57: =+Flujos!N57 -> 44719916.61 | E57: =+Flujos!O57 -> 320221202.9 | G57: 2028-10-13 | H57: =IF(G57<CALCULADORA!$C$23,0,IF(CALCULADORA!$C$27>'TIR de Tenencia'!G57,E57,CALCULADORA!$C$33)) -> 50079276847 | L57: 13 | M57: 11 | N57: 2028
A58: =+Flujos!A58 -> 2029-11-13 | B58: =+Flujos!L58 -> 4820217621 | C58: =+Flujos!M58 -> 265738544.5 | D58: =+Flujos!N58 -> 42421960.38 | E58: =+Flujos!O58 -> 308160504.9 | G58: 2028-11-13 | H58: =IF(G58<CALCULADORA!$C$23,0,IF(CALCULADORA!$C$27>'TIR de Tenencia'!G58,E58,CALCULADORA!$C$33)) -> 50079276847 | L58: 13 | M58: 12 | N58: 2028
A59: =+Flujos!A59 -> 2029-12-13 | B59: =+Flujos!L59 -> 4564126677 | C59: =+Flujos!M59 -> 256090944.7 | D59: =+Flujos!N59 -> 40205435.18 | E59: =+Flujos!O59 -> 296296379.9 | G59: 2028-12-13 | H59: =IF(G59<CALCULADORA!$C$23,0,IF(CALCULADORA!$C$27>'TIR de Tenencia'!G59,E59,CALCULADORA!$C$33)) -> 50079276847 | L59: 13 | M59: 1 | N59: 2029
A60: =+Flujos!A60 -> 2030-01-13 | B60: =+Flujos!L60 -> 4317234676 | C60: =+Flujos!M60 -> 246892001.2 | D60: =+Flujos!N60 -> 38069380.61 | E60: =+Flujos!O60 -> 284961381.8 | G60: 2029-01-13 | H60: =IF(G60<CALCULADORA!$C$23,0,IF(CALCULADORA!$C$27>'TIR de Tenencia'!G60,E60,CALCULADORA!$C$33)) -> 50079276847 | L60: 13 | M60: 2 | N60: 2029
A61: =+Flujos!A61 -> 2030-02-13 | B61: =+Flujos!L61 -> 4079123236 | C61: =+Flujos!M61 -> 238111439.6 | D61: =+Flujos!N61 -> 36010054.43 | E61: =+Flujos!O61 -> 274121494 | G61: 2029-02-13 | H61: =IF(G61<CALCULADORA!$C$23,0,IF(CALCULADORA!$C$27>'TIR de Tenencia'!G61,E61,CALCULADORA!$C$33)) -> 50079276847 | L61: 13 | M61: 3 | N61: 2029
A62: =+Flujos!A62 -> 2030-03-13 | B62: =+Flujos!L62 -> 3886696822 | C62: =+Flujos!M62 -> 192426413.9 | D62: =+Flujos!N62 -> 34023966.91 | E62: =+Flujos!O62 -> 226450380.9 | G62: 2029-03-13 | H62: =IF(G62<CALCULADORA!$C$23,0,IF(CALCULADORA!$C$27>'TIR de Tenencia'!G62,E62,CALCULADORA!$C$33)) -> 50079276847 | L62: 13 | M62: 4 | N62: 2029
A63: =+Flujos!A63 -> 2030-04-13 | B63: =+Flujos!L63 -> 3666013993 | C63: =+Flujos!M63 -> 220682828.9 | D63: =+Flujos!N63 -> 32418938.19 | E63: =+Flujos!O63 -> 253101767.1 | G63: 2029-04-13 | H63: =IF(G63<CALCULADORA!$C$23,0,IF(CALCULADORA!$C$27>'TIR de Tenencia'!G63,E63,CALCULADORA!$C$33)) -> 50079276847 | L63: 13 | M63: 5 | N63: 2029
A64: =+Flujos!A64 -> 2030-05-13 | B64: =+Flujos!L64 -> 3453486883 | C64: =+Flujos!M64 -> 212527110.6 | D64: =+Flujos!N64 -> 30578222.72 | E64: =+Flujos!O64 -> 243105333.3 | G64: 2029-05-13 | H64: =IF(G64<CALCULADORA!$C$23,0,IF(CALCULADORA!$C$27>'TIR de Tenencia'!G64,E64,CALCULADORA!$C$33)) -> 50079276847 | L64: 13 | M64: 6 | N64: 2029
A65: =+Flujos!A65 -> 2030-06-13 | B65: =+Flujos!L65 -> 3249064868 | C65: =+Flujos!M65 -> 204422015 | D65: =+Flujos!N65 -> 28805534.09 | E65: =+Flujos!O65 -> 233227549.1 | G65: 2029-06-13 | H65: =IF(G65<CALCULADORA!$C$23,0,IF(CALCULADORA!$C$27>'TIR de Tenencia'!G65,E65,CALCULADORA!$C$33)) -> 50079276847 | L65: 13 | M65: 7 | N65: 2029
A66: =+Flujos!A66 -> 2030-07-13 | B66: =+Flujos!L66 -> 3052178195 | C66: =+Flujos!M66 -> 196886673.2 | D66: =+Flujos!N66 -> 27100450.06 | E66: =+Flujos!O66 -> 223987123.3 | G66: 2029-07-13 | H66: =IF(G66<CALCULADORA!$C$23,0,IF(CALCULADORA!$C$27>'TIR de Tenencia'!G66,E66,CALCULADORA!$C$33)) -> 50079276847 | L66: 13 | M66: 8 | N66: =+IF(M66=1,N65+1,N65) -> 2029
A67: =+Flujos!A67 -> 2030-08-13 | B67: =+Flujos!L67 -> 2862484415 | C67: =+Flujos!M67 -> 189693779.3 | D67: =+Flujos!N67 -> 25458218.32 | E67: =+Flujos!O67 -> 215151997.6 | G67: =+DATE(N66,M66,L66) -> 2029-08-13 | H67: =IF(G67<CALCULADORA!$C$23,0,IF(CALCULADORA!$C$27>'TIR de Tenencia'!G67,E67,CALCULADORA!$C$33)) -> 50079276847 | L67: =+L66 -> 13 | M67: =+IF(M66=12,1,M66+1) -> 9 | N67: 2029
A68: =+Flujos!A68 -> 2030-09-13 | B68: =+Flujos!L68 -> 2679697164 | C68: =+Flujos!M68 -> 182787251.2 | D68: =+Flujos!N68 -> 23875982.51 | E68: =+Flujos!O68 -> 206663233.7 | G68: 2029-09-13 | H68: =IF(G68<CALCULADORA!$C$23,0,IF(CALCULADORA!$C$27>'TIR de Tenencia'!G68,E68,CALCULADORA!$C$33)) -> 50079276847 | I68: =+IF(H68=H67," ",G68) ->  | J68: =+IF(H68=H67," ",H68) ->  | L68: 13 | M68: 10 | N68: 2029
A69: =+Flujos!A69 -> 2030-10-13 | B69: =+Flujos!L69 -> 2503854656 | C69: =+Flujos!M69 -> 175842507.9 | D69: =+Flujos!N69 -> 22351354.05 | E69: =+Flujos!O69 -> 198193862 | G69: 2029-10-13 | H69: =IF(G69<CALCULADORA!$C$23,0,IF(CALCULADORA!$C$27>'TIR de Tenencia'!G69,E69,CALCULADORA!$C$33)) -> 50079276847 | L69: 13 | M69: 11 | N69: 2029
A70: =+Flujos!A70 -> 2030-11-13 | B70: =+Flujos!L70 -> 2334438753 | C70: =+Flujos!M70 -> 169415903.1 | D70: =+Flujos!N70 -> 20884651.69 | E70: =+Flujos!O70 -> 190300554.8 | G70: 2029-11-13 | H70: =IF(G70<CALCULADORA!$C$23,0,IF(CALCULADORA!$C$27>'TIR de Tenencia'!G70,E70,CALCULADORA!$C$33)) -> 50079276847 | L70: 13 | M70: 12 | N70: 2029
A71: =+Flujos!A71 -> 2030-12-13 | B71: =+Flujos!L71 -> 2171462358 | C71: =+Flujos!M71 -> 162976394.5 | D71: =+Flujos!N71 -> 19471553.64 | E71: =+Flujos!O71 -> 182447948.2 | G71: 2029-12-13 | H71: =IF(G71<CALCULADORA!$C$23,0,IF(CALCULADORA!$C$27>'TIR de Tenencia'!G71,E71,CALCULADORA!$C$33)) -> 50079276847 | L71: 13 | M71: 1 | N71: 2030
A72: =+Flujos!A72 -> 2031-01-13 | B72: =+Flujos!L72 -> 2014559698 | C72: =+Flujos!M72 -> 156902659.9 | D72: =+Flujos!N72 -> 18112167.53 | E72: =+Flujos!O72 -> 175014827.5 | G72: 2030-01-13 | H72: =IF(G72<CALCULADORA!$C$23,0,IF(CALCULADORA!$C$27>'TIR de Tenencia'!G72,E72,CALCULADORA!$C$33)) -> 50079276847 | L72: 13 | M72: 2 | N72: 2030
A73: =+Flujos!A73 -> 2031-02-13 | B73: =+Flujos!L73 -> 1863323310 | C73: =+Flujos!M73 -> 151236388.6 | D73: =+Flujos!N73 -> 16803442.45 | E73: =+Flujos!O73 -> 168039831.1 | G73: 2030-02-13 | H73: =IF(G73<CALCULADORA!$C$23,0,IF(CALCULADORA!$C$27>'TIR de Tenencia'!G73,E73,CALCULADORA!$C$33)) -> 50079276847 | L73: 13 | M73: 3 | N73: 2030
A74: =+Flujos!A74 -> 2031-03-13 | B74: =+Flujos!L74 -> 1755656215 | C74: =+Flujos!M74 -> 107667095.2 | D74: =+Flujos!N74 -> 15541979.73 | E74: =+Flujos!O74 -> 123209074.9 | G74: 2030-03-13 | H74: =IF(G74<CALCULADORA!$C$23,0,IF(CALCULADORA!$C$27>'TIR de Tenencia'!G74,E74,CALCULADORA!$C$33)) -> 50079276847 | L74: 13 | M74: 4 | N74: 2030
A75: =+Flujos!A75 -> 2031-04-13 | B75: =+Flujos!L75 -> 1615735991 | C75: =+Flujos!M75 -> 139920224 | D75: =+Flujos!N75 -> 14643928.49 | E75: =+Flujos!O75 -> 154564152.5 | G75: 2030-04-13 | H75: =IF(G75<CALCULADORA!$C$23,0,IF(CALCULADORA!$C$27>'TIR de Tenencia'!G75,E75,CALCULADORA!$C$33)) -> 50079276847 | L75: 13 | M75: 5 | N75: 2030
A76: =+Flujos!A76 -> 2031-05-13 | B76: =+Flujos!L76 -> 1481040826 | C76: =+Flujos!M76 -> 134695164.5 | D76: =+Flujos!N76 -> 13476853.9 | E76: =+Flujos!O76 -> 148172018.4 | G76: 2030-05-13 | H76: =IF(G76<CALCULADORA!$C$23,0,IF(CALCULADORA!$C$27>'TIR de Tenencia'!G76,E76,CALCULADORA!$C$33)) -> 50079276847 | L76: 13 | M76: 6 | N76: 2030
A77: =+Flujos!A77 -> 2031-06-13 | B77: =+Flujos!L77 -> 1351312644 | C77: =+Flujos!M77 -> 129728181.7 | D77: =+Flujos!N77 -> 12353361.53 | E77: =+Flujos!O77 -> 142081543.2 | G77: 2030-06-13 | H77: =IF(G77<CALCULADORA!$C$23,0,IF(CALCULADORA!$C$27>'TIR de Tenencia'!G77,E77,CALCULADORA!$C$33)) -> 50079276847 | L77: 13 | M77: 7 | N77: 2030
A78: =+Flujos!A78 -> 2031-07-13 | B78: =+Flujos!L78 -> 1226351436 | C78: =+Flujos!M78 -> 124961208.3 | D78: =+Flujos!N78 -> 11271298.77 | E78: =+Flujos!O78 -> 136232507 | G78: 2030-07-13 | H78: =IF(G78<CALCULADORA!$C$23,0,IF(CALCULADORA!$C$27>'TIR de Tenencia'!G78,E78,CALCULADORA!$C$33)) -> 50079276847 | L78: 13 | M78: 8 | N78: 2030
A79: =+Flujos!A79 -> 2031-08-13 | B79: =+Flujos!L79 -> 1106219735 | C79: =+Flujos!M79 -> 120131700.9 | D79: =+Flujos!N79 -> 10228997.33 | E79: =+Flujos!O79 -> 130360698.2 | G79: 2030-08-13 | H79: =IF(G79<CALCULADORA!$C$23,0,IF(CALCULADORA!$C$27>'TIR de Tenencia'!G79,E79,CALCULADORA!$C$33)) -> 50079276847 | L79: 13 | M79: 9 | N79: 2030
A80: =+Flujos!A80 -> 2031-09-13 | B80: =+Flujos!L80 -> 990490722.7 | C80: =+Flujos!M80 -> 115729012.6 | D80: =+Flujos!N80 -> 9226978.812 | E80: =+Flujos!O80 -> 124955991.4 | G80: 2030-09-13 | H80: =IF(G80<CALCULADORA!$C$23,0,IF(CALCULADORA!$C$27>'TIR de Tenencia'!G80,E80,CALCULADORA!$C$33)) -> 50079276847 | L80: 13 | M80: 10 | N80: 2030
A81: =+Flujos!A81 -> 2031-10-13 | B81: =+Flujos!L81 -> 878922699.7 | C81: =+Flujos!M81 -> 111568023 | D81: =+Flujos!N81 -> 8261683.118 | E81: =+Flujos!O81 -> 119829706.1 | G81: 2030-10-13 | H81: =IF(G81<CALCULADORA!$C$23,0,IF(CALCULADORA!$C$27>'TIR de Tenencia'!G81,E81,CALCULADORA!$C$33)) -> 50079276847 | L81: 13 | M81: 11 | N81: 2030
A82: =+Flujos!A82 -> 2031-11-13 | B82: =+Flujos!L82 -> 771470006.7 | C82: =+Flujos!M82 -> 107452693.1 | D82: =+Flujos!N82 -> 7331094.238 | E82: =+Flujos!O82 -> 114783787.3 | G82: 2030-11-13 | H82: =IF(G82<CALCULADORA!$C$23,0,IF(CALCULADORA!$C$27>'TIR de Tenencia'!G82,E82,CALCULADORA!$C$33)) -> 50079276847 | L82: 13 | M82: 12 | N82: 2030
A83: =+Flujos!A83 -> 2031-12-13 | B83: =+Flujos!L83 -> 667989708.8 | C83: =+Flujos!M83 -> 103480297.9 | D83: =+Flujos!N83 -> 6434831.326 | E83: =+Flujos!O83 -> 109915129.2 | G83: 2030-12-13 | H83: =IF(G83<CALCULADORA!$C$23,0,IF(CALCULADORA!$C$27>'TIR de Tenencia'!G83,E83,CALCULADORA!$C$33)) -> 50079276847 | L83: 13 | M83: 1 | N83: 2031
A84: =+Flujos!A84 -> 2032-01-13 | B84: =+Flujos!L84 -> 568467909.6 | C84: =+Flujos!M84 -> 99521799.2 | D84: =+Flujos!N84 -> 5571702.161 | E84: =+Flujos!O84 -> 105093501.4 | G84: 2031-01-13 | H84: =IF(G84<CALCULADORA!$C$23,0,IF(CALCULADORA!$C$27>'TIR de Tenencia'!G84,E84,CALCULADORA!$C$33)) -> 50079276847 | L84: 13 | M84: 2 | N84: 2031
A85: =+Flujos!A85 -> 2032-02-13 | B85: =+Flujos!L85 -> 472483249.3 | C85: =+Flujos!M85 -> 95984660.25 | D85: =+Flujos!N85 -> 4741590.834 | E85: =+Flujos!O85 -> 100726251.1 | G85: 2031-02-13 | H85: =IF(G85<CALCULADORA!$C$23,0,IF(CALCULADORA!$C$27>'TIR de Tenencia'!G85,E85,CALCULADORA!$C$33)) -> 50079276847 | L85: 13 | M85: 3 | N85: 2031
A86: =+Flujos!A86 -> 2032-03-13 | B86: =+Flujos!L86 -> 419320452.8 | C86: =+Flujos!M86 -> 53162796.47 | D86: =+Flujos!N86 -> 3940982.783 | E86: =+Flujos!O86 -> 57103779.25 | G86: 2031-03-13 | H86: =IF(G86<CALCULADORA!$C$23,0,IF(CALCULADORA!$C$27>'TIR de Tenencia'!G86,E86,CALCULADORA!$C$33)) -> 50079276847 | L86: 13 | M86: 4 | N86: 2031
A87: =+Flujos!A87 -> 2032-04-13 | B87: =+Flujos!L87 -> 330701895.6 | C87: =+Flujos!M87 -> 88618557.21 | D87: =+Flujos!N87 -> 3497551.897 | E87: =+Flujos!O87 -> 92116109.11 | G87: 2031-04-13 | H87: =IF(G87<CALCULADORA!$C$23,0,IF(CALCULADORA!$C$27>'TIR de Tenencia'!G87,E87,CALCULADORA!$C$33)) -> 50079276847 | L87: 13 | M87: 5 | N87: 2031
A88: =+Flujos!A88 -> 2032-05-13 | B88: =+Flujos!L88 -> 245281007.3 | C88: =+Flujos!M88 -> 85420888.31 | D88: =+Flujos!N88 -> 2758384.512 | E88: =+Flujos!O88 -> 88179272.82 | G88: 2031-05-13 | H88: =IF(G88<CALCULADORA!$C$23,0,IF(CALCULADORA!$C$27>'TIR de Tenencia'!G88,E88,CALCULADORA!$C$33)) -> 50079276847 | L88: 13 | M88: 6 | N88: 2031
A89: =+Flujos!A89 -> 2032-06-13 | B89: =+Flujos!L89 -> 162869689.8 | C89: =+Flujos!M89 -> 82411317.57 | D89: =+Flujos!N89 -> 2045888.882 | E89: =+Flujos!O89 -> 84457206.46 | G89: 2031-06-13 | H89: =IF(G89<CALCULADORA!$C$23,0,IF(CALCULADORA!$C$27>'TIR de Tenencia'!G89,E89,CALCULADORA!$C$33)) -> 50079276847 | L89: 13 | M89: 7 | N89: 2031
A90: =+Flujos!A90 -> 2032-07-13 | B90: =+Flujos!L90 -> 83400445.95 | C90: =+Flujos!M90 -> 79469243.81 | D90: =+Flujos!N90 -> 1358496.082 | E90: =+Flujos!O90 -> 80827739.89 | G90: 2031-07-13 | H90: =IF(G90<CALCULADORA!$C$23,0,IF(CALCULADORA!$C$27>'TIR de Tenencia'!G90,E90,CALCULADORA!$C$33)) -> 50079276847 | L90: 13 | M90: 8 | N90: 2031
A91: =+Flujos!A91 -> 2032-08-13 | B91: =+Flujos!L91 -> -1.379847527e-05 | C91: =+Flujos!M91 -> 83400445.95 | D91: =+Flujos!N91 -> 695643.1197 | E91: =+Flujos!O91 -> 84096089.07 | G91: 2031-08-13 | H91: =IF(G91<CALCULADORA!$C$23,0,IF(CALCULADORA!$C$27>'TIR de Tenencia'!G91,E91,CALCULADORA!$C$33)) -> 50079276847 | L91: 13 | M91: 9 | N91: 2031
A92: =+Flujos!A92 -> 2032-09-13 | B92: =+Flujos!L92 -> -1.379847527e-05 | C92: =+Flujos!M92 -> 0 | D92: =+Flujos!N92 -> -1.150930822e-07 | E92: =+Flujos!O92 -> -1.150930822e-07 | G92: 2031-09-13 | H92: =IF(G92<CALCULADORA!$C$23,0,IF(CALCULADORA!$C$27>'TIR de Tenencia'!G92,E92,CALCULADORA!$C$33)) -> 50079276847 | L92: 13 | M92: 10 | N92: 2031
A93: =+Flujos!A93 -> 2032-10-13 | B93: =+Flujos!L93 -> -1.379847527e-05 | C93: =+Flujos!M93 -> 0 | D93: =+Flujos!N93 -> -1.150930822e-07 | E93: =+Flujos!O93 -> -1.150930822e-07 | G93: 2031-10-13 | H93: =IF(G93<CALCULADORA!$C$23,0,IF(CALCULADORA!$C$27>'TIR de Tenencia'!G93,E93,CALCULADORA!$C$33)) -> 50079276847 | L93: 13 | M93: 11 | N93: 2031
A94: =+Flujos!A94 -> 2032-11-13 | B94: =+Flujos!L94 -> -1.379847527e-05 | C94: =+Flujos!M94 -> 0 | D94: =+Flujos!N94 -> -1.150930822e-07 | E94: =+Flujos!O94 -> -1.150930822e-07 | G94: 2031-11-13 | H94: =IF(G94<CALCULADORA!$C$23,0,IF(CALCULADORA!$C$27>'TIR de Tenencia'!G94,E94,CALCULADORA!$C$33)) -> 50079276847 | L94: 13 | M94: 12 | N94: 2031
A95: =+Flujos!A95 -> 2032-12-13 | B95: =+Flujos!L95 -> -1.379847527e-05 | C95: =+Flujos!M95 -> 0 | D95: =+Flujos!N95 -> -1.150930822e-07 | E95: =+Flujos!O95 -> -1.150930822e-07 | G95: 2031-12-13 | H95: =IF(G95<CALCULADORA!$C$23,0,IF(CALCULADORA!$C$27>'TIR de Tenencia'!G95,E95,CALCULADORA!$C$33)) -> 50079276847 | L95: 13 | M95: 1 | N95: 2032
A96: =+Flujos!A96 -> 2033-01-13 | B96: =+Flujos!L96 -> -1.379847527e-05 | C96: =+Flujos!M96 -> 0 | D96: =+Flujos!N96 -> -1.150930822e-07 | E96: =+Flujos!O96 -> -1.150930822e-07 | G96: 2032-01-13 | H96: =IF(G96<CALCULADORA!$C$23,0,IF(CALCULADORA!$C$27>'TIR de Tenencia'!G96,E96,CALCULADORA!$C$33)) -> 50079276847 | L96: 13 | M96: 2 | N96: 2032
A97: =+Flujos!A97 -> 2033-02-13 | B97: =+Flujos!L97 -> -1.379847527e-05 | C97: =+Flujos!M97 -> 0 | D97: =+Flujos!N97 -> -1.150930822e-07 | E97: =+Flujos!O97 -> -1.150930822e-07 | G97: 2032-02-13 | H97: =IF(G97<CALCULADORA!$C$23,0,IF(CALCULADORA!$C$27>'TIR de Tenencia'!G97,E97,CALCULADORA!$C$33)) -> 50079276847 | L97: 13 | M97: 3 | N97: 2032
A98: =+Flujos!A98 -> 2033-03-13 | B98: =+Flujos!L98 -> -1.379847527e-05 | C98: =+Flujos!M98 -> 0 | D98: =+Flujos!N98 -> -1.150930822e-07 | E98: =+Flujos!O98 -> -1.150930822e-07 | G98: 2032-03-13 | H98: =IF(G98<CALCULADORA!$C$23,0,IF(CALCULADORA!$C$27>'TIR de Tenencia'!G98,E98,CALCULADORA!$C$33)) -> 50079276847 | L98: 13 | M98: 4 | N98: 2032
A99: =+Flujos!A99 -> 2033-04-13 | B99: =+Flujos!L99 -> -1.379847527e-05 | C99: =+Flujos!M99 -> 0 | D99: =+Flujos!N99 -> -1.150930822e-07 | E99: =+Flujos!O99 -> -1.150930822e-07 | G99: =+DATE(N98,M98,L98) -> 2032-04-13 | H99: =IF(G99<CALCULADORA!$C$23,0,IF(CALCULADORA!$C$27>'TIR de Tenencia'!G99,E99,CALCULADORA!$C$33)) -> 50079276847 | L99: 13 | M99: 5 | N99: 2032
A100: =+Flujos!A100 -> 2033-05-13 | B100: =+Flujos!L100 -> -1.379847527e-05 | C100: =+Flujos!M100 -> 0 | D100: =+Flujos!N100 -> -1.150930822e-07 | E100: =+Flujos!O100 -> -1.150930822e-07 | G100: 2032-05-13 | H100: =IF(G100<CALCULADORA!$C$23,0,IF(CALCULADORA!$C$27>'TIR de Tenencia'!G100,E100,CALCULADORA!$C$33)) -> 50079276847 | L100: 13 | M100: 6 | N100: 2032
A101: =+Flujos!A101 -> 2033-06-13 | B101: =+Flujos!L101 -> -1.379847527e-05 | C101: =+Flujos!M101 -> 0 | D101: =+Flujos!N101 -> -1.150930822e-07 | E101: =+Flujos!O101 -> -1.150930822e-07 | G101: 2032-06-13 | H101: =IF(G101<CALCULADORA!$C$23,0,IF(CALCULADORA!$C$27>'TIR de Tenencia'!G101,E101,CALCULADORA!$C$33)) -> 50079276847 | L101: 13 | M101: 7 | N101: 2032
A102: =+Flujos!A102 -> 2033-07-13 | B102: =+Flujos!L102 -> -1.379847527e-05 | C102: =+Flujos!M102 -> 0 | D102: =+Flujos!N102 -> -1.150930822e-07 | E102: =+Flujos!O102 -> -1.150930822e-07 | G102: 2032-07-13 | H102: =IF(G102<CALCULADORA!$C$23,0,IF(CALCULADORA!$C$27>'TIR de Tenencia'!G102,E102,CALCULADORA!$C$33)) -> 50079276847 | L102: 13 | M102: 8 | N102: 2032
A103: =+Flujos!A103 -> 2033-08-13 | B103: =+Flujos!L103 -> -1.379847527e-05 | C103: =+Flujos!M103 -> 0 | D103: =+Flujos!N103 -> -1.150930822e-07 | E103: =+Flujos!O103 -> -1.150930822e-07 | G103: 2032-08-13 | H103: =IF(G103<CALCULADORA!$C$23,0,IF(CALCULADORA!$C$27>'TIR de Tenencia'!G103,E103,CALCULADORA!$C$33)) -> 50079276847 | L103: 13 | M103: 9 | N103: 2032
A104: =+Flujos!A104 -> 2033-09-13 | B104: =+Flujos!L104 -> -1.379847527e-05 | C104: =+Flujos!M104 -> 0 | D104: =+Flujos!N104 -> -1.150930822e-07 | E104: =+Flujos!O104 -> -1.150930822e-07 | G104: 2032-09-13 | H104: =IF(G104<CALCULADORA!$C$23,0,IF(CALCULADORA!$C$27>'TIR de Tenencia'!G104,E104,CALCULADORA!$C$33)) -> 50079276847 | L104: 13 | M104: 10 | N104: 2032
A105: =+Flujos!A105 -> 2033-10-13 | B105: =+Flujos!L105 -> -1.379847527e-05 | C105: =+Flujos!M105 -> 0 | D105: =+Flujos!N105 -> -1.150930822e-07 | E105: =+Flujos!O105 -> -1.150930822e-07 | G105: 2032-10-13 | H105: =IF(G105<CALCULADORA!$C$23,0,IF(CALCULADORA!$C$27>'TIR de Tenencia'!G105,E105,CALCULADORA!$C$33)) -> 50079276847 | L105: 13 | M105: 11 | N105: 2032
A106: =+Flujos!A106 -> 2033-11-13 | B106: =+Flujos!L106 -> -1.379847527e-05 | C106: =+Flujos!M106 -> 0 | D106: =+Flujos!N106 -> -1.150930822e-07 | E106: =+Flujos!O106 -> -1.150930822e-07 | G106: 2032-11-13 | H106: =IF(G106<CALCULADORA!$C$23,0,IF(CALCULADORA!$C$27>'TIR de Tenencia'!G106,E106,CALCULADORA!$C$33)) -> 50079276847 | L106: 13 | M106: 12 | N106: 2032
A107: =+Flujos!A107 -> 2033-12-13 | B107: =+Flujos!L107 -> -1.379847527e-05 | C107: =+Flujos!M107 -> 0 | D107: =+Flujos!N107 -> -1.150930822e-07 | E107: =+Flujos!O107 -> -1.150930822e-07 | G107: 2032-12-13 | H107: =IF(G107<CALCULADORA!$C$23,0,IF(CALCULADORA!$C$27>'TIR de Tenencia'!G107,E107,CALCULADORA!$C$33)) -> 50079276847 | L107: 13 | M107: 1 | N107: 2033
A108: =+Flujos!A108 -> 2034-01-13 | B108: =+Flujos!L108 -> -1.379847527e-05 | C108: =+Flujos!M108 -> 0 | D108: =+Flujos!N108 -> -1.150930822e-07 | E108: =+Flujos!O108 -> -1.150930822e-07 | G108: 2033-01-13 | H108: =IF(G108<CALCULADORA!$C$23,0,IF(CALCULADORA!$C$27>'TIR de Tenencia'!G108,E108,CALCULADORA!$C$33)) -> 50079276847 | L108: 13 | M108: 2 | N108: 2033
A109: =+Flujos!A109 -> 2034-02-13 | B109: =+Flujos!L109 -> -1.379847527e-05 | C109: =+Flujos!M109 -> 0 | D109: =+Flujos!N109 -> -1.150930822e-07 | E109: =+Flujos!O109 -> -1.150930822e-07 | G109: 2033-02-13 | H109: =IF(G109<CALCULADORA!$C$23,0,IF(CALCULADORA!$C$27>'TIR de Tenencia'!G109,E109,CALCULADORA!$C$33)) -> 50079276847 | L109: 13 | M109: 3 | N109: 2033
A110: =+Flujos!A110 -> 2034-03-13 | B110: =+Flujos!L110 -> -1.379847527e-05 | C110: =+Flujos!M110 -> 0 | D110: =+Flujos!N110 -> -1.150930822e-07 | E110: =+Flujos!O110 -> -1.150930822e-07 | G110: 2033-03-13 | H110: =IF(G110<CALCULADORA!$C$23,0,IF(CALCULADORA!$C$27>'TIR de Tenencia'!G110,E110,CALCULADORA!$C$33)) -> 50079276847 | L110: 13 | M110: 4 | N110: 2033
A111: =+Flujos!A111 -> 2034-04-13 | B111: =+Flujos!L111 -> -1.379847527e-05 | C111: =+Flujos!M111 -> 0 | D111: =+Flujos!N111 -> -1.150930822e-07 | E111: =+Flujos!O111 -> -1.150930822e-07 | G111: 2033-04-13 | H111: =IF(G111<CALCULADORA!$C$23,0,IF(CALCULADORA!$C$27>'TIR de Tenencia'!G111,E111,CALCULADORA!$C$33)) -> 50079276847 | L111: 13 | M111: 5 | N111: =+IF(M111=1,N110+1,N110) -> 2033
A112: =+Flujos!A112 -> 2034-05-13 | B112: =+Flujos!L112 -> -1.379847527e-05 | C112: =+Flujos!M112 -> 0 | D112: =+Flujos!N112 -> -1.150930822e-07 | E112: =+Flujos!O112 -> -1.150930822e-07 | G112: 2033-05-13 | H112: =IF(G112<CALCULADORA!$C$23,0,IF(CALCULADORA!$C$27>'TIR de Tenencia'!G112,E112,CALCULADORA!$C$33)) -> 50079276847 | L112: 13 | M112: 6 | N112: 2033
A113: =+Flujos!A113 -> 2034-06-13 | B113: =+Flujos!L113 -> -1.379847527e-05 | C113: =+Flujos!M113 -> 0 | D113: =+Flujos!N113 -> -1.150930822e-07 | E113: =+Flujos!O113 -> -1.150930822e-07 | G113: 2033-06-13 | H113: =IF(G113<CALCULADORA!$C$23,0,IF(CALCULADORA!$C$27>'TIR de Tenencia'!G113,E113,CALCULADORA!$C$33)) -> 50079276847 | L113: 13 | M113: 7 | N113: 2033
A114: =+Flujos!A114 -> 2034-07-13 | B114: =+Flujos!L114 -> -1.379847527e-05 | C114: =+Flujos!M114 -> 0 | D114: =+Flujos!N114 -> -1.150930822e-07 | E114: =+Flujos!O114 -> -1.150930822e-07 | G114: 2033-07-13 | H114: =IF(G114<CALCULADORA!$C$23,0,IF(CALCULADORA!$C$27>'TIR de Tenencia'!G114,E114,CALCULADORA!$C$33)) -> 50079276847 | L114: 13 | M114: 8 | N114: 2033
A115: =+Flujos!A115 -> 2034-08-13 | B115: =+Flujos!L115 -> -1.379847527e-05 | C115: =+Flujos!M115 -> 0 | D115: =+Flujos!N115 -> -1.150930822e-07 | E115: =+Flujos!O115 -> -1.150930822e-07 | G115: 2033-08-13 | H115: =IF(G115<CALCULADORA!$C$23,0,IF(CALCULADORA!$C$27>'TIR de Tenencia'!G115,E115,CALCULADORA!$C$33)) -> 50079276847 | L115: 13 | M115: 9 | N115: 2033
A116: =+Flujos!A116 -> 2034-09-13 | B116: =+Flujos!L116 -> -1.379847527e-05 | C116: =+Flujos!M116 -> 0 | D116: =+Flujos!N116 -> -1.150930822e-07 | E116: =+Flujos!O116 -> -1.150930822e-07 | G116: 2033-09-13 | H116: =IF(G116<CALCULADORA!$C$23,0,IF(CALCULADORA!$C$27>'TIR de Tenencia'!G116,E116,CALCULADORA!$C$33)) -> 50079276847 | L116: 13 | M116: 10 | N116: 2033
A117: =+Flujos!A117 -> 2034-10-13 | B117: =+Flujos!L117 -> -1.379847527e-05 | C117: =+Flujos!M117 -> 0 | D117: =+Flujos!N117 -> -1.150930822e-07 | E117: =+Flujos!O117 -> -1.150930822e-07 | G117: 2033-10-13 | H117: =IF(G117<CALCULADORA!$C$23,0,IF(CALCULADORA!$C$27>'TIR de Tenencia'!G117,E117,CALCULADORA!$C$33)) -> 50079276847 | L117: 13 | M117: 11 | N117: 2033
A118: =+Flujos!A118 -> 2034-11-13 | B118: =+Flujos!L118 -> -1.379847527e-05 | C118: =+Flujos!M118 -> 0 | D118: =+Flujos!N118 -> -1.150930822e-07 | E118: =+Flujos!O118 -> -1.150930822e-07 | G118: 2033-11-13 | H118: =IF(G118<CALCULADORA!$C$23,0,IF(CALCULADORA!$C$27>'TIR de Tenencia'!G118,E118,CALCULADORA!$C$33)) -> 50079276847 | L118: 13 | M118: 12 | N118: 2033
A119: =+Flujos!A119 -> 2034-12-13 | B119: =+Flujos!L119 -> -1.379847527e-05 | C119: =+Flujos!M119 -> 0 | D119: =+Flujos!N119 -> -1.150930822e-07 | E119: =+Flujos!O119 -> -1.150930822e-07 | G119: 2033-12-13 | H119: =IF(G119<CALCULADORA!$C$23,0,IF(CALCULADORA!$C$27>'TIR de Tenencia'!G119,E119,CALCULADORA!$C$33)) -> 50079276847 | L119: 13 | M119: 1 | N119: 2034
A120: =+Flujos!A120 -> 2035-01-13 | B120: =+Flujos!L120 -> -1.379847527e-05 | C120: =+Flujos!M120 -> 0 | D120: =+Flujos!N120 -> -1.150930822e-07 | E120: =+Flujos!O120 -> -1.150930822e-07 | G120: 2034-01-13 | H120: =IF(G120<CALCULADORA!$C$23,0,IF(CALCULADORA!$C$27>'TIR de Tenencia'!G120,E120,CALCULADORA!$C$33)) -> 50079276847 | L120: 13 | M120: 2 | N120: 2034
A121: =+Flujos!A121 -> 2035-02-13 | B121: =+Flujos!L121 -> -1.379847527e-05 | C121: =+Flujos!M121 -> 0 | D121: =+Flujos!N121 -> -1.150930822e-07 | E121: =+Flujos!O121 -> -1.150930822e-07 | G121: 2034-02-13 | H121: =IF(G121<CALCULADORA!$C$23,0,IF(CALCULADORA!$C$27>'TIR de Tenencia'!G121,E121,CALCULADORA!$C$33)) -> 50079276847 | L121: 13 | M121: 3 | N121: 2034
A122: =+Flujos!A122 -> 2035-03-13 | B122: =+Flujos!L122 -> -1.379847527e-05 | C122: =+Flujos!M122 -> 0 | D122: =+Flujos!N122 -> -1.150930822e-07 | E122: =+Flujos!O122 -> -1.150930822e-07 | G122: 2034-03-13 | H122: =IF(G122<CALCULADORA!$C$23,0,IF(CALCULADORA!$C$27>'TIR de Tenencia'!G122,E122,CALCULADORA!$C$33)) -> 50079276847 | L122: 13 | M122: 4 | N122: 2034
A123: =+Flujos!A123 -> 2035-04-13 | B123: =+Flujos!L123 -> -1.379847527e-05 | C123: =+Flujos!M123 -> 0 | D123: =+Flujos!N123 -> -1.150930822e-07 | E123: =+Flujos!O123 -> -1.150930822e-07 | G123: 2034-04-13 | H123: =IF(G123<CALCULADORA!$C$23,0,IF(CALCULADORA!$C$27>'TIR de Tenencia'!G123,E123,CALCULADORA!$C$33)) -> 50079276847 | L123: 13 | M123: 5 | N123: 2034
A124: =+Flujos!A124 -> 2035-05-13 | B124: =+Flujos!L124 -> -1.379847527e-05 | C124: =+Flujos!M124 -> 0 | D124: =+Flujos!N124 -> -1.150930822e-07 | E124: =+Flujos!O124 -> -1.150930822e-07 | G124: 2034-05-13 | H124: =IF(G124<CALCULADORA!$C$23,0,IF(CALCULADORA!$C$27>'TIR de Tenencia'!G124,E124,CALCULADORA!$C$33)) -> 50079276847 | L124: 13 | M124: 6 | N124: 2034
A125: =+Flujos!A125 -> 2035-06-13 | B125: =+Flujos!L125 -> -1.379847527e-05 | C125: =+Flujos!M125 -> 0 | D125: =+Flujos!N125 -> -1.150930822e-07 | E125: =+Flujos!O125 -> -1.150930822e-07 | G125: 2034-06-13 | H125: =IF(G125<CALCULADORA!$C$23,0,IF(CALCULADORA!$C$27>'TIR de Tenencia'!G125,E125,CALCULADORA!$C$33)) -> 50079276847 | L125: 13 | M125: 7 | N125: 2034
A126: =+Flujos!A126 -> 2035-07-13 | B126: =+Flujos!L126 -> -1.379847527e-05 | C126: =+Flujos!M126 -> 0 | D126: =+Flujos!N126 -> -1.150930822e-07 | E126: =+Flujos!O126 -> -1.150930822e-07 | G126: 2034-07-13 | H126: =IF(G126<CALCULADORA!$C$23,0,IF(CALCULADORA!$C$27>'TIR de Tenencia'!G126,E126,CALCULADORA!$C$33)) -> 50079276847 | L126: 13 | M126: 8 | N126: 2034
A127: =+Flujos!A127 -> 2035-08-13 | B127: =+Flujos!L127 -> -1.379847527e-05 | C127: =+Flujos!M127 -> 0 | D127: =+Flujos!N127 -> -1.150930822e-07 | E127: =+Flujos!O127 -> -1.150930822e-07 | G127: 2034-08-13 | H127: =IF(G127<CALCULADORA!$C$23,0,IF(CALCULADORA!$C$27>'TIR de Tenencia'!G127,E127,CALCULADORA!$C$33)) -> 50079276847 | L127: 13 | M127: 9 | N127: 2034
A128: =+Flujos!A128 -> 2035-09-13 | B128: =+Flujos!L128 -> -1.379847527e-05 | C128: =+Flujos!M128 -> 0 | D128: =+Flujos!N128 -> -1.150930822e-07 | E128: =+Flujos!O128 -> -1.150930822e-07 | G128: 2034-09-13 | H128: =IF(G128<CALCULADORA!$C$23,0,IF(CALCULADORA!$C$27>'TIR de Tenencia'!G128,E128,CALCULADORA!$C$33)) -> 50079276847 | L128: 13 | M128: 10 | N128: 2034
A129: =+Flujos!A129 -> 2035-10-13 | B129: =+Flujos!L129 -> -1.379847527e-05 | C129: =+Flujos!M129 -> 0 | D129: =+Flujos!N129 -> -1.150930822e-07 | E129: =+Flujos!O129 -> -1.150930822e-07 | G129: 2034-10-13 | H129: =IF(G129<CALCULADORA!$C$23,0,IF(CALCULADORA!$C$27>'TIR de Tenencia'!G129,E129,CALCULADORA!$C$33)) -> 50079276847 | L129: 13 | M129: 11 | N129: 2034
A130: =+Flujos!A130 -> 2035-11-13 | B130: =+Flujos!L130 -> -1.379847527e-05 | C130: =+Flujos!M130 -> 0 | D130: =+Flujos!N130 -> -1.150930822e-07 | E130: =+Flujos!O130 -> -1.150930822e-07 | G130: 2034-11-13 | H130: =IF(G130<CALCULADORA!$C$23,0,IF(CALCULADORA!$C$27>'TIR de Tenencia'!G130,E130,CALCULADORA!$C$33)) -> 50079276847 | L130: 13 | M130: 12 | N130: 2034
A131: =+Flujos!A131 -> 2035-12-13 | B131: =+Flujos!L131 -> -1.379847527e-05 | C131: =+Flujos!M131 -> 0 | D131: =+Flujos!N131 -> -1.150930822e-07 | E131: =+Flujos!O131 -> -1.150930822e-07 | G131: =+DATE(N130,M130,L130) -> 2034-12-13 | H131: =IF(G131<CALCULADORA!$C$23,0,IF(CALCULADORA!$C$27>'TIR de Tenencia'!G131,E131,CALCULADORA!$C$33)) -> 50079276847 | L131: =+L130 -> 13 | M131: =+IF(M130=12,1,M130+1) -> 1 | N131: =+IF(M131=1,N130+1,N130) -> 2035
A132: =+Flujos!A132 -> 2036-01-13 | B132: =+Flujos!L132 -> -1.379847527e-05 | C132: =+Flujos!M132 -> 0 | D132: =+Flujos!N132 -> -1.150930822e-07 | E132: =+Flujos!O132 -> -1.150930822e-07 | G132: 2035-01-13 | H132: =IF(G132<CALCULADORA!$C$23,0,IF(CALCULADORA!$C$27>'TIR de Tenencia'!G132,E132,CALCULADORA!$C$33)) -> 50079276847 | I132: =+IF(H132=H131," ",G132) ->  | J132: =+IF(H132=H131," ",H132) ->  | L132: 13 | M132: 2 | N132: 2035
A133: =+Flujos!A133 -> 2036-02-13 | B133: =+Flujos!L133 -> -1.379847527e-05 | C133: =+Flujos!M133 -> 0 | D133: =+Flujos!N133 -> -1.150930822e-07 | E133: =+Flujos!O133 -> -1.150930822e-07 | G133: 2035-02-13 | H133: =IF(G133<CALCULADORA!$C$23,0,IF(CALCULADORA!$C$27>'TIR de Tenencia'!G133,E133,CALCULADORA!$C$33)) -> 50079276847 | L133: 13 | M133: 3 | N133: 2035
A134: =+Flujos!A134 -> 2036-03-13 | B134: =+Flujos!L134 -> -1.379847527e-05 | C134: =+Flujos!M134 -> 0 | D134: =+Flujos!N134 -> -1.150930822e-07 | E134: =+Flujos!O134 -> -1.150930822e-07 | G134: 2035-03-13 | H134: =IF(G134<CALCULADORA!$C$23,0,IF(CALCULADORA!$C$27>'TIR de Tenencia'!G134,E134,CALCULADORA!$C$33)) -> 50079276847 | L134: 13 | M134: 4 | N134: 2035
A135: =+Flujos!A135 -> 2036-04-13 | B135: =+Flujos!L135 -> -1.379847527e-05 | C135: =+Flujos!M135 -> 0 | D135: =+Flujos!N135 -> -1.150930822e-07 | E135: =+Flujos!O135 -> -1.150930822e-07 | G135: 2035-04-13 | H135: =IF(G135<CALCULADORA!$C$23,0,IF(CALCULADORA!$C$27>'TIR de Tenencia'!G135,E135,CALCULADORA!$C$33)) -> 50079276847 | L135: 13 | M135: 5 | N135: 2035
A136: =+Flujos!A136 -> 2036-05-13 | B136: =+Flujos!L136 -> -1.379847527e-05 | C136: =+Flujos!M136 -> 0 | D136: =+Flujos!N136 -> -1.150930822e-07 | E136: =+Flujos!O136 -> -1.150930822e-07 | G136: 2035-05-13 | H136: =IF(G136<CALCULADORA!$C$23,0,IF(CALCULADORA!$C$27>'TIR de Tenencia'!G136,E136,CALCULADORA!$C$33)) -> 50079276847 | L136: 13 | M136: 6 | N136: 2035
A137: =+Flujos!A137 -> 2036-06-13 | B137: =+Flujos!L137 -> -1.379847527e-05 | C137: =+Flujos!M137 -> 0 | D137: =+Flujos!N137 -> -1.150930822e-07 | E137: =+Flujos!O137 -> -1.150930822e-07 | G137: 2035-06-13 | H137: =IF(G137<CALCULADORA!$C$23,0,IF(CALCULADORA!$C$27>'TIR de Tenencia'!G137,E137,CALCULADORA!$C$33)) -> 50079276847 | L137: 13 | M137: 7 | N137: 2035
A138: =+Flujos!A138 -> 2036-07-13 | B138: =+Flujos!L138 -> -1.379847527e-05 | C138: =+Flujos!M138 -> 0 | D138: =+Flujos!N138 -> -1.150930822e-07 | E138: =+Flujos!O138 -> -1.150930822e-07 | G138: 2035-07-13 | H138: =IF(G138<CALCULADORA!$C$23,0,IF(CALCULADORA!$C$27>'TIR de Tenencia'!G138,E138,CALCULADORA!$C$33)) -> 50079276847 | L138: 13 | M138: 8 | N138: 2035
A139: =+Flujos!A139 -> 2036-08-13 | B139: =+Flujos!L139 -> -1.379847527e-05 | C139: =+Flujos!M139 -> 0 | D139: =+Flujos!N139 -> -1.150930822e-07 | E139: =+Flujos!O139 -> -1.150930822e-07 | G139: 2035-08-13 | H139: =IF(G139<CALCULADORA!$C$23,0,IF(CALCULADORA!$C$27>'TIR de Tenencia'!G139,E139,CALCULADORA!$C$33)) -> 50079276847 | L139: 13 | M139: 9 | N139: 2035
A140: =+Flujos!A140 -> 2036-09-13 | B140: =+Flujos!L140 -> -1.379847527e-05 | C140: =+Flujos!M140 -> 0 | D140: =+Flujos!N140 -> -1.150930822e-07 | E140: =+Flujos!O140 -> -1.150930822e-07 | G140: 2035-09-13 | H140: =IF(G140<CALCULADORA!$C$23,0,IF(CALCULADORA!$C$27>'TIR de Tenencia'!G140,E140,CALCULADORA!$C$33)) -> 50079276847 | L140: 13 | M140: 10 | N140: 2035
A141: =+Flujos!A141 -> 2036-10-13 | B141: =+Flujos!L141 -> -1.379847527e-05 | C141: =+Flujos!M141 -> 0 | D141: =+Flujos!N141 -> -1.150930822e-07 | E141: =+Flujos!O141 -> -1.150930822e-07 | G141: 2035-10-13 | H141: =IF(G141<CALCULADORA!$C$23,0,IF(CALCULADORA!$C$27>'TIR de Tenencia'!G141,E141,CALCULADORA!$C$33)) -> 50079276847 | L141: 13 | M141: 11 | N141: 2035
A142: =+Flujos!A142 -> 2036-11-13 | B142: =+Flujos!L142 -> -1.379847527e-05 | C142: =+Flujos!M142 -> 0 | D142: =+Flujos!N142 -> -1.150930822e-07 | E142: =+Flujos!O142 -> -1.150930822e-07 | G142: 2035-11-13 | H142: =IF(G142<CALCULADORA!$C$23,0,IF(CALCULADORA!$C$27>'TIR de Tenencia'!G142,E142,CALCULADORA!$C$33)) -> 50079276847 | L142: 13 | M142: 12 | N142: 2035
A143: =+Flujos!A143 -> 2036-12-13 | B143: =+Flujos!L143 -> -1.379847527e-05 | C143: =+Flujos!M143 -> 0 | D143: =+Flujos!N143 -> -1.150930822e-07 | E143: =+Flujos!O143 -> -1.150930822e-07 | G143: 2035-12-13 | H143: =IF(G143<CALCULADORA!$C$23,0,IF(CALCULADORA!$C$27>'TIR de Tenencia'!G143,E143,CALCULADORA!$C$33)) -> 50079276847 | L143: 13 | M143: 1 | N143: 2036
A144: =+Flujos!A144 -> 2037-01-13 | B144: =+Flujos!L144 -> -1.379847527e-05 | C144: =+Flujos!M144 -> 0 | D144: =+Flujos!N144 -> -1.150930822e-07 | E144: =+Flujos!O144 -> -1.150930822e-07 | G144: 2036-01-13 | H144: =IF(G144<CALCULADORA!$C$23,0,IF(CALCULADORA!$C$27>'TIR de Tenencia'!G144,E144,CALCULADORA!$C$33)) -> 50079276847 | L144: 13 | M144: 2 | N144: 2036
A145: =+Flujos!A145 -> 2037-02-13 | B145: =+Flujos!L145 -> -1.379847527e-05 | C145: =+Flujos!M145 -> 0 | D145: =+Flujos!N145 -> -1.150930822e-07 | E145: =+Flujos!O145 -> -1.150930822e-07 | G145: 2036-02-13 | H145: =IF(G145<CALCULADORA!$C$23,0,IF(CALCULADORA!$C$27>'TIR de Tenencia'!G145,E145,CALCULADORA!$C$33)) -> 50079276847 | L145: 13 | M145: 3 | N145: 2036
A146: =+Flujos!A146 -> 2037-03-13 | B146: =+Flujos!L146 -> -1.379847527e-05 | C146: =+Flujos!M146 -> 0 | D146: =+Flujos!N146 -> -1.150930822e-07 | E146: =+Flujos!O146 -> -1.150930822e-07 | G146: 2036-03-13 | H146: =IF(G146<CALCULADORA!$C$23,0,IF(CALCULADORA!$C$27>'TIR de Tenencia'!G146,E146,CALCULADORA!$C$33)) -> 50079276847 | L146: 13 | M146: 4 | N146: 2036
A147: =+Flujos!A147 -> 2037-04-13 | B147: =+Flujos!L147 -> -1.379847527e-05 | C147: =+Flujos!M147 -> 0 | D147: =+Flujos!N147 -> -1.150930822e-07 | E147: =+Flujos!O147 -> -1.150930822e-07 | G147: 2036-04-13 | H147: =IF(G147<CALCULADORA!$C$23,0,IF(CALCULADORA!$C$27>'TIR de Tenencia'!G147,E147,CALCULADORA!$C$33)) -> 50079276847 | L147: 13 | M147: 5 | N147: 2036
A148: =+Flujos!A148 -> 2037-05-13 | B148: =+Flujos!L148 -> -1.379847527e-05 | C148: =+Flujos!M148 -> 0 | D148: =+Flujos!N148 -> -1.150930822e-07 | E148: =+Flujos!O148 -> -1.150930822e-07 | G148: 2036-05-13 | H148: =IF(G148<CALCULADORA!$C$23,0,IF(CALCULADORA!$C$27>'TIR de Tenencia'!G148,E148,CALCULADORA!$C$33)) -> 50079276847 | L148: 13 | M148: 6 | N148: 2036
A149: =+Flujos!A149 -> 2037-06-13 | B149: =+Flujos!L149 -> -1.379847527e-05 | C149: =+Flujos!M149 -> 0 | D149: =+Flujos!N149 -> -1.150930822e-07 | E149: =+Flujos!O149 -> -1.150930822e-07 | G149: 2036-06-13 | H149: =IF(G149<CALCULADORA!$C$23,0,IF(CALCULADORA!$C$27>'TIR de Tenencia'!G149,E149,CALCULADORA!$C$33)) -> 50079276847 | L149: 13 | M149: 7 | N149: 2036
A150: =+Flujos!A150 -> 2037-07-13 | B150: =+Flujos!L150 -> -1.379847527e-05 | C150: =+Flujos!M150 -> 0 | D150: =+Flujos!N150 -> -1.150930822e-07 | E150: =+Flujos!O150 -> -1.150930822e-07 | G150: 2036-07-13 | H150: =IF(G150<CALCULADORA!$C$23,0,IF(CALCULADORA!$C$27>'TIR de Tenencia'!G150,E150,CALCULADORA!$C$33)) -> 50079276847 | L150: 13 | M150: 8 | N150: 2036
A151: =+Flujos!A151 -> 2037-08-13 | B151: =+Flujos!L151 -> -1.379847527e-05 | C151: =+Flujos!M151 -> 0 | D151: =+Flujos!N151 -> -1.150930822e-07 | E151: =+Flujos!O151 -> -1.150930822e-07 | G151: 2036-08-13 | H151: =IF(G151<CALCULADORA!$C$23,0,IF(CALCULADORA!$C$27>'TIR de Tenencia'!G151,E151,CALCULADORA!$C$33)) -> 50079276847 | L151: 13 | M151: 9 | N151: 2036
A152: =+Flujos!A152 -> 2037-09-13 | B152: =+Flujos!L152 -> -1.379847527e-05 | C152: =+Flujos!M152 -> 0 | D152: =+Flujos!N152 -> -1.150930822e-07 | E152: =+Flujos!O152 -> -1.150930822e-07 | G152: 2036-09-13 | H152: =IF(G152<CALCULADORA!$C$23,0,IF(CALCULADORA!$C$27>'TIR de Tenencia'!G152,E152,CALCULADORA!$C$33)) -> 50079276847 | L152: 13 | M152: 10 | N152: 2036
A153: =+Flujos!A153 -> 2037-10-13 | B153: =+Flujos!L153 -> -1.379847527e-05 | C153: =+Flujos!M153 -> 0 | D153: =+Flujos!N153 -> -1.150930822e-07 | E153: =+Flujos!O153 -> -1.150930822e-07 | G153: 2036-10-13 | H153: =IF(G153<CALCULADORA!$C$23,0,IF(CALCULADORA!$C$27>'TIR de Tenencia'!G153,E153,CALCULADORA!$C$33)) -> 50079276847 | L153: 13 | M153: 11 | N153: 2036
A154: =+Flujos!A154 -> 2037-11-13 | B154: =+Flujos!L154 -> -1.379847527e-05 | C154: =+Flujos!M154 -> 0 | D154: =+Flujos!N154 -> -1.150930822e-07 | E154: =+Flujos!O154 -> -1.150930822e-07 | G154: 2036-11-13 | H154: =IF(G154<CALCULADORA!$C$23,0,IF(CALCULADORA!$C$27>'TIR de Tenencia'!G154,E154,CALCULADORA!$C$33)) -> 50079276847 | L154: 13 | M154: 12 | N154: 2036
A155: =+Flujos!A155 -> 2037-12-13 | B155: =+Flujos!L155 -> -1.379847527e-05 | C155: =+Flujos!M155 -> 0 | D155: =+Flujos!N155 -> -1.150930822e-07 | E155: =+Flujos!O155 -> -1.150930822e-07 | G155: 2036-12-13 | H155: =IF(G155<CALCULADORA!$C$23,0,IF(CALCULADORA!$C$27>'TIR de Tenencia'!G155,E155,CALCULADORA!$C$33)) -> 50079276847 | L155: 13 | M155: 1 | N155: 2037
A156: =+Flujos!A156 -> 2038-01-13 | B156: =+Flujos!L156 -> -1.379847527e-05 | C156: =+Flujos!M156 -> 0 | D156: =+Flujos!N156 -> -1.150930822e-07 | E156: =+Flujos!O156 -> -1.150930822e-07 | G156: 2037-01-13 | H156: =IF(G156<CALCULADORA!$C$23,0,IF(CALCULADORA!$C$27>'TIR de Tenencia'!G156,E156,CALCULADORA!$C$33)) -> 50079276847 | L156: 13 | M156: 2 | N156: 2037
A157: =+Flujos!A157 -> 2038-02-13 | B157: =+Flujos!L157 -> -1.379847527e-05 | C157: =+Flujos!M157 -> 0 | D157: =+Flujos!N157 -> -1.150930822e-07 | E157: =+Flujos!O157 -> -1.150930822e-07 | G157: 2037-02-13 | H157: =IF(G157<CALCULADORA!$C$23,0,IF(CALCULADORA!$C$27>'TIR de Tenencia'!G157,E157,CALCULADORA!$C$33)) -> 50079276847 | L157: 13 | M157: 3 | N157: 2037
A158: =+Flujos!A158 -> 2038-03-13 | B158: =+Flujos!L158 -> -1.379847527e-05 | C158: =+Flujos!M158 -> 0 | D158: =+Flujos!N158 -> -1.150930822e-07 | E158: =+Flujos!O158 -> -1.150930822e-07 | G158: 2037-03-13 | H158: =IF(G158<CALCULADORA!$C$23,0,IF(CALCULADORA!$C$27>'TIR de Tenencia'!G158,E158,CALCULADORA!$C$33)) -> 50079276847 | L158: 13 | M158: 4 | N158: 2037
A159: =+Flujos!A159 -> 2038-04-13 | B159: =+Flujos!L159 -> -1.379847527e-05 | C159: =+Flujos!M159 -> 0 | D159: =+Flujos!N159 -> -1.150930822e-07 | E159: =+Flujos!O159 -> -1.150930822e-07 | G159: 2037-04-13 | H159: =IF(G159<CALCULADORA!$C$23,0,IF(CALCULADORA!$C$27>'TIR de Tenencia'!G159,E159,CALCULADORA!$C$33)) -> 50079276847 | L159: 13 | M159: 5 | N159: 2037
A160: =+Flujos!A160 -> 2038-05-13 | B160: =+Flujos!L160 -> -1.379847527e-05 | C160: =+Flujos!M160 -> 0 | D160: =+Flujos!N160 -> -1.150930822e-07 | E160: =+Flujos!O160 -> -1.150930822e-07 | G160: 2037-05-13 | H160: =IF(G160<CALCULADORA!$C$23,0,IF(CALCULADORA!$C$27>'TIR de Tenencia'!G160,E160,CALCULADORA!$C$33)) -> 50079276847 | L160: 13 | M160: 6 | N160: 2037
A161: =+Flujos!A161 -> 2038-06-13 | B161: =+Flujos!L161 -> -1.379847527e-05 | C161: =+Flujos!M161 -> 0 | D161: =+Flujos!N161 -> -1.150930822e-07 | E161: =+Flujos!O161 -> -1.150930822e-07 | G161: 2037-06-13 | H161: =IF(G161<CALCULADORA!$C$23,0,IF(CALCULADORA!$C$27>'TIR de Tenencia'!G161,E161,CALCULADORA!$C$33)) -> 50079276847 | L161: 13 | M161: 7 | N161: 2037
A162: =+Flujos!A162 -> 2038-07-13 | B162: =+Flujos!L162 -> -1.379847527e-05 | C162: =+Flujos!M162 -> 0 | D162: =+Flujos!N162 -> -1.150930822e-07 | E162: =+Flujos!O162 -> -1.150930822e-07 | G162: 2037-07-13 | H162: =IF(G162<CALCULADORA!$C$23,0,IF(CALCULADORA!$C$27>'TIR de Tenencia'!G162,E162,CALCULADORA!$C$33)) -> 50079276847 | L162: 13 | M162: 8 | N162: 2037
A163: =+Flujos!A163 -> 2038-08-13 | B163: =+Flujos!L163 -> -1.379847527e-05 | C163: =+Flujos!M163 -> 0 | D163: =+Flujos!N163 -> -1.150930822e-07 | E163: =+Flujos!O163 -> -1.150930822e-07 | G163: =+DATE(N162,M162,L162) -> 2037-08-13 | H163: =IF(G163<CALCULADORA!$C$23,0,IF(CALCULADORA!$C$27>'TIR de Tenencia'!G163,E163,CALCULADORA!$C$33)) -> 50079276847 | L163: 13 | M163: 9 | N163: 2037
A164: =+Flujos!A164 -> 2038-09-13 | B164: =+Flujos!L164 -> -1.379847527e-05 | C164: =+Flujos!M164 -> 0 | D164: =+Flujos!N164 -> -1.150930822e-07 | E164: =+Flujos!O164 -> -1.150930822e-07 | G164: 2037-09-13 | H164: =IF(G164<CALCULADORA!$C$23,0,IF(CALCULADORA!$C$27>'TIR de Tenencia'!G164,E164,CALCULADORA!$C$33)) -> 50079276847 | L164: 13 | M164: 10 | N164: 2037
A165: =+Flujos!A165 -> 2038-10-13 | B165: =+Flujos!L165 -> -1.379847527e-05 | C165: =+Flujos!M165 -> 0 | D165: =+Flujos!N165 -> -1.150930822e-07 | E165: =+Flujos!O165 -> -1.150930822e-07 | G165: 2037-10-13 | H165: =IF(G165<CALCULADORA!$C$23,0,IF(CALCULADORA!$C$27>'TIR de Tenencia'!G165,E165,CALCULADORA!$C$33)) -> 50079276847 | L165: 13 | M165: 11 | N165: 2037
A166: =+Flujos!A166 -> 2038-11-13 | B166: =+Flujos!L166 -> -1.379847527e-05 | C166: =+Flujos!M166 -> 0 | D166: =+Flujos!N166 -> -1.150930822e-07 | E166: =+Flujos!O166 -> -1.150930822e-07 | G166: 2037-11-13 | H166: =IF(G166<CALCULADORA!$C$23,0,IF(CALCULADORA!$C$27>'TIR de Tenencia'!G166,E166,CALCULADORA!$C$33)) -> 50079276847 | L166: 13 | M166: 12 | N166: 2037
A167: =+Flujos!A167 -> 2038-12-13 | B167: =+Flujos!L167 -> -1.379847527e-05 | C167: =+Flujos!M167 -> 0 | D167: =+Flujos!N167 -> -1.150930822e-07 | E167: =+Flujos!O167 -> -1.150930822e-07 | G167: 2037-12-13 | H167: =IF(G167<CALCULADORA!$C$23,0,IF(CALCULADORA!$C$27>'TIR de Tenencia'!G167,E167,CALCULADORA!$C$33)) -> 50079276847 | L167: 13 | M167: 1 | N167: 2038
A168: =+Flujos!A168 -> 2039-01-13 | B168: =+Flujos!L168 -> -1.379847527e-05 | C168: =+Flujos!M168 -> 0 | D168: =+Flujos!N168 -> -1.150930822e-07 | E168: =+Flujos!O168 -> -1.150930822e-07 | G168: 2038-01-13 | H168: =IF(G168<CALCULADORA!$C$23,0,IF(CALCULADORA!$C$27>'TIR de Tenencia'!G168,E168,CALCULADORA!$C$33)) -> 50079276847 | L168: 13 | M168: 2 | N168: 2038
A169: =+Flujos!A169 -> 2039-02-13 | B169: =+Flujos!L169 -> -1.379847527e-05 | C169: =+Flujos!M169 -> 0 | D169: =+Flujos!N169 -> -1.150930822e-07 | E169: =+Flujos!O169 -> -1.150930822e-07 | G169: 2038-02-13 | H169: =IF(G169<CALCULADORA!$C$23,0,IF(CALCULADORA!$C$27>'TIR de Tenencia'!G169,E169,CALCULADORA!$C$33)) -> 50079276847 | L169: 13 | M169: 3 | N169: 2038
A170: =+Flujos!A170 -> 2039-03-13 | B170: =+Flujos!L170 -> -1.379847527e-05 | C170: =+Flujos!M170 -> 0 | D170: =+Flujos!N170 -> -1.150930822e-07 | E170: =+Flujos!O170 -> -1.150930822e-07 | G170: 2038-03-13 | H170: =IF(G170<CALCULADORA!$C$23,0,IF(CALCULADORA!$C$27>'TIR de Tenencia'!G170,E170,CALCULADORA!$C$33)) -> 50079276847 | L170: 13 | M170: 4 | N170: 2038
A171: =+Flujos!A171 -> 2039-04-13 | B171: =+Flujos!L171 -> -1.379847527e-05 | C171: =+Flujos!M171 -> 0 | D171: =+Flujos!N171 -> -1.150930822e-07 | E171: =+Flujos!O171 -> -1.150930822e-07 | G171: 2038-04-13 | H171: =IF(G171<CALCULADORA!$C$23,0,IF(CALCULADORA!$C$27>'TIR de Tenencia'!G171,E171,CALCULADORA!$C$33)) -> 50079276847 | L171: 13 | M171: 5 | N171: 2038
A172: =+Flujos!A172 -> 2039-05-13 | B172: =+Flujos!L172 -> -1.379847527e-05 | C172: =+Flujos!M172 -> 0 | D172: =+Flujos!N172 -> -1.150930822e-07 | E172: =+Flujos!O172 -> -1.150930822e-07 | G172: 2038-05-13 | H172: =IF(G172<CALCULADORA!$C$23,0,IF(CALCULADORA!$C$27>'TIR de Tenencia'!G172,E172,CALCULADORA!$C$33)) -> 50079276847 | L172: 13 | M172: 6 | N172: 2038
A173: =+Flujos!A173 -> 2039-06-13 | B173: =+Flujos!L173 -> -1.379847527e-05 | C173: =+Flujos!M173 -> 0 | D173: =+Flujos!N173 -> -1.150930822e-07 | E173: =+Flujos!O173 -> -1.150930822e-07 | G173: 2038-06-13 | H173: =IF(G173<CALCULADORA!$C$23,0,IF(CALCULADORA!$C$27>'TIR de Tenencia'!G173,E173,CALCULADORA!$C$33)) -> 50079276847 | L173: 13 | M173: 7 | N173: 2038
A174: =+Flujos!A174 -> 2039-07-13 | B174: =+Flujos!L174 -> -1.379847527e-05 | C174: =+Flujos!M174 -> 0 | D174: =+Flujos!N174 -> -1.150930822e-07 | E174: =+Flujos!O174 -> -1.150930822e-07 | G174: 2038-07-13 | H174: =IF(G174<CALCULADORA!$C$23,0,IF(CALCULADORA!$C$27>'TIR de Tenencia'!G174,E174,CALCULADORA!$C$33)) -> 50079276847 | L174: 13 | M174: 8 | N174: 2038
A175: =+Flujos!A175 -> 2039-08-13 | B175: =+Flujos!L175 -> -1.379847527e-05 | C175: =+Flujos!M175 -> 0 | D175: =+Flujos!N175 -> -1.150930822e-07 | E175: =+Flujos!O175 -> -1.150930822e-07 | G175: 2038-08-13 | H175: =IF(G175<CALCULADORA!$C$23,0,IF(CALCULADORA!$C$27>'TIR de Tenencia'!G175,E175,CALCULADORA!$C$33)) -> 50079276847 | L175: 13 | M175: 9 | N175: 2038
A176: =+Flujos!A176 -> 2039-09-13 | B176: =+Flujos!L176 -> -1.379847527e-05 | C176: =+Flujos!M176 -> 0 | D176: =+Flujos!N176 -> -1.150930822e-07 | E176: =+Flujos!O176 -> -1.150930822e-07 | G176: 2038-09-13 | H176: =IF(G176<CALCULADORA!$C$23,0,IF(CALCULADORA!$C$27>'TIR de Tenencia'!G176,E176,CALCULADORA!$C$33)) -> 50079276847 | L176: 13 | M176: 10 | N176: 2038
A177: =+Flujos!A177 -> 2039-10-13 | B177: =+Flujos!L177 -> -1.379847527e-05 | C177: =+Flujos!M177 -> 0 | D177: =+Flujos!N177 -> -1.150930822e-07 | E177: =+Flujos!O177 -> -1.150930822e-07 | G177: 2038-10-13 | H177: =IF(G177<CALCULADORA!$C$23,0,IF(CALCULADORA!$C$27>'TIR de Tenencia'!G177,E177,CALCULADORA!$C$33)) -> 50079276847 | L177: 13 | M177: 11 | N177: 2038
A178: =+Flujos!A178 -> 2039-11-13 | B178: =+Flujos!L178 -> -1.379847527e-05 | C178: =+Flujos!M178 -> 0 | D178: =+Flujos!N178 -> -1.150930822e-07 | E178: =+Flujos!O178 -> -1.150930822e-07 | G178: 2038-11-13 | H178: =IF(G178<CALCULADORA!$C$23,0,IF(CALCULADORA!$C$27>'TIR de Tenencia'!G178,E178,CALCULADORA!$C$33)) -> 50079276847 | L178: 13 | M178: 12 | N178: 2038
A179: =+Flujos!A179 -> 2039-12-13 | B179: =+Flujos!L179 -> -1.379847527e-05 | C179: =+Flujos!M179 -> 0 | D179: =+Flujos!N179 -> -1.150930822e-07 | E179: =+Flujos!O179 -> -1.150930822e-07 | G179: 2038-12-13 | H179: =IF(G179<CALCULADORA!$C$23,0,IF(CALCULADORA!$C$27>'TIR de Tenencia'!G179,E179,CALCULADORA!$C$33)) -> 50079276847 | L179: 13 | M179: 1 | N179: 2039
A180: =+Flujos!A180 -> 2040-01-13 | B180: =+Flujos!L180 -> -1.379847527e-05 | C180: =+Flujos!M180 -> 0 | D180: =+Flujos!N180 -> -1.150930822e-07 | E180: =+Flujos!O180 -> -1.150930822e-07 | G180: 2039-01-13 | H180: =IF(G180<CALCULADORA!$C$23,0,IF(CALCULADORA!$C$27>'TIR de Tenencia'!G180,E180,CALCULADORA!$C$33)) -> 50079276847 | L180: 13 | M180: 2 | N180: 2039
A181: =+Flujos!A181 -> 2040-02-13 | B181: =+Flujos!L181 -> -1.379847527e-05 | C181: =+Flujos!M181 -> 0 | D181: =+Flujos!N181 -> -1.150930822e-07 | E181: =+Flujos!O181 -> -1.150930822e-07 | G181: 2039-02-13 | H181: =IF(G181<CALCULADORA!$C$23,0,IF(CALCULADORA!$C$27>'TIR de Tenencia'!G181,E181,CALCULADORA!$C$33)) -> 50079276847 | L181: 13 | M181: 3 | N181: 2039
A182: =+Flujos!A182 -> 2040-03-13 | B182: =+Flujos!L182 -> -1.379847527e-05 | C182: =+Flujos!M182 -> 0 | D182: =+Flujos!N182 -> -1.150930822e-07 | E182: =+Flujos!O182 -> -1.150930822e-07 | G182: 2039-03-13 | H182: =IF(G182<CALCULADORA!$C$23,0,IF(CALCULADORA!$C$27>'TIR de Tenencia'!G182,E182,CALCULADORA!$C$33)) -> 50079276847 | L182: 13 | M182: 4 | N182: 2039
B183: Totales | C183: =SUM(C2:C182) -> 49630124223 | D183: 9830523434 | E183: 5.946064766e+10
I184: =+IF(H184=H183," ",H184) ->  | K184: =+MONTH(A184) -> 1 | L184: =+YEAR(A184) -> 1900
K185: 1 | L185: 1900
K186: 1 | L186: 1900
K187: 1 | L187: 1900
K188: 1 | L188: 1900
K189: 1 | L189: 1900
K190: 1 | L190: 1900
K191: 1 | L191: 1900
K192: 1 | L192: 1900
K193: 1 | L193: 1900
K194: 1 | L194: 1900
K195: 1 | L195: 1900
K196: 1 | L196: 1900
K197: 1 | L197: 1900
K198: 1 | L198: 1900
K199: 1 | L199: 1900
K200: 1 | L200: 1900
... 4300 more rows

Sheet Tabla de Amortizacion (hidden)
A1: FECHA | B1: Tabla de Amortización Valoración | E1: Tabla de Amortización Valoración | F1: Tabla de Amortización Valoración | G1: Tabla de Amortización Valoración | H1: Tabla de Amortización Valoración | I1: Tabla de Amortización Valoración | J1: Tabla de Amortización Valoración | K1: Tabla de Amortización Valoración | L1: Tabla de Amortización Valoración | M1: Tabla de Amortización Valoración | N1: Tabla de Amortización Valoración | O1: Tabla de Amortización Valoración | P1: Tabla de Amortización Valoración | Q1: Tabla de Amortización Valoración
B2: =+CALCULADORA!C9 -> TIPS N25 A | E2: =+Características!$B$1 -> TIPS N13 A | F2: =+Características!$C$1 -> TIPS N14 A | G2: =+Características!$D$1 -> TIPS N16 A | H2: =+Características!$E$1 -> TIPS N17 A | I2: =+Características!$F$1 -> TIPS N18 A 2034 | J2: =+Características!$G$1 -> TIPS N19 A 2034 | K2: =+Características!$H$1 -> TIPS N20 A 2034 | L2: =+Características!$I$1 -> TIPS N21 A | M2: =+Características!$J$1 -> TIPS N22 A | N2: =+Características!$K$1 -> TIPS N23 A | O2: =+Características!$L$1 -> TIPS N24 A1 2029 | P2: =+Características!$M$1 -> TIPS N24 A2 2039 | Q2: TIPS N25 A
A3: =+Flujos!A3 -> 2025-04-13 | B3: =+VLOOKUP(A3,$D$2:$N$182,MATCH($B$2,$D$2:$N$2,0),FALSE) ->  | D3: =+A3 -> 2025-04-13 | E3: 0.02044998 | F3: 0.01368171 | G3: 0.02356776 | H3: 0.03571942 | I3: 0.00605857 | J3: 0.01847045 | K3: 0.0158525 | L3: 0.01952549 | M3: 0.01619246 | N3: 0.02708248 | O3: 0.12284325 | P3: 0.05956685 | Q3: 0.03800132
A4: =+Flujos!A4 -> 2025-05-13 | D4: =+A4 -> 2025-05-13 | E4: 0.01389231 | F4: 0.01183556 | G4: 0.02133346 | H4: 0.02457022 | I4: 0.0236512 | J4: 0.02392001 | K4: 0.02892144 | L4: 0.02834999 | M4: 0.0239413 | N4: 0.02840141 | O4: 0.19176649 | P4: 0.07501255 | Q4: 0.03657926
A5: =+Flujos!A5 -> 2025-06-13 | D5: 2025-06-13 | E5: 0.01675198 | F5: 0.01424274 | G5: 0.02897295 | H5: 0.0199412 | I5: 0.02121142 | J5: 0.02116353 | K5: 0.02259371 | L5: 0.02654497 | M5: 0.0317479 | N5: 0.03572706 | O5: 0.24227602 | P5: 0.06905826 | Q5: 0.03520919
A6: =+Flujos!A6 -> 2025-07-13 | D6: 2025-07-13 | E6: 0.01204601 | F6: 0.01511885 | G6: 0.02223212 | H6: 0.01917548 | I6: 0.02364436 | J6: 0.01844168 | K6: 0.02618229 | L6: 0.02677209 | M6: 0.02672574 | N6: 0.03643388 | O6: 0.13186379 | P6: 0.06357652 | Q6: 0.03880766
A7: =+Flujos!A7 -> 2025-08-13 | D7: 2025-08-13 | E7: 0.01163129 | F7: 0.01640594 | G7: 0.02047248 | H7: 0.01949236 | I7: 0.02091759 | J7: 0.02002614 | K7: 0.02214692 | L7: 0.02176445 | M7: 0.04114774 | N7: 0.02940951 | O7: 0.13629946 | P7: 0.05852995 | Q7: 0.03393076
A8: =+Flujos!A8 -> 2025-09-13 | D8: 2025-09-13 | E8: 0.01407613 | F8: 0.01820595 | G8: 0.02060537 | H8: 0.02337156 | I8: 0.02529812 | J8: 0.01920896 | K8: 0.01938706 | L8: 0.01831821 | M8: 0.04541162 | N8: 0.03872237 | O8: 0.15391213 | P8: 0.0538819 | Q8: 0.03252335
A9: =+Flujos!A9 -> 2025-10-13 | D9: 2025-10-13 | E9: 0.01742161 | F9: 0.02362088 | G9: 0.02115641 | H9: 0.01787675 | I9: 0.01834793 | J9: 0.0156808 | K9: 0.01884397 | L9: 0.01794704 | M9: 0.06420672 | N9: 0.04393367 | O9: 0.02103886 | P9: 0.04959969 | Q9: 0.03130191
A10: =+Flujos!A10 -> 2025-11-13 | D10: 2025-11-13 | E10: 0.01186987 | F10: 0.02330254 | G10: 0.01838404 | H10: 0.02257094 | I10: 0.01917264 | J10: 0.02031004 | K10: 0.02129778 | L10: 0.01610036 | M10: 0.05408013 | N10: 0.02855027 | O10: 0 | P10: 0.04565818 | Q10: 0.03013207
A11: =+Flujos!A11 -> 2025-12-13 | D11: 2025-12-13 | E11: 0.02125241 | F11: 0.02457678 | G11: 0.02119569 | H11: 0.01776765 | I11: 0.01797415 | J11: 0.01653618 | K11: 0.01328574 | L11: 0.0146862 | M11: 0.06388435 | N11: 0.02753957 | O11: 0 | P11: 0.04202843 | Q11: 0.02900918
A12: =+Flujos!A12 -> 2026-01-13 | D12: 2026-01-13 | E12: 0.01996124 | F12: 0.02252216 | G12: 0.02337674 | H12: 0.01561815 | I12: 0.0192707 | J12: 0.01068205 | K12: 0.01759811 | L12: 0.01427731 | M12: 0.05015035 | N12: 0.02655456 | O12: 0 | P12: 0.03868381 | Q12: 0.02792213
A13: =+Flujos!A13 -> 2026-02-13 | D13: 2026-02-13 | E13: 0.01495962 | F13: 0.02172866 | G13: 0.01376149 | H13: 0.01843288 | I13: 0.01051969 | J13: 0.0165158 | K13: 0.01624602 | L13: 0.01730595 | M13: 0.04425177 | N13: 0.02560209 | O13: 0 | P13: 0.03560507 | Q13: 0.02687402
A14: =+Flujos!A14 -> 2026-03-13 | D14: 2026-03-13 | E14: 0.01775622 | F14: 0.01924675 | G14: 0.01698375 | H14: 0.0167106 | I14: 0.02197584 | J14: 0.01429638 | K14: 0.01670805 | L14: 0.01376916 | M14: 0.028119 | N14: 0.02468364 | O14: 0 | P14: 0.03276789 | Q14: 0.02582833
A15: =+Flujos!A15 -> 2026-04-13 | D15: 2026-04-13 | E15: 0.01861186 | F15: 0.01952513 | G15: 0.022644 | H15: 0.02242677 | I15: 0.01699029 | J15: 0.00923389 | K15: 0.01450048 | L15: 0.01483369 | M15: 0.02614991 | N15: 0.02378772 | O15: 0 | P15: 0.03015473 | Q15: 0.02481811
A16: =+Flujos!A16 -> 2026-05-13 | D16: 2026-05-13 | E16: 0.01496187 | F16: 0.02071941 | G16: 0.01870053 | H16: 0.0225063 | I16: 0.01325195 | J16: 0.01499669 | K16: 0.0159464 | L16: 0.01289312 | M16: 0.02482192 | N16: 0.0229364 | O16: 0 | P16: 0.02774561 | Q16: 0.02381137
A17: =+Flujos!A17 -> 2026-06-13 | D17: 2026-06-13 | E17: 0.01762456 | F17: 0.02070901 | G17: 0.02424875 | H17: 0.01981603 | I17: 0.01007138 | J17: 0.01357463 | K17: 0.01568914 | L17: 0.01178352 | M17: 0.02356133 | N17: 0.02210673 | O17: 0 | P17: 0.02552518 | Q17: 0.02289094
A18: =+Flujos!A18 -> 2026-07-13 | D18: 2026-07-13 | E18: 0.0128802 | F18: 0.01853392 | G18: 0.01717284 | H18: 0.01604535 | I18: 0.02083114 | J18: 0.01483513 | K18: 0.01075758 | L18: 0.01040654 | M18: 0.02236493 | N18: 0.02130499 | O18: 0 | P18: 0.02348258 | Q18: 0.02201585
A19: =+Flujos!A19 -> 2026-08-13 | D19: 2026-08-13 | E19: 0.01380986 | F19: 0.01617943 | G19: 0.01614614 | H19: 0.019135 | I19: 0.01314528 | J19: 0.00807425 | K19: 0.01354073 | L19: 0.01326818 | M19: 0.02122848 | N19: 0.02052027 | O19: 0 | P19: 0.02160334 | Q19: 0.02114658
A20: =+Flujos!A20 -> 2026-09-13 | D20: 2026-09-13 | E20: 0.01326533 | F20: 0.01960572 | G20: 0.01870624 | H20: 0.01850661 | I20: 0.01464749 | J20: 0.01361384 | K20: 0.01276501 | L20: 0.01401153 | M20: 0.02014948 | N20: 0.01978202 | O20: 0 | P20: 0.01987363 | Q20: 0.02027545
A21: =+Flujos!A21 -> 2026-10-13 | D21: 2026-10-13 | E21: 0.01197941 | F21: 0.017751 | G21: 0.0282862 | H21: 0.01447718 | I21: 0.01006517 | J21: 0.01019619 | K21: 0.01161447 | L21: 0.01373559 | M21: 0.0191254 | N21: 0.01906001 | O21: 0 | P21: 0.01828199 | Q21: 0.0194739
A22: =+Flujos!A22 -> 2026-11-13 | D22: 2026-11-13 | E22: 0.01272617 | F22: 0.0201187 | G22: 0.01329859 | H22: 0.01654485 | I22: 0.01054455 | J22: 0.01032425 | K22: 0.01331859 | L22: 0.01440303 | M22: 0.01815437 | N22: 0.01837225 | O22: 0 | P22: 0.01681855 | Q22: 0.01867066
A23: =+Flujos!A23 -> 2026-12-13 | D23: 2026-12-13 | E23: 0.01530562 | F23: 0.01828355 | G23: 0.01814356 | H23: 0.01661799 | I23: 0.00992201 | J23: 0.01241966 | K23: 0.00949922 | L23: 0.01222623 | M23: 0.01723252 | N23: 0.01770208 | O23: 0 | P23: 0.01547177 | Q23: 0.01787302
A24: =+Flujos!A24 -> 2027-01-13 | D24: 2027-01-13 | E24: 0.01334941 | F24: 0.01320268 | G24: 0.01595792 | H24: 0.0193822 | I24: 0.00999066 | J24: 0.00874107 | K24: 0.01038323 | L24: 0.01260328 | M24: 0.01635965 | N24: 0.01704804 | O24: 0 | P24: 0.01423199 | Q24: 0.0171376
A25: =+Flujos!A25 -> 2027-02-13 | D25: 2027-02-13 | E25: 0.01343126 | F25: 0.01729486 | G25: 0.01681101 | H25: 0.02416772 | I25: 0.00939988 | J25: 0.00834591 | K25: 0.01440096 | L25: 0.01062882 | M25: 0.01552917 | N25: 0.0164219 | O25: 0 | P25: 0.01309166 | Q25: 0.01641444
A26: =+Flujos!A26 -> 2027-03-13 | D26: 2027-03-13 | E26: 0.01613141 | F26: 0.01540016 | G26: 0.01544912 | H26: 0.02190972 | I26: 0.00657291 | J26: 0.01046561 | K26: 0.0111731 | L26: 0.00970835 | M26: 0.01473952 | N26: 0.01580259 | O26: 0 | P26: 0.01204171 | Q26: 0.01573095
A27: =+Flujos!A27 -> 2027-04-13 | D27: 2027-04-13 | E27: 0.01431813 | F27: 0.01890395 | G27: 0.01386443 | H27: 0.00938747 | I27: 0.0127433 | J27: 0.00621205 | K27: 0.01300945 | L27: 0.00918628 | M27: 0.0139871 | N27: 0.01522098 | O27: 0 | P27: 0.01107488 | Q27: 0.01508352
A28: =+Flujos!A28 -> 2027-05-13 | D28: 2027-05-13 | E28: 0.01628853 | F28: 0.01500383 | G28: 0.01572838 | H28: 0.00224242 | I28: 0.00847706 | J28: 0.00775293 | K28: 0.01152998 | L28: 0.01352611 | M28: 0.01327052 | N28: 0.01465902 | O28: 0 | P28: 0.01018481 | Q28: 0.01443894
A29: =+Flujos!A29 -> 2027-06-13 | D29: 2027-06-13 | E29: 0.01435779 | F29: 0.02084695 | G29: 0.02086454 | H29: 0.00663784 | I29: 0.00962463 | J29: 0.0071742 | K29: 0.00854143 | L29: 0.01143474 | M29: 0.01258949 | N29: 0.01411 | O29: 0 | P29: 0.00936697 | Q29: 0.01386063
A30: =+Flujos!A30 -> 2027-07-13 | D30: 2027-07-13 | E30: 0.01661774 | F30: 0.01219917 | G30: 0.01103635 | H30: 0.01070316 | I30: 0.00867892 | J30: 0.00712022 | K30: 0.00922056 | L30: 0.00832034 | M30: 0.01194307 | N30: 0.01358334 | O30: 0 | P30: 0.00861436 | Q30: 0.01329704
A31: =+Flujos!A31 -> 2027-08-13 | D31: 2027-08-13 | E31: 0.01476718 | F31: 0.0160444 | G31: 0.00328742 | H31: 0.01145043 | I31: 0.00606589 | J31: 0.00986897 | K31: 0.01068278 | L31: 0.01294797 | M31: 0.01132919 | N31: 0.01307399 | O31: 0 | P31: 0.00792206 | Q31: 0.01278019
A32: =+Flujos!A32 -> 2027-09-13 | D32: 2027-09-13 | E32: 0.01467772 | F32: 0.0126768 | G32: 0.00335904 | H32: 0.00932192 | I32: 0.0056227 | J32: 0.00844365 | K32: 0.00840043 | L32: 0.0092125 | M32: 0.01074603 | N32: 0.01257857 | O32: 0 | P32: 0.00728501 | Q32: 0.0122522
A33: =+Flujos!A33 -> 2027-10-13 | D33: 2027-10-13 | E33: 0.0121292 | F33: 0.01359303 | G33: 0.0047029 | H33: 0.01425703 | I33: 0.00739365 | J33: 0.01285656 | K33: 0.00942713 | L33: 0.01153683 | M33: 0.01019177 | N33: 0.01209722 | O33: 0 | P33: 0.0079318 | Q33: 0.011749
A34: =+Flujos!A34 -> 2027-11-13 | D34: 2027-11-13 | E34: 0.01172219 | F34: 0.01628187 | G34: 0.00592936 | H34: 0.01300706 | I34: 0.01001431 | J34: 0.00928653 | K34: 0.0082664 | L34: 0.01028062 | M34: 0.00966343 | N34: 0.01164632 | O34: 0 | P34: 0.00734599 | Q34: 0.01129534
A35: =+Flujos!A35 -> 2027-12-13 | B35: =+VLOOKUP(A35,$D$2:$N$182,MATCH($B$2,$D$2:$N$2,0),FALSE) ->  | D35: 2027-12-13 | E35: 0.01530554 | F35: 0.01221051 | G35: 0.00934888 | H35: 0.01105333 | I35: 0.0087118 | J35: 0.01317768 | K35: 0.01171722 | L35: 0.0088502 | M35: 0.00916179 | N35: 0.01120951 | O35: 0 | P35: 0.00679855 | Q35: 0.01081684
A36: =+Flujos!A36 -> 2028-01-13 | D36: 2028-01-13 | E36: 0.01318137 | F36: 0.0154152 | G36: 0.0094674 | H36: 0.01644809 | I36: 0.00753429 | J36: 0.0086879 | K36: 0.00993075 | L36: 0.01112976 | M36: 0.00867882 | N36: 0.01078439 | O36: 0 | P36: 0.00630501 | Q36: 0.01037957
A37: =+Flujos!A37 -> 2028-02-13 | D37: 2028-02-13 | E37: 0.01449017 | F37: 0.014099 | G37: 0.01645422 | H37: 0.01266616 | I37: 0.01076061 | J37: 0.0066977 | K37: 0.01268487 | L37: 0.01043272 | M37: 0.00822336 | N37: 0.0103709 | O37: 0 | P37: 0.00584592 | Q37: 0.00994437
A38: =+Flujos!A38 -> 2028-03-13 | D38: 2028-03-13 | E38: 0.01049837 | F38: 0.01640389 | G38: 0.01360503 | H38: 0.01359347 | I38: 0.01157145 | J38: 0.01013146 | K38: 0.01235936 | L38: 0.01092245 | M38: 0.00779543 | N38: 0.00996405 | O38: 0 | P38: 0.00542005 | Q38: 0.00953004
A39: =+Flujos!A39 -> 2028-04-13 | D39: 2028-04-13 | E39: 0.01470858 | F39: 0.00988778 | G39: 0.01503896 | H39: 0.01185657 | I39: 0.00497716 | J39: 0.00945651 | K39: 0.01144497 | L39: 0.01285958 | M39: 0.00739028 | N39: 0.00958658 | O39: 0 | P39: 0.0050302 | Q39: 0.0091211
A40: =+Flujos!A40 -> 2028-05-13 | D40: 2028-05-13 | E40: 0.01444744 | F40: 0.00087918 | G40: 0.01366977 | H40: 0.01347089 | I40: 0.00412667 | J40: 0.00962191 | K40: 0.01134134 | L40: 0.00949357 | M40: 0.00701324 | N40: 0.00921933 | O40: 0 | P40: 0.00466568 | Q40: 0.00876489
A41: =+Flujos!A41 -> 2028-06-13 | D41: 2028-06-13 | E41: 0.01291791 | F41: 0.00348549 | G41: 0.01395939 | H41: 0.01437008 | I41: 0.00606006 | J41: 0.00955363 | K41: 0.01091842 | L41: 0.01123087 | M41: 0.00665476 | N41: 0.00887083 | O41: 0 | P41: 0.00433485 | Q41: 0.00841889
A42: =+Flujos!A42 -> 2028-07-13 | D42: 2028-07-13 | E42: 0.01272832 | F42: 0.00474617 | G42: 0.01200633 | H42: 0.01209825 | I42: 0.0072122 | J42: 0.0083651 | K42: 0.01047117 | L42: 0.01027063 | M42: 0.00631519 | N42: 0.00852532 | O42: 0 | P42: 0.02958202 | Q42: 0.00808976
A43: =+Flujos!A43 -> 2028-08-13 | D43: 2028-08-13 | E43: 0.00010085 | F43: 0.00903694 | G43: 0.01270412 | H43: 0.01289714 | I43: 0.00720664 | J43: 0.01118173 | K43: 0.0093315 | L43: 0.0071139 | M43: 0.00599316 | N43: 0.00818916 | O43: 0 | P43: 0 | Q43: 0.00777939
A44: =+Flujos!A44 -> 2028-09-13 | D44: 2028-09-13 | E44: 0.00259768 | F44: 0.0052115 | G44: 0.01132464 | H44: 0.01219468 | I44: 0.01030488 | J44: 0.00865166 | K44: 0.01107362 | L44: 0.01101566 | M44: 0.00568761 | N44: 0.00787056 | O44: 0 | P44: 0 | Q44: 0.00748026
A45: =+Flujos!A45 -> 2028-10-13 | D45: 2028-10-13 | E45: 0.00257446 | F45: 0.00984007 | G45: 0.00969269 | H45: 0.01176555 | I45: 0.00688408 | J45: 0.0065527 | K45: 0.0099846 | L45: 0.01002282 | M45: 0.00539705 | N45: 0.0075681 | O45: 0 | P45: 0 | Q45: 0.00715857
A46: =+Flujos!A46 -> 2028-11-13 | D46: 2028-11-13 | E46: 0.00600046 | F46: 0.00958311 | G46: 0.01363761 | H46: 0.01069626 | I46: 0.01101166 | J46: 0.00822292 | K46: 0.01048541 | L46: 0.01100347 | M46: 0.0051221 | N46: 0.0072791 | O46: 0 | P46: 0 | Q46: 0.00688337
A47: =+Flujos!A47 -> 2028-12-13 | D47: 2028-12-13 | E47: 0.00721973 | F47: 0.01028221 | G47: 0.01135293 | H47: 0.01330106 | I47: 0.00756633 | J47: 0.00811892 | K47: 0.0131856 | L47: 0.00930742 | M47: 0.00485925 | N47: 0.00699207 | O47: 0 | P47: 0 | Q47: 0.00660936
A48: =+Flujos!A48 -> 2029-01-13 | D48: 2029-01-13 | E48: 0.00767481 | F48: 0.00824404 | G48: 0.01013605 | H48: 0.01010537 | I48: 0.00816048 | J48: 0.00801332 | K48: 0.01072448 | L48: 0.00917616 | M48: 0.00461031 | N48: 0.006722 | O48: 0 | P48: 0 | Q48: 0.00635071
A49: =+Flujos!A49 -> 2029-02-13 | D49: 2029-02-13 | E49: 0.011827 | F49: 0.00970398 | G49: 0.01023478 | H49: 0.00953173 | I49: 0.01055946 | J49: 0.00791926 | K49: 0.01685366 | L49: 0.00908864 | M49: 0.00437294 | N49: 0.00646522 | O49: 0 | P49: 0 | Q49: 0.00610947
A50: =+Flujos!A50 -> 2029-03-13 | D50: 2029-03-13 | E50: 0.0112454 | F50: 0.008772 | G50: 0.0082423 | H50: 0.00893678 | I50: 0.00620018 | J50: 0.00782367 | K50: 0.00926793 | L50: 0.008826 | M50: 0.00414892 | N50: 0.00621312 | O50: 0 | P50: 0 | Q50: 0.00587647
A51: =+Flujos!A51 -> 2029-04-13 | D51: 2029-04-13 | E51: 0.0122264 | F51: 0.01334663 | G51: 0.01079955 | H51: 0.00961686 | I51: 0.00704208 | J51: 0.00772029 | K51: 0.00909782 | L51: 0.00888821 | M51: 0.00393686 | N51: 0.00597945 | O51: 0 | P51: 0 | Q51: 0.00564968
A52: =+Flujos!A52 -> 2029-05-13 | D52: 2029-05-13 | E52: 0.00968244 | F52: 0.00920606 | G52: 0.01187544 | H52: 0.00779207 | I52: 0.01139177 | J52: 0.00762178 | K52: 0.00899687 | L52: 0.00879319 | M52: 0.00373474 | N52: 0.00574724 | O52: 0 | P52: 0 | Q52: 0.00543259
A53: =+Flujos!A53 -> 2029-06-13 | D53: 2029-06-13 | E53: 0.01374424 | F53: 0.01075445 | G53: 0.01019234 | H53: 0.01006071 | I53: 0.0111124 | J53: 0.0075237 | K53: 0.00898373 | L53: 0.00870772 | M53: 0.00354281 | N53: 0.00552131 | O53: 0 | P53: 0 | Q53: 0.00522182
A54: =+Flujos!A54 -> 2029-07-13 | D54: 2029-07-13 | E54: 0.00903524 | F54: 0.00724663 | G54: 0.01059437 | H54: 0.01081909 | I54: 0.01084342 | J54: 0.00856363 | K54: 0.00894611 | L54: 0.0086012 | M54: 0.00360745 | N54: 0.0052973 | O54: 0 | P54: 0 | Q54: 0.00501711
A55: =+Flujos!A55 -> 2029-08-13 | D55: 2029-08-13 | E55: 0.01006501 | F55: 0.00948708 | G55: 0.0111525 | H55: 0.00763213 | I55: 0.01058434 | J55: 0.00951698 | K55: 0.00881912 | L55: 0.00850568 | M55: 0.00391959 | N55: 0.00509616 | O55: 0 | P55: 0 | Q55: 0.00481631
A56: =+Flujos!A56 -> 2029-09-13 | D56: 2029-09-13 | E56: 0.00694017 | F56: 0.0084972 | G56: 0.00963262 | H56: 0.00913507 | I56: 0.01157748 | J56: 0.00938652 | K56: 0.00834471 | L56: 0.0083862 | M56: 0.00373524 | N56: 0.00490049 | O56: 0 | P56: 0 | Q56: 0.00538623
A57: =+Flujos!A57 -> 2029-10-13 | D57: 2029-10-13 | E57: 0.01032482 | F57: 0.0089106 | G57: 0.00611365 | H57: 0.00824169 | I57: 0.01263402 | J57: 0.00934181 | K57: 0.00858088 | L57: 0.0083363 | M57: 0.00356108 | N57: 0.004708 | O57: 0 | P57: 0 | Q57: 0.00555109
A58: =+Flujos!A58 -> 2029-11-13 | D58: 2029-11-13 | E58: 0.01014255 | F58: 0.00780819 | G58: 0.00810022 | H58: 0.00595712 | I58: 0.0124015 | J58: 0.00919525 | K58: 0.0084956 | L58: 0.00822865 | M58: 0.00338714 | N58: 0.00452937 | O58: 0 | P58: 0 | Q58: 0.00535438
A59: =+Flujos!A59 -> 2029-12-13 | D59: 2029-12-13 | E59: 0.01028269 | F59: 0.00961772 | G59: 0.00639594 | H59: 0.00799775 | I59: 0.01213763 | J59: 0.00917135 | K59: 0.00835891 | L59: 0.00813696 | M59: 0.0032225 | N59: 0.00435506 | O59: 0 | P59: 0 | Q59: 0.00515999
A60: =+Flujos!A60 -> 2030-01-13 | D60: 2030-01-13 | E60: 0.01217725 | F60: 0.00795294 | G60: 0.0099169 | H60: 0.00630369 | I60: 0.01184318 | J60: 0.00862583 | K60: 0.00827409 | L60: 0.00807447 | M60: 0.00306923 | N60: 0.00418692 | O60: 0 | P60: 0 | Q60: 0.00497464
A61: =+Flujos!A61 -> 2030-02-13 | D61: 2030-02-13 | E61: 0.00910267 | F61: 0.00689769 | G61: 0.00934268 | H61: 0.00676965 | I61: 0.01159757 | J61: 0.00898693 | K61: 0.00820774 | L61: 0.00800225 | M61: 0.00292271 | N61: 0.00402453 | O61: 0 | P61: 0 | Q61: 0.00479772
A62: =+Flujos!A62 -> 2030-03-13 | D62: 2030-03-13 | E62: 0.00848117 | F62: 0.00769056 | G62: 0.0055879 | H62: 0.00687964 | I62: 0.01138202 | J62: 0.00890558 | K62: 0.00811954 | L62: 0.00770889 | M62: 0.00259183 | N62: 0.00386837 | O62: 0 | P62: 0 | Q62: 0.00387721
A63: =+Flujos!A63 -> 2030-04-13 | D63: 2030-04-13 | E63: 0.00793732 | F63: 0.00873037 | G63: 0.00736599 | H63: 0.00709652 | I63: 0.0112295 | J63: 0.00875138 | K63: 0.00797641 | L63: 0.00784491 | M63: 0.00264425 | N63: 0.00371754 | O63: 0 | P63: 0 | Q63: 0.00444655
A64: =+Flujos!A64 -> 2030-05-13 | D64: 2030-05-13 | E64: 0.00813077 | F64: 0.00635374 | G64: 0.00620802 | H64: 0.00499626 | I64: 0.01045919 | J64: 0.00865138 | K64: 0.00793405 | L64: 0.00778068 | M64: 0.00251807 | N64: 0.00357481 | O64: 0 | P64: 0 | Q64: 0.00428222
A65: =+Flujos!A65 -> 2030-06-13 | D65: 2030-06-13 | E65: 0.0116814 | F65: 0.00702952 | G65: 0.00603929 | H65: 0.00604351 | I65: 0.01067303 | J65: 0.00853707 | K65: 0.00779832 | L65: 0.00768316 | M65: 0.00239817 | N65: 0.00343681 | O65: 0 | P65: 0 | Q65: 0.00411891
A66: =+Flujos!A66 -> 2030-07-13 | D66: 2030-07-13 | E66: 0.00784629 | F66: 0.00685882 | G66: 0.00558452 | H66: 0.00593204 | I66: 0.01046067 | J66: 0.0084403 | K66: 0.0077138 | L66: 0.00760115 | M66: 0.00228367 | N66: 0.00329827 | O66: 0 | P66: 0 | Q66: 0.00396708
A67: =+Flujos!A67 -> 2030-08-13 | B67: =+VLOOKUP(A67,$D$2:$N$182,MATCH($B$2,$D$2:$N$2,0),FALSE) ->  | D67: 2030-08-13 | E67: 0.00750415 | F67: 0.00752729 | G67: 0.00572911 | H67: 0.00511061 | I67: 0.01024837 | J67: 0.00832744 | K67: 0.00757249 | L67: 0.00753158 | M67: 0.00217394 | N67: 0.00316613 | O67: 0 | P67: 0 | Q67: 0.00382215
A68: =+Flujos!A68 -> 2030-09-13 | D68: =+A68 -> 2030-09-13 | E68: 0.00886363 | F68: 0.00782742 | G68: 0.0058543 | H68: 0.00705012 | I68: 0.00997947 | J68: 0.00819495 | K68: 0.00716017 | L68: 0.00745148 | M68: 0.00207035 | N68: 0.00304404 | O68: 0 | P68: 0 | Q68: 0.00368299
A69: =+Flujos!A69 -> 2030-10-13 | D69: 2030-10-13 | E69: 0.00786875 | F69: 0.0057107 | G69: 0.0058232 | H69: 0.00714261 | I69: 0.00976862 | J69: 0.00806729 | K69: 0.00738114 | L69: 0.00737028 | M69: 0.00197093 | N69: 0.00292686 | O69: 0 | P69: 0 | Q69: 0.00354306
A70: =+Flujos!A70 -> 2030-11-13 | D70: 2030-11-13 | E70: 0.00717001 | F70: 0.0049743 | G70: 0.00630288 | H70: 0.00630244 | I70: 0.00952016 | J70: 0.00795052 | K70: 0.00726902 | L70: 0.00726838 | M70: 0.00187733 | N70: 0.00281399 | O70: 0 | P70: 0 | Q70: 0.00341357
A71: =+Flujos!A71 -> 2030-12-13 | D71: 2030-12-13 | E71: 0.00753296 | F71: 0.00467522 | G71: 0.00466736 | H71: 0.00592662 | I71: 0.00927939 | J71: 0.00779956 | K71: 0.00717433 | L71: 0.00720238 | M71: 0.01641154 | N71: 0.00270605 | O71: 0 | P71: 0 | Q71: 0.00328382
A72: =+Flujos!A72 -> 2031-01-13 | D72: 2031-01-13 | E72: 0.00797559 | F72: 0.00608281 | G72: 0.00544469 | H72: 0.00511144 | I72: 0.00908591 | J72: 0.00720552 | K72: 0.00705196 | L72: 0.00712164 | M72: 0 | N72: 0.00260098 | O72: 0 | P72: 0 | Q72: 0.00316144
A73: =+Flujos!A73 -> 2031-02-13 | D73: 2031-02-13 | E73: 0.00507735 | F73: 0.00605835 | G73: 0.00553811 | H73: 0.00541929 | I73: 0.0088571 | J73: 0.0075678 | K73: 0.00693364 | L73: 0.00702857 | M73: 0 | N73: 0.00250076 | O73: 0 | P73: 0 | Q73: 0.00304727
A74: =+Flujos!A74 -> 2031-03-13 | D74: 2031-03-13 | E74: 0.00793204 | F74: 0.0046723 | G74: 0.00572962 | H74: 0.00538604 | I74: 0.00865632 | J74: 0.00746722 | K74: 0.00679408 | L74: 0.00671359 | M74: 0 | N74: 0.00239931 | O74: 0 | P74: 0 | Q74: 0.00216939
A75: =+Flujos!A75 -> 2031-04-13 | D75: 2031-04-13 | E75: 0.00654332 | F75: 0.00512363 | G75: 0.00462437 | H75: 0.00624491 | I75: 0.00840874 | J75: 0.0073721 | K75: 0.00671243 | L75: 0.00685253 | M75: 0 | N75: 0.00230486 | O75: 0 | P75: 0 | Q75: 0.00281926
A76: =+Flujos!A76 -> 2031-05-13 | D76: 2031-05-13 | E76: 0.00538377 | F76: 0.00499619 | G76: 0.00552078 | H76: 0.00492567 | I76: 0.00773881 | J76: 0.00725928 | K76: 0.00661496 | L76: 0.00677915 | M76: 0 | N76: 0.00239939 | O76: 0 | P76: 0 | Q76: 0.00271398
A77: =+Flujos!A77 -> 2031-06-13 | D77: 2031-06-13 | E77: 0.00605675 | F77: 0.00623352 | G77: 0.00538949 | H77: 0.00603166 | I77: 0.0080089 | J77: 0.0071712 | K77: 0.00648894 | L77: 0.00670062 | M77: 0 | N77: 0.00264252 | O77: 0 | P77: 0 | Q77: 0.0026139
A78: =+Flujos!A78 -> 2031-07-13 | D78: 2031-07-13 | E78: 0.00674591 | F78: 0.0049786 | G78: 0.00447927 | H78: 0.0047426 | I78: 0.00776367 | J78: 0.00707187 | K78: 0.00638633 | L78: 0.00662984 | M78: 0 | N78: 0.00254262 | O78: 0 | P78: 0 | Q78: 0.00251785
A79: =+Flujos!A79 -> 2031-08-13 | D79: 2031-08-13 | E79: 0.00578832 | F79: 0.00372572 | G79: 0.00543398 | H79: 0.00526167 | I79: 0.00757743 | J79: 0.00696726 | K79: 0.00627702 | L79: 0.00655652 | M79: 0 | N79: 0.00244734 | O79: 0 | P79: 0 | Q79: 0.00242054
A80: =+Flujos!A80 -> 2031-09-13 | D80: 2031-09-13 | E80: 0.00573167 | F80: 0.00469667 | G80: 0.00475194 | H80: 0.0061127 | I80: 0.00739786 | J80: 0.00685917 | K80: 0.00584578 | L80: 0.00648906 | M80: 0 | N80: 0.00235364 | O80: 0 | P80: 0 | Q80: 0.00233183
A81: =+Flujos!A81 -> 2031-10-13 | D81: 2031-10-13 | E81: 0.00498663 | F81: 0.00430156 | G81: 0.00437582 | H81: 0.00477433 | I81: 0.00720684 | J81: 0.00675153 | K81: 0.00609074 | L81: 0.00641486 | M81: 0 | N81: 0.00226445 | O81: 0 | P81: 0 | Q81: 0.00224799
A82: =+Flujos!A82 -> 2031-11-13 | D82: 2031-11-13 | E82: 0.00427695 | F82: 0.00499132 | G82: 0.00396867 | H82: 0.00588592 | I82: 0.00702602 | J82: 0.00665751 | K82: 0.00599317 | L82: 0.00633784 | M82: 0 | N82: 0.00218102 | O82: 0 | P82: 0 | Q82: 0.00216507
A83: =+Flujos!A83 -> 2031-12-13 | D83: 2031-12-13 | E83: 0.00494324 | F83: 0.00437396 | G83: 0.00471269 | H83: 0.00545364 | I83: 0.00685545 | J83: 0.00653568 | K83: 0.00590089 | L83: 0.0062653 | M83: 0 | N83: 0.00209895 | O83: 0 | P83: 0 | Q83: 0.00208503
A84: =+Flujos!A84 -> 2032-01-13 | D84: 2032-01-13 | E84: 0.0051546 | F84: 0.00440034 | G84: 0.00454962 | H84: 0.00473127 | I84: 0.00667911 | J84: 0.00595059 | K84: 0.00579122 | L84: 0.0061871 | M84: 0 | N84: 0.0020182 | O84: 0 | P84: 0 | Q84: 0.00200527
A85: =+Flujos!A85 -> 2032-02-13 | D85: 2032-02-13 | E85: 0.00473523 | F85: 0.00473489 | G85: 0.00387629 | H85: 0.00575729 | I85: 0.00653924 | J85: 0.00632236 | K85: 0.00568826 | L85: 0.00612025 | M85: 0 | N85: 0.00194316 | O85: 0 | P85: 0 | Q85: 0.001934
A86: =+Flujos!A86 -> 2032-03-13 | D86: 2032-03-13 | E86: 0.00542712 | F86: 0.00416042 | G86: 0.00548747 | H86: 0.00400634 | I86: 0.0063657 | J86: 0.00624317 | K86: 0.00557828 | L86: 0.0058078 | M86: 0 | N86: 0.00152815 | O86: 0 | P86: 0 | Q86: 0.00107118
A87: =+Flujos!A87 -> 2032-04-13 | D87: 2032-04-13 | E87: 0.00481406 | F87: 0.00384573 | G87: 0.00583204 | H87: 0.00424947 | I87: 0.00621007 | J87: 0.00613676 | K87: 0.00546969 | L87: 0.00595379 | M87: 0 | N87: 0.00179372 | O87: 0 | P87: 0 | Q87: 0.00178558
A88: =+Flujos!A88 -> 2032-05-13 | D88: 2032-05-13 | E88: 0.00396974 | F88: 0.00478712 | G88: 0.00341744 | H88: 0.00419093 | I88: 0.00555058 | J88: 0.00602523 | K88: 0.0053716 | L88: 0.0058785 | M88: 0 | N88: 0.00172541 | O88: 0 | P88: 0 | Q88: 0.00172115
A89: =+Flujos!A89 -> 2032-06-13 | D89: 2032-06-13 | E89: 0.00603652 | F89: 0.00432551 | G89: 0.00589013 | H89: 0.00413296 | I89: 0.00588579 | J89: 0.0059288 | K89: 0.00526452 | L89: 0.00578338 | M89: 0 | N89: 0.00165945 | O89: 0 | P89: 0 | Q89: 0.00166051
A90: =+Flujos!A90 -> 2032-07-13 | D90: 2032-07-13 | E90: 0.0053256 | F90: 0.00391349 | G90: 0.00044412 | H90: 0 | I90: 0.0057383 | J90: 0.00584109 | K90: 0.00516655 | L90: 0.00570478 | M90: 0 | N90: 0.00159641 | O90: 0 | P90: 0 | Q90: 0.00160123
A91: =+Flujos!A91 -> 2032-08-13 | D91: 2032-08-13 | E91: 0.0043832 | F91: 0.00446803 | G91: 0 | H91: 0 | I91: 0.00557558 | J91: 0.00571682 | K91: 0.00507413 | L91: 0.00562707 | M91: 0 | N91: 0.00153603 | O91: 0 | P91: 0 | Q91: 0.00168044
A92: =+Flujos!A92 -> 2032-09-13 | D92: 2032-09-13 | E92: 0.00584916 | F92: 0.00378612 | G92: 0 | H92: 0 | I92: 0.00543855 | J92: 0.00562743 | K92: 0.00464454 | L92: 0.00555327 | M92: 0 | N92: 0.00147417 | O92: 0 | P92: 0 | Q92: 0
A93: =+Flujos!A93 -> 2032-10-13 | D93: 2032-10-13 | E93: 0.00420411 | F93: 0.00378136 | G93: 0 | H93: 0 | I93: 0.00530768 | J93: 0.00554555 | K93: 0.00492304 | L93: 0.00547959 | M93: 0 | N93: 0.01880557 | O93: 0 | P93: 0 | Q93: 0
A94: =+Flujos!A94 -> 2032-11-13 | D94: 2032-11-13 | E94: 0.00451446 | F94: 0.0042247 | G94: 0 | H94: 0 | I94: 0.00517348 | J94: 0.00547494 | K94: 0.00483256 | L94: 0.0053992 | M94: 0 | N94: 0 | O94: 0 | P94: 0 | Q94: 0
A95: =+Flujos!A95 -> 2032-12-13 | D95: 2032-12-13 | E95: 0.00523661 | F95: 0.00386474 | G95: 0 | H95: 0 | I95: 0.00504171 | J95: 0.00540113 | K95: 0.00474061 | L95: 0.00532489 | M95: 0 | N95: 0 | O95: 0 | P95: 0 | Q95: 0
A96: =+Flujos!A96 -> 2033-01-13 | D96: 2033-01-13 | E96: 0.00454081 | F96: 0.00488961 | G96: 0 | H96: 0 | I96: 0.00492383 | J96: 0.00479531 | K96: 0.00466139 | L96: 0.00524572 | M96: 0 | N96: 0 | O96: 0 | P96: 0 | Q96: 0
A97: =+Flujos!A97 -> 2033-02-13 | D97: 2033-02-13 | E97: 0.00487808 | F97: 0.00231702 | G97: 0 | H97: 0 | I97: 0.00481068 | J97: 0.00522506 | K97: 0.00457433 | L97: 0.00516855 | M97: 0 | N97: 0 | O97: 0 | P97: 0 | Q97: 0
A98: =+Flujos!A98 -> 2033-03-13 | D98: 2033-03-13 | E98: 0.00433621 | F98: 0 | G98: 0 | H98: 0 | I98: 0.00469753 | J98: 0.005138 | K98: 0.00447269 | L98: 0.0048471 | M98: 0 | N98: 0 | O98: 0 | P98: 0 | Q98: 0
A99: =+Flujos!A99 -> 2033-04-13 | B99: =+VLOOKUP(A99,$D$2:$N$182,MATCH($B$2,$D$2:$N$2,0),FALSE) ->  | D99: 2033-04-13 | E99: 0.00532813 | F99: 0 | G99: 0 | H99: 0 | I99: 0.00458615 | J99: 0.00505876 | K99: 0.00437471 | L99: 0.00499818 | M99: 0 | N99: 0 | O99: 0 | P99: 0 | Q99: 0
A100: =+Flujos!A100 -> 2033-05-13 | D100: 2033-05-13 | E100: 0.0049703 | F100: 0 | G100: 0 | H100: 0 | I100: 0.00396052 | J100: 0.00498817 | K100: 0.00428986 | L100: 0.00489621 | M100: 0 | N100: 0 | O100: 0 | P100: 0 | Q100: 0
A101: =+Flujos!A101 -> 2033-06-13 | D101: 2033-06-13 | E101: 0.00430467 | F101: 0 | G101: 0 | H101: 0 | I101: 0.00437468 | J101: 0.00491256 | K101: 0.00422044 | L101: 0.00477401 | M101: 0 | N101: 0 | O101: 0 | P101: 0 | Q101: 0
A102: =+Flujos!A102 -> 2033-07-13 | D102: 2033-07-13 | E102: 0.00419961 | F102: 0 | G102: 0 | H102: 0 | I102: 0.00427882 | J102: 0.00484893 | K102: 0.00413111 | L102: 0 | M102: 0 | N102: 0 | O102: 0 | P102: 0 | Q102: 0
A103: =+Flujos!A103 -> 2033-08-13 | D103: 2033-08-13 | E103: 0.00106811 | F103: 0 | G103: 0 | H103: 0 | I103: 0.00418626 | J103: 0.00479119 | K103: 0.00402988 | L103: 0 | M103: 0 | N103: 0 | O103: 0 | P103: 0 | Q103: 0
A104: =+Flujos!A104 -> 2033-09-13 | D104: 2033-09-13 | E104: 0 | F104: 0 | G104: 0 | H104: 0 | I104: 0.00298355 | J104: 0.00473542 | K104: 0.00090024 | L104: 0 | M104: 0 | N104: 0 | O104: 0 | P104: 0 | Q104: 0
A105: =+Flujos!A105 -> 2033-10-13 | D105: 2033-10-13 | E105: 0 | F105: 0 | G105: 0 | H105: 0 | I105: 0 | J105: 0.00468313 | K105: 0 | L105: 0 | M105: 0 | N105: 0 | O105: 0 | P105: 0 | Q105: 0
A106: =+Flujos!A106 -> 2033-11-13 | D106: 2033-11-13 | E106: 0 | F106: 0 | G106: 0 | H106: 0 | I106: 0 | J106: 0.00463089 | K106: 0 | L106: 0 | M106: 0 | N106: 0 | O106: 0 | P106: 0 | Q106: 0
A107: =+Flujos!A107 -> 2033-12-13 | D107: 2033-12-13 | E107: 0 | F107: 0 | G107: 0 | H107: 0 | I107: 0 | J107: 0.00458177 | K107: 0 | L107: 0 | M107: 0 | N107: 0 | O107: 0 | P107: 0 | Q107: 0
A108: =+Flujos!A108 -> 2034-01-13 | D108: 2034-01-13 | E108: 0 | F108: 0 | G108: 0 | H108: 0 | I108: 0 | J108: 0.0039788 | K108: 0 | L108: 0 | M108: 0 | N108: 0 | O108: 0 | P108: 0 | Q108: 0
A109: =+Flujos!A109 -> 2034-02-13 | D109: 2034-02-13 | E109: 0 | F109: 0 | G109: 0 | H109: 0 | I109: 0 | J109: 0.00447187 | K109: 0 | L109: 0 | M109: 0 | N109: 0 | O109: 0 | P109: 0 | Q109: 0
A110: =+Flujos!A110 -> 2034-03-13 | D110: 2034-03-13 | E110: 0 | F110: 0 | G110: 0 | H110: 0 | I110: 0 | J110: 0.00441838 | K110: 0 | L110: 0 | M110: 0 | N110: 0 | O110: 0 | P110: 0 | Q110: 0
A111: =+Flujos!A111 -> 2034-04-13 | D111: 2034-04-13 | E111: 0 | F111: 0 | G111: 0 | H111: 0 | I111: 0 | J111: 0.00436215 | K111: 0 | L111: 0 | M111: 0 | N111: 0 | O111: 0 | P111: 0 | Q111: 0
A112: =+Flujos!A112 -> 2034-05-13 | D112: 2034-05-13 | E112: 0 | F112: 0 | G112: 0 | H112: 0 | I112: 0 | J112: 0.00430732 | K112: 0 | L112: 0 | M112: 0 | N112: 0 | O112: 0 | P112: 0 | Q112: 0
A113: =+Flujos!A113 -> 2034-06-13 | D113: 2034-06-13 | E113: 0 | F113: 0 | G113: 0 | H113: 0 | I113: 0 | J113: 0.00424998 | K113: 0 | L113: 0 | M113: 0 | N113: 0 | O113: 0 | P113: 0 | Q113: 0
A114: =+Flujos!A114 -> 2034-07-13 | D114: 2034-07-13 | E114: 0 | F114: 0 | G114: 0 | H114: 0 | I114: 0 | J114: 0.00419358 | K114: 0 | L114: 0 | M114: 0 | N114: 0 | O114: 0 | P114: 0 | Q114: 0
A115: =+Flujos!A115 -> 2034-08-13 | D115: 2034-08-13 | E115: 0 | F115: 0 | G115: 0 | H115: 0 | I115: 0 | J115: 0.00414044 | K115: 0 | L115: 0 | M115: 0 | N115: 0 | O115: 0 | P115: 0 | Q115: 0
A116: =+Flujos!A116 -> 2034-09-13 | D116: 2034-09-13 | E116: 0 | F116: 0 | G116: 0 | H116: 0 | I116: 0 | J116: 0.00407697 | K116: 0 | L116: 0 | M116: 0 | N116: 0 | O116: 0 | P116: 0 | Q116: 0
A117: =+Flujos!A117 -> 2034-10-13 | D117: 2034-10-13 | E117: 0 | F117: 0 | G117: 0 | H117: 0 | I117: 0 | J117: 0.00401971 | K117: 0 | L117: 0 | M117: 0 | N117: 0 | O117: 0 | P117: 0 | Q117: 0
A118: =+Flujos!A118 -> 2034-11-13 | D118: 2034-11-13 | E118: 0 | F118: 0 | G118: 0 | H118: 0 | I118: 0 | J118: 0.003966 | K118: 0 | L118: 0.00295197 | M118: 0 | N118: 0 | O118: 0 | P118: 0 | Q118: 0
A119: =+Flujos!A119 -> 2034-12-13 | D119: 2034-12-13 | E119: 0 | F119: 0 | G119: 0 | H119: 0 | I119: 0 | J119: 8.174e-05 | K119: 0 | L119: 0.00343188 | M119: 0 | N119: 0 | O119: 0 | P119: 0 | Q119: 0
A120: =+Flujos!A120 -> 2035-01-13 | D120: 2035-01-13 | E120: 0 | F120: 0 | G120: 0 | H120: 0 | I120: 0 | J120: 0 | K120: 0 | L120: 0.00339031 | M120: 0 | N120: 0 | O120: 0 | P120: 0 | Q120: 0
A121: =+Flujos!A121 -> 2035-02-13 | D121: 2035-02-13 | E121: 0 | F121: 0 | G121: 0 | H121: 0 | I121: 0 | J121: 0 | K121: 0 | L121: 0.00335163 | M121: 0 | N121: 0 | O121: 0 | P121: 0 | Q121: 0
A122: =+Flujos!A122 -> 2035-03-13 | D122: 2035-03-13 | E122: 0 | F122: 0 | G122: 0 | H122: 0 | I122: 0 | J122: 0 | K122: 0 | L122: 0.0030328 | M122: 0 | N122: 0 | O122: 0 | P122: 0 | Q122: 0
A123: =+Flujos!A123 -> 2035-04-13 | D123: 2035-04-13 | E123: 0 | F123: 0 | G123: 0 | H123: 0 | I123: 0 | J123: 0 | K123: 0 | L123: 0.00326853 | M123: 0 | N123: 0 | O123: 0 | P123: 0 | Q123: 0
A124: =+Flujos!A124 -> 2035-05-13 | D124: 2035-05-13 | E124: 0 | F124: 0 | G124: 0 | H124: 0 | I124: 0 | J124: 0 | K124: 0 | L124: 0.00077791 | M124: 0 | N124: 0 | O124: 0 | P124: 0 | Q124: 0
A125: =+Flujos!A125 -> 2035-06-13 | D125: 2035-06-13 | E125: 0 | F125: 0 | G125: 0 | H125: 0 | I125: 0 | J125: 0 | K125: 0 | L125: 0 | M125: 0 | N125: 0 | O125: 0 | P125: 0 | Q125: 0
A126: =+Flujos!A126 -> 2035-07-13 | D126: 2035-07-13 | E126: 0 | F126: 0 | G126: 0 | H126: 0 | I126: 0 | J126: 0 | K126: 0 | L126: 0 | M126: 0 | N126: 0 | O126: 0 | P126: 0 | Q126: 0
A127: =+Flujos!A127 -> 2035-08-13 | D127: 2035-08-13 | E127: 0 | F127: 0 | G127: 0 | H127: 0 | I127: 0 | J127: 0 | K127: 0 | L127: 0 | M127: 0 | N127: 0 | O127: 0 | P127: 0 | Q127: 0
A128: =+Flujos!A128 -> 2035-09-13 | D128: 2035-09-13 | E128: 0 | F128: 0 | G128: 0 | H128: 0 | I128: 0 | J128: 0 | K128: 0 | L128: 0 | M128: 0 | N128: 0 | O128: 0 | P128: 0 | Q128: 0
A129: =+Flujos!A129 -> 2035-10-13 | D129: 2035-10-13 | E129: 0 | F129: 0 | G129: 0 | H129: 0 | I129: 0 | J129: 0 | K129: 0 | L129: 0 | M129: 0 | N129: 0 | O129: 0 | P129: 0 | Q129: 0
A130: =+Flujos!A130 -> 2035-11-13 | D130: 2035-11-13 | E130: 0 | F130: 0 | G130: 0 | H130: 0 | I130: 0 | J130: 0 | K130: 0 | L130: 0 | M130: 0 | N130: 0 | O130: 0 | P130: 0 | Q130: 0
A131: =+Flujos!A131 -> 2035-12-13 | B131: =+VLOOKUP(A131,$D$2:$N$182,MATCH($B$2,$D$2:$N$2,0),FALSE) ->  | D131: 2035-12-13 | E131: 0 | F131: 0 | G131: 0 | H131: 0 | I131: 0 | J131: 0 | K131: 0 | L131: 0 | M131: 0 | N131: 0 | O131: 0 | P131: 0 | Q131: 0
A132: =+Flujos!A132 -> 2036-01-13 | D132: =+A132 -> 2036-01-13 | E132: 0 | F132: 0 | G132: 0 | H132: 0 | I132: 0 | J132: 0 | K132: 0 | L132: 0 | M132: 0 | N132: 0 | O132: 0 | P132: 0 | Q132: 0
A133: =+Flujos!A133 -> 2036-02-13 | D133: 2036-02-13 | E133: 0 | F133: 0 | G133: 0 | H133: 0 | I133: 0 | J133: 0 | K133: 0 | L133: 0 | M133: 0 | N133: 0 | O133: 0 | P133: 0 | Q133: 0
A134: =+Flujos!A134 -> 2036-03-13 | D134: 2036-03-13 | E134: 0 | F134: 0 | G134: 0 | H134: 0 | I134: 0 | J134: 0 | K134: 0 | L134: 0 | M134: 0 | N134: 0 | O134: 0 | P134: 0 | Q134: 0
A135: =+Flujos!A135 -> 2036-04-13 | D135: 2036-04-13 | E135: 0 | F135: 0 | G135: 0 | H135: 0 | I135: 0 | J135: 0 | K135: 0 | L135: 0 | M135: 0 | N135: 0 | O135: 0 | P135: 0 | Q135: 0
A136: =+Flujos!A136 -> 2036-05-13 | D136: 2036-05-13 | E136: 0 | F136: 0 | G136: 0 | H136: 0 | I136: 0 | J136: 0 | K136: 0 | L136: 0 | M136: 0 | N136: 0 | O136: 0 | P136: 0 | Q136: 0
A137: =+Flujos!A137 -> 2036-06-13 | D137: 2036-06-13 | E137: 0 | F137: 0 | G137: 0 | H137: 0 | I137: 0 | J137: 0 | K137: 0 | L137: 0 | M137: 0 | N137: 0 | O137: 0 | P137: 0 | Q137: 0
A138: =+Flujos!A138 -> 2036-07-13 | D138: 2036-07-13 | E138: 0 | F138: 0 | G138: 0 | H138: 0 | I138: 0 | J138: 0 | K138: 0 | L138: 0 | M138: 0 | N138: 0 | O138: 0 | P138: 0 | Q138: 0
A139: =+Flujos!A139 -> 2036-08-13 | D139: 2036-08-13 | E139: 0 | F139: 0 | G139: 0 | H139: 0 | I139: 0 | J139: 0 | K139: 0 | L139: 0 | M139: 0 | N139: 0 | O139: 0 | P139: 0 | Q139: 0
A140: =+Flujos!A140 -> 2036-09-13 | D140: 2036-09-13 | E140: 0 | F140: 0 | G140: 0 | H140: 0 | I140: 0 | J140: 0 | K140: 0 | L140: 0 | M140: 0 | N140: 0 | O140: 0 | P140: 0 | Q140: 0
A141: =+Flujos!A141 -> 2036-10-13 | D141: 2036-10-13 | E141: 0 | F141: 0 | G141: 0 | H141: 0 | I141: 0 | J141: 0 | K141: 0 | L141: 0 | M141: 0 | N141: 0 | O141: 0 | P141: 0 | Q141: 0
A142: =+Flujos!A142 -> 2036-11-13 | D142: 2036-11-13 | E142: 0 | F142: 0 | G142: 0 | H142: 0 | I142: 0 | J142: 0 | K142: 0 | L142: 0 | M142: 0 | N142: 0 | O142: 0 | P142: 0 | Q142: 0
A143: =+Flujos!A143 -> 2036-12-13 | D143: 2036-12-13 | E143: 0 | F143: 0 | G143: 0 | H143: 0 | I143: 0 | J143: 0 | K143: 0 | L143: 0 | M143: 0 | N143: 0 | O143: 0 | P143: 0 | Q143: 0
A144: =+Flujos!A144 -> 2037-01-13 | D144: 2037-01-13 | E144: 0 | F144: 0 | G144: 0 | H144: 0 | I144: 0 | J144: 0 | K144: 0 | L144: 0 | M144: 0 | N144: 0 | O144: 0 | P144: 0 | Q144: 0
A145: =+Flujos!A145 -> 2037-02-13 | D145: 2037-02-13 | E145: 0 | F145: 0 | G145: 0 | H145: 0 | I145: 0 | J145: 0 | K145: 0 | L145: 0 | M145: 0 | N145: 0 | O145: 0 | P145: 0 | Q145: 0
A146: =+Flujos!A146 -> 2037-03-13 | D146: 2037-03-13 | E146: 0 | F146: 0 | G146: 0 | H146: 0 | I146: 0 | J146: 0 | K146: 0 | L146: 0 | M146: 0 | N146: 0 | O146: 0 | P146: 0 | Q146: 0
A147: =+Flujos!A147 -> 2037-04-13 | D147: 2037-04-13 | E147: 0 | F147: 0 | G147: 0 | H147: 0 | I147: 0 | J147: 0 | K147: 0 | L147: 0 | M147: 0 | N147: 0 | O147: 0 | P147: 0 | Q147: 0
A148: =+Flujos!A148 -> 2037-05-13 | D148: 2037-05-13 | E148: 0 | F148: 0 | G148: 0 | H148: 0 | I148: 0 | J148: 0 | K148: 0 | L148: 0 | M148: 0 | N148: 0 | O148: 0 | P148: 0 | Q148: 0
A149: =+Flujos!A149 -> 2037-06-13 | D149: 2037-06-13 | E149: 0 | F149: 0 | G149: 0 | H149: 0 | I149: 0 | J149: 0 | K149: 0 | L149: 0 | M149: 0 | N149: 0 | O149: 0 | P149: 0 | Q149: 0
A150: =+Flujos!A150 -> 2037-07-13 | D150: 2037-07-13 | E150: 0 | F150: 0 | G150: 0 | H150: 0 | I150: 0 | J150: 0 | K150: 0 | L150: 0 | M150: 0 | N150: 0 | O150: 0 | P150: 0 | Q150: 0
A151: =+Flujos!A151 -> 2037-08-13 | D151: 2037-08-13 | E151: 0 | F151: 0 | G151: 0 | H151: 0 | I151: 0 | J151: 0 | K151: 0 | L151: 0 | M151: 0 | N151: 0 | O151: 0 | P151: 0 | Q151: 0
A152: =+Flujos!A152 -> 2037-09-13 | D152: 2037-09-13 | E152: 0 | F152: 0 | G152: 0 | H152: 0 | I152: 0 | J152: 0 | K152: 0 | L152: 0 | M152: 0 | N152: 0 | O152: 0 | P152: 0 | Q152: 0
A153: =+Flujos!A153 -> 2037-10-13 | D153: 2037-10-13 | E153: 0 | F153: 0 | G153: 0 | H153: 0 | I153: 0 | J153: 0 | K153: 0 | L153: 0 | M153: 0 | N153: 0 | O153: 0 | P153: 0 | Q153: 0
A154: =+Flujos!A154 -> 2037-11-13 | D154: 2037-11-13 | E154: 0 | F154: 0 | G154: 0 | H154: 0 | I154: 0 | J154: 0 | K154: 0 | L154: 0 | M154: 0 | N154: 0 | O154: 0 | P154: 0 | Q154: 0
A155: =+Flujos!A155 -> 2037-12-13 | D155: 2037-12-13 | E155: 0 | F155: 0 | G155: 0 | H155: 0 | I155: 0 | J155: 0 | K155: 0 | L155: 0 | M155: 0 | N155: 0 | O155: 0 | P155: 0 | Q155: 0
A156: =+Flujos!A156 -> 2038-01-13 | D156: 2038-01-13 | E156: 0 | F156: 0 | G156: 0 | H156: 0 | I156: 0 | J156: 0 | K156: 0 | L156: 0 | M156: 0 | N156: 0 | O156: 0 | P156: 0 | Q156: 0
A157: =+Flujos!A157 -> 2038-02-13 | D157: 2038-02-13 | E157: 0 | F157: 0 | G157: 0 | H157: 0 | I157: 0 | J157: 0 | K157: 0 | L157: 0 | M157: 0 | N157: 0 | O157: 0 | P157: 0 | Q157: 0
A158: =+Flujos!A158 -> 2038-03-13 | D158: 2038-03-13 | E158: 0 | F158: 0 | G158: 0 | H158: 0 | I158: 0 | J158: 0 | K158: 0 | L158: 0 | M158: 0 | N158: 0 | O158: 0 | P158: 0 | Q158: 0
A159: =+Flujos!A159 -> 2038-04-13 | D159: 2038-04-13 | E159: 0 | F159: 0 | G159: 0 | H159: 0 | I159: 0 | J159: 0 | K159: 0 | L159: 0 | M159: 0 | N159: 0 | O159: 0 | P159: 0 | Q159: 0
A160: =+Flujos!A160 -> 2038-05-13 | D160: 2038-05-13 | E160: 0 | F160: 0 | G160: 0 | H160: 0 | I160: 0 | J160: 0 | K160: 0 | L160: 0 | M160: 0 | N160: 0 | O160: 0 | P160: 0 | Q160: 0
A161: =+Flujos!A161 -> 2038-06-13 | D161: 2038-06-13 | E161: 0 | F161: 0 | G161: 0 | H161: 0 | I161: 0 | J161: 0 | K161: 0 | L161: 0 | M161: 0 | N161: 0 | O161: 0 | P161: 0 | Q161: 0
A162: =+Flujos!A162 -> 2038-07-13 | D162: 2038-07-13 | E162: 0 | F162: 0 | G162: 0 | H162: 0 | I162: 0 | J162: 0 | K162: 0 | L162: 0 | M162: 0 | N162: 0 | O162: 0 | P162: 0 | Q162: 0
A163: =+Flujos!A163 -> 2038-08-13 | B163: =+VLOOKUP(A163,$D$2:$N$182,MATCH($B$2,$D$2:$N$2,0),FALSE) ->  | D163: 2038-08-13 | E163: 0 | F163: 0 | G163: 0 | H163: 0 | I163: 0 | J163: 0 | K163: 0 | L163: 0 | M163: 0 | N163: 0 | O163: 0 | P163: 0 | Q163: 0
A164: =+Flujos!A164 -> 2038-09-13 | D164: 2038-09-13 | E164: 0 | F164: 0 | G164: 0 | H164: 0 | I164: 0 | J164: 0 | K164: 0 | L164: 0 | M164: 0 | N164: 0 | O164: 0 | P164: 0 | Q164: 0
A165: =+Flujos!A165 -> 2038-10-13 | D165: 2038-10-13 | E165: 0 | F165: 0 | G165: 0 | H165: 0 | I165: 0 | J165: 0 | K165: 0 | L165: 0 | M165: 0 | N165: 0 | O165: 0 | P165: 0 | Q165: 0
A166: =+Flujos!A166 -> 2038-11-13 | D166: 2038-11-13 | E166: 0 | F166: 0 | G166: 0 | H166: 0 | I166: 0 | J166: 0 | K166: 0 | L166: 0 | M166: 0 | N166: 0 | O166: 0 | P166: 0 | Q166: 0
A167: =+Flujos!A167 -> 2038-12-13 | D167: 2038-12-13 | E167: 0 | F167: 0 | G167: 0 | H167: 0 | I167: 0 | J167: 0 | K167: 0 | L167: 0 | M167: 0 | N167: 0 | O167: 0 | P167: 0 | Q167: 0
A168: =+Flujos!A168 -> 2039-01-13 | D168: 2039-01-13 | E168: 0 | F168: 0 | G168: 0 | H168: 0 | I168: 0 | J168: 0 | K168: 0 | L168: 0 | M168: 0 | N168: 0 | O168: 0 | P168: 0 | Q168: 0
A169: =+Flujos!A169 -> 2039-02-13 | D169: 2039-02-13 | E169: 0 | F169: 0 | G169: 0 | H169: 0 | I169: 0 | J169: 0 | K169: 0 | L169: 0 | M169: 0 | N169: 0 | O169: 0 | P169: 0 | Q169: 0
A170: =+Flujos!A170 -> 2039-03-13 | D170: 2039-03-13 | E170: 0 | F170: 0 | G170: 0 | H170: 0 | I170: 0 | J170: 0 | K170: 0 | L170: 0 | M170: 0 | N170: 0 | O170: 0 | P170: 0 | Q170: 0
A171: =+Flujos!A171 -> 2039-04-13 | D171: 2039-04-13 | E171: 0 | F171: 0 | G171: 0 | H171: 0 | I171: 0 | J171: 0 | K171: 0 | L171: 0 | M171: 0 | N171: 0 | O171: 0 | P171: 0 | Q171: 0
A172: =+Flujos!A172 -> 2039-05-13 | D172: 2039-05-13 | E172: 0 | F172: 0 | G172: 0 | H172: 0 | I172: 0 | J172: 0 | K172: 0 | L172: 0 | M172: 0 | N172: 0 | O172: 0 | P172: 0 | Q172: 0
A173: =+Flujos!A173 -> 2039-06-13 | D173: 2039-06-13 | E173: 0 | F173: 0 | G173: 0 | H173: 0 | I173: 0 | J173: 0 | K173: 0 | L173: 0 | M173: 0 | N173: 0 | O173: 0 | P173: 0 | Q173: 0
A174: =+Flujos!A174 -> 2039-07-13 | D174: 2039-07-13 | E174: 0 | F174: 0 | G174: 0 | H174: 0 | I174: 0 | J174: 0 | K174: 0 | L174: 0 | M174: 0 | N174: 0 | O174: 0 | P174: 0 | Q174: 0
A175: =+Flujos!A175 -> 2039-08-13 | D175: 2039-08-13 | E175: 0 | F175: 0 | G175: 0 | H175: 0 | I175: 0 | J175: 0 | K175: 0 | L175: 0 | M175: 0 | N175: 0 | O175: 0 | P175: 0 | Q175: 0
A176: =+Flujos!A176 -> 2039-09-13 | D176: 2039-09-13 | E176: 0 | F176: 0 | G176: 0 | H176: 0 | I176: 0 | J176: 0 | K176: 0 | L176: 0 | M176: 0 | N176: 0 | O176: 0 | P176: 0 | Q176: 0
A177: =+Flujos!A177 -> 2039-10-13 | D177: 2039-10-13 | E177: 0 | F177: 0 | G177: 0 | H177: 0 | I177: 0 | J177: 0 | K177: 0 | L177: 0 | M177: 0 | N177: 0 | O177: 0 | P177: 0 | Q177: 0
A178: =+Flujos!A178 -> 2039-11-13 | D178: 2039-11-13 | E178: 0 | F178: 0 | G178: 0 | H178: 0 | I178: 0 | J178: 0 | K178: 0 | L178: 0 | M178: 0 | N178: 0 | O178: 0 | P178: 0 | Q178: 0
A179: =+Flujos!A179 -> 2039-12-13 | D179: 2039-12-13 | E179: 0 | F179: 0 | G179: 0 | H179: 0 | I179: 0 | J179: 0 | K179: 0 | L179: 0 | M179: 0 | N179: 0 | O179: 0 | P179: 0 | Q179: 0
A180: =+Flujos!A180 -> 2040-01-13 | D180: 2040-01-13 | E180: 0 | F180: 0 | G180: 0 | H180: 0 | I180: 0 | J180: 0 | K180: 0 | L180: 0 | M180: 0 | N180: 0 | O180: 0 | P180: 0 | Q180: 0
A181: =+Flujos!A181 -> 2040-02-13 | D181: 2040-02-13 | E181: 0 | F181: 0 | G181: 0 | H181: 0 | I181: 0 | J181: 0 | K181: 0 | L181: 0 | M181: 0 | N181: 0 | O181: 0 | P181: 0 | Q181: 0
A182: =+Flujos!A182 -> 2040-03-13 | D182: 2040-03-13 | E182: 0 | F182: 0 | G182: 0 | H182: 0 | I182: 0 | J182: 0 | K182: 0 | L182: 0 | M182: 0 | N182: 0 | O182: 0 | P182: 0 | Q182: 0
E183: =SUM(E3:E182) -> 1 | F183: 1 | G183: 1 | H183: 1 | I183: 1 | J183: 1 | K183: 1 | L183: =SUM(L3:L182) -> 1 | M183: =SUM(M3:M182) -> 1 | N183: 1 | O183: 1 | P183: 1 | Q183: 1
E184: =1-E183 -> 0 | F184: 0 | G184: 0 | H184: 0 | I184: 0 | J184: 0 | K184: 0 | L184: =1-L183 -> 0 | M184: =1-M183 -> 0 | N184: 0 | O184: 0 | P184: 0 | Q184: 0

Sheet Tablas (hidden)
A1: FECHA | B1: =+CALCULADORA!C9 -> TIPS N25 A | C1: Valoración
A2: =+'Tabla de Amortizacion'!A3 -> 2025-04-13 | B2: =+ROUND(C2,8) -> 0.03800132 | C2: =+VLOOKUP(A2,'Tabla de Amortizacion'!$D$2:$Q$182,MATCH(Tablas!$B$1,'Tabla de Amortizacion'!$D$2:$Q$2,0)) -> 0.03800132 | E2: =IF([1]CALCULADORA!$F$10="Contractual",ROUND('[1]Tabla de Amortizacion'!C3,8),IF([1]CALCULADORA!$F$10="6% (Medio)",ROUND('[1]Tabla de Amortizacion'!F3,8),IF([1]CALCULADORA!$F$10="10% (Medio Alto)",ROUND('[1]Tabla de Amortizacion'!H3,8),IF([1]CALCULADORA!$F$10="14% (Alto)",ROUND('[1]Tabla de Amortizacion'!#REF!,8),IF([1]CALCULADORA!$F$10=20%,ROUND('[1]Tabla de Amortizacion'!#REF!,8),ROUND('[1]Tabla de Amortizacion'!K3,8)))))) -> 0
A3: =EDATE(A2,1) -> 2025-05-13 | B3: =+ROUND(C3,8) -> 0.03657926 | C3: =+VLOOKUP(A3,'Tabla de Amortizacion'!$D$2:$Q$182,MATCH(Tablas!$B$1,'Tabla de Amortizacion'!$D$2:$Q$2,0)) -> 0.03657926 | E3: =IF([1]CALCULADORA!$F$10="Contractual",ROUND('[1]Tabla de Amortizacion'!C4,8),IF([1]CALCULADORA!$F$10="6% (Medio)",ROUND('[1]Tabla de Amortizacion'!F4,8),IF([1]CALCULADORA!$F$10="10% (Medio Alto)",ROUND('[1]Tabla de Amortizacion'!H4,8),IF([1]CALCULADORA!$F$10="14% (Alto)",ROUND('[1]Tabla de Amortizacion'!#REF!,8),IF([1]CALCULADORA!$F$10=20%,ROUND('[1]Tabla de Amortizacion'!#REF!,8),ROUND('[1]Tabla de Amortizacion'!K4,8)))))) -> 0
A4: 2025-06-13 | B4: 0.03520919 | C4: =+VLOOKUP(A4,'Tabla de Amortizacion'!$D$2:$Q$182,MATCH(Tablas!$B$1,'Tabla de Amortizacion'!$D$2:$Q$2,0)) -> 0.03520919 | E4: =IF([1]CALCULADORA!$F$10="Contractual",ROUND('[1]Tabla de Amortizacion'!C5,8),IF([1]CALCULADORA!$F$10="6% (Medio)",ROUND('[1]Tabla de Amortizacion'!F5,8),IF([1]CALCULADORA!$F$10="10% (Medio Alto)",ROUND('[1]Tabla de Amortizacion'!H5,8),IF([1]CALCULADORA!$F$10="14% (Alto)",ROUND('[1]Tabla de Amortizacion'!#REF!,8),IF([1]CALCULADORA!$F$10=20%,ROUND('[1]Tabla de Amortizacion'!#REF!,8),ROUND('[1]Tabla de Amortizacion'!K5,8)))))) -> 0
A5: 2025-07-13 | B5: 0.03880766 | C5: =+VLOOKUP(A5,'Tabla de Amortizacion'!$D$2:$Q$182,MATCH(Tablas!$B$1,'Tabla de Amortizacion'!$D$2:$Q$2,0)) -> 0.03880766 | E5: =IF([1]CALCULADORA!$F$10="Contractual",ROUND('[1]Tabla de Amortizacion'!C6,8),IF([1]CALCULADORA!$F$10="6% (Medio)",ROUND('[1]Tabla de Amortizacion'!F6,8),IF([1]CALCULADORA!$F$10="10% (Medio Alto)",ROUND('[1]Tabla de Amortizacion'!H6,8),IF([1]CALCULADORA!$F$10="14% (Alto)",ROUND('[1]Tabla de Amortizacion'!#REF!,8),IF([1]CALCULADORA!$F$10=20%,ROUND('[1]Tabla de Amortizacion'!#REF!,8),ROUND('[1]Tabla de Amortizacion'!K6,8)))))) -> 0
A6: 2025-08-13 | B6: 0.03393076 | C6: =+VLOOKUP(A6,'Tabla de Amortizacion'!$D$2:$Q$182,MATCH(Tablas!$B$1,'Tabla de Amortizacion'!$D$2:$Q$2,0)) -> 0.03393076 | E6: =IF([1]CALCULADORA!$F$10="Contractual",ROUND('[1]Tabla de Amortizacion'!C7,8),IF([1]CALCULADORA!$F$10="6% (Medio)",ROUND('[1]Tabla de Amortizacion'!F7,8),IF([1]CALCULADORA!$F$10="10% (Medio Alto)",ROUND('[1]Tabla de Amortizacion'!H7,8),IF([1]CALCULADORA!$F$10="14% (Alto)",ROUND('[1]Tabla de Amortizacion'!#REF!,8),IF([1]CALCULADORA!$F$10=20%,ROUND('[1]Tabla de Amortizacion'!#REF!,8),ROUND('[1]Tabla de Amortizacion'!K7,8)))))) -> 0
A7: 2025-09-13 | B7: 0.03252335 | C7: =+VLOOKUP(A7,'Tabla de Amortizacion'!$D$2:$Q$182,MATCH(Tablas!$B$1,'Tabla de Amortizacion'!$D$2:$Q$2,0)) -> 0.03252335 | E7: =IF([1]CALCULADORA!$F$10="Contractual",ROUND('[1]Tabla de Amortizacion'!C8,8),IF([1]CALCULADORA!$F$10="6% (Medio)",ROUND('[1]Tabla de Amortizacion'!F8,8),IF([1]CALCULADORA!$F$10="10% (Medio Alto)",ROUND('[1]Tabla de Amortizacion'!H8,8),IF([1]CALCULADORA!$F$10="14% (Alto)",ROUND('[1]Tabla de Amortizacion'!#REF!,8),IF([1]CALCULADORA!$F$10=20%,ROUND('[1]Tabla de Amortizacion'!#REF!,8),ROUND('[1]Tabla de Amortizacion'!K8,8)))))) -> 0
A8: 2025-10-13 | B8: 0.03130191 | C8: =+VLOOKUP(A8,'Tabla de Amortizacion'!$D$2:$Q$182,MATCH(Tablas!$B$1,'Tabla de Amortizacion'!$D$2:$Q$2,0)) -> 0.03130191 | E8: =IF([1]CALCULADORA!$F$10="Contractual",ROUND('[1]Tabla de Amortizacion'!C9,8),IF([1]CALCULADORA!$F$10="6% (Medio)",ROUND('[1]Tabla de Amortizacion'!F9,8),IF([1]CALCULADORA!$F$10="10% (Medio Alto)",ROUND('[1]Tabla de Amortizacion'!H9,8),IF([1]CALCULADORA!$F$10="14% (Alto)",ROUND('[1]Tabla de Amortizacion'!#REF!,8),IF([1]CALCULADORA!$F$10=20%,ROUND('[1]Tabla de Amortizacion'!#REF!,8),ROUND('[1]Tabla de Amortizacion'!K9,8)))))) -> 0
A9: 2025-11-13 | B9: 0.03013207 | C9: =+VLOOKUP(A9,'Tabla de Amortizacion'!$D$2:$Q$182,MATCH(Tablas!$B$1,'Tabla de Amortizacion'!$D$2:$Q$2,0)) -> 0.03013207 | E9: =IF([1]CALCULADORA!$F$10="Contractual",ROUND('[1]Tabla de Amortizacion'!C10,8),IF([1]CALCULADORA!$F$10="6% (Medio)",ROUND('[1]Tabla de Amortizacion'!F10,8),IF([1]CALCULADORA!$F$10="10% (Medio Alto)",ROUND('[1]Tabla de Amortizacion'!H10,8),IF([1]CALCULADORA!$F$10="14% (Alto)",ROUND('[1]Tabla de Amortizacion'!#REF!,8),IF([1]CALCULADORA!$F$10=20%,ROUND('[1]Tabla de Amortizacion'!#REF!,8),ROUND('[1]Tabla de Amortizacion'!K10,8)))))) -> 0
A10: 2025-12-13 | B10: 0.02900918 | C10: =+VLOOKUP(A10,'Tabla de Amortizacion'!$D$2:$Q$182,MATCH(Tablas!$B$1,'Tabla de Amortizacion'!$D$2:$Q$2,0)) -> 0.02900918 | E10: =IF([1]CALCULADORA!$F$10="Contractual",ROUND('[1]Tabla de Amortizacion'!C11,8),IF([1]CALCULADORA!$F$10="6% (Medio)",ROUND('[1]Tabla de Amortizacion'!F11,8),IF([1]CALCULADORA!$F$10="10% (Medio Alto)",ROUND('[1]Tabla de Amortizacion'!H11,8),IF([1]CALCULADORA!$F$10="14% (Alto)",ROUND('[1]Tabla de Amortizacion'!#REF!,8),IF([1]CALCULADORA!$F$10=20%,ROUND('[1]Tabla de Amortizacion'!#REF!,8),ROUND('[1]Tabla de Amortizacion'!K11,8)))))) -> 0
A11: 2026-01-13 | B11: 0.02792213 | C11: =+VLOOKUP(A11,'Tabla de Amortizacion'!$D$2:$Q$182,MATCH(Tablas!$B$1,'Tabla de Amortizacion'!$D$2:$Q$2,0)) -> 0.02792213 | E11: =IF([1]CALCULADORA!$F$10="Contractual",ROUND('[1]Tabla de Amortizacion'!C12,8),IF([1]CALCULADORA!$F$10="6% (Medio)",ROUND('[1]Tabla de Amortizacion'!F12,8),IF([1]CALCULADORA!$F$10="10% (Medio Alto)",ROUND('[1]Tabla de Amortizacion'!H12,8),IF([1]CALCULADORA!$F$10="14% (Alto)",ROUND('[1]Tabla de Amortizacion'!#REF!,8),IF([1]CALCULADORA!$F$10=20%,ROUND('[1]Tabla de Amortizacion'!#REF!,8),ROUND('[1]Tabla de Amortizacion'!K12,8)))))) -> 0
A12: 2026-02-13 | B12: 0.02687402 | C12: =+VLOOKUP(A12,'Tabla de Amortizacion'!$D$2:$Q$182,MATCH(Tablas!$B$1,'Tabla de Amortizacion'!$D$2:$Q$2,0)) -> 0.02687402 | E12: =IF([1]CALCULADORA!$F$10="Contractual",ROUND('[1]Tabla de Amortizacion'!C13,8),IF([1]CALCULADORA!$F$10="6% (Medio)",ROUND('[1]Tabla de Amortizacion'!F13,8),IF([1]CALCULADORA!$F$10="10% (Medio Alto)",ROUND('[1]Tabla de Amortizacion'!H13,8),IF([1]CALCULADORA!$F$10="14% (Alto)",ROUND('[1]Tabla de Amortizacion'!#REF!,8),IF([1]CALCULADORA!$F$10=20%,ROUND('[1]Tabla de Amortizacion'!#REF!,8),ROUND('[1]Tabla de Amortizacion'!K13,8)))))) -> 0
A13: 2026-03-13 | B13: 0.02582833 | C13: =+VLOOKUP(A13,'Tabla de Amortizacion'!$D$2:$Q$182,MATCH(Tablas!$B$1,'Tabla de Amortizacion'!$D$2:$Q$2,0)) -> 0.02582833 | E13: =IF([1]CALCULADORA!$F$10="Contractual",ROUND('[1]Tabla de Amortizacion'!C14,8),IF([1]CALCULADORA!$F$10="6% (Medio)",ROUND('[1]Tabla de Amortizacion'!F14,8),IF([1]CALCULADORA!$F$10="10% (Medio Alto)",ROUND('[1]Tabla de Amortizacion'!H14,8),IF([1]CALCULADORA!$F$10="14% (Alto)",ROUND('[1]Tabla de Amortizacion'!#REF!,8),IF([1]CALCULADORA!$F$10=20%,ROUND('[1]Tabla de Amortizacion'!#REF!,8),ROUND('[1]Tabla de Amortizacion'!K14,8)))))) -> 0
A14: 2026-04-13 | B14: 0.02481811 | C14: =+VLOOKUP(A14,'Tabla de Amortizacion'!$D$2:$Q$182,MATCH(Tablas!$B$1,'Tabla de Amortizacion'!$D$2:$Q$2,0)) -> 0.02481811 | E14: =IF([1]CALCULADORA!$F$10="Contractual",ROUND('[1]Tabla de Amortizacion'!C15,8),IF([1]CALCULADORA!$F$10="6% (Medio)",ROUND('[1]Tabla de Amortizacion'!F15,8),IF([1]CALCULADORA!$F$10="10% (Medio Alto)",ROUND('[1]Tabla de Amortizacion'!H15,8),IF([1]CALCULADORA!$F$10="14% (Alto)",ROUND('[1]Tabla de Amortizacion'!#REF!,8),IF([1]CALCULADORA!$F$10=20%,ROUND('[1]Tabla de Amortizacion'!#REF!,8),ROUND('[1]Tabla de Amortizacion'!K15,8)))))) -> 0
A15: 2026-05-13 | B15: 0.02381137 | C15: =+VLOOKUP(A15,'Tabla de Amortizacion'!$D$2:$Q$182,MATCH(Tablas!$B$1,'Tabla de Amortizacion'!$D$2:$Q$2,0)) -> 0.02381137 | E15: =IF([1]CALCULADORA!$F$10="Contractual",ROUND('[1]Tabla de Amortizacion'!C16,8),IF([1]CALCULADORA!$F$10="6% (Medio)",ROUND('[1]Tabla de Amortizacion'!F16,8),IF([1]CALCULADORA!$F$10="10% (Medio Alto)",ROUND('[1]Tabla de Amortizacion'!H16,8),IF([1]CALCULADORA!$F$10="14% (Alto)",ROUND('[1]Tabla de Amortizacion'!#REF!,8),IF([1]CALCULADORA!$F$10=20%,ROUND('[1]Tabla de Amortizacion'!#REF!,8),ROUND('[1]Tabla de Amortizacion'!K16,8)))))) -> 0
A16: 2026-06-13 | B16: 0.02289094 | C16: =+VLOOKUP(A16,'Tabla de Amortizacion'!$D$2:$Q$182,MATCH(Tablas!$B$1,'Tabla de Amortizacion'!$D$2:$Q$2,0)) -> 0.02289094 | E16: =IF([1]CALCULADORA!$F$10="Contractual",ROUND('[1]Tabla de Amortizacion'!C17,8),IF([1]CALCULADORA!$F$10="6% (Medio)",ROUND('[1]Tabla de Amortizacion'!F17,8),IF([1]CALCULADORA!$F$10="10% (Medio Alto)",ROUND('[1]Tabla de Amortizacion'!H17,8),IF([1]CALCULADORA!$F$10="14% (Alto)",ROUND('[1]Tabla de Amortizacion'!#REF!,8),IF([1]CALCULADORA!$F$10=20%,ROUND('[1]Tabla de Amortizacion'!#REF!,8),ROUND('[1]Tabla de Amortizacion'!K17,8)))))) -> 0
A17: 2026-07-13 | B17: 0.02201585 | C17: =+VLOOKUP(A17,'Tabla de Amortizacion'!$D$2:$Q$182,MATCH(Tablas!$B$1,'Tabla de Amortizacion'!$D$2:$Q$2,0)) -> 0.02201585 | E17: =IF([1]CALCULADORA!$F$10="Contractual",ROUND('[1]Tabla de Amortizacion'!C18,8),IF([1]CALCULADORA!$F$10="6% (Medio)",ROUND('[1]Tabla de Amortizacion'!F18,8),IF([1]CALCULADORA!$F$10="10% (Medio Alto)",ROUND('[1]Tabla de Amortizacion'!H18,8),IF([1]CALCULADORA!$F$10="14% (Alto)",ROUND('[1]Tabla de Amortizacion'!#REF!,8),IF([1]CALCULADORA!$F$10=20%,ROUND('[1]Tabla de Amortizacion'!#REF!,8),ROUND('[1]Tabla de Amortizacion'!K18,8)))))) -> 0
A18: 2026-08-13 | B18: 0.02114658 | C18: =+VLOOKUP(A18,'Tabla de Amortizacion'!$D$2:$Q$182,MATCH(Tablas!$B$1,'Tabla de Amortizacion'!$D$2:$Q$2,0)) -> 0.02114658 | E18: =IF([1]CALCULADORA!$F$10="Contractual",ROUND('[1]Tabla de Amortizacion'!C19,8),IF([1]CALCULADORA!$F$10="6% (Medio)",ROUND('[1]Tabla de Amortizacion'!F19,8),IF([1]CALCULADORA!$F$10="10% (Medio Alto)",ROUND('[1]Tabla de Amortizacion'!H19,8),IF([1]CALCULADORA!$F$10="14% (Alto)",ROUND('[1]Tabla de Amortizacion'!#REF!,8),IF([1]CALCULADORA!$F$10=20%,ROUND('[1]Tabla de Amortizacion'!#REF!,8),ROUND('[1]Tabla de Amortizacion'!K19,8)))))) -> 0
A19: 2026-09-13 | B19: 0.02027545 | C19: =+VLOOKUP(A19,'Tabla de Amortizacion'!$D$2:$Q$182,MATCH(Tablas!$B$1,'Tabla de Amortizacion'!$D$2:$Q$2,0)) -> 0.02027545 | E19: =IF([1]CALCULADORA!$F$10="Contractual",ROUND('[1]Tabla de Amortizacion'!C20,8),IF([1]CALCULADORA!$F$10="6% (Medio)",ROUND('[1]Tabla de Amortizacion'!F20,8),IF([1]CALCULADORA!$F$10="10% (Medio Alto)",ROUND('[1]Tabla de Amortizacion'!H20,8),IF([1]CALCULADORA!$F$10="14% (Alto)",ROUND('[1]Tabla de Amortizacion'!#REF!,8),IF([1]CALCULADORA!$F$10=20%,ROUND('[1]Tabla de Amortizacion'!#REF!,8),ROUND('[1]Tabla de Amortizacion'!K20,8)))))) -> 0
A20: 2026-10-13 | B20: 0.0194739 | C20: =+VLOOKUP(A20,'Tabla de Amortizacion'!$D$2:$Q$182,MATCH(Tablas!$B$1,'Tabla de Amortizacion'!$D$2:$Q$2,0)) -> 0.0194739 | E20: =IF([1]CALCULADORA!$F$10="Contractual",ROUND('[1]Tabla de Amortizacion'!C21,8),IF([1]CALCULADORA!$F$10="6% (Medio)",ROUND('[1]Tabla de Amortizacion'!F21,8),IF([1]CALCULADORA!$F$10="10% (Medio Alto)",ROUND('[1]Tabla de Amortizacion'!H21,8),IF([1]CALCULADORA!$F$10="14% (Alto)",ROUND('[1]Tabla de Amortizacion'!#REF!,8),IF([1]CALCULADORA!$F$10=20%,ROUND('[1]Tabla de Amortizacion'!#REF!,8),ROUND('[1]Tabla de Amortizacion'!K21,8)))))) -> 0
A21: 2026-11-13 | B21: 0.01867066 | C21: =+VLOOKUP(A21,'Tabla de Amortizacion'!$D$2:$Q$182,MATCH(Tablas!$B$1,'Tabla de Amortizacion'!$D$2:$Q$2,0)) -> 0.01867066 | E21: =IF([1]CALCULADORA!$F$10="Contractual",ROUND('[1]Tabla de Amortizacion'!C22,8),IF([1]CALCULADORA!$F$10="6% (Medio)",ROUND('[1]Tabla de Amortizacion'!F22,8),IF([1]CALCULADORA!$F$10="10% (Medio Alto)",ROUND('[1]Tabla de Amortizacion'!H22,8),IF([1]CALCULADORA!$F$10="14% (Alto)",ROUND('[1]Tabla de Amortizacion'!#REF!,8),IF([1]CALCULADORA!$F$10=20%,ROUND('[1]Tabla de Amortizacion'!#REF!,8),ROUND('[1]Tabla de Amortizacion'!K22,8)))))) -> 0
A22: 2026-12-13 | B22: 0.01787302 | C22: =+VLOOKUP(A22,'Tabla de Amortizacion'!$D$2:$Q$182,MATCH(Tablas!$B$1,'Tabla de Amortizacion'!$D$2:$Q$2,0)) -> 0.01787302 | E22: =IF([1]CALCULADORA!$F$10="Contractual",ROUND('[1]Tabla de Amortizacion'!C23,8),IF([1]CALCULADORA!$F$10="6% (Medio)",ROUND('[1]Tabla de Amortizacion'!F23,8),IF([1]CALCULADORA!$F$10="10% (Medio Alto)",ROUND('[1]Tabla de Amortizacion'!H23,8),IF([1]CALCULADORA!$F$10="14% (Alto)",ROUND('[1]Tabla de Amortizacion'!#REF!,8),IF([1]CALCULADORA!$F$10=20%,ROUND('[1]Tabla de Amortizacion'!#REF!,8),ROUND('[1]Tabla de Amortizacion'!K23,8)))))) -> 0
A23: 2027-01-13 | B23: 0.0171376 | C23: =+VLOOKUP(A23,'Tabla de Amortizacion'!$D$2:$Q$182,MATCH(Tablas!$B$1,'Tabla de Amortizacion'!$D$2:$Q$2,0)) -> 0.0171376 | E23: =IF([1]CALCULADORA!$F$10="Contractual",ROUND('[1]Tabla de Amortizacion'!C24,8),IF([1]CALCULADORA!$F$10="6% (Medio)",ROUND('[1]Tabla de Amortizacion'!F24,8),IF([1]CALCULADORA!$F$10="10% (Medio Alto)",ROUND('[1]Tabla de Amortizacion'!H24,8),IF([1]CALCULADORA!$F$10="14% (Alto)",ROUND('[1]Tabla de Amortizacion'!#REF!,8),IF([1]CALCULADORA!$F$10=20%,ROUND('[1]Tabla de Amortizacion'!#REF!,8),ROUND('[1]Tabla de Amortizacion'!K24,8)))))) -> 0
A24: 2027-02-13 | B24: 0.01641444 | C24: =+VLOOKUP(A24,'Tabla de Amortizacion'!$D$2:$Q$182,MATCH(Tablas!$B$1,'Tabla de Amortizacion'!$D$2:$Q$2,0)) -> 0.01641444 | E24: =IF([1]CALCULADORA!$F$10="Contractual",ROUND('[1]Tabla de Amortizacion'!C25,8),IF([1]CALCULADORA!$F$10="6% (Medio)",ROUND('[1]Tabla de Amortizacion'!F25,8),IF([1]CALCULADORA!$F$10="10% (Medio Alto)",ROUND('[1]Tabla de Amortizacion'!H25,8),IF([1]CALCULADORA!$F$10="14% (Alto)",ROUND('[1]Tabla de Amortizacion'!#REF!,8),IF([1]CALCULADORA!$F$10=20%,ROUND('[1]Tabla de Amortizacion'!#REF!,8),ROUND('[1]Tabla de Amortizacion'!K25,8)))))) -> 0
A25: 2027-03-13 | B25: 0.01573095 | C25: =+VLOOKUP(A25,'Tabla de Amortizacion'!$D$2:$Q$182,MATCH(Tablas!$B$1,'Tabla de Amortizacion'!$D$2:$Q$2,0)) -> 0.01573095 | E25: =IF([1]CALCULADORA!$F$10="Contractual",ROUND('[1]Tabla de Amortizacion'!C26,8),IF([1]CALCULADORA!$F$10="6% (Medio)",ROUND('[1]Tabla de Amortizacion'!F26,8),IF([1]CALCULADORA!$F$10="10% (Medio Alto)",ROUND('[1]Tabla de Amortizacion'!H26,8),IF([1]CALCULADORA!$F$10="14% (Alto)",ROUND('[1]Tabla de Amortizacion'!#REF!,8),IF([1]CALCULADORA!$F$10=20%,ROUND('[1]Tabla de Amortizacion'!#REF!,8),ROUND('[1]Tabla de Amortizacion'!K26,8)))))) -> 0
A26: 2027-04-13 | B26: 0.01508352 | C26: =+VLOOKUP(A26,'Tabla de Amortizacion'!$D$2:$Q$182,MATCH(Tablas!$B$1,'Tabla de Amortizacion'!$D$2:$Q$2,0)) -> 0.01508352 | E26: =IF([1]CALCULADORA!$F$10="Contractual",ROUND('[1]Tabla de Amortizacion'!C27,8),IF([1]CALCULADORA!$F$10="6% (Medio)",ROUND('[1]Tabla de Amortizacion'!F27,8),IF([1]CALCULADORA!$F$10="10% (Medio Alto)",ROUND('[1]Tabla de Amortizacion'!H27,8),IF([1]CALCULADORA!$F$10="14% (Alto)",ROUND('[1]Tabla de Amortizacion'!#REF!,8),IF([1]CALCULADORA!$F$10=20%,ROUND('[1]Tabla de Amortizacion'!#REF!,8),ROUND('[1]Tabla de Amortizacion'!K27,8)))))) -> 0
A27: 2027-05-13 | B27: 0.01443894 | C27: =+VLOOKUP(A27,'Tabla de Amortizacion'!$D$2:$Q$182,MATCH(Tablas!$B$1,'Tabla de Amortizacion'!$D$2:$Q$2,0)) -> 0.01443894 | E27: =IF([1]CALCULADORA!$F$10="Contractual",ROUND('[1]Tabla de Amortizacion'!C28,8),IF([1]CALCULADORA!$F$10="6% (Medio)",ROUND('[1]Tabla de Amortizacion'!F28,8),IF([1]CALCULADORA!$F$10="10% (Medio Alto)",ROUND('[1]Tabla de Amortizacion'!H28,8),IF([1]CALCULADORA!$F$10="14% (Alto)",ROUND('[1]Tabla de Amortizacion'!#REF!,8),IF([1]CALCULADORA!$F$10=20%,ROUND('[1]Tabla de Amortizacion'!#REF!,8),ROUND('[1]Tabla de Amortizacion'!K28,8)))))) -> 0
A28: 2027-06-13 | B28: 0.01386063 | C28: =+VLOOKUP(A28,'Tabla de Amortizacion'!$D$2:$Q$182,MATCH(Tablas!$B$1,'Tabla de Amortizacion'!$D$2:$Q$2,0)) -> 0.01386063 | E28: =IF([1]CALCULADORA!$F$10="Contractual",ROUND('[1]Tabla de Amortizacion'!C29,8),IF([1]CALCULADORA!$F$10="6% (Medio)",ROUND('[1]Tabla de Amortizacion'!F29,8),IF([1]CALCULADORA!$F$10="10% (Medio Alto)",ROUND('[1]Tabla de Amortizacion'!H29,8),IF([1]CALCULADORA!$F$10="14% (Alto)",ROUND('[1]Tabla de Amortizacion'!#REF!,8),IF([1]CALCULADORA!$F$10=20%,ROUND('[1]Tabla de Amortizacion'!#REF!,8),ROUND('[1]Tabla de Amortizacion'!K29,8)))))) -> 0
A29: 2027-07-13 | B29: 0.01329704 | C29: =+VLOOKUP(A29,'Tabla de Amortizacion'!$D$2:$Q$182,MATCH(Tablas!$B$1,'Tabla de Amortizacion'!$D$2:$Q$2,0)) -> 0.01329704 | E29: =IF([1]CALCULADORA!$F$10="Contractual",ROUND('[1]Tabla de Amortizacion'!C30,8),IF([1]CALCULADORA!$F$10="6% (Medio)",ROUND('[1]Tabla de Amortizacion'!F30,8),IF([1]CALCULADORA!$F$10="10% (Medio Alto)",ROUND('[1]Tabla de Amortizacion'!H30,8),IF([1]CALCULADORA!$F$10="14% (Alto)",ROUND('[1]Tabla de Amortizacion'!#REF!,8),IF([1]CALCULADORA!$F$10=20%,ROUND('[1]Tabla de Amortizacion'!#REF!,8),ROUND('[1]Tabla de Amortizacion'!K30,8)))))) -> 0
A30: 2027-08-13 | B30: 0.01278019 | C30: =+VLOOKUP(A30,'Tabla de Amortizacion'!$D$2:$Q$182,MATCH(Tablas!$B$1,'Tabla de Amortizacion'!$D$2:$Q$2,0)) -> 0.01278019 | E30: =IF([1]CALCULADORA!$F$10="Contractual",ROUND('[1]Tabla de Amortizacion'!C31,8),IF([1]CALCULADORA!$F$10="6% (Medio)",ROUND('[1]Tabla de Amortizacion'!F31,8),IF([1]CALCULADORA!$F$10="10% (Medio Alto)",ROUND('[1]Tabla de Amortizacion'!H31,8),IF([1]CALCULADORA!$F$10="14% (Alto)",ROUND('[1]Tabla de Amortizacion'!#REF!,8),IF([1]CALCULADORA!$F$10=20%,ROUND('[1]Tabla de Amortizacion'!#REF!,8),ROUND('[1]Tabla de Amortizacion'!K31,8)))))) -> 0
A31: 2027-09-13 | B31: 0.0122522 | C31: =+VLOOKUP(A31,'Tabla de Amortizacion'!$D$2:$Q$182,MATCH(Tablas!$B$1,'Tabla de Amortizacion'!$D$2:$Q$2,0)) -> 0.0122522 | E31: =IF([1]CALCULADORA!$F$10="Contractual",ROUND('[1]Tabla de Amortizacion'!C32,8),IF([1]CALCULADORA!$F$10="6% (Medio)",ROUND('[1]Tabla de Amortizacion'!F32,8),IF([1]CALCULADORA!$F$10="10% (Medio Alto)",ROUND('[1]Tabla de Amortizacion'!H32,8),IF([1]CALCULADORA!$F$10="14% (Alto)",ROUND('[1]Tabla de Amortizacion'!#REF!,8),IF([1]CALCULADORA!$F$10=20%,ROUND('[1]Tabla de Amortizacion'!#REF!,8),ROUND('[1]Tabla de Amortizacion'!K32,8)))))) -> 0
A32: 2027-10-13 | B32: 0.011749 | C32: =+VLOOKUP(A32,'Tabla de Amortizacion'!$D$2:$Q$182,MATCH(Tablas!$B$1,'Tabla de Amortizacion'!$D$2:$Q$2,0)) -> 0.011749 | E32: =IF([1]CALCULADORA!$F$10="Contractual",ROUND('[1]Tabla de Amortizacion'!C33,8),IF([1]CALCULADORA!$F$10="6% (Medio)",ROUND('[1]Tabla de Amortizacion'!F33,8),IF([1]CALCULADORA!$F$10="10% (Medio Alto)",ROUND('[1]Tabla de Amortizacion'!H33,8),IF([1]CALCULADORA!$F$10="14% (Alto)",ROUND('[1]Tabla de Amortizacion'!#REF!,8),IF([1]CALCULADORA!$F$10=20%,ROUND('[1]Tabla de Amortizacion'!#REF!,8),ROUND('[1]Tabla de Amortizacion'!K33,8)))))) -> 0
A33: 2027-11-13 | B33: 0.01129534 | C33: =+VLOOKUP(A33,'Tabla de Amortizacion'!$D$2:$Q$182,MATCH(Tablas!$B$1,'Tabla de Amortizacion'!$D$2:$Q$2,0)) -> 0.01129534 | E33: =IF([1]CALCULADORA!$F$10="Contractual",ROUND('[1]Tabla de Amortizacion'!C34,8),IF([1]CALCULADORA!$F$10="6% (Medio)",ROUND('[1]Tabla de Amortizacion'!F34,8),IF([1]CALCULADORA!$F$10="10% (Medio Alto)",ROUND('[1]Tabla de Amortizacion'!H34,8),IF([1]CALCULADORA!$F$10="14% (Alto)",ROUND('[1]Tabla de Amortizacion'!#REF!,8),IF([1]CALCULADORA!$F$10=20%,ROUND('[1]Tabla de Amortizacion'!#REF!,8),ROUND('[1]Tabla de Amortizacion'!K34,8)))))) -> 0
A34: 2027-12-13 | B34: 0.01081684 | C34: =+VLOOKUP(A34,'Tabla de Amortizacion'!$D$2:$Q$182,MATCH(Tablas!$B$1,'Tabla de Amortizacion'!$D$2:$Q$2,0)) -> 0.01081684 | E34: =IF([1]CALCULADORA!$F$10="Contractual",ROUND('[1]Tabla de Amortizacion'!C35,8),IF([1]CALCULADORA!$F$10="6% (Medio)",ROUND('[1]Tabla de Amortizacion'!F35,8),IF([1]CALCULADORA!$F$10="10% (Medio Alto)",ROUND('[1]Tabla de Amortizacion'!H35,8),IF([1]CALCULADORA!$F$10="14% (Alto)",ROUND('[1]Tabla de Amortizacion'!#REF!,8),IF([1]CALCULADORA!$F$10=20%,ROUND('[1]Tabla de Amortizacion'!#REF!,8),ROUND('[1]Tabla de Amortizacion'!K35,8)))))) -> 0
A35: 2028-01-13 | B35: 0.01037957 | C35: =+VLOOKUP(A35,'Tabla de Amortizacion'!$D$2:$Q$182,MATCH(Tablas!$B$1,'Tabla de Amortizacion'!$D$2:$Q$2,0)) -> 0.01037957 | E35: =IF([1]CALCULADORA!$F$10="Contractual",ROUND('[1]Tabla de Amortizacion'!C36,8),IF([1]CALCULADORA!$F$10="6% (Medio)",ROUND('[1]Tabla de Amortizacion'!F36,8),IF([1]CALCULADORA!$F$10="10% (Medio Alto)",ROUND('[1]Tabla de Amortizacion'!H36,8),IF([1]CALCULADORA!$F$10="14% (Alto)",ROUND('[1]Tabla de Amortizacion'!#REF!,8),IF([1]CALCULADORA!$F$10=20%,ROUND('[1]Tabla de Amortizacion'!#REF!,8),ROUND('[1]Tabla de Amortizacion'!K36,8)))))) -> 0
A36: 2028-02-13 | B36: 0.00994437 | C36: =+VLOOKUP(A36,'Tabla de Amortizacion'!$D$2:$Q$182,MATCH(Tablas!$B$1,'Tabla de Amortizacion'!$D$2:$Q$2,0)) -> 0.00994437 | E36: =IF([1]CALCULADORA!$F$10="Contractual",ROUND('[1]Tabla de Amortizacion'!C37,8),IF([1]CALCULADORA!$F$10="6% (Medio)",ROUND('[1]Tabla de Amortizacion'!F37,8),IF([1]CALCULADORA!$F$10="10% (Medio Alto)",ROUND('[1]Tabla de Amortizacion'!H37,8),IF([1]CALCULADORA!$F$10="14% (Alto)",ROUND('[1]Tabla de Amortizacion'!#REF!,8),IF([1]CALCULADORA!$F$10=20%,ROUND('[1]Tabla de Amortizacion'!#REF!,8),ROUND('[1]Tabla de Amortizacion'!K37,8)))))) -> 0
A37: 2028-03-13 | B37: 0.00953004 | C37: =+VLOOKUP(A37,'Tabla de Amortizacion'!$D$2:$Q$182,MATCH(Tablas!$B$1,'Tabla de Amortizacion'!$D$2:$Q$2,0)) -> 0.00953004 | E37: =IF([1]CALCULADORA!$F$10="Contractual",ROUND('[1]Tabla de Amortizacion'!C38,8),IF([1]CALCULADORA!$F$10="6% (Medio)",ROUND('[1]Tabla de Amortizacion'!F38,8),IF([1]CALCULADORA!$F$10="10% (Medio Alto)",ROUND('[1]Tabla de Amortizacion'!H38,8),IF([1]CALCULADORA!$F$10="14% (Alto)",ROUND('[1]Tabla de Amortizacion'!#REF!,8),IF([1]CALCULADORA!$F$10=20%,ROUND('[1]Tabla de Amortizacion'!#REF!,8),ROUND('[1]Tabla de Amortizacion'!K38,8)))))) -> 0
A38: 2028-04-13 | B38: 0.0091211 | C38: =+VLOOKUP(A38,'Tabla de Amortizacion'!$D$2:$Q$182,MATCH(Tablas!$B$1,'Tabla de Amortizacion'!$D$2:$Q$2,0)) -> 0.0091211 | E38: =IF([1]CALCULADORA!$F$10="Contractual",ROUND('[1]Tabla de Amortizacion'!C39,8),IF([1]CALCULADORA!$F$10="6% (Medio)",ROUND('[1]Tabla de Amortizacion'!F39,8),IF([1]CALCULADORA!$F$10="10% (Medio Alto)",ROUND('[1]Tabla de Amortizacion'!H39,8),IF([1]CALCULADORA!$F$10="14% (Alto)",ROUND('[1]Tabla de Amortizacion'!#REF!,8),IF([1]CALCULADORA!$F$10=20%,ROUND('[1]Tabla de Amortizacion'!#REF!,8),ROUND('[1]Tabla de Amortizacion'!K39,8)))))) -> 0
A39: 2028-05-13 | B39: 0.00876489 | C39: =+VLOOKUP(A39,'Tabla de Amortizacion'!$D$2:$Q$182,MATCH(Tablas!$B$1,'Tabla de Amortizacion'!$D$2:$Q$2,0)) -> 0.00876489 | E39: =IF([1]CALCULADORA!$F$10="Contractual",ROUND('[1]Tabla de Amortizacion'!C40,8),IF([1]CALCULADORA!$F$10="6% (Medio)",ROUND('[1]Tabla de Amortizacion'!F40,8),IF([1]CALCULADORA!$F$10="10% (Medio Alto)",ROUND('[1]Tabla de Amortizacion'!H40,8),IF([1]CALCULADORA!$F$10="14% (Alto)",ROUND('[1]Tabla de Amortizacion'!#REF!,8),IF([1]CALCULADORA!$F$10=20%,ROUND('[1]Tabla de Amortizacion'!#REF!,8),ROUND('[1]Tabla de Amortizacion'!K40,8)))))) -> 0
A40: 2028-06-13 | B40: 0.00841889 | C40: =+VLOOKUP(A40,'Tabla de Amortizacion'!$D$2:$Q$182,MATCH(Tablas!$B$1,'Tabla de Amortizacion'!$D$2:$Q$2,0)) -> 0.00841889 | E40: =IF([1]CALCULADORA!$F$10="Contractual",ROUND('[1]Tabla de Amortizacion'!C41,8),IF([1]CALCULADORA!$F$10="6% (Medio)",ROUND('[1]Tabla de Amortizacion'!F41,8),IF([1]CALCULADORA!$F$10="10% (Medio Alto)",ROUND('[1]Tabla de Amortizacion'!H41,8),IF([1]CALCULADORA!$F$10="14% (Alto)",ROUND('[1]Tabla de Amortizacion'!#REF!,8),IF([1]CALCULADORA!$F$10=20%,ROUND('[1]Tabla de Amortizacion'!#REF!,8),ROUND('[1]Tabla de Amortizacion'!K41,8)))))) -> 0
A41: 2028-07-13 | B41: 0.00808976 | C41: =+VLOOKUP(A41,'Tabla de Amortizacion'!$D$2:$Q$182,MATCH(Tablas!$B$1,'Tabla de Amortizacion'!$D$2:$Q$2,0)) -> 0.00808976 | E41: =IF([1]CALCULADORA!$F$10="Contractual",ROUND('[1]Tabla de Amortizacion'!C42,8),IF([1]CALCULADORA!$F$10="6% (Medio)",ROUND('[1]Tabla de Amortizacion'!F42,8),IF([1]CALCULADORA!$F$10="10% (Medio Alto)",ROUND('[1]Tabla de Amortizacion'!H42,8),IF([1]CALCULADORA!$F$10="14% (Alto)",ROUND('[1]Tabla de Amortizacion'!#REF!,8),IF([1]CALCULADORA!$F$10=20%,ROUND('[1]Tabla de Amortizacion'!#REF!,8),ROUND('[1]Tabla de Amortizacion'!K42,8)))))) -> 0
A42: 2028-08-13 | B42: 0.00777939 | C42: =+VLOOKUP(A42,'Tabla de Amortizacion'!$D$2:$Q$182,MATCH(Tablas!$B$1,'Tabla de Amortizacion'!$D$2:$Q$2,0)) -> 0.00777939 | E42: =IF([1]CALCULADORA!$F$10="Contractual",ROUND('[1]Tabla de Amortizacion'!C43,8),IF([1]CALCULADORA!$F$10="6% (Medio)",ROUND('[1]Tabla de Amortizacion'!F43,8),IF([1]CALCULADORA!$F$10="10% (Medio Alto)",ROUND('[1]Tabla de Amortizacion'!H43,8),IF([1]CALCULADORA!$F$10="14% (Alto)",ROUND('[1]Tabla de Amortizacion'!#REF!,8),IF([1]CALCULADORA!$F$10=20%,ROUND('[1]Tabla de Amortizacion'!#REF!,8),ROUND('[1]Tabla de Amortizacion'!K43,8)))))) -> 0
A43: 2028-09-13 | B43: 0.00748026 | C43: =+VLOOKUP(A43,'Tabla de Amortizacion'!$D$2:$Q$182,MATCH(Tablas!$B$1,'Tabla de Amortizacion'!$D$2:$Q$2,0)) -> 0.00748026 | E43: =IF([1]CALCULADORA!$F$10="Contractual",ROUND('[1]Tabla de Amortizacion'!C44,8),IF([1]CALCULADORA!$F$10="6% (Medio)",ROUND('[1]Tabla de Amortizacion'!F44,8),IF([1]CALCULADORA!$F$10="10% (Medio Alto)",ROUND('[1]Tabla de Amortizacion'!H44,8),IF([1]CALCULADORA!$F$10="14% (Alto)",ROUND('[1]Tabla de Amortizacion'!#REF!,8),IF([1]CALCULADORA!$F$10=20%,ROUND('[1]Tabla de Amortizacion'!#REF!,8),ROUND('[1]Tabla de Amortizacion'!K44,8)))))) -> 0
A44: 2028-10-13 | B44: 0.00715857 | C44: =+VLOOKUP(A44,'Tabla de Amortizacion'!$D$2:$Q$182,MATCH(Tablas!$B$1,'Tabla de Amortizacion'!$D$2:$Q$2,0)) -> 0.00715857 | E44: =IF([1]CALCULADORA!$F$10="Contractual",ROUND('[1]Tabla de Amortizacion'!C45,8),IF([1]CALCULADORA!$F$10="6% (Medio)",ROUND('[1]Tabla de Amortizacion'!F45,8),IF([1]CALCULADORA!$F$10="10% (Medio Alto)",ROUND('[1]Tabla de Amortizacion'!H45,8),IF([1]CALCULADORA!$F$10="14% (Alto)",ROUND('[1]Tabla de Amortizacion'!#REF!,8),IF([1]CALCULADORA!$F$10=20%,ROUND('[1]Tabla de Amortizacion'!#REF!,8),ROUND('[1]Tabla de Amortizacion'!K45,8)))))) -> 0
A45: 2028-11-13 | B45: 0.00688337 | C45: =+VLOOKUP(A45,'Tabla de Amortizacion'!$D$2:$Q$182,MATCH(Tablas!$B$1,'Tabla de Amortizacion'!$D$2:$Q$2,0)) -> 0.00688337 | E45: =IF([1]CALCULADORA!$F$10="Contractual",ROUND('[1]Tabla de Amortizacion'!C46,8),IF([1]CALCULADORA!$F$10="6% (Medio)",ROUND('[1]Tabla de Amortizacion'!F46,8),IF([1]CALCULADORA!$F$10="10% (Medio Alto)",ROUND('[1]Tabla de Amortizacion'!H46,8),IF([1]CALCULADORA!$F$10="14% (Alto)",ROUND('[1]Tabla de Amortizacion'!#REF!,8),IF([1]CALCULADORA!$F$10=20%,ROUND('[1]Tabla de Amortizacion'!#REF!,8),ROUND('[1]Tabla de Amortizacion'!K46,8)))))) -> 0
A46: 2028-12-13 | B46: 0.00660936 | C46: =+VLOOKUP(A46,'Tabla de Amortizacion'!$D$2:$Q$182,MATCH(Tablas!$B$1,'Tabla de Amortizacion'!$D$2:$Q$2,0)) -> 0.00660936 | E46: =IF([1]CALCULADORA!$F$10="Contractual",ROUND('[1]Tabla de Amortizacion'!C47,8),IF([1]CALCULADORA!$F$10="6% (Medio)",ROUND('[1]Tabla de Amortizacion'!F47,8),IF([1]CALCULADORA!$F$10="10% (Medio Alto)",ROUND('[1]Tabla de Amortizacion'!H47,8),IF([1]CALCULADORA!$F$10="14% (Alto)",ROUND('[1]Tabla de Amortizacion'!#REF!,8),IF([1]CALCULADORA!$F$10=20%,ROUND('[1]Tabla de Amortizacion'!#REF!,8),ROUND('[1]Tabla de Amortizacion'!K47,8)))))) -> 0
A47: 2029-01-13 | B47: 0.00635071 | C47: =+VLOOKUP(A47,'Tabla de Amortizacion'!$D$2:$Q$182,MATCH(Tablas!$B$1,'Tabla de Amortizacion'!$D$2:$Q$2,0)) -> 0.00635071 | E47: =IF([1]CALCULADORA!$F$10="Contractual",ROUND('[1]Tabla de Amortizacion'!C48,8),IF([1]CALCULADORA!$F$10="6% (Medio)",ROUND('[1]Tabla de Amortizacion'!F48,8),IF([1]CALCULADORA!$F$10="10% (Medio Alto)",ROUND('[1]Tabla de Amortizacion'!H48,8),IF([1]CALCULADORA!$F$10="14% (Alto)",ROUND('[1]Tabla de Amortizacion'!#REF!,8),IF([1]CALCULADORA!$F$10=20%,ROUND('[1]Tabla de Amortizacion'!#REF!,8),ROUND('[1]Tabla de Amortizacion'!K48,8)))))) -> 0
A48: 2029-02-13 | B48: 0.00610947 | C48: =+VLOOKUP(A48,'Tabla de Amortizacion'!$D$2:$Q$182,MATCH(Tablas!$B$1,'Tabla de Amortizacion'!$D$2:$Q$2,0)) -> 0.00610947 | E48: =IF([1]CALCULADORA!$F$10="Contractual",ROUND('[1]Tabla de Amortizacion'!C49,8),IF([1]CALCULADORA!$F$10="6% (Medio)",ROUND('[1]Tabla de Amortizacion'!F49,8),IF([1]CALCULADORA!$F$10="10% (Medio Alto)",ROUND('[1]Tabla de Amortizacion'!H49,8),IF([1]CALCULADORA!$F$10="14% (Alto)",ROUND('[1]Tabla de Amortizacion'!#REF!,8),IF([1]CALCULADORA!$F$10=20%,ROUND('[1]Tabla de Amortizacion'!#REF!,8),ROUND('[1]Tabla de Amortizacion'!K49,8)))))) -> 0
A49: 2029-03-13 | B49: 0.00587647 | C49: =+VLOOKUP(A49,'Tabla de Amortizacion'!$D$2:$Q$182,MATCH(Tablas!$B$1,'Tabla de Amortizacion'!$D$2:$Q$2,0)) -> 0.00587647 | E49: =IF([1]CALCULADORA!$F$10="Contractual",ROUND('[1]Tabla de Amortizacion'!C50,8),IF([1]CALCULADORA!$F$10="6% (Medio)",ROUND('[1]Tabla de Amortizacion'!F50,8),IF([1]CALCULADORA!$F$10="10% (Medio Alto)",ROUND('[1]Tabla de Amortizacion'!H50,8),IF([1]CALCULADORA!$F$10="14% (Alto)",ROUND('[1]Tabla de Amortizacion'!#REF!,8),IF([1]CALCULADORA!$F$10=20%,ROUND('[1]Tabla de Amortizacion'!#REF!,8),ROUND('[1]Tabla de Amortizacion'!K50,8)))))) -> 0
A50: 2029-04-13 | B50: 0.00564968 | C50: =+VLOOKUP(A50,'Tabla de Amortizacion'!$D$2:$Q$182,MATCH(Tablas!$B$1,'Tabla de Amortizacion'!$D$2:$Q$2,0)) -> 0.00564968 | E50: =IF([1]CALCULADORA!$F$10="Contractual",ROUND('[1]Tabla de Amortizacion'!C51,8),IF([1]CALCULADORA!$F$10="6% (Medio)",ROUND('[1]Tabla de Amortizacion'!F51,8),IF([1]CALCULADORA!$F$10="10% (Medio Alto)",ROUND('[1]Tabla de Amortizacion'!H51,8),IF([1]CALCULADORA!$F$10="14% (Alto)",ROUND('[1]Tabla de Amortizacion'!#REF!,8),IF([1]CALCULADORA!$F$10=20%,ROUND('[1]Tabla de Amortizacion'!#REF!,8),ROUND('[1]Tabla de Amortizacion'!K51,8)))))) -> 0
A51: 2029-05-13 | B51: 0.00543259 | C51: =+VLOOKUP(A51,'Tabla de Amortizacion'!$D$2:$Q$182,MATCH(Tablas!$B$1,'Tabla de Amortizacion'!$D$2:$Q$2,0)) -> 0.00543259 | E51: =IF([1]CALCULADORA!$F$10="Contractual",ROUND('[1]Tabla de Amortizacion'!C52,8),IF([1]CALCULADORA!$F$10="6% (Medio)",ROUND('[1]Tabla de Amortizacion'!F52,8),IF([1]CALCULADORA!$F$10="10% (Medio Alto)",ROUND('[1]Tabla de Amortizacion'!H52,8),IF([1]CALCULADORA!$F$10="14% (Alto)",ROUND('[1]Tabla de Amortizacion'!#REF!,8),IF([1]CALCULADORA!$F$10=20%,ROUND('[1]Tabla de Amortizacion'!#REF!,8),ROUND('[1]Tabla de Amortizacion'!K52,8)))))) -> 0
A52: 2029-06-13 | B52: 0.00522182 | C52: =+VLOOKUP(A52,'Tabla de Amortizacion'!$D$2:$Q$182,MATCH(Tablas!$B$1,'Tabla de Amortizacion'!$D$2:$Q$2,0)) -> 0.00522182 | E52: =IF([1]CALCULADORA!$F$10="Contractual",ROUND('[1]Tabla de Amortizacion'!C53,8),IF([1]CALCULADORA!$F$10="6% (Medio)",ROUND('[1]Tabla de Amortizacion'!F53,8),IF([1]CALCULADORA!$F$10="10% (Medio Alto)",ROUND('[1]Tabla de Amortizacion'!H53,8),IF([1]CALCULADORA!$F$10="14% (Alto)",ROUND('[1]Tabla de Amortizacion'!#REF!,8),IF([1]CALCULADORA!$F$10=20%,ROUND('[1]Tabla de Amortizacion'!#REF!,8),ROUND('[1]Tabla de Amortizacion'!K53,8)))))) -> 0
A53: 2029-07-13 | B53: 0.00501711 | C53: =+VLOOKUP(A53,'Tabla de Amortizacion'!$D$2:$Q$182,MATCH(Tablas!$B$1,'Tabla de Amortizacion'!$D$2:$Q$2,0)) -> 0.00501711 | E53: =IF([1]CALCULADORA!$F$10="Contractual",ROUND('[1]Tabla de Amortizacion'!C54,8),IF([1]CALCULADORA!$F$10="6% (Medio)",ROUND('[1]Tabla de Amortizacion'!F54,8),IF([1]CALCULADORA!$F$10="10% (Medio Alto)",ROUND('[1]Tabla de Amortizacion'!H54,8),IF([1]CALCULADORA!$F$10="14% (Alto)",ROUND('[1]Tabla de Amortizacion'!#REF!,8),IF([1]CALCULADORA!$F$10=20%,ROUND('[1]Tabla de Amortizacion'!#REF!,8),ROUND('[1]Tabla de Amortizacion'!K54,8)))))) -> 0
A54: 2029-08-13 | B54: 0.00481631 | C54: =+VLOOKUP(A54,'Tabla de Amortizacion'!$D$2:$Q$182,MATCH(Tablas!$B$1,'Tabla de Amortizacion'!$D$2:$Q$2,0)) -> 0.00481631 | E54: =IF([1]CALCULADORA!$F$10="Contractual",ROUND('[1]Tabla de Amortizacion'!C55,8),IF([1]CALCULADORA!$F$10="6% (Medio)",ROUND('[1]Tabla de Amortizacion'!F55,8),IF([1]CALCULADORA!$F$10="10% (Medio Alto)",ROUND('[1]Tabla de Amortizacion'!H55,8),IF([1]CALCULADORA!$F$10="14% (Alto)",ROUND('[1]Tabla de Amortizacion'!#REF!,8),IF([1]CALCULADORA!$F$10=20%,ROUND('[1]Tabla de Amortizacion'!#REF!,8),ROUND('[1]Tabla de Amortizacion'!K55,8)))))) -> 0
A55: 2029-09-13 | B55: 0.00538623 | C55: =+VLOOKUP(A55,'Tabla de Amortizacion'!$D$2:$Q$182,MATCH(Tablas!$B$1,'Tabla de Amortizacion'!$D$2:$Q$2,0)) -> 0.00538623 | E55: =IF([1]CALCULADORA!$F$10="Contractual",ROUND('[1]Tabla de Amortizacion'!C56,8),IF([1]CALCULADORA!$F$10="6% (Medio)",ROUND('[1]Tabla de Amortizacion'!F56,8),IF([1]CALCULADORA!$F$10="10% (Medio Alto)",ROUND('[1]Tabla de Amortizacion'!H56,8),IF([1]CALCULADORA!$F$10="14% (Alto)",ROUND('[1]Tabla de Amortizacion'!#REF!,8),IF([1]CALCULADORA!$F$10=20%,ROUND('[1]Tabla de Amortizacion'!#REF!,8),ROUND('[1]Tabla de Amortizacion'!K56,8)))))) -> 0
A56: 2029-10-13 | B56: 0.00555109 | C56: =+VLOOKUP(A56,'Tabla de Amortizacion'!$D$2:$Q$182,MATCH(Tablas!$B$1,'Tabla de Amortizacion'!$D$2:$Q$2,0)) -> 0.00555109 | E56: =IF([1]CALCULADORA!$F$10="Contractual",ROUND('[1]Tabla de Amortizacion'!C57,8),IF([1]CALCULADORA!$F$10="6% (Medio)",ROUND('[1]Tabla de Amortizacion'!F57,8),IF([1]CALCULADORA!$F$10="10% (Medio Alto)",ROUND('[1]Tabla de Amortizacion'!H57,8),IF([1]CALCULADORA!$F$10="14% (Alto)",ROUND('[1]Tabla de Amortizacion'!#REF!,8),IF([1]CALCULADORA!$F$10=20%,ROUND('[1]Tabla de Amortizacion'!#REF!,8),ROUND('[1]Tabla de Amortizacion'!K57,8)))))) -> 0
A57: 2029-11-13 | B57: 0.00535438 | C57: =+VLOOKUP(A57,'Tabla de Amortizacion'!$D$2:$Q$182,MATCH(Tablas!$B$1,'Tabla de Amortizacion'!$D$2:$Q$2,0)) -> 0.00535438 | E57: =IF([1]CALCULADORA!$F$10="Contractual",ROUND('[1]Tabla de Amortizacion'!C58,8),IF([1]CALCULADORA!$F$10="6% (Medio)",ROUND('[1]Tabla de Amortizacion'!F58,8),IF([1]CALCULADORA!$F$10="10% (Medio Alto)",ROUND('[1]Tabla de Amortizacion'!H58,8),IF([1]CALCULADORA!$F$10="14% (Alto)",ROUND('[1]Tabla de Amortizacion'!#REF!,8),IF([1]CALCULADORA!$F$10=20%,ROUND('[1]Tabla de Amortizacion'!#REF!,8),ROUND('[1]Tabla de Amortizacion'!K58,8)))))) -> 0
A58: 2029-12-13 | B58: 0.00515999 | C58: =+VLOOKUP(A58,'Tabla de Amortizacion'!$D$2:$Q$182,MATCH(Tablas!$B$1,'Tabla de Amortizacion'!$D$2:$Q$2,0)) -> 0.00515999 | E58: =IF([1]CALCULADORA!$F$10="Contractual",ROUND('[1]Tabla de Amortizacion'!C59,8),IF([1]CALCULADORA!$F$10="6% (Medio)",ROUND('[1]Tabla de Amortizacion'!F59,8),IF([1]CALCULADORA!$F$10="10% (Medio Alto)",ROUND('[1]Tabla de Amortizacion'!H59,8),IF([1]CALCULADORA!$F$10="14% (Alto)",ROUND('[1]Tabla de Amortizacion'!#REF!,8),IF([1]CALCULADORA!$F$10=20%,ROUND('[1]Tabla de Amortizacion'!#REF!,8),ROUND('[1]Tabla de Amortizacion'!K59,8)))))) -> 0
A59: 2030-01-13 | B59: 0.00497464 | C59: =+VLOOKUP(A59,'Tabla de Amortizacion'!$D$2:$Q$182,MATCH(Tablas!$B$1,'Tabla de Amortizacion'!$D$2:$Q$2,0)) -> 0.00497464 | E59: =IF([1]CALCULADORA!$F$10="Contractual",ROUND('[1]Tabla de Amortizacion'!C60,8),IF([1]CALCULADORA!$F$10="6% (Medio)",ROUND('[1]Tabla de Amortizacion'!F60,8),IF([1]CALCULADORA!$F$10="10% (Medio Alto)",ROUND('[1]Tabla de Amortizacion'!H60,8),IF([1]CALCULADORA!$F$10="14% (Alto)",ROUND('[1]Tabla de Amortizacion'!#REF!,8),IF([1]CALCULADORA!$F$10=20%,ROUND('[1]Tabla de Amortizacion'!#REF!,8),ROUND('[1]Tabla de Amortizacion'!K60,8)))))) -> 0
A60: 2030-02-13 | B60: 0.00479772 | C60: =+VLOOKUP(A60,'Tabla de Amortizacion'!$D$2:$Q$182,MATCH(Tablas!$B$1,'Tabla de Amortizacion'!$D$2:$Q$2,0)) -> 0.00479772 | E60: =IF([1]CALCULADORA!$F$10="Contractual",ROUND('[1]Tabla de Amortizacion'!C61,8),IF([1]CALCULADORA!$F$10="6% (Medio)",ROUND('[1]Tabla de Amortizacion'!F61,8),IF([1]CALCULADORA!$F$10="10% (Medio Alto)",ROUND('[1]Tabla de Amortizacion'!H61,8),IF([1]CALCULADORA!$F$10="14% (Alto)",ROUND('[1]Tabla de Amortizacion'!#REF!,8),IF([1]CALCULADORA!$F$10=20%,ROUND('[1]Tabla de Amortizacion'!#REF!,8),ROUND('[1]Tabla de Amortizacion'!K61,8)))))) -> 0
A61: 2030-03-13 | B61: 0.00387721 | C61: =+VLOOKUP(A61,'Tabla de Amortizacion'!$D$2:$Q$182,MATCH(Tablas!$B$1,'Tabla de Amortizacion'!$D$2:$Q$2,0)) -> 0.00387721 | E61: =IF([1]CALCULADORA!$F$10="Contractual",ROUND('[1]Tabla de Amortizacion'!C62,8),IF([1]CALCULADORA!$F$10="6% (Medio)",ROUND('[1]Tabla de Amortizacion'!F62,8),IF([1]CALCULADORA!$F$10="10% (Medio Alto)",ROUND('[1]Tabla de Amortizacion'!H62,8),IF([1]CALCULADORA!$F$10="14% (Alto)",ROUND('[1]Tabla de Amortizacion'!#REF!,8),IF([1]CALCULADORA!$F$10=20%,ROUND('[1]Tabla de Amortizacion'!#REF!,8),ROUND('[1]Tabla de Amortizacion'!K62,8)))))) -> 0
A62: 2030-04-13 | B62: 0.00444655 | C62: =+VLOOKUP(A62,'Tabla de Amortizacion'!$D$2:$Q$182,MATCH(Tablas!$B$1,'Tabla de Amortizacion'!$D$2:$Q$2,0)) -> 0.00444655 | E62: =IF([1]CALCULADORA!$F$10="Contractual",ROUND('[1]Tabla de Amortizacion'!C63,8),IF([1]CALCULADORA!$F$10="6% (Medio)",ROUND('[1]Tabla de Amortizacion'!F63,8),IF([1]CALCULADORA!$F$10="10% (Medio Alto)",ROUND('[1]Tabla de Amortizacion'!H63,8),IF([1]CALCULADORA!$F$10="14% (Alto)",ROUND('[1]Tabla de Amortizacion'!#REF!,8),IF([1]CALCULADORA!$F$10=20%,ROUND('[1]Tabla de Amortizacion'!#REF!,8),ROUND('[1]Tabla de Amortizacion'!K63,8)))))) -> 0
A63: 2030-05-13 | B63: 0.00428222 | C63: =+VLOOKUP(A63,'Tabla de Amortizacion'!$D$2:$Q$182,MATCH(Tablas!$B$1,'Tabla de Amortizacion'!$D$2:$Q$2,0)) -> 0.00428222 | E63: =IF([1]CALCULADORA!$F$10="Contractual",ROUND('[1]Tabla de Amortizacion'!C64,8),IF([1]CALCULADORA!$F$10="6% (Medio)",ROUND('[1]Tabla de Amortizacion'!F64,8),IF([1]CALCULADORA!$F$10="10% (Medio Alto)",ROUND('[1]Tabla de Amortizacion'!H64,8),IF([1]CALCULADORA!$F$10="14% (Alto)",ROUND('[1]Tabla de Amortizacion'!#REF!,8),IF([1]CALCULADORA!$F$10=20%,ROUND('[1]Tabla de Amortizacion'!#REF!,8),ROUND('[1]Tabla de Amortizacion'!K64,8)))))) -> 0
A64: 2030-06-13 | B64: 0.00411891 | C64: =+VLOOKUP(A64,'Tabla de Amortizacion'!$D$2:$Q$182,MATCH(Tablas!$B$1,'Tabla de Amortizacion'!$D$2:$Q$2,0)) -> 0.00411891 | E64: =IF([1]CALCULADORA!$F$10="Contractual",ROUND('[1]Tabla de Amortizacion'!C65,8),IF([1]CALCULADORA!$F$10="6% (Medio)",ROUND('[1]Tabla de Amortizacion'!F65,8),IF([1]CALCULADORA!$F$10="10% (Medio Alto)",ROUND('[1]Tabla de Amortizacion'!H65,8),IF([1]CALCULADORA!$F$10="14% (Alto)",ROUND('[1]Tabla de Amortizacion'!#REF!,8),IF([1]CALCULADORA!$F$10=20%,ROUND('[1]Tabla de Amortizacion'!#REF!,8),ROUND('[1]Tabla de Amortizacion'!K65,8)))))) -> 0
A65: 2030-07-13 | B65: 0.00396708 | C65: =+VLOOKUP(A65,'Tabla de Amortizacion'!$D$2:$Q$182,MATCH(Tablas!$B$1,'Tabla de Amortizacion'!$D$2:$Q$2,0)) -> 0.00396708 | E65: =IF([1]CALCULADORA!$F$10="Contractual",ROUND('[1]Tabla de Amortizacion'!C66,8),IF([1]CALCULADORA!$F$10="6% (Medio)",ROUND('[1]Tabla de Amortizacion'!F66,8),IF([1]CALCULADORA!$F$10="10% (Medio Alto)",ROUND('[1]Tabla de Amortizacion'!H66,8),IF([1]CALCULADORA!$F$10="14% (Alto)",ROUND('[1]Tabla de Amortizacion'!#REF!,8),IF([1]CALCULADORA!$F$10=20%,ROUND('[1]Tabla de Amortizacion'!#REF!,8),ROUND('[1]Tabla de Amortizacion'!K66,8)))))) -> 0
A66: 2030-08-13 | B66: 0.00382215 | C66: =+VLOOKUP(A66,'Tabla de Amortizacion'!$D$2:$Q$182,MATCH(Tablas!$B$1,'Tabla de Amortizacion'!$D$2:$Q$2,0)) -> 0.00382215 | E66: =IF([1]CALCULADORA!$F$10="Contractual",ROUND('[1]Tabla de Amortizacion'!C67,8),IF([1]CALCULADORA!$F$10="6% (Medio)",ROUND('[1]Tabla de Amortizacion'!F67,8),IF([1]CALCULADORA!$F$10="10% (Medio Alto)",ROUND('[1]Tabla de Amortizacion'!H67,8),IF([1]CALCULADORA!$F$10="14% (Alto)",ROUND('[1]Tabla de Amortizacion'!#REF!,8),IF([1]CALCULADORA!$F$10=20%,ROUND('[1]Tabla de Amortizacion'!#REF!,8),ROUND('[1]Tabla de Amortizacion'!K67,8)))))) -> 0
A67: =EDATE(A66,1) -> 2030-09-13 | B67: =+ROUND(C67,8) -> 0.00368299 | C67: =+VLOOKUP(A67,'Tabla de Amortizacion'!$D$2:$Q$182,MATCH(Tablas!$B$1,'Tabla de Amortizacion'!$D$2:$Q$2,0)) -> 0.00368299 | E67: =IF([1]CALCULADORA!$F$10="Contractual",ROUND('[1]Tabla de Amortizacion'!C68,8),IF([1]CALCULADORA!$F$10="6% (Medio)",ROUND('[1]Tabla de Amortizacion'!F68,8),IF([1]CALCULADORA!$F$10="10% (Medio Alto)",ROUND('[1]Tabla de Amortizacion'!H68,8),IF([1]CALCULADORA!$F$10="14% (Alto)",ROUND('[1]Tabla de Amortizacion'!#REF!,8),IF([1]CALCULADORA!$F$10=20%,ROUND('[1]Tabla de Amortizacion'!#REF!,8),ROUND('[1]Tabla de Amortizacion'!K68,8)))))) -> 0
A68: 2030-10-13 | B68: 0.00354306 | C68: =+VLOOKUP(A68,'Tabla de Amortizacion'!$D$2:$Q$182,MATCH(Tablas!$B$1,'Tabla de Amortizacion'!$D$2:$Q$2,0)) -> 0.00354306 | E68: =IF([1]CALCULADORA!$F$10="Contractual",ROUND('[1]Tabla de Amortizacion'!C69,8),IF([1]CALCULADORA!$F$10="6% (Medio)",ROUND('[1]Tabla de Amortizacion'!F69,8),IF([1]CALCULADORA!$F$10="10% (Medio Alto)",ROUND('[1]Tabla de Amortizacion'!H69,8),IF([1]CALCULADORA!$F$10="14% (Alto)",ROUND('[1]Tabla de Amortizacion'!#REF!,8),IF([1]CALCULADORA!$F$10=20%,ROUND('[1]Tabla de Amortizacion'!#REF!,8),ROUND('[1]Tabla de Amortizacion'!K69,8)))))) -> 0
A69: 2030-11-13 | B69: 0.00341357 | C69: =+VLOOKUP(A69,'Tabla de Amortizacion'!$D$2:$Q$182,MATCH(Tablas!$B$1,'Tabla de Amortizacion'!$D$2:$Q$2,0)) -> 0.00341357 | E69: =IF([1]CALCULADORA!$F$10="Contractual",ROUND('[1]Tabla de Amortizacion'!C70,8),IF([1]CALCULADORA!$F$10="6% (Medio)",ROUND('[1]Tabla de Amortizacion'!F70,8),IF([1]CALCULADORA!$F$10="10% (Medio Alto)",ROUND('[1]Tabla de Amortizacion'!H70,8),IF([1]CALCULADORA!$F$10="14% (Alto)",ROUND('[1]Tabla de Amortizacion'!#REF!,8),IF([1]CALCULADORA!$F$10=20%,ROUND('[1]Tabla de Amortizacion'!#REF!,8),ROUND('[1]Tabla de Amortizacion'!K70,8)))))) -> 0
A70: 2030-12-13 | B70: 0.00328382 | C70: =+VLOOKUP(A70,'Tabla de Amortizacion'!$D$2:$Q$182,MATCH(Tablas!$B$1,'Tabla de Amortizacion'!$D$2:$Q$2,0)) -> 0.00328382 | E70: =IF([1]CALCULADORA!$F$10="Contractual",ROUND('[1]Tabla de Amortizacion'!C71,8),IF([1]CALCULADORA!$F$10="6% (Medio)",ROUND('[1]Tabla de Amortizacion'!F71,8),IF([1]CALCULADORA!$F$10="10% (Medio Alto)",ROUND('[1]Tabla de Amortizacion'!H71,8),IF([1]CALCULADORA!$F$10="14% (Alto)",ROUND('[1]Tabla de Amortizacion'!#REF!,8),IF([1]CALCULADORA!$F$10=20%,ROUND('[1]Tabla de Amortizacion'!#REF!,8),ROUND('[1]Tabla de Amortizacion'!K71,8)))))) -> 0
A71: 2031-01-13 | B71: 0.00316144 | C71: =+VLOOKUP(A71,'Tabla de Amortizacion'!$D$2:$Q$182,MATCH(Tablas!$B$1,'Tabla de Amortizacion'!$D$2:$Q$2,0)) -> 0.00316144 | E71: =IF([1]CALCULADORA!$F$10="Contractual",ROUND('[1]Tabla de Amortizacion'!C72,8),IF([1]CALCULADORA!$F$10="6% (Medio)",ROUND('[1]Tabla de Amortizacion'!F72,8),IF([1]CALCULADORA!$F$10="10% (Medio Alto)",ROUND('[1]Tabla de Amortizacion'!H72,8),IF([1]CALCULADORA!$F$10="14% (Alto)",ROUND('[1]Tabla de Amortizacion'!#REF!,8),IF([1]CALCULADORA!$F$10=20%,ROUND('[1]Tabla de Amortizacion'!#REF!,8),ROUND('[1]Tabla de Amortizacion'!K72,8)))))) -> 0
A72: 2031-02-13 | B72: 0.00304727 | C72: =+VLOOKUP(A72,'Tabla de Amortizacion'!$D$2:$Q$182,MATCH(Tablas!$B$1,'Tabla de Amortizacion'!$D$2:$Q$2,0)) -> 0.00304727 | E72: =IF([1]CALCULADORA!$F$10="Contractual",ROUND('[1]Tabla de Amortizacion'!C73,8),IF([1]CALCULADORA!$F$10="6% (Medio)",ROUND('[1]Tabla de Amortizacion'!F73,8),IF([1]CALCULADORA!$F$10="10% (Medio Alto)",ROUND('[1]Tabla de Amortizacion'!H73,8),IF([1]CALCULADORA!$F$10="14% (Alto)",ROUND('[1]Tabla de Amortizacion'!#REF!,8),IF([1]CALCULADORA!$F$10=20%,ROUND('[1]Tabla de Amortizacion'!#REF!,8),ROUND('[1]Tabla de Amortizacion'!K73,8)))))) -> 0
A73: 2031-03-13 | B73: 0.00216939 | C73: =+VLOOKUP(A73,'Tabla de Amortizacion'!$D$2:$Q$182,MATCH(Tablas!$B$1,'Tabla de Amortizacion'!$D$2:$Q$2,0)) -> 0.00216939 | E73: =IF([1]CALCULADORA!$F$10="Contractual",ROUND('[1]Tabla de Amortizacion'!C74,8),IF([1]CALCULADORA!$F$10="6% (Medio)",ROUND('[1]Tabla de Amortizacion'!F74,8),IF([1]CALCULADORA!$F$10="10% (Medio Alto)",ROUND('[1]Tabla de Amortizacion'!H74,8),IF([1]CALCULADORA!$F$10="14% (Alto)",ROUND('[1]Tabla de Amortizacion'!#REF!,8),IF([1]CALCULADORA!$F$10=20%,ROUND('[1]Tabla de Amortizacion'!#REF!,8),ROUND('[1]Tabla de Amortizacion'!K74,8)))))) -> 0
A74: 2031-04-13 | B74: 0.00281926 | C74: =+VLOOKUP(A74,'Tabla de Amortizacion'!$D$2:$Q$182,MATCH(Tablas!$B$1,'Tabla de Amortizacion'!$D$2:$Q$2,0)) -> 0.00281926 | E74: =IF([1]CALCULADORA!$F$10="Contractual",ROUND('[1]Tabla de Amortizacion'!C75,8),IF([1]CALCULADORA!$F$10="6% (Medio)",ROUND('[1]Tabla de Amortizacion'!F75,8),IF([1]CALCULADORA!$F$10="10% (Medio Alto)",ROUND('[1]Tabla de Amortizacion'!H75,8),IF([1]CALCULADORA!$F$10="14% (Alto)",ROUND('[1]Tabla de Amortizacion'!#REF!,8),IF([1]CALCULADORA!$F$10=20%,ROUND('[1]Tabla de Amortizacion'!#REF!,8),ROUND('[1]Tabla de Amortizacion'!K75,8)))))) -> 0
A75: 2031-05-13 | B75: 0.00271398 | C75: =+VLOOKUP(A75,'Tabla de Amortizacion'!$D$2:$Q$182,MATCH(Tablas!$B$1,'Tabla de Amortizacion'!$D$2:$Q$2,0)) -> 0.00271398 | E75: =IF([1]CALCULADORA!$F$10="Contractual",ROUND('[1]Tabla de Amortizacion'!C76,8),IF([1]CALCULADORA!$F$10="6% (Medio)",ROUND('[1]Tabla de Amortizacion'!F76,8),IF([1]CALCULADORA!$F$10="10% (Medio Alto)",ROUND('[1]Tabla de Amortizacion'!H76,8),IF([1]CALCULADORA!$F$10="14% (Alto)",ROUND('[1]Tabla de Amortizacion'!#REF!,8),IF([1]CALCULADORA!$F$10=20%,ROUND('[1]Tabla de Amortizacion'!#REF!,8),ROUND('[1]Tabla de Amortizacion'!K76,8)))))) -> 0
A76: 2031-06-13 | B76: 0.0026139 | C76: =+VLOOKUP(A76,'Tabla de Amortizacion'!$D$2:$Q$182,MATCH(Tablas!$B$1,'Tabla de Amortizacion'!$D$2:$Q$2,0)) -> 0.0026139 | E76: =IF([1]CALCULADORA!$F$10="Contractual",ROUND('[1]Tabla de Amortizacion'!C77,8),IF([1]CALCULADORA!$F$10="6% (Medio)",ROUND('[1]Tabla de Amortizacion'!F77,8),IF([1]CALCULADORA!$F$10="10% (Medio Alto)",ROUND('[1]Tabla de Amortizacion'!H77,8),IF([1]CALCULADORA!$F$10="14% (Alto)",ROUND('[1]Tabla de Amortizacion'!#REF!,8),IF([1]CALCULADORA!$F$10=20%,ROUND('[1]Tabla de Amortizacion'!#REF!,8),ROUND('[1]Tabla de Amortizacion'!K77,8)))))) -> 0
A77: 2031-07-13 | B77: 0.00251785 | C77: =+VLOOKUP(A77,'Tabla de Amortizacion'!$D$2:$Q$182,MATCH(Tablas!$B$1,'Tabla de Amortizacion'!$D$2:$Q$2,0)) -> 0.00251785 | E77: =IF([1]CALCULADORA!$F$10="Contractual",ROUND('[1]Tabla de Amortizacion'!C78,8),IF([1]CALCULADORA!$F$10="6% (Medio)",ROUND('[1]Tabla de Amortizacion'!F78,8),IF([1]CALCULADORA!$F$10="10% (Medio Alto)",ROUND('[1]Tabla de Amortizacion'!H78,8),IF([1]CALCULADORA!$F$10="14% (Alto)",ROUND('[1]Tabla de Amortizacion'!#REF!,8),IF([1]CALCULADORA!$F$10=20%,ROUND('[1]Tabla de Amortizacion'!#REF!,8),ROUND('[1]Tabla de Amortizacion'!K78,8)))))) -> 0
A78: 2031-08-13 | B78: 0.00242054 | C78: =+VLOOKUP(A78,'Tabla de Amortizacion'!$D$2:$Q$182,MATCH(Tablas!$B$1,'Tabla de Amortizacion'!$D$2:$Q$2,0)) -> 0.00242054 | E78: =IF([1]CALCULADORA!$F$10="Contractual",ROUND('[1]Tabla de Amortizacion'!C79,8),IF([1]CALCULADORA!$F$10="6% (Medio)",ROUND('[1]Tabla de Amortizacion'!F79,8),IF([1]CALCULADORA!$F$10="10% (Medio Alto)",ROUND('[1]Tabla de Amortizacion'!H79,8),IF([1]CALCULADORA!$F$10="14% (Alto)",ROUND('[1]Tabla de Amortizacion'!#REF!,8),IF([1]CALCULADORA!$F$10=20%,ROUND('[1]Tabla de Amortizacion'!#REF!,8),ROUND('[1]Tabla de Amortizacion'!K79,8)))))) -> 0
A79: 2031-09-13 | B79: 0.00233183 | C79: =+VLOOKUP(A79,'Tabla de Amortizacion'!$D$2:$Q$182,MATCH(Tablas!$B$1,'Tabla de Amortizacion'!$D$2:$Q$2,0)) -> 0.00233183 | E79: =IF([1]CALCULADORA!$F$10="Contractual",ROUND('[1]Tabla de Amortizacion'!C80,8),IF([1]CALCULADORA!$F$10="6% (Medio)",ROUND('[1]Tabla de Amortizacion'!F80,8),IF([1]CALCULADORA!$F$10="10% (Medio Alto)",ROUND('[1]Tabla de Amortizacion'!H80,8),IF([1]CALCULADORA!$F$10="14% (Alto)",ROUND('[1]Tabla de Amortizacion'!#REF!,8),IF([1]CALCULADORA!$F$10=20%,ROUND('[1]Tabla de Amortizacion'!#REF!,8),ROUND('[1]Tabla de Amortizacion'!K80,8)))))) -> 0
A80: 2031-10-13 | B80: 0.00224799 | C80: =+VLOOKUP(A80,'Tabla de Amortizacion'!$D$2:$Q$182,MATCH(Tablas!$B$1,'Tabla de Amortizacion'!$D$2:$Q$2,0)) -> 0.00224799 | E80: =IF([1]CALCULADORA!$F$10="Contractual",ROUND('[1]Tabla de Amortizacion'!C81,8),IF([1]CALCULADORA!$F$10="6% (Medio)",ROUND('[1]Tabla de Amortizacion'!F81,8),IF([1]CALCULADORA!$F$10="10% (Medio Alto)",ROUND('[1]Tabla de Amortizacion'!H81,8),IF([1]CALCULADORA!$F$10="14% (Alto)",ROUND('[1]Tabla de Amortizacion'!#REF!,8),IF([1]CALCULADORA!$F$10=20%,ROUND('[1]Tabla de Amortizacion'!#REF!,8),ROUND('[1]Tabla de Amortizacion'!K81,8)))))) -> 0
A81: 2031-11-13 | B81: 0.00216507 | C81: =+VLOOKUP(A81,'Tabla de Amortizacion'!$D$2:$Q$182,MATCH(Tablas!$B$1,'Tabla de Amortizacion'!$D$2:$Q$2,0)) -> 0.00216507 | E81: =IF([1]CALCULADORA!$F$10="Contractual",ROUND('[1]Tabla de Amortizacion'!C82,8),IF([1]CALCULADORA!$F$10="6% (Medio)",ROUND('[1]Tabla de Amortizacion'!F82,8),IF([1]CALCULADORA!$F$10="10% (Medio Alto)",ROUND('[1]Tabla de Amortizacion'!H82,8),IF([1]CALCULADORA!$F$10="14% (Alto)",ROUND('[1]Tabla de Amortizacion'!#REF!,8),IF([1]CALCULADORA!$F$10=20%,ROUND('[1]Tabla de Amortizacion'!#REF!,8),ROUND('[1]Tabla de Amortizacion'!K82,8)))))) -> 0
A82: 2031-12-13 | B82: 0.00208503 | C82: =+VLOOKUP(A82,'Tabla de Amortizacion'!$D$2:$Q$182,MATCH(Tablas!$B$1,'Tabla de Amortizacion'!$D$2:$Q$2,0)) -> 0.00208503 | E82: =IF([1]CALCULADORA!$F$10="Contractual",ROUND('[1]Tabla de Amortizacion'!C83,8),IF([1]CALCULADORA!$F$10="6% (Medio)",ROUND('[1]Tabla de Amortizacion'!F83,8),IF([1]CALCULADORA!$F$10="10% (Medio Alto)",ROUND('[1]Tabla de Amortizacion'!H83,8),IF([1]CALCULADORA!$F$10="14% (Alto)",ROUND('[1]Tabla de Amortizacion'!#REF!,8),IF([1]CALCULADORA!$F$10=20%,ROUND('[1]Tabla de Amortizacion'!#REF!,8),ROUND('[1]Tabla de Amortizacion'!K83,8)))))) -> 0
A83: 2032-01-13 | B83: 0.00200527 | C83: =+VLOOKUP(A83,'Tabla de Amortizacion'!$D$2:$Q$182,MATCH(Tablas!$B$1,'Tabla de Amortizacion'!$D$2:$Q$2,0)) -> 0.00200527 | E83: =IF([1]CALCULADORA!$F$10="Contractual",ROUND('[1]Tabla de Amortizacion'!C84,8),IF([1]CALCULADORA!$F$10="6% (Medio)",ROUND('[1]Tabla de Amortizacion'!F84,8),IF([1]CALCULADORA!$F$10="10% (Medio Alto)",ROUND('[1]Tabla de Amortizacion'!H84,8),IF([1]CALCULADORA!$F$10="14% (Alto)",ROUND('[1]Tabla de Amortizacion'!#REF!,8),IF([1]CALCULADORA!$F$10=20%,ROUND('[1]Tabla de Amortizacion'!#REF!,8),ROUND('[1]Tabla de Amortizacion'!K84,8)))))) -> 0
A84: 2032-02-13 | B84: 0.001934 | C84: =+VLOOKUP(A84,'Tabla de Amortizacion'!$D$2:$Q$182,MATCH(Tablas!$B$1,'Tabla de Amortizacion'!$D$2:$Q$2,0)) -> 0.001934 | E84: =IF([1]CALCULADORA!$F$10="Contractual",ROUND('[1]Tabla de Amortizacion'!C85,8),IF([1]CALCULADORA!$F$10="6% (Medio)",ROUND('[1]Tabla de Amortizacion'!F85,8),IF([1]CALCULADORA!$F$10="10% (Medio Alto)",ROUND('[1]Tabla de Amortizacion'!H85,8),IF([1]CALCULADORA!$F$10="14% (Alto)",ROUND('[1]Tabla de Amortizacion'!#REF!,8),IF([1]CALCULADORA!$F$10=20%,ROUND('[1]Tabla de Amortizacion'!#REF!,8),ROUND('[1]Tabla de Amortizacion'!K85,8)))))) -> 0
A85: 2032-03-13 | B85: 0.00107118 | C85: =+VLOOKUP(A85,'Tabla de Amortizacion'!$D$2:$Q$182,MATCH(Tablas!$B$1,'Tabla de Amortizacion'!$D$2:$Q$2,0)) -> 0.00107118 | E85: =IF([1]CALCULADORA!$F$10="Contractual",ROUND('[1]Tabla de Amortizacion'!C86,8),IF([1]CALCULADORA!$F$10="6% (Medio)",ROUND('[1]Tabla de Amortizacion'!F86,8),IF([1]CALCULADORA!$F$10="10% (Medio Alto)",ROUND('[1]Tabla de Amortizacion'!H86,8),IF([1]CALCULADORA!$F$10="14% (Alto)",ROUND('[1]Tabla de Amortizacion'!#REF!,8),IF([1]CALCULADORA!$F$10=20%,ROUND('[1]Tabla de Amortizacion'!#REF!,8),ROUND('[1]Tabla de Amortizacion'!K86,8)))))) -> 0
A86: 2032-04-13 | B86: 0.00178558 | C86: =+VLOOKUP(A86,'Tabla de Amortizacion'!$D$2:$Q$182,MATCH(Tablas!$B$1,'Tabla de Amortizacion'!$D$2:$Q$2,0)) -> 0.00178558 | E86: =IF([1]CALCULADORA!$F$10="Contractual",ROUND('[1]Tabla de Amortizacion'!C87,8),IF([1]CALCULADORA!$F$10="6% (Medio)",ROUND('[1]Tabla de Amortizacion'!F87,8),IF([1]CALCULADORA!$F$10="10% (Medio Alto)",ROUND('[1]Tabla de Amortizacion'!H87,8),IF([1]CALCULADORA!$F$10="14% (Alto)",ROUND('[1]Tabla de Amortizacion'!#REF!,8),IF([1]CALCULADORA!$F$10=20%,ROUND('[1]Tabla de Amortizacion'!#REF!,8),ROUND('[1]Tabla de Amortizacion'!K87,8)))))) -> 0
A87: 2032-05-13 | B87: 0.00172115 | C87: =+VLOOKUP(A87,'Tabla de Amortizacion'!$D$2:$Q$182,MATCH(Tablas!$B$1,'Tabla de Amortizacion'!$D$2:$Q$2,0)) -> 0.00172115 | E87: =IF([1]CALCULADORA!$F$10="Contractual",ROUND('[1]Tabla de Amortizacion'!C88,8),IF([1]CALCULADORA!$F$10="6% (Medio)",ROUND('[1]Tabla de Amortizacion'!F88,8),IF([1]CALCULADORA!$F$10="10% (Medio Alto)",ROUND('[1]Tabla de Amortizacion'!H88,8),IF([1]CALCULADORA!$F$10="14% (Alto)",ROUND('[1]Tabla de Amortizacion'!#REF!,8),IF([1]CALCULADORA!$F$10=20%,ROUND('[1]Tabla de Amortizacion'!#REF!,8),ROUND('[1]Tabla de Amortizacion'!K88,8)))))) -> 0
A88: 2032-06-13 | B88: 0.00166051 | C88: =+VLOOKUP(A88,'Tabla de Amortizacion'!$D$2:$Q$182,MATCH(Tablas!$B$1,'Tabla de Amortizacion'!$D$2:$Q$2,0)) -> 0.00166051 | E88: =IF([1]CALCULADORA!$F$10="Contractual",ROUND('[1]Tabla de Amortizacion'!C89,8),IF([1]CALCULADORA!$F$10="6% (Medio)",ROUND('[1]Tabla de Amortizacion'!F89,8),IF([1]CALCULADORA!$F$10="10% (Medio Alto)",ROUND('[1]Tabla de Amortizacion'!H89,8),IF([1]CALCULADORA!$F$10="14% (Alto)",ROUND('[1]Tabla de Amortizacion'!#REF!,8),IF([1]CALCULADORA!$F$10=20%,ROUND('[1]Tabla de Amortizacion'!#REF!,8),ROUND('[1]Tabla de Amortizacion'!K89,8)))))) -> 0
A89: 2032-07-13 | B89: 0.00160123 | C89: =+VLOOKUP(A89,'Tabla de Amortizacion'!$D$2:$Q$182,MATCH(Tablas!$B$1,'Tabla de Amortizacion'!$D$2:$Q$2,0)) -> 0.00160123 | E89: =IF([1]CALCULADORA!$F$10="Contractual",ROUND('[1]Tabla de Amortizacion'!C90,8),IF([1]CALCULADORA!$F$10="6% (Medio)",ROUND('[1]Tabla de Amortizacion'!F90,8),IF([1]CALCULADORA!$F$10="10% (Medio Alto)",ROUND('[1]Tabla de Amortizacion'!H90,8),IF([1]CALCULADORA!$F$10="14% (Alto)",ROUND('[1]Tabla de Amortizacion'!#REF!,8),IF([1]CALCULADORA!$F$10=20%,ROUND('[1]Tabla de Amortizacion'!#REF!,8),ROUND('[1]Tabla de Amortizacion'!K90,8)))))) -> 0
A90: 2032-08-13 | B90: 0.00168044 | C90: =+VLOOKUP(A90,'Tabla de Amortizacion'!$D$2:$Q$182,MATCH(Tablas!$B$1,'Tabla de Amortizacion'!$D$2:$Q$2,0)) -> 0.00168044 | E90: =IF([1]CALCULADORA!$F$10="Contractual",ROUND('[1]Tabla de Amortizacion'!C91,8),IF([1]CALCULADORA!$F$10="6% (Medio)",ROUND('[1]Tabla de Amortizacion'!F91,8),IF([1]CALCULADORA!$F$10="10% (Medio Alto)",ROUND('[1]Tabla de Amortizacion'!H91,8),IF([1]CALCULADORA!$F$10="14% (Alto)",ROUND('[1]Tabla de Amortizacion'!#REF!,8),IF([1]CALCULADORA!$F$10=20%,ROUND('[1]Tabla de Amortizacion'!#REF!,8),ROUND('[1]Tabla de Amortizacion'!K91,8)))))) -> 0
A91: 2032-09-13 | B91: 0 | C91: =+VLOOKUP(A91,'Tabla de Amortizacion'!$D$2:$Q$182,MATCH(Tablas!$B$1,'Tabla de Amortizacion'!$D$2:$Q$2,0)) -> 0 | E91: =IF([1]CALCULADORA!$F$10="Contractual",ROUND('[1]Tabla de Amortizacion'!C92,8),IF([1]CALCULADORA!$F$10="6% (Medio)",ROUND('[1]Tabla de Amortizacion'!F92,8),IF([1]CALCULADORA!$F$10="10% (Medio Alto)",ROUND('[1]Tabla de Amortizacion'!H92,8),IF([1]CALCULADORA!$F$10="14% (Alto)",ROUND('[1]Tabla de Amortizacion'!#REF!,8),IF([1]CALCULADORA!$F$10=20%,ROUND('[1]Tabla de Amortizacion'!#REF!,8),ROUND('[1]Tabla de Amortizacion'!K92,8)))))) -> 0
A92: 2032-10-13 | B92: 0 | C92: =+VLOOKUP(A92,'Tabla de Amortizacion'!$D$2:$Q$182,MATCH(Tablas!$B$1,'Tabla de Amortizacion'!$D$2:$Q$2,0)) -> 0 | E92: =IF([1]CALCULADORA!$F$10="Contractual",ROUND('[1]Tabla de Amortizacion'!C93,8),IF([1]CALCULADORA!$F$10="6% (Medio)",ROUND('[1]Tabla de Amortizacion'!F93,8),IF([1]CALCULADORA!$F$10="10% (Medio Alto)",ROUND('[1]Tabla de Amortizacion'!H93,8),IF([1]CALCULADORA!$F$10="14% (Alto)",ROUND('[1]Tabla de Amortizacion'!#REF!,8),IF([1]CALCULADORA!$F$10=20%,ROUND('[1]Tabla de Amortizacion'!#REF!,8),ROUND('[1]Tabla de Amortizacion'!K93,8)))))) -> 0
A93: 2032-11-13 | B93: 0 | C93: =+VLOOKUP(A93,'Tabla de Amortizacion'!$D$2:$Q$182,MATCH(Tablas!$B$1,'Tabla de Amortizacion'!$D$2:$Q$2,0)) -> 0 | E93: =IF([1]CALCULADORA!$F$10="Contractual",ROUND('[1]Tabla de Amortizacion'!C94,8),IF([1]CALCULADORA!$F$10="6% (Medio)",ROUND('[1]Tabla de Amortizacion'!F94,8),IF([1]CALCULADORA!$F$10="10% (Medio Alto)",ROUND('[1]Tabla de Amortizacion'!H94,8),IF([1]CALCULADORA!$F$10="14% (Alto)",ROUND('[1]Tabla de Amortizacion'!#REF!,8),IF([1]CALCULADORA!$F$10=20%,ROUND('[1]Tabla de Amortizacion'!#REF!,8),ROUND('[1]Tabla de Amortizacion'!K94,8)))))) -> 0
A94: 2032-12-13 | B94: 0 | C94: =+VLOOKUP(A94,'Tabla de Amortizacion'!$D$2:$Q$182,MATCH(Tablas!$B$1,'Tabla de Amortizacion'!$D$2:$Q$2,0)) -> 0 | E94: =IF([1]CALCULADORA!$F$10="Contractual",ROUND('[1]Tabla de Amortizacion'!C95,8),IF([1]CALCULADORA!$F$10="6% (Medio)",ROUND('[1]Tabla de Amortizacion'!F95,8),IF([1]CALCULADORA!$F$10="10% (Medio Alto)",ROUND('[1]Tabla de Amortizacion'!H95,8),IF([1]CALCULADORA!$F$10="14% (Alto)",ROUND('[1]Tabla de Amortizacion'!#REF!,8),IF([1]CALCULADORA!$F$10=20%,ROUND('[1]Tabla de Amortizacion'!#REF!,8),ROUND('[1]Tabla de Amortizacion'!K95,8)))))) -> 0
A95: 2033-01-13 | B95: 0 | C95: =+VLOOKUP(A95,'Tabla de Amortizacion'!$D$2:$Q$182,MATCH(Tablas!$B$1,'Tabla de Amortizacion'!$D$2:$Q$2,0)) -> 0 | E95: =IF([1]CALCULADORA!$F$10="Contractual",ROUND('[1]Tabla de Amortizacion'!C96,8),IF([1]CALCULADORA!$F$10="6% (Medio)",ROUND('[1]Tabla de Amortizacion'!F96,8),IF([1]CALCULADORA!$F$10="10% (Medio Alto)",ROUND('[1]Tabla de Amortizacion'!H96,8),IF([1]CALCULADORA!$F$10="14% (Alto)",ROUND('[1]Tabla de Amortizacion'!#REF!,8),IF([1]CALCULADORA!$F$10=20%,ROUND('[1]Tabla de Amortizacion'!#REF!,8),ROUND('[1]Tabla de Amortizacion'!K96,8)))))) -> 0
A96: 2033-02-13 | B96: 0 | C96: =+VLOOKUP(A96,'Tabla de Amortizacion'!$D$2:$Q$182,MATCH(Tablas!$B$1,'Tabla de Amortizacion'!$D$2:$Q$2,0)) -> 0 | E96: =IF([1]CALCULADORA!$F$10="Contractual",ROUND('[1]Tabla de Amortizacion'!C97,8),IF([1]CALCULADORA!$F$10="6% (Medio)",ROUND('[1]Tabla de Amortizacion'!F97,8),IF([1]CALCULADORA!$F$10="10% (Medio Alto)",ROUND('[1]Tabla de Amortizacion'!H97,8),IF([1]CALCULADORA!$F$10="14% (Alto)",ROUND('[1]Tabla de Amortizacion'!#REF!,8),IF([1]CALCULADORA!$F$10=20%,ROUND('[1]Tabla de Amortizacion'!#REF!,8),ROUND('[1]Tabla de Amortizacion'!K97,8)))))) -> 0
A97: 2033-03-13 | B97: 0 | C97: =+VLOOKUP(A97,'Tabla de Amortizacion'!$D$2:$Q$182,MATCH(Tablas!$B$1,'Tabla de Amortizacion'!$D$2:$Q$2,0)) -> 0 | E97: =IF([1]CALCULADORA!$F$10="Contractual",ROUND('[1]Tabla de Amortizacion'!C98,8),IF([1]CALCULADORA!$F$10="6% (Medio)",ROUND('[1]Tabla de Amortizacion'!F98,8),IF([1]CALCULADORA!$F$10="10% (Medio Alto)",ROUND('[1]Tabla de Amortizacion'!H98,8),IF([1]CALCULADORA!$F$10="14% (Alto)",ROUND('[1]Tabla de Amortizacion'!#REF!,8),IF([1]CALCULADORA!$F$10=20%,ROUND('[1]Tabla de Amortizacion'!#REF!,8),ROUND('[1]Tabla de Amortizacion'!K98,8)))))) -> 0
A98: 2033-04-13 | B98: 0 | C98: =+VLOOKUP(A98,'Tabla de Amortizacion'!$D$2:$Q$182,MATCH(Tablas!$B$1,'Tabla de Amortizacion'!$D$2:$Q$2,0)) -> 0 | E98: =IF([1]CALCULADORA!$F$10="Contractual",ROUND('[1]Tabla de Amortizacion'!C99,8),IF([1]CALCULADORA!$F$10="6% (Medio)",ROUND('[1]Tabla de Amortizacion'!F99,8),IF([1]CALCULADORA!$F$10="10% (Medio Alto)",ROUND('[1]Tabla de Amortizacion'!H99,8),IF([1]CALCULADORA!$F$10="14% (Alto)",ROUND('[1]Tabla de Amortizacion'!#REF!,8),IF([1]CALCULADORA!$F$10=20%,ROUND('[1]Tabla de Amortizacion'!#REF!,8),ROUND('[1]Tabla de Amortizacion'!K99,8)))))) -> 0
A99: 2033-05-13 | B99: 0 | C99: =+VLOOKUP(A99,'Tabla de Amortizacion'!$D$2:$Q$182,MATCH(Tablas!$B$1,'Tabla de Amortizacion'!$D$2:$Q$2,0)) -> 0 | E99: =IF([1]CALCULADORA!$F$10="Contractual",ROUND('[1]Tabla de Amortizacion'!C100,8),IF([1]CALCULADORA!$F$10="6% (Medio)",ROUND('[1]Tabla de Amortizacion'!F100,8),IF([1]CALCULADORA!$F$10="10% (Medio Alto)",ROUND('[1]Tabla de Amortizacion'!H100,8),IF([1]CALCULADORA!$F$10="14% (Alto)",ROUND('[1]Tabla de Amortizacion'!#REF!,8),IF([1]CALCULADORA!$F$10=20%,ROUND('[1]Tabla de Amortizacion'!#REF!,8),ROUND('[1]Tabla de Amortizacion'!K100,8)))))) -> 0
A100: 2033-06-13 | B100: 0 | C100: =+VLOOKUP(A100,'Tabla de Amortizacion'!$D$2:$Q$182,MATCH(Tablas!$B$1,'Tabla de Amortizacion'!$D$2:$Q$2,0)) -> 0 | E100: =IF([1]CALCULADORA!$F$10="Contractual",ROUND('[1]Tabla de Amortizacion'!C101,8),IF([1]CALCULADORA!$F$10="6% (Medio)",ROUND('[1]Tabla de Amortizacion'!F101,8),IF([1]CALCULADORA!$F$10="10% (Medio Alto)",ROUND('[1]Tabla de Amortizacion'!H101,8),IF([1]CALCULADORA!$F$10="14% (Alto)",ROUND('[1]Tabla de Amortizacion'!#REF!,8),IF([1]CALCULADORA!$F$10=20%,ROUND('[1]Tabla de Amortizacion'!#REF!,8),ROUND('[1]Tabla de Amortizacion'!K101,8)))))) -> 0
A101: 2033-07-13 | B101: 0 | C101: =+VLOOKUP(A101,'Tabla de Amortizacion'!$D$2:$Q$182,MATCH(Tablas!$B$1,'Tabla de Amortizacion'!$D$2:$Q$2,0)) -> 0 | E101: =IF([1]CALCULADORA!$F$10="Contractual",ROUND('[1]Tabla de Amortizacion'!C102,8),IF([1]CALCULADORA!$F$10="6% (Medio)",ROUND('[1]Tabla de Amortizacion'!F102,8),IF([1]CALCULADORA!$F$10="10% (Medio Alto)",ROUND('[1]Tabla de Amortizacion'!H102,8),IF([1]CALCULADORA!$F$10="14% (Alto)",ROUND('[1]Tabla de Amortizacion'!#REF!,8),IF([1]CALCULADORA!$F$10=20%,ROUND('[1]Tabla de Amortizacion'!#REF!,8),ROUND('[1]Tabla de Amortizacion'!K102,8)))))) -> 0
A102: 2033-08-13 | B102: 0 | C102: =+VLOOKUP(A102,'Tabla de Amortizacion'!$D$2:$Q$182,MATCH(Tablas!$B$1,'Tabla de Amortizacion'!$D$2:$Q$2,0)) -> 0 | E102: =IF([1]CALCULADORA!$F$10="Contractual",ROUND('[1]Tabla de Amortizacion'!C103,8),IF([1]CALCULADORA!$F$10="6% (Medio)",ROUND('[1]Tabla de Amortizacion'!F103,8),IF([1]CALCULADORA!$F$10="10% (Medio Alto)",ROUND('[1]Tabla de Amortizacion'!H103,8),IF([1]CALCULADORA!$F$10="14% (Alto)",ROUND('[1]Tabla de Amortizacion'!#REF!,8),IF([1]CALCULADORA!$F$10=20%,ROUND('[1]Tabla de Amortizacion'!#REF!,8),ROUND('[1]Tabla de Amortizacion'!K103,8)))))) -> 0
A103: 2033-09-13 | B103: 0 | C103: =+VLOOKUP(A103,'Tabla de Amortizacion'!$D$2:$Q$182,MATCH(Tablas!$B$1,'Tabla de Amortizacion'!$D$2:$Q$2,0)) -> 0 | E103: =IF([1]CALCULADORA!$F$10="Contractual",ROUND('[1]Tabla de Amortizacion'!C104,8),IF([1]CALCULADORA!$F$10="6% (Medio)",ROUND('[1]Tabla de Amortizacion'!F104,8),IF([1]CALCULADORA!$F$10="10% (Medio Alto)",ROUND('[1]Tabla de Amortizacion'!H104,8),IF([1]CALCULADORA!$F$10="14% (Alto)",ROUND('[1]Tabla de Amortizacion'!#REF!,8),IF([1]CALCULADORA!$F$10=20%,ROUND('[1]Tabla de Amortizacion'!#REF!,8),ROUND('[1]Tabla de Amortizacion'!K104,8)))))) -> 0
A104: 2033-10-13 | B104: 0 | C104: =+VLOOKUP(A104,'Tabla de Amortizacion'!$D$2:$Q$182,MATCH(Tablas!$B$1,'Tabla de Amortizacion'!$D$2:$Q$2,0)) -> 0 | E104: =IF([1]CALCULADORA!$F$10="Contractual",ROUND('[1]Tabla de Amortizacion'!C105,8),IF([1]CALCULADORA!$F$10="6% (Medio)",ROUND('[1]Tabla de Amortizacion'!F105,8),IF([1]CALCULADORA!$F$10="10% (Medio Alto)",ROUND('[1]Tabla de Amortizacion'!H105,8),IF([1]CALCULADORA!$F$10="14% (Alto)",ROUND('[1]Tabla de Amortizacion'!#REF!,8),IF([1]CALCULADORA!$F$10=20%,ROUND('[1]Tabla de Amortizacion'!#REF!,8),ROUND('[1]Tabla de Amortizacion'!K105,8)))))) -> 0
A105: 2033-11-13 | B105: 0 | C105: =+VLOOKUP(A105,'Tabla de Amortizacion'!$D$2:$Q$182,MATCH(Tablas!$B$1,'Tabla de Amortizacion'!$D$2:$Q$2,0)) -> 0 | E105: =IF([1]CALCULADORA!$F$10="Contractual",ROUND('[1]Tabla de Amortizacion'!C106,8),IF([1]CALCULADORA!$F$10="6% (Medio)",ROUND('[1]Tabla de Amortizacion'!F106,8),IF([1]CALCULADORA!$F$10="10% (Medio Alto)",ROUND('[1]Tabla de Amortizacion'!H106,8),IF([1]CALCULADORA!$F$10="14% (Alto)",ROUND('[1]Tabla de Amortizacion'!#REF!,8),IF([1]CALCULADORA!$F$10=20%,ROUND('[1]Tabla de Amortizacion'!#REF!,8),ROUND('[1]Tabla de Amortizacion'!K106,8)))))) -> 0
A106: 2033-12-13 | B106: 0 | C106: =+VLOOKUP(A106,'Tabla de Amortizacion'!$D$2:$Q$182,MATCH(Tablas!$B$1,'Tabla de Amortizacion'!$D$2:$Q$2,0)) -> 0 | E106: =IF([1]CALCULADORA!$F$10="Contractual",ROUND('[1]Tabla de Amortizacion'!C107,8),IF([1]CALCULADORA!$F$10="6% (Medio)",ROUND('[1]Tabla de Amortizacion'!F107,8),IF([1]CALCULADORA!$F$10="10% (Medio Alto)",ROUND('[1]Tabla de Amortizacion'!H107,8),IF([1]CALCULADORA!$F$10="14% (Alto)",ROUND('[1]Tabla de Amortizacion'!#REF!,8),IF([1]CALCULADORA!$F$10=20%,ROUND('[1]Tabla de Amortizacion'!#REF!,8),ROUND('[1]Tabla de Amortizacion'!K107,8)))))) -> 0
A107: 2034-01-13 | B107: 0 | C107: =+VLOOKUP(A107,'Tabla de Amortizacion'!$D$2:$Q$182,MATCH(Tablas!$B$1,'Tabla de Amortizacion'!$D$2:$Q$2,0)) -> 0 | E107: =IF([1]CALCULADORA!$F$10="Contractual",ROUND('[1]Tabla de Amortizacion'!C108,8),IF([1]CALCULADORA!$F$10="6% (Medio)",ROUND('[1]Tabla de Amortizacion'!F108,8),IF([1]CALCULADORA!$F$10="10% (Medio Alto)",ROUND('[1]Tabla de Amortizacion'!H108,8),IF([1]CALCULADORA!$F$10="14% (Alto)",ROUND('[1]Tabla de Amortizacion'!#REF!,8),IF([1]CALCULADORA!$F$10=20%,ROUND('[1]Tabla de Amortizacion'!#REF!,8),ROUND('[1]Tabla de Amortizacion'!K108,8)))))) -> 0
A108: 2034-02-13 | B108: 0 | C108: =+VLOOKUP(A108,'Tabla de Amortizacion'!$D$2:$Q$182,MATCH(Tablas!$B$1,'Tabla de Amortizacion'!$D$2:$Q$2,0)) -> 0 | E108: =IF([1]CALCULADORA!$F$10="Contractual",ROUND('[1]Tabla de Amortizacion'!C109,8),IF([1]CALCULADORA!$F$10="6% (Medio)",ROUND('[1]Tabla de Amortizacion'!F109,8),IF([1]CALCULADORA!$F$10="10% (Medio Alto)",ROUND('[1]Tabla de Amortizacion'!H109,8),IF([1]CALCULADORA!$F$10="14% (Alto)",ROUND('[1]Tabla de Amortizacion'!#REF!,8),IF([1]CALCULADORA!$F$10=20%,ROUND('[1]Tabla de Amortizacion'!#REF!,8),ROUND('[1]Tabla de Amortizacion'!K109,8)))))) -> 0
A109: 2034-03-13 | B109: 0 | C109: =+VLOOKUP(A109,'Tabla de Amortizacion'!$D$2:$Q$182,MATCH(Tablas!$B$1,'Tabla de Amortizacion'!$D$2:$Q$2,0)) -> 0 | E109: =IF([1]CALCULADORA!$F$10="Contractual",ROUND('[1]Tabla de Amortizacion'!C110,8),IF([1]CALCULADORA!$F$10="6% (Medio)",ROUND('[1]Tabla de Amortizacion'!F110,8),IF([1]CALCULADORA!$F$10="10% (Medio Alto)",ROUND('[1]Tabla de Amortizacion'!H110,8),IF([1]CALCULADORA!$F$10="14% (Alto)",ROUND('[1]Tabla de Amortizacion'!#REF!,8),IF([1]CALCULADORA!$F$10=20%,ROUND('[1]Tabla de Amortizacion'!#REF!,8),ROUND('[1]Tabla de Amortizacion'!K110,8)))))) -> 0
A110: 2034-04-13 | B110: 0 | C110: =+VLOOKUP(A110,'Tabla de Amortizacion'!$D$2:$Q$182,MATCH(Tablas!$B$1,'Tabla de Amortizacion'!$D$2:$Q$2,0)) -> 0 | E110: =IF([1]CALCULADORA!$F$10="Contractual",ROUND('[1]Tabla de Amortizacion'!C111,8),IF([1]CALCULADORA!$F$10="6% (Medio)",ROUND('[1]Tabla de Amortizacion'!F111,8),IF([1]CALCULADORA!$F$10="10% (Medio Alto)",ROUND('[1]Tabla de Amortizacion'!H111,8),IF([1]CALCULADORA!$F$10="14% (Alto)",ROUND('[1]Tabla de Amortizacion'!#REF!,8),IF([1]CALCULADORA!$F$10=20%,ROUND('[1]Tabla de Amortizacion'!#REF!,8),ROUND('[1]Tabla de Amortizacion'!K111,8)))))) -> 0
A111: 2034-05-13 | B111: 0 | C111: =+VLOOKUP(A111,'Tabla de Amortizacion'!$D$2:$Q$182,MATCH(Tablas!$B$1,'Tabla de Amortizacion'!$D$2:$Q$2,0)) -> 0 | E111: =IF([1]CALCULADORA!$F$10="Contractual",ROUND('[1]Tabla de Amortizacion'!C112,8),IF([1]CALCULADORA!$F$10="6% (Medio)",ROUND('[1]Tabla de Amortizacion'!F112,8),IF([1]CALCULADORA!$F$10="10% (Medio Alto)",ROUND('[1]Tabla de Amortizacion'!H112,8),IF([1]CALCULADORA!$F$10="14% (Alto)",ROUND('[1]Tabla de Amortizacion'!#REF!,8),IF([1]CALCULADORA!$F$10=20%,ROUND('[1]Tabla de Amortizacion'!#REF!,8),ROUND('[1]Tabla de Amortizacion'!K112,8)))))) -> 0
A112: 2034-06-13 | B112: 0 | C112: =+VLOOKUP(A112,'Tabla de Amortizacion'!$D$2:$Q$182,MATCH(Tablas!$B$1,'Tabla de Amortizacion'!$D$2:$Q$2,0)) -> 0 | E112: =IF([1]CALCULADORA!$F$10="Contractual",ROUND('[1]Tabla de Amortizacion'!C113,8),IF([1]CALCULADORA!$F$10="6% (Medio)",ROUND('[1]Tabla de Amortizacion'!F113,8),IF([1]CALCULADORA!$F$10="10% (Medio Alto)",ROUND('[1]Tabla de Amortizacion'!H113,8),IF([1]CALCULADORA!$F$10="14% (Alto)",ROUND('[1]Tabla de Amortizacion'!#REF!,8),IF([1]CALCULADORA!$F$10=20%,ROUND('[1]Tabla de Amortizacion'!#REF!,8),ROUND('[1]Tabla de Amortizacion'!K113,8)))))) -> 0
A113: 2034-07-13 | B113: 0 | C113: =+VLOOKUP(A113,'Tabla de Amortizacion'!$D$2:$Q$182,MATCH(Tablas!$B$1,'Tabla de Amortizacion'!$D$2:$Q$2,0)) -> 0 | E113: =IF([1]CALCULADORA!$F$10="Contractual",ROUND('[1]Tabla de Amortizacion'!C114,8),IF([1]CALCULADORA!$F$10="6% (Medio)",ROUND('[1]Tabla de Amortizacion'!F114,8),IF([1]CALCULADORA!$F$10="10% (Medio Alto)",ROUND('[1]Tabla de Amortizacion'!H114,8),IF([1]CALCULADORA!$F$10="14% (Alto)",ROUND('[1]Tabla de Amortizacion'!#REF!,8),IF([1]CALCULADORA!$F$10=20%,ROUND('[1]Tabla de Amortizacion'!#REF!,8),ROUND('[1]Tabla de Amortizacion'!K114,8)))))) -> 0
A114: 2034-08-13 | B114: 0 | C114: =+VLOOKUP(A114,'Tabla de Amortizacion'!$D$2:$Q$182,MATCH(Tablas!$B$1,'Tabla de Amortizacion'!$D$2:$Q$2,0)) -> 0 | E114: =IF([1]CALCULADORA!$F$10="Contractual",ROUND('[1]Tabla de Amortizacion'!C115,8),IF([1]CALCULADORA!$F$10="6% (Medio)",ROUND('[1]Tabla de Amortizacion'!F115,8),IF([1]CALCULADORA!$F$10="10% (Medio Alto)",ROUND('[1]Tabla de Amortizacion'!H115,8),IF([1]CALCULADORA!$F$10="14% (Alto)",ROUND('[1]Tabla de Amortizacion'!#REF!,8),IF([1]CALCULADORA!$F$10=20%,ROUND('[1]Tabla de Amortizacion'!#REF!,8),ROUND('[1]Tabla de Amortizacion'!K115,8)))))) -> 0
A115: 2034-09-13 | B115: 0 | C115: =+VLOOKUP(A115,'Tabla de Amortizacion'!$D$2:$Q$182,MATCH(Tablas!$B$1,'Tabla de Amortizacion'!$D$2:$Q$2,0)) -> 0 | E115: =IF([1]CALCULADORA!$F$10="Contractual",ROUND('[1]Tabla de Amortizacion'!C116,8),IF([1]CALCULADORA!$F$10="6% (Medio)",ROUND('[1]Tabla de Amortizacion'!F116,8),IF([1]CALCULADORA!$F$10="10% (Medio Alto)",ROUND('[1]Tabla de Amortizacion'!H116,8),IF([1]CALCULADORA!$F$10="14% (Alto)",ROUND('[1]Tabla de Amortizacion'!#REF!,8),IF([1]CALCULADORA!$F$10=20%,ROUND('[1]Tabla de Amortizacion'!#REF!,8),ROUND('[1]Tabla de Amortizacion'!K116,8)))))) -> 0
A116: 2034-10-13 | B116: 0 | C116: =+VLOOKUP(A116,'Tabla de Amortizacion'!$D$2:$Q$182,MATCH(Tablas!$B$1,'Tabla de Amortizacion'!$D$2:$Q$2,0)) -> 0 | E116: =IF([1]CALCULADORA!$F$10="Contractual",ROUND('[1]Tabla de Amortizacion'!C117,8),IF([1]CALCULADORA!$F$10="6% (Medio)",ROUND('[1]Tabla de Amortizacion'!F117,8),IF([1]CALCULADORA!$F$10="10% (Medio Alto)",ROUND('[1]Tabla de Amortizacion'!H117,8),IF([1]CALCULADORA!$F$10="14% (Alto)",ROUND('[1]Tabla de Amortizacion'!#REF!,8),IF([1]CALCULADORA!$F$10=20%,ROUND('[1]Tabla de Amortizacion'!#REF!,8),ROUND('[1]Tabla de Amortizacion'!K117,8)))))) -> 0
A117: 2034-11-13 | B117: 0 | C117: =+VLOOKUP(A117,'Tabla de Amortizacion'!$D$2:$Q$182,MATCH(Tablas!$B$1,'Tabla de Amortizacion'!$D$2:$Q$2,0)) -> 0 | E117: =IF([1]CALCULADORA!$F$10="Contractual",ROUND('[1]Tabla de Amortizacion'!C118,8),IF([1]CALCULADORA!$F$10="6% (Medio)",ROUND('[1]Tabla de Amortizacion'!F118,8),IF([1]CALCULADORA!$F$10="10% (Medio Alto)",ROUND('[1]Tabla de Amortizacion'!H118,8),IF([1]CALCULADORA!$F$10="14% (Alto)",ROUND('[1]Tabla de Amortizacion'!#REF!,8),IF([1]CALCULADORA!$F$10=20%,ROUND('[1]Tabla de Amortizacion'!#REF!,8),ROUND('[1]Tabla de Amortizacion'!K118,8)))))) -> 0
A118: 2034-12-13 | B118: 0 | C118: =+VLOOKUP(A118,'Tabla de Amortizacion'!$D$2:$Q$182,MATCH(Tablas!$B$1,'Tabla de Amortizacion'!$D$2:$Q$2,0)) -> 0 | E118: =IF([1]CALCULADORA!$F$10="Contractual",ROUND('[1]Tabla de Amortizacion'!C119,8),IF([1]CALCULADORA!$F$10="6% (Medio)",ROUND('[1]Tabla de Amortizacion'!F119,8),IF([1]CALCULADORA!$F$10="10% (Medio Alto)",ROUND('[1]Tabla de Amortizacion'!H119,8),IF([1]CALCULADORA!$F$10="14% (Alto)",ROUND('[1]Tabla de Amortizacion'!#REF!,8),IF([1]CALCULADORA!$F$10=20%,ROUND('[1]Tabla de Amortizacion'!#REF!,8),ROUND('[1]Tabla de Amortizacion'!K119,8)))))) -> 0
A119: 2035-01-13 | B119: 0 | C119: =+VLOOKUP(A119,'Tabla de Amortizacion'!$D$2:$Q$182,MATCH(Tablas!$B$1,'Tabla de Amortizacion'!$D$2:$Q$2,0)) -> 0 | E119: =IF([1]CALCULADORA!$F$10="Contractual",ROUND('[1]Tabla de Amortizacion'!C120,8),IF([1]CALCULADORA!$F$10="6% (Medio)",ROUND('[1]Tabla de Amortizacion'!F120,8),IF([1]CALCULADORA!$F$10="10% (Medio Alto)",ROUND('[1]Tabla de Amortizacion'!H120,8),IF([1]CALCULADORA!$F$10="14% (Alto)",ROUND('[1]Tabla de Amortizacion'!#REF!,8),IF([1]CALCULADORA!$F$10=20%,ROUND('[1]Tabla de Amortizacion'!#REF!,8),ROUND('[1]Tabla de Amortizacion'!K120,8)))))) -> 0
A120: 2035-02-13 | B120: 0 | C120: =+VLOOKUP(A120,'Tabla de Amortizacion'!$D$2:$Q$182,MATCH(Tablas!$B$1,'Tabla de Amortizacion'!$D$2:$Q$2,0)) -> 0 | E120: =IF([1]CALCULADORA!$F$10="Contractual",ROUND('[1]Tabla de Amortizacion'!C121,8),IF([1]CALCULADORA!$F$10="6% (Medio)",ROUND('[1]Tabla de Amortizacion'!F121,8),IF([1]CALCULADORA!$F$10="10% (Medio Alto)",ROUND('[1]Tabla de Amortizacion'!H121,8),IF([1]CALCULADORA!$F$10="14% (Alto)",ROUND('[1]Tabla de Amortizacion'!#REF!,8),IF([1]CALCULADORA!$F$10=20%,ROUND('[1]Tabla de Amortizacion'!#REF!,8),ROUND('[1]Tabla de Amortizacion'!K121,8)))))) -> 0
A121: 2035-03-13 | B121: 0 | C121: =+VLOOKUP(A121,'Tabla de Amortizacion'!$D$2:$Q$182,MATCH(Tablas!$B$1,'Tabla de Amortizacion'!$D$2:$Q$2,0)) -> 0 | E121: =IF([1]CALCULADORA!$F$10="Contractual",ROUND('[1]Tabla de Amortizacion'!C122,8),IF([1]CALCULADORA!$F$10="6% (Medio)",ROUND('[1]Tabla de Amortizacion'!F122,8),IF([1]CALCULADORA!$F$10="10% (Medio Alto)",ROUND('[1]Tabla de Amortizacion'!H122,8),IF([1]CALCULADORA!$F$10="14% (Alto)",ROUND('[1]Tabla de Amortizacion'!#REF!,8),IF([1]CALCULADORA!$F$10=20%,ROUND('[1]Tabla de Amortizacion'!#REF!,8),ROUND('[1]Tabla de Amortizacion'!K122,8)))))) -> 0
A122: 2035-04-13 | B122: 0 | C122: =+VLOOKUP(A122,'Tabla de Amortizacion'!$D$2:$Q$182,MATCH(Tablas!$B$1,'Tabla de Amortizacion'!$D$2:$Q$2,0)) -> 0 | E122: =IF([1]CALCULADORA!$F$10="Contractual",ROUND('[1]Tabla de Amortizacion'!C123,8),IF([1]CALCULADORA!$F$10="6% (Medio)",ROUND('[1]Tabla de Amortizacion'!F123,8),IF([1]CALCULADORA!$F$10="10% (Medio Alto)",ROUND('[1]Tabla de Amortizacion'!H123,8),IF([1]CALCULADORA!$F$10="14% (Alto)",ROUND('[1]Tabla de Amortizacion'!#REF!,8),IF([1]CALCULADORA!$F$10=20%,ROUND('[1]Tabla de Amortizacion'!#REF!,8),ROUND('[1]Tabla de Amortizacion'!K123,8)))))) -> 0
A123: 2035-05-13 | B123: 0 | C123: =+VLOOKUP(A123,'Tabla de Amortizacion'!$D$2:$Q$182,MATCH(Tablas!$B$1,'Tabla de Amortizacion'!$D$2:$Q$2,0)) -> 0 | E123: =IF([1]CALCULADORA!$F$10="Contractual",ROUND('[1]Tabla de Amortizacion'!C124,8),IF([1]CALCULADORA!$F$10="6% (Medio)",ROUND('[1]Tabla de Amortizacion'!F124,8),IF([1]CALCULADORA!$F$10="10% (Medio Alto)",ROUND('[1]Tabla de Amortizacion'!H124,8),IF([1]CALCULADORA!$F$10="14% (Alto)",ROUND('[1]Tabla de Amortizacion'!#REF!,8),IF([1]CALCULADORA!$F$10=20%,ROUND('[1]Tabla de Amortizacion'!#REF!,8),ROUND('[1]Tabla de Amortizacion'!K124,8)))))) -> 0
A124: 2035-06-13 | B124: 0 | C124: =+VLOOKUP(A124,'Tabla de Amortizacion'!$D$2:$Q$182,MATCH(Tablas!$B$1,'Tabla de Amortizacion'!$D$2:$Q$2,0)) -> 0 | E124: =IF([1]CALCULADORA!$F$10="Contractual",ROUND('[1]Tabla de Amortizacion'!C125,8),IF([1]CALCULADORA!$F$10="6% (Medio)",ROUND('[1]Tabla de Amortizacion'!F125,8),IF([1]CALCULADORA!$F$10="10% (Medio Alto)",ROUND('[1]Tabla de Amortizacion'!H125,8),IF([1]CALCULADORA!$F$10="14% (Alto)",ROUND('[1]Tabla de Amortizacion'!#REF!,8),IF([1]CALCULADORA!$F$10=20%,ROUND('[1]Tabla de Amortizacion'!#REF!,8),ROUND('[1]Tabla de Amortizacion'!K125,8)))))) -> 0
A125: 2035-07-13 | B125: 0 | C125: =+VLOOKUP(A125,'Tabla de Amortizacion'!$D$2:$Q$182,MATCH(Tablas!$B$1,'Tabla de Amortizacion'!$D$2:$Q$2,0)) -> 0 | E125: =IF([1]CALCULADORA!$F$10="Contractual",ROUND('[1]Tabla de Amortizacion'!C126,8),IF([1]CALCULADORA!$F$10="6% (Medio)",ROUND('[1]Tabla de Amortizacion'!F126,8),IF([1]CALCULADORA!$F$10="10% (Medio Alto)",ROUND('[1]Tabla de Amortizacion'!H126,8),IF([1]CALCULADORA!$F$10="14% (Alto)",ROUND('[1]Tabla de Amortizacion'!#REF!,8),IF([1]CALCULADORA!$F$10=20%,ROUND('[1]Tabla de Amortizacion'!#REF!,8),ROUND('[1]Tabla de Amortizacion'!K126,8)))))) -> 0
A126: 2035-08-13 | B126: 0 | C126: =+VLOOKUP(A126,'Tabla de Amortizacion'!$D$2:$Q$182,MATCH(Tablas!$B$1,'Tabla de Amortizacion'!$D$2:$Q$2,0)) -> 0 | E126: =IF([1]CALCULADORA!$F$10="Contractual",ROUND('[1]Tabla de Amortizacion'!C127,8),IF([1]CALCULADORA!$F$10="6% (Medio)",ROUND('[1]Tabla de Amortizacion'!F127,8),IF([1]CALCULADORA!$F$10="10% (Medio Alto)",ROUND('[1]Tabla de Amortizacion'!H127,8),IF([1]CALCULADORA!$F$10="14% (Alto)",ROUND('[1]Tabla de Amortizacion'!#REF!,8),IF([1]CALCULADORA!$F$10=20%,ROUND('[1]Tabla de Amortizacion'!#REF!,8),ROUND('[1]Tabla de Amortizacion'!K127,8)))))) -> 0
A127: 2035-09-13 | B127: 0 | C127: =+VLOOKUP(A127,'Tabla de Amortizacion'!$D$2:$Q$182,MATCH(Tablas!$B$1,'Tabla de Amortizacion'!$D$2:$Q$2,0)) -> 0 | E127: =IF([1]CALCULADORA!$F$10="Contractual",ROUND('[1]Tabla de Amortizacion'!C128,8),IF([1]CALCULADORA!$F$10="6% (Medio)",ROUND('[1]Tabla de Amortizacion'!F128,8),IF([1]CALCULADORA!$F$10="10% (Medio Alto)",ROUND('[1]Tabla de Amortizacion'!H128,8),IF([1]CALCULADORA!$F$10="14% (Alto)",ROUND('[1]Tabla de Amortizacion'!#REF!,8),IF([1]CALCULADORA!$F$10=20%,ROUND('[1]Tabla de Amortizacion'!#REF!,8),ROUND('[1]Tabla de Amortizacion'!K128,8)))))) -> 0
A128: 2035-10-13 | B128: 0 | C128: =+VLOOKUP(A128,'Tabla de Amortizacion'!$D$2:$Q$182,MATCH(Tablas!$B$1,'Tabla de Amortizacion'!$D$2:$Q$2,0)) -> 0 | E128: =IF([1]CALCULADORA!$F$10="Contractual",ROUND('[1]Tabla de Amortizacion'!C129,8),IF([1]CALCULADORA!$F$10="6% (Medio)",ROUND('[1]Tabla de Amortizacion'!F129,8),IF([1]CALCULADORA!$F$10="10% (Medio Alto)",ROUND('[1]Tabla de Amortizacion'!H129,8),IF([1]CALCULADORA!$F$10="14% (Alto)",ROUND('[1]Tabla de Amortizacion'!#REF!,8),IF([1]CALCULADORA!$F$10=20%,ROUND('[1]Tabla de Amortizacion'!#REF!,8),ROUND('[1]Tabla de Amortizacion'!K129,8)))))) -> 0
A129: 2035-11-13 | B129: 0 | C129: =+VLOOKUP(A129,'Tabla de Amortizacion'!$D$2:$Q$182,MATCH(Tablas!$B$1,'Tabla de Amortizacion'!$D$2:$Q$2,0)) -> 0 | E129: =IF([1]CALCULADORA!$F$10="Contractual",ROUND('[1]Tabla de Amortizacion'!C130,8),IF([1]CALCULADORA!$F$10="6% (Medio)",ROUND('[1]Tabla de Amortizacion'!F130,8),IF([1]CALCULADORA!$F$10="10% (Medio Alto)",ROUND('[1]Tabla de Amortizacion'!H130,8),IF([1]CALCULADORA!$F$10="14% (Alto)",ROUND('[1]Tabla de Amortizacion'!#REF!,8),IF([1]CALCULADORA!$F$10=20%,ROUND('[1]Tabla de Amortizacion'!#REF!,8),ROUND('[1]Tabla de Amortizacion'!K130,8)))))) -> 0
A130: 2035-12-13 | B130: 0 | C130: =+VLOOKUP(A130,'Tabla de Amortizacion'!$D$2:$Q$182,MATCH(Tablas!$B$1,'Tabla de Amortizacion'!$D$2:$Q$2,0)) -> 0 | E130: =IF([1]CALCULADORA!$F$10="Contractual",ROUND('[1]Tabla de Amortizacion'!C131,8),IF([1]CALCULADORA!$F$10="6% (Medio)",ROUND('[1]Tabla de Amortizacion'!F131,8),IF([1]CALCULADORA!$F$10="10% (Medio Alto)",ROUND('[1]Tabla de Amortizacion'!H131,8),IF([1]CALCULADORA!$F$10="14% (Alto)",ROUND('[1]Tabla de Amortizacion'!#REF!,8),IF([1]CALCULADORA!$F$10=20%,ROUND('[1]Tabla de Amortizacion'!#REF!,8),ROUND('[1]Tabla de Amortizacion'!K131,8)))))) -> 0
A131: =EDATE(A130,1) -> 2036-01-13 | B131: =+ROUND(C131,8) -> 0 | C131: =+VLOOKUP(A131,'Tabla de Amortizacion'!$D$2:$Q$182,MATCH(Tablas!$B$1,'Tabla de Amortizacion'!$D$2:$Q$2,0)) -> 0 | E131: =IF([1]CALCULADORA!$F$10="Contractual",ROUND('[1]Tabla de Amortizacion'!C132,8),IF([1]CALCULADORA!$F$10="6% (Medio)",ROUND('[1]Tabla de Amortizacion'!F132,8),IF([1]CALCULADORA!$F$10="10% (Medio Alto)",ROUND('[1]Tabla de Amortizacion'!H132,8),IF([1]CALCULADORA!$F$10="14% (Alto)",ROUND('[1]Tabla de Amortizacion'!#REF!,8),IF([1]CALCULADORA!$F$10=20%,ROUND('[1]Tabla de Amortizacion'!#REF!,8),ROUND('[1]Tabla de Amortizacion'!K132,8)))))) -> 0
A132: 2036-02-13 | B132: 0 | C132: =+VLOOKUP(A132,'Tabla de Amortizacion'!$D$2:$Q$182,MATCH(Tablas!$B$1,'Tabla de Amortizacion'!$D$2:$Q$2,0)) -> 0 | E132: =IF([1]CALCULADORA!$F$10="Contractual",ROUND('[1]Tabla de Amortizacion'!C133,8),IF([1]CALCULADORA!$F$10="6% (Medio)",ROUND('[1]Tabla de Amortizacion'!F133,8),IF([1]CALCULADORA!$F$10="10% (Medio Alto)",ROUND('[1]Tabla de Amortizacion'!H133,8),IF([1]CALCULADORA!$F$10="14% (Alto)",ROUND('[1]Tabla de Amortizacion'!#REF!,8),IF([1]CALCULADORA!$F$10=20%,ROUND('[1]Tabla de Amortizacion'!#REF!,8),ROUND('[1]Tabla de Amortizacion'!K133,8)))))) -> 0
A133: 2036-03-13 | B133: 0 | C133: =+VLOOKUP(A133,'Tabla de Amortizacion'!$D$2:$Q$182,MATCH(Tablas!$B$1,'Tabla de Amortizacion'!$D$2:$Q$2,0)) -> 0 | E133: =IF([1]CALCULADORA!$F$10="Contractual",ROUND('[1]Tabla de Amortizacion'!C134,8),IF([1]CALCULADORA!$F$10="6% (Medio)",ROUND('[1]Tabla de Amortizacion'!F134,8),IF([1]CALCULADORA!$F$10="10% (Medio Alto)",ROUND('[1]Tabla de Amortizacion'!H134,8),IF([1]CALCULADORA!$F$10="14% (Alto)",ROUND('[1]Tabla de Amortizacion'!#REF!,8),IF([1]CALCULADORA!$F$10=20%,ROUND('[1]Tabla de Amortizacion'!#REF!,8),ROUND('[1]Tabla de Amortizacion'!K134,8)))))) -> 0
A134: 2036-04-13 | B134: 0 | C134: =+VLOOKUP(A134,'Tabla de Amortizacion'!$D$2:$Q$182,MATCH(Tablas!$B$1,'Tabla de Amortizacion'!$D$2:$Q$2,0)) -> 0 | E134: =IF([1]CALCULADORA!$F$10="Contractual",ROUND('[1]Tabla de Amortizacion'!C135,8),IF([1]CALCULADORA!$F$10="6% (Medio)",ROUND('[1]Tabla de Amortizacion'!F135,8),IF([1]CALCULADORA!$F$10="10% (Medio Alto)",ROUND('[1]Tabla de Amortizacion'!H135,8),IF([1]CALCULADORA!$F$10="14% (Alto)",ROUND('[1]Tabla de Amortizacion'!#REF!,8),IF([1]CALCULADORA!$F$10=20%,ROUND('[1]Tabla de Amortizacion'!#REF!,8),ROUND('[1]Tabla de Amortizacion'!K135,8)))))) -> 0
A135: 2036-05-13 | B135: 0 | C135: =+VLOOKUP(A135,'Tabla de Amortizacion'!$D$2:$Q$182,MATCH(Tablas!$B$1,'Tabla de Amortizacion'!$D$2:$Q$2,0)) -> 0 | E135: =IF([1]CALCULADORA!$F$10="Contractual",ROUND('[1]Tabla de Amortizacion'!C136,8),IF([1]CALCULADORA!$F$10="6% (Medio)",ROUND('[1]Tabla de Amortizacion'!F136,8),IF([1]CALCULADORA!$F$10="10% (Medio Alto)",ROUND('[1]Tabla de Amortizacion'!H136,8),IF([1]CALCULADORA!$F$10="14% (Alto)",ROUND('[1]Tabla de Amortizacion'!#REF!,8),IF([1]CALCULADORA!$F$10=20%,ROUND('[1]Tabla de Amortizacion'!#REF!,8),ROUND('[1]Tabla de Amortizacion'!K136,8)))))) -> 0
A136: 2036-06-13 | B136: 0 | C136: =+VLOOKUP(A136,'Tabla de Amortizacion'!$D$2:$Q$182,MATCH(Tablas!$B$1,'Tabla de Amortizacion'!$D$2:$Q$2,0)) -> 0 | E136: =IF([1]CALCULADORA!$F$10="Contractual",ROUND('[1]Tabla de Amortizacion'!C137,8),IF([1]CALCULADORA!$F$10="6% (Medio)",ROUND('[1]Tabla de Amortizacion'!F137,8),IF([1]CALCULADORA!$F$10="10% (Medio Alto)",ROUND('[1]Tabla de Amortizacion'!H137,8),IF([1]CALCULADORA!$F$10="14% (Alto)",ROUND('[1]Tabla de Amortizacion'!#REF!,8),IF([1]CALCULADORA!$F$10=20%,ROUND('[1]Tabla de Amortizacion'!#REF!,8),ROUND('[1]Tabla de Amortizacion'!K137,8)))))) -> 0
A137: 2036-07-13 | B137: 0 | C137: =+VLOOKUP(A137,'Tabla de Amortizacion'!$D$2:$Q$182,MATCH(Tablas!$B$1,'Tabla de Amortizacion'!$D$2:$Q$2,0)) -> 0 | E137: =IF([1]CALCULADORA!$F$10="Contractual",ROUND('[1]Tabla de Amortizacion'!C138,8),IF([1]CALCULADORA!$F$10="6% (Medio)",ROUND('[1]Tabla de Amortizacion'!F138,8),IF([1]CALCULADORA!$F$10="10% (Medio Alto)",ROUND('[1]Tabla de Amortizacion'!H138,8),IF([1]CALCULADORA!$F$10="14% (Alto)",ROUND('[1]Tabla de Amortizacion'!#REF!,8),IF([1]CALCULADORA!$F$10=20%,ROUND('[1]Tabla de Amortizacion'!#REF!,8),ROUND('[1]Tabla de Amortizacion'!K138,8)))))) -> 0
A138: 2036-08-13 | B138: 0 | C138: =+VLOOKUP(A138,'Tabla de Amortizacion'!$D$2:$Q$182,MATCH(Tablas!$B$1,'Tabla de Amortizacion'!$D$2:$Q$2,0)) -> 0 | E138: =IF([1]CALCULADORA!$F$10="Contractual",ROUND('[1]Tabla de Amortizacion'!C139,8),IF([1]CALCULADORA!$F$10="6% (Medio)",ROUND('[1]Tabla de Amortizacion'!F139,8),IF([1]CALCULADORA!$F$10="10% (Medio Alto)",ROUND('[1]Tabla de Amortizacion'!H139,8),IF([1]CALCULADORA!$F$10="14% (Alto)",ROUND('[1]Tabla de Amortizacion'!#REF!,8),IF([1]CALCULADORA!$F$10=20%,ROUND('[1]Tabla de Amortizacion'!#REF!,8),ROUND('[1]Tabla de Amortizacion'!K139,8)))))) -> 0
A139: 2036-09-13 | B139: 0 | C139: =+VLOOKUP(A139,'Tabla de Amortizacion'!$D$2:$Q$182,MATCH(Tablas!$B$1,'Tabla de Amortizacion'!$D$2:$Q$2,0)) -> 0 | E139: =IF([1]CALCULADORA!$F$10="Contractual",ROUND('[1]Tabla de Amortizacion'!C140,8),IF([1]CALCULADORA!$F$10="6% (Medio)",ROUND('[1]Tabla de Amortizacion'!F140,8),IF([1]CALCULADORA!$F$10="10% (Medio Alto)",ROUND('[1]Tabla de Amortizacion'!H140,8),IF([1]CALCULADORA!$F$10="14% (Alto)",ROUND('[1]Tabla de Amortizacion'!#REF!,8),IF([1]CALCULADORA!$F$10=20%,ROUND('[1]Tabla de Amortizacion'!#REF!,8),ROUND('[1]Tabla de Amortizacion'!K140,8)))))) -> 0
A140: 2036-10-13 | B140: 0 | C140: =+VLOOKUP(A140,'Tabla de Amortizacion'!$D$2:$Q$182,MATCH(Tablas!$B$1,'Tabla de Amortizacion'!$D$2:$Q$2,0)) -> 0 | E140: =IF([1]CALCULADORA!$F$10="Contractual",ROUND('[1]Tabla de Amortizacion'!C141,8),IF([1]CALCULADORA!$F$10="6% (Medio)",ROUND('[1]Tabla de Amortizacion'!F141,8),IF([1]CALCULADORA!$F$10="10% (Medio Alto)",ROUND('[1]Tabla de Amortizacion'!H141,8),IF([1]CALCULADORA!$F$10="14% (Alto)",ROUND('[1]Tabla de Amortizacion'!#REF!,8),IF([1]CALCULADORA!$F$10=20%,ROUND('[1]Tabla de Amortizacion'!#REF!,8),ROUND('[1]Tabla de Amortizacion'!K141,8)))))) -> 0
A141: 2036-11-13 | B141: 0 | C141: =+VLOOKUP(A141,'Tabla de Amortizacion'!$D$2:$Q$182,MATCH(Tablas!$B$1,'Tabla de Amortizacion'!$D$2:$Q$2,0)) -> 0 | E141: =IF([1]CALCULADORA!$F$10="Contractual",ROUND('[1]Tabla de Amortizacion'!C142,8),IF([1]CALCULADORA!$F$10="6% (Medio)",ROUND('[1]Tabla de Amortizacion'!F142,8),IF([1]CALCULADORA!$F$10="10% (Medio Alto)",ROUND('[1]Tabla de Amortizacion'!H142,8),IF([1]CALCULADORA!$F$10="14% (Alto)",ROUND('[1]Tabla de Amortizacion'!#REF!,8),IF([1]CALCULADORA!$F$10=20%,ROUND('[1]Tabla de Amortizacion'!#REF!,8),ROUND('[1]Tabla de Amortizacion'!K142,8)))))) -> 0
A142: 2036-12-13 | B142: 0 | C142: =+VLOOKUP(A142,'Tabla de Amortizacion'!$D$2:$Q$182,MATCH(Tablas!$B$1,'Tabla de Amortizacion'!$D$2:$Q$2,0)) -> 0 | E142: =IF([1]CALCULADORA!$F$10="Contractual",ROUND('[1]Tabla de Amortizacion'!C143,8),IF([1]CALCULADORA!$F$10="6% (Medio)",ROUND('[1]Tabla de Amortizacion'!F143,8),IF([1]CALCULADORA!$F$10="10% (Medio Alto)",ROUND('[1]Tabla de Amortizacion'!H143,8),IF([1]CALCULADORA!$F$10="14% (Alto)",ROUND('[1]Tabla de Amortizacion'!#REF!,8),IF([1]CALCULADORA!$F$10=20%,ROUND('[1]Tabla de Amortizacion'!#REF!,8),ROUND('[1]Tabla de Amortizacion'!K143,8)))))) -> 0
A143: 2037-01-13 | B143: 0 | C143: =+VLOOKUP(A143,'Tabla de Amortizacion'!$D$2:$Q$182,MATCH(Tablas!$B$1,'Tabla de Amortizacion'!$D$2:$Q$2,0)) -> 0 | E143: =IF([1]CALCULADORA!$F$10="Contractual",ROUND('[1]Tabla de Amortizacion'!C144,8),IF([1]CALCULADORA!$F$10="6% (Medio)",ROUND('[1]Tabla de Amortizacion'!F144,8),IF([1]CALCULADORA!$F$10="10% (Medio Alto)",ROUND('[1]Tabla de Amortizacion'!H144,8),IF([1]CALCULADORA!$F$10="14% (Alto)",ROUND('[1]Tabla de Amortizacion'!#REF!,8),IF([1]CALCULADORA!$F$10=20%,ROUND('[1]Tabla de Amortizacion'!#REF!,8),ROUND('[1]Tabla de Amortizacion'!K144,8)))))) -> 0
A144: 2037-02-13 | B144: 0 | C144: =+VLOOKUP(A144,'Tabla de Amortizacion'!$D$2:$Q$182,MATCH(Tablas!$B$1,'Tabla de Amortizacion'!$D$2:$Q$2,0)) -> 0 | E144: =IF([1]CALCULADORA!$F$10="Contractual",ROUND('[1]Tabla de Amortizacion'!C145,8),IF([1]CALCULADORA!$F$10="6% (Medio)",ROUND('[1]Tabla de Amortizacion'!F145,8),IF([1]CALCULADORA!$F$10="10% (Medio Alto)",ROUND('[1]Tabla de Amortizacion'!H145,8),IF([1]CALCULADORA!$F$10="14% (Alto)",ROUND('[1]Tabla de Amortizacion'!#REF!,8),IF([1]CALCULADORA!$F$10=20%,ROUND('[1]Tabla de Amortizacion'!#REF!,8),ROUND('[1]Tabla de Amortizacion'!K145,8)))))) -> 0
A145: 2037-03-13 | B145: 0 | C145: =+VLOOKUP(A145,'Tabla de Amortizacion'!$D$2:$Q$182,MATCH(Tablas!$B$1,'Tabla de Amortizacion'!$D$2:$Q$2,0)) -> 0 | E145: =IF([1]CALCULADORA!$F$10="Contractual",ROUND('[1]Tabla de Amortizacion'!C146,8),IF([1]CALCULADORA!$F$10="6% (Medio)",ROUND('[1]Tabla de Amortizacion'!F146,8),IF([1]CALCULADORA!$F$10="10% (Medio Alto)",ROUND('[1]Tabla de Amortizacion'!H146,8),IF([1]CALCULADORA!$F$10="14% (Alto)",ROUND('[1]Tabla de Amortizacion'!#REF!,8),IF([1]CALCULADORA!$F$10=20%,ROUND('[1]Tabla de Amortizacion'!#REF!,8),ROUND('[1]Tabla de Amortizacion'!K146,8)))))) -> 0
A146: 2037-04-13 | B146: 0 | C146: =+VLOOKUP(A146,'Tabla de Amortizacion'!$D$2:$Q$182,MATCH(Tablas!$B$1,'Tabla de Amortizacion'!$D$2:$Q$2,0)) -> 0 | E146: =IF([1]CALCULADORA!$F$10="Contractual",ROUND('[1]Tabla de Amortizacion'!C147,8),IF([1]CALCULADORA!$F$10="6% (Medio)",ROUND('[1]Tabla de Amortizacion'!F147,8),IF([1]CALCULADORA!$F$10="10% (Medio Alto)",ROUND('[1]Tabla de Amortizacion'!H147,8),IF([1]CALCULADORA!$F$10="14% (Alto)",ROUND('[1]Tabla de Amortizacion'!#REF!,8),IF([1]CALCULADORA!$F$10=20%,ROUND('[1]Tabla de Amortizacion'!#REF!,8),ROUND('[1]Tabla de Amortizacion'!K147,8)))))) -> 0
A147: 2037-05-13 | B147: 0 | C147: =+VLOOKUP(A147,'Tabla de Amortizacion'!$D$2:$Q$182,MATCH(Tablas!$B$1,'Tabla de Amortizacion'!$D$2:$Q$2,0)) -> 0 | E147: =IF([1]CALCULADORA!$F$10="Contractual",ROUND('[1]Tabla de Amortizacion'!C148,8),IF([1]CALCULADORA!$F$10="6% (Medio)",ROUND('[1]Tabla de Amortizacion'!F148,8),IF([1]CALCULADORA!$F$10="10% (Medio Alto)",ROUND('[1]Tabla de Amortizacion'!H148,8),IF([1]CALCULADORA!$F$10="14% (Alto)",ROUND('[1]Tabla de Amortizacion'!#REF!,8),IF([1]CALCULADORA!$F$10=20%,ROUND('[1]Tabla de Amortizacion'!#REF!,8),ROUND('[1]Tabla de Amortizacion'!K148,8)))))) -> 0
A148: 2037-06-13 | B148: 0 | C148: =+VLOOKUP(A148,'Tabla de Amortizacion'!$D$2:$Q$182,MATCH(Tablas!$B$1,'Tabla de Amortizacion'!$D$2:$Q$2,0)) -> 0 | E148: =IF([1]CALCULADORA!$F$10="Contractual",ROUND('[1]Tabla de Amortizacion'!C149,8),IF([1]CALCULADORA!$F$10="6% (Medio)",ROUND('[1]Tabla de Amortizacion'!F149,8),IF([1]CALCULADORA!$F$10="10% (Medio Alto)",ROUND('[1]Tabla de Amortizacion'!H149,8),IF([1]CALCULADORA!$F$10="14% (Alto)",ROUND('[1]Tabla de Amortizacion'!#REF!,8),IF([1]CALCULADORA!$F$10=20%,ROUND('[1]Tabla de Amortizacion'!#REF!,8),ROUND('[1]Tabla de Amortizacion'!K149,8)))))) -> 0
A149: 2037-07-13 | B149: 0 | C149: =+VLOOKUP(A149,'Tabla de Amortizacion'!$D$2:$Q$182,MATCH(Tablas!$B$1,'Tabla de Amortizacion'!$D$2:$Q$2,0)) -> 0 | E149: =IF([1]CALCULADORA!$F$10="Contractual",ROUND('[1]Tabla de Amortizacion'!C150,8),IF([1]CALCULADORA!$F$10="6% (Medio)",ROUND('[1]Tabla de Amortizacion'!F150,8),IF([1]CALCULADORA!$F$10="10% (Medio Alto)",ROUND('[1]Tabla de Amortizacion'!H150,8),IF([1]CALCULADORA!$F$10="14% (Alto)",ROUND('[1]Tabla de Amortizacion'!#REF!,8),IF([1]CALCULADORA!$F$10=20%,ROUND('[1]Tabla de Amortizacion'!#REF!,8),ROUND('[1]Tabla de Amortizacion'!K150,8)))))) -> 0
A150: 2037-08-13 | B150: 0 | C150: =+VLOOKUP(A150,'Tabla de Amortizacion'!$D$2:$Q$182,MATCH(Tablas!$B$1,'Tabla de Amortizacion'!$D$2:$Q$2,0)) -> 0 | E150: =IF([1]CALCULADORA!$F$10="Contractual",ROUND('[1]Tabla de Amortizacion'!C151,8),IF([1]CALCULADORA!$F$10="6% (Medio)",ROUND('[1]Tabla de Amortizacion'!F151,8),IF([1]CALCULADORA!$F$10="10% (Medio Alto)",ROUND('[1]Tabla de Amortizacion'!H151,8),IF([1]CALCULADORA!$F$10="14% (Alto)",ROUND('[1]Tabla de Amortizacion'!#REF!,8),IF([1]CALCULADORA!$F$10=20%,ROUND('[1]Tabla de Amortizacion'!#REF!,8),ROUND('[1]Tabla de Amortizacion'!K151,8)))))) -> 0
A151: 2037-09-13 | B151: 0 | C151: =+VLOOKUP(A151,'Tabla de Amortizacion'!$D$2:$Q$182,MATCH(Tablas!$B$1,'Tabla de Amortizacion'!$D$2:$Q$2,0)) -> 0 | E151: =IF([1]CALCULADORA!$F$10="Contractual",ROUND('[1]Tabla de Amortizacion'!C152,8),IF([1]CALCULADORA!$F$10="6% (Medio)",ROUND('[1]Tabla de Amortizacion'!F152,8),IF([1]CALCULADORA!$F$10="10% (Medio Alto)",ROUND('[1]Tabla de Amortizacion'!H152,8),IF([1]CALCULADORA!$F$10="14% (Alto)",ROUND('[1]Tabla de Amortizacion'!#REF!,8),IF([1]CALCULADORA!$F$10=20%,ROUND('[1]Tabla de Amortizacion'!#REF!,8),ROUND('[1]Tabla de Amortizacion'!K152,8)))))) -> 0
A152: 2037-10-13 | B152: 0 | C152: =+VLOOKUP(A152,'Tabla de Amortizacion'!$D$2:$Q$182,MATCH(Tablas!$B$1,'Tabla de Amortizacion'!$D$2:$Q$2,0)) -> 0 | E152: =IF([1]CALCULADORA!$F$10="Contractual",ROUND('[1]Tabla de Amortizacion'!C153,8),IF([1]CALCULADORA!$F$10="6% (Medio)",ROUND('[1]Tabla de Amortizacion'!F153,8),IF([1]CALCULADORA!$F$10="10% (Medio Alto)",ROUND('[1]Tabla de Amortizacion'!H153,8),IF([1]CALCULADORA!$F$10="14% (Alto)",ROUND('[1]Tabla de Amortizacion'!#REF!,8),IF([1]CALCULADORA!$F$10=20%,ROUND('[1]Tabla de Amortizacion'!#REF!,8),ROUND('[1]Tabla de Amortizacion'!K153,8)))))) -> 0
